Workbook

Sheet Instructions
E3: Instructions
E5: 1) On "MainSheet" add the hours to subtract in cell X4 for your local time as times are EST or EDST.
E6: 2) Go to "RaceList" sheet and press "Delete" to clear any old race files.
E7: 3) Press the "Meetings" button you can then change the date for back testing your ratings or click "OK" for today's races.
E8: 4) After the races are imported you will have a list of available venues on the right, on the left you have a dropdown box where you can select that venue.
E9: 5) You can choose to import your choice of races by going to "Meetings1" sheet and clearing the race numbers of the races you are not interested in,
E10: Then go back to "RaceList" sheet and press the "Automatic" button and let the sheet run.
E11: 6) If you want to just import a race as you go then on the "RaceList" sheet click on the race number you want then press "Manual", after the race has been imported
E12: You can make a copy of that sheet by pressing "Copy" on the "RaceList" sheet, make sure that race does not already exist, if so you can delete the sheet.
E14: Results
E15: If you are back testing go to the "Results" page to see a list of your top 5 and if they won a price will be displayed.,
E16: you can add your own code from column H onwards to analyze the results.
E19: Adjust Ratings
I20: `
E21: The sheet is unprotected so you can make any changes you want, to add your own values go to the " Tables" sheet, if you wish to exclude a form factor
E22: from being assessed put an X in the box above that factor.
E23: You can also change any factor in red or even add your own assessment criterior and values if you wish,
E24: you will need to make major changes if you want to add any new form factors so make a copy of the sheet before you start.

Sheet RaceList
K1: Race Venues
J2: Selected Venues | M2: Available Venues
L3: =IF(Data!AW1="","",Data!AW1) -> 
J4: ROCKHAMPTON (QR) | L4: =IF(Data!AW2="","",Data!AW2) -> Rockhampton
L5: =IF(Data!AW3="","",Data!AW3) -> Pinjarra
L6: =IF(Data!AW4="","",Data!AW4) -> Launceston
L7: =IF(Data!AW5="","",Data!AW5) -> Hawkesbury
L8: =IF(Data!AW6="","",Data!AW6) -> Geelong
L9: =IF(Data!AW7="","",Data!AW7) -> 
L10: =IF(Data!AW8="","",Data!AW8) -> 
L11: =IF(Data!AW9="","",Data!AW9) -> 
L12: =IF(Data!AW10="","",Data!AW10) -> 
L13: =IF(Data!AW11="","",Data!AW11) -> 
L14: =IF(Data!AW12="","",Data!AW12) -> 
L15: =IF(Data!AW13="","",Data!AW13) -> 
L16: =IF(Data!AW14="","",Data!AW14) -> 
L17: =IF(Data!AW15="","",Data!AW15) -> 
L18: =IF(Data!AW16="","",Data!AW16) -> 
L19: =IF(Data!AW17="","",Data!AW17) -> 
J21: Race Lists
J22: =IF(Meetings1!A2="","",Meetings1!A2) -> Geelong | K22: =IF(Meetings1!B2="","",Meetings1!C2) -> 
J23: =IF(Meetings1!A3="","",Meetings1!A3) -> 1 | K23: =IF(Meetings1!B3="","",Meetings1!C3) -> Carr & Harvey Accountants Mdn - 1330m | O23: =IF(Meetings1!B3="","",getAddress(Meetings1!E3)) -> http://formguide.cyberhorse.com.au/index.php/Form/form.html?formdate=2010-12-02&track=G'long&raceno=1
J24: =IF(Meetings1!A4="","",Meetings1!A4) -> 2 | K24: =IF(Meetings1!B4="","",Meetings1!C4) -> Alc Quality Foods Mdn Plate - 1530m | O24: =IF(Meetings1!B4="","",getAddress(Meetings1!E4)) -> http://formguide.cyberhorse.com.au/index.php/Form/form.html?formdate=2010-12-02&track=G'long&raceno=2
J25: =IF(Meetings1!A5="","",Meetings1!A5) -> 3 | K25: =IF(Meetings1!B5="","",Meetings1!C5) -> Nib Health Funds Hcp (c1) - 1130m | O25: =IF(Meetings1!B5="","",getAddress(Meetings1!E5)) -> http://formguide.cyberhorse.com.au/index.php/Form/form.html?formdate=2010-12-02&track=G'long&raceno=3
J26: =IF(Meetings1!A6="","",Meetings1!A6) -> 4 | K26: =IF(Meetings1!B6="","",Meetings1!C6) -> It Trophy & Clothing Mdn - 1230m | O26: =IF(Meetings1!B6="","",getAddress(Meetings1!E6)) -> http://formguide.cyberhorse.com.au/index.php/Form/form.html?formdate=2010-12-02&track=G'long&raceno=4
J27: =IF(Meetings1!A7="","",Meetings1!A7) -> 5 | K27: =IF(Meetings1!B7="","",Meetings1!C7) -> Quinlan Cranes Hcp (62) - 1530m | O27: =IF(Meetings1!B7="","",getAddress(Meetings1!E7)) -> http://formguide.cyberhorse.com.au/index.php/Form/form.html?formdate=2010-12-02&track=G'long&raceno=5
J28: =IF(Meetings1!A8="","",Meetings1!A8) -> 6 | K28: =IF(Meetings1!B8="","",Meetings1!C8) -> Briseis Gold Cup - 1741m | O28: =IF(Meetings1!B8="","",getAddress(Meetings1!E8)) -> http://formguide.cyberhorse.com.au/index.php/Form/form.html?formdate=2010-12-02&track=G'long&raceno=6
J29: =IF(Meetings1!A9="","",Meetings1!A9) -> 7 | K29: =IF(Meetings1!B9="","",Meetings1!C9) -> Doxa Joe Youth Foundation (68) - 2447m | O29: =IF(Meetings1!B9="","",getAddress(Meetings1!E9)) -> http://formguide.cyberhorse.com.au/index.php/Form/form.html?formdate=2010-12-02&track=G'long&raceno=7
J30: =IF(Meetings1!A10="","",Meetings1!A10) -> 8 | K30: =IF(Meetings1!B10="","",Meetings1!C10) -> C Q Recruitment Hcp (62) - 1330m | O30: =IF(Meetings1!B10="","",getAddress(Meetings1!E10)) -> http://formguide.cyberhorse.com.au/index.php/Form/form.html?formdate=2010-12-02&track=G'long&raceno=8
J31: =IF(Meetings1!A11="","",Meetings1!A11) -> Hawkesbury | K31: =IF(Meetings1!B11="","",Meetings1!C11) ->  | O31: =IF(Meetings1!B11="","",getAddress(Meetings1!E11)) -> 
J32: 1 | K32: =IF(Meetings1!B12="","",Meetings1!C12) -> Clarendon Parklea Displays-c1 - 1400m | O32: =IF(Meetings1!B12="","",getAddress(Meetings1!E12)) -> http://formguide.cyberhorse.com.au/index.php/Form/form.html?formdate=2010-12-02&track=H'bury&raceno=1
J33: 2 | K33: =IF(Meetings1!B13="","",Meetings1!C13) -> Brivis Air Conditioning Mdn - 1000m | O33: =IF(Meetings1!B13="","",getAddress(Meetings1!E13)) -> http://formguide.cyberhorse.com.au/index.php/Form/form.html?formdate=2010-12-02&track=H'bury&raceno=2
J34: 3 | K34: =IF(Meetings1!B14="","",Meetings1!C14) -> Tfh Temporary Fence Hire Mdn - 1000m | O34: =IF(Meetings1!B14="","",getAddress(Meetings1!E14)) -> http://formguide.cyberhorse.com.au/index.php/Form/form.html?formdate=2010-12-02&track=H'bury&raceno=3
J35: 4 | K35: =IF(Meetings1!B15="","",Meetings1!C15) -> Clarendon Chairman's (bm60) - 1000m | O35: =IF(Meetings1!B15="","",getAddress(Meetings1!E15)) -> http://formguide.cyberhorse.com.au/index.php/Form/form.html?formdate=2010-12-02&track=H'bury&raceno=4
J36: 5 | K36: =IF(Meetings1!B16="","",Meetings1!C16) -> Clarendon Homes (bm60) - 1600m | O36: =IF(Meetings1!B16="","",getAddress(Meetings1!E16)) -> http://formguide.cyberhorse.com.au/index.php/Form/form.html?formdate=2010-12-02&track=H'bury&raceno=5
J37: 6 | K37: =IF(Meetings1!B17="","",Meetings1!C17) -> M & Z Tiling Mdn Plate - 1800m | O37: =IF(Meetings1!B17="","",getAddress(Meetings1!E17)) -> http://formguide.cyberhorse.com.au/index.php/Form/form.html?formdate=2010-12-02&track=H'bury&raceno=6
J38: 7 | K38: =IF(Meetings1!B18="","",Meetings1!C18) -> Clarendon Trades Hcp (c2) - 1200m | O38: =IF(Meetings1!B18="","",getAddress(Meetings1!E18)) -> http://formguide.cyberhorse.com.au/index.php/Form/form.html?formdate=2010-12-02&track=H'bury&raceno=7
J39: 8 | K39: =IF(Meetings1!B19="","",Meetings1!C19) -> Clarendon Resi Projects Mdn - 1400m | O39: =IF(Meetings1!B19="","",getAddress(Meetings1!E19)) -> http://formguide.cyberhorse.com.au/index.php/Form/form.html?formdate=2010-12-02&track=H'bury&raceno=8
J40: =IF(Meetings1!A20="","",Meetings1!A20) -> Launceston | K40: =IF(Meetings1!B20="","",Meetings1!C20) ->  | O40: =IF(Meetings1!B20="","",getAddress(Meetings1!E20)) -> 
J41: =IF(Meetings1!A21="","",Meetings1!A21) -> 1 | K41: =IF(Meetings1!B21="","",Meetings1!C21) -> Alps & Amici Mdn Plate - 1100m | O41: =IF(Meetings1!B21="","",getAddress(Meetings1!E21)) -> http://formguide.cyberhorse.com.au/index.php/Form/form.html?formdate=2010-12-02&track=Launc.&raceno=1
J42: =IF(Meetings1!A22="","",Meetings1!A22) -> 2 | K42: =IF(Meetings1!B22="","",Meetings1!C22) -> Juicy Isle Mdn Plate - 1200m | O42: =IF(Meetings1!B22="","",getAddress(Meetings1!E22)) -> http://formguide.cyberhorse.com.au/index.php/Form/form.html?formdate=2010-12-02&track=Launc.&raceno=2
J43: =IF(Meetings1!A23="","",Meetings1!A23) -> 3 | K43: =IF(Meetings1!B23="","",Meetings1!C23) -> Cripps Nu-bake Hcp (c4) - 1400m | O43: =IF(Meetings1!B23="","",getAddress(Meetings1!E23)) -> http://formguide.cyberhorse.com.au/index.php/Form/form.html?formdate=2010-12-02&track=Launc.&raceno=3
J44: =IF(Meetings1!A24="","",Meetings1!A24) -> 4 | K44: =IF(Meetings1!B24="","",Meetings1!C24) -> Jack Chambers (bm68) - 2100m | O44: =IF(Meetings1!B24="","",getAddress(Meetings1!E24)) -> http://formguide.cyberhorse.com.au/index.php/Form/form.html?formdate=2010-12-02&track=Launc.&raceno=4
J45: =IF(Meetings1!A25="","",Meetings1!A25) -> 5 | K45: =IF(Meetings1!B25="","",Meetings1!C25) -> Field Family Hcp - 1400m | O45: =IF(Meetings1!B25="","",getAddress(Meetings1!E25)) -> http://formguide.cyberhorse.com.au/index.php/Form/form.html?formdate=2010-12-02&track=Launc.&raceno=5
J46: =IF(Meetings1!A26="","",Meetings1!A26) -> 6 | K46: =IF(Meetings1!B26="","",Meetings1!C26) -> Pfd Foodservices W F A - 1400m | O46: =IF(Meetings1!B26="","",getAddress(Meetings1!E26)) -> http://formguide.cyberhorse.com.au/index.php/Form/form.html?formdate=2010-12-02&track=Launc.&raceno=6
J47: =IF(Meetings1!A27="","",Meetings1!A27) -> 7 | K47: =IF(Meetings1!B27="","",Meetings1!C27) -> West's Bakery Hcp (c2) - 1400m | O47: =IF(Meetings1!B27="","",getAddress(Meetings1!E27)) -> http://formguide.cyberhorse.com.au/index.php/Form/form.html?formdate=2010-12-02&track=Launc.&raceno=7
J48: =IF(Meetings1!A28="","",Meetings1!A28) -> 8 | K48: =IF(Meetings1!B28="","",Meetings1!C28) -> Abel's Tempest Hcp (c1) - 1200m | O48: =IF(Meetings1!B28="","",getAddress(Meetings1!E28)) -> http://formguide.cyberhorse.com.au/index.php/Form/form.html?formdate=2010-12-02&track=Launc.&raceno=8
J49: =IF(Meetings1!A29="","",Meetings1!A29) -> Pinjarra | K49: =IF(Meetings1!B29="","",Meetings1!C29) ->  | O49: =IF(Meetings1!B29="","",getAddress(Meetings1!E29)) -> 
J50: =IF(Meetings1!A30="","",Meetings1!A30) -> 1 | K50: =IF(Meetings1!B30="","",Meetings1!C30) -> Peel Bins Mdn - 1000m | O50: =IF(Meetings1!B30="","",getAddress(Meetings1!E30)) -> http://formguide.cyberhorse.com.au/index.php/Form/form.html?formdate=2010-12-02&track=Pinjra&raceno=1
J51: =IF(Meetings1!A31="","",Meetings1!A31) -> 2 | K51: =IF(Meetings1!B31="","",Meetings1!C31) -> Traders & Stable Affairs Mdn - 1200m | O51: =IF(Meetings1!B31="","",getAddress(Meetings1!E31)) -> http://formguide.cyberhorse.com.au/index.php/Form/form.html?formdate=2010-12-02&track=Pinjra&raceno=2
J52: =IF(Meetings1!A32="","",Meetings1!A32) -> 3 | K52: =IF(Meetings1!B32="","",Meetings1!C32) -> Crystals Surf Mdn - 1200m | O52: =IF(Meetings1!B32="","",getAddress(Meetings1!E32)) -> http://formguide.cyberhorse.com.au/index.php/Form/form.html?formdate=2010-12-02&track=Pinjra&raceno=3
J53: =IF(Meetings1!A33="","",Meetings1!A33) -> 4 | K53: =IF(Meetings1!B33="","",Meetings1!C33) -> George 'n' Dragon Tavern Mdn - 1600m | O53: =IF(Meetings1!B33="","",getAddress(Meetings1!E33)) -> http://formguide.cyberhorse.com.au/index.php/Form/form.html?formdate=2010-12-02&track=Pinjra&raceno=4
J54: =IF(Meetings1!A34="","",Meetings1!A34) -> 5 | K54: =IF(Meetings1!B34="","",Meetings1!C34) -> Bennu Intl Consultancy Hcp-68 - 1600m | O54: =IF(Meetings1!B34="","",getAddress(Meetings1!E34)) -> http://formguide.cyberhorse.com.au/index.php/Form/form.html?formdate=2010-12-02&track=Pinjra&raceno=5
J55: =IF(Meetings1!A35="","",Meetings1!A35) -> 6 | K55: =IF(Meetings1!B35="","",Meetings1!C35) -> Ideas In Furniture Hcp (c1) - 1400m | O55: =IF(Meetings1!B35="","",getAddress(Meetings1!E35)) -> http://formguide.cyberhorse.com.au/index.php/Form/form.html?formdate=2010-12-02&track=Pinjra&raceno=6
J56: =IF(Meetings1!A36="","",Meetings1!A36) -> 7 | K56: =IF(Meetings1!B36="","",Meetings1!C36) -> Boddington Earthmoving Hcp-64 - 2000m | O56: =IF(Meetings1!B36="","",getAddress(Meetings1!E36)) -> http://formguide.cyberhorse.com.au/index.php/Form/form.html?formdate=2010-12-02&track=Pinjra&raceno=7
J57: =IF(Meetings1!A37="","",Meetings1!A37) -> 8 | K57: =IF(Meetings1!B37="","",Meetings1!C37) -> Magic Millions (bm60+) - 1200m | O57: =IF(Meetings1!B37="","",getAddress(Meetings1!E37)) -> http://formguide.cyberhorse.com.au/index.php/Form/form.html?formdate=2010-12-02&track=Pinjra&raceno=8
J58: =IF(Meetings1!A38="","",Meetings1!A38) -> Rockhampton | K58: =IF(Meetings1!B38="","",Meetings1!C38) ->  | O58: =IF(Meetings1!B38="","",getAddress(Meetings1!E38)) -> 
J59: =IF(Meetings1!A39="","",Meetings1!A39) -> 1 | K59: =IF(Meetings1!B39="","",Meetings1!C39) -> Goody's Earth Moving Mdn Hcp - 1600m | O59: =IF(Meetings1!B39="","",getAddress(Meetings1!E39)) -> http://formguide.cyberhorse.com.au/index.php/Form/form.html?formdate=2010-12-02&track=Rocky&raceno=1
J60: =IF(Meetings1!A40="","",Meetings1!A40) -> 2 | K60: =IF(Meetings1!B40="","",Meetings1!C40) -> Cq Powdercoaters Hcp - 970m | O60: =IF(Meetings1!B40="","",getAddress(Meetings1!E40)) -> http://formguide.cyberhorse.com.au/index.php/Form/form.html?formdate=2010-12-02&track=Rocky&raceno=2
J61: =IF(Meetings1!A41="","",Meetings1!A41) -> 3 | K61: =IF(Meetings1!B41="","",Meetings1!C41) -> Rockyvegas 600 Social Clb Mdn - 970m | O61: =IF(Meetings1!B41="","",getAddress(Meetings1!E41)) -> http://formguide.cyberhorse.com.au/index.php/Form/form.html?formdate=2010-12-02&track=Rocky&raceno=3
J62: =IF(Meetings1!A42="","",Meetings1!A42) -> 4 | K62: =IF(Meetings1!B42="","",Meetings1!C42) -> Kele Property Group Hcp (c1) - 1400m | O62: =IF(Meetings1!B42="","",getAddress(Meetings1!E42)) -> http://formguide.cyberhorse.com.au/index.php/Form/form.html?formdate=2010-12-02&track=Rocky&raceno=4
J63: =IF(Meetings1!A43="","",Meetings1!A43) -> 5 | K63: =IF(Meetings1!B43="","",Meetings1!C43) -> Allenstown Hotel Hcp (c4) - 1300m | O63: =IF(Meetings1!B43="","",getAddress(Meetings1!E43)) -> http://formguide.cyberhorse.com.au/index.php/Form/form.html?formdate=2010-12-02&track=Rocky&raceno=5
J64: =IF(Meetings1!A44="","",Meetings1!A44) -> 6 | K64: =IF(Meetings1!B44="","",Meetings1!C44) -> Daniels Surgical & Health (c2) - 1050m | O64: =IF(Meetings1!B44="","",getAddress(Meetings1!E44)) -> http://formguide.cyberhorse.com.au/index.php/Form/form.html?formdate=2010-12-02&track=Rocky&raceno=6
J65: =IF(Meetings1!A45="","",Meetings1!A45) -> END | K65: =IF(Meetings1!B45="","",Meetings1!C45) ->  | O65: =IF(Meetings1!B45="","",getAddress(Meetings1!E45)) -> 
J66: =IF(Meetings1!A46="","",Meetings1!A46) ->  | K66: =IF(Meetings1!B46="","",Meetings1!C46) ->  | O66: =IF(Meetings1!B46="","",getAddress(Meetings1!E46)) -> 
J67: =IF(Meetings1!A47="","",Meetings1!A47) ->  | K67: =IF(Meetings1!B47="","",Meetings1!C47) ->  | O67: =IF(Meetings1!B47="","",getAddress(Meetings1!E47)) -> 
J68: =IF(Meetings1!A48="","",Meetings1!A48) ->  | K68: =IF(Meetings1!B48="","",Meetings1!C48) ->  | O68: =IF(Meetings1!B48="","",getAddress(Meetings1!E48)) -> 
J69: =IF(Meetings1!A49="","",Meetings1!A49) ->  | K69: =IF(Meetings1!B49="","",Meetings1!C49) ->  | O69: =IF(Meetings1!B49="","",getAddress(Meetings1!E49)) -> 
J70: =IF(Meetings1!A50="","",Meetings1!A50) ->  | K70: =IF(Meetings1!B50="","",Meetings1!C50) ->  | O70: =IF(Meetings1!B50="","",getAddress(Meetings1!E50)) -> 
J71: =IF(Meetings1!A51="","",Meetings1!A51) ->  | K71: =IF(Meetings1!B51="","",Meetings1!C51) ->  | O71: =IF(Meetings1!B51="","",getAddress(Meetings1!E51)) -> 
J72: =IF(Meetings1!A52="","",Meetings1!A52) ->  | K72: =IF(Meetings1!B52="","",Meetings1!C52) ->  | O72: =IF(Meetings1!B52="","",getAddress(Meetings1!E52)) -> 
J73: =IF(Meetings1!A53="","",Meetings1!A53) ->  | K73: =IF(Meetings1!B53="","",Meetings1!C53) ->  | O73: =IF(Meetings1!B53="","",getAddress(Meetings1!E53)) -> 
J74: =IF(Meetings1!A54="","",Meetings1!A54) ->  | K74: =IF(Meetings1!B54="","",Meetings1!C54) ->  | O74: =IF(Meetings1!B54="","",getAddress(Meetings1!E54)) -> 
J75: =IF(Meetings1!A55="","",Meetings1!A55) ->  | K75: =IF(Meetings1!B55="","",Meetings1!C55) ->  | O75: =IF(Meetings1!B55="","",getAddress(Meetings1!E55)) -> 
J76: =IF(Meetings1!A56="","",Meetings1!A56) ->  | K76: =IF(Meetings1!B56="","",Meetings1!C56) ->  | O76: =IF(Meetings1!B56="","",getAddress(Meetings1!E56)) -> 
J77: =IF(Meetings1!A57="","",Meetings1!A57) ->  | K77: =IF(Meetings1!B57="","",Meetings1!C57) ->  | O77: =IF(Meetings1!B57="","",getAddress(Meetings1!E57)) -> 
J78: =IF(Meetings1!A58="","",Meetings1!A58) ->  | K78: =IF(Meetings1!B58="","",Meetings1!C58) ->  | O78: =IF(Meetings1!B58="","",getAddress(Meetings1!E58)) -> 
J79: =IF(Meetings1!A59="","",Meetings1!A59) ->  | K79: =IF(Meetings1!B59="","",Meetings1!C59) ->  | O79: =IF(Meetings1!B59="","",getAddress(Meetings1!E59)) -> 
J80: =IF(Meetings1!A60="","",Meetings1!A60) ->  | K80: =IF(Meetings1!B60="","",Meetings1!C60) ->  | O80: =IF(Meetings1!B60="","",getAddress(Meetings1!E60)) -> 
J81: =IF(Meetings1!A61="","",Meetings1!A61) ->  | K81: =IF(Meetings1!B61="","",Meetings1!C61) ->  | O81: =IF(Meetings1!B61="","",getAddress(Meetings1!E61)) -> 
J82: =IF(Meetings1!A62="","",Meetings1!A62) ->  | K82: =IF(Meetings1!B62="","",Meetings1!C62) ->  | O82: =IF(Meetings1!B62="","",getAddress(Meetings1!E62)) -> 
J83: =IF(Meetings1!A63="","",Meetings1!A63) ->  | K83: =IF(Meetings1!B63="","",Meetings1!C63) ->  | O83: =IF(Meetings1!B63="","",getAddress(Meetings1!E63)) -> 
J84: =IF(Meetings1!A64="","",Meetings1!A64) ->  | K84: =IF(Meetings1!B64="","",Meetings1!C64) ->  | O84: =IF(Meetings1!B64="","",getAddress(Meetings1!E64)) -> 
J85: =IF(Meetings1!A65="","",Meetings1!A65) ->  | K85: =IF(Meetings1!B65="","",Meetings1!C65) ->  | O85: =IF(Meetings1!B65="","",getAddress(Meetings1!E65)) -> 
J86: =IF(Meetings1!A66="","",Meetings1!A66) ->  | K86: =IF(Meetings1!B66="","",Meetings1!C66) ->  | O86: =IF(Meetings1!B66="","",getAddress(Meetings1!E66)) -> 
J87: =IF(Meetings1!A67="","",Meetings1!A67) ->  | K87: =IF(Meetings1!B67="","",Meetings1!C67) ->  | O87: =IF(Meetings1!B67="","",getAddress(Meetings1!E67)) -> 
J88: =IF(Meetings1!A68="","",Meetings1!A68) ->  | K88: =IF(Meetings1!B68="","",Meetings1!C68) ->  | O88: =IF(Meetings1!B68="","",getAddress(Meetings1!E68)) -> 
J89: =IF(Meetings1!A69="","",Meetings1!A69) ->  | K89: =IF(Meetings1!B69="","",Meetings1!C69) ->  | O89: =IF(Meetings1!B69="","",getAddress(Meetings1!E69)) -> 
J90: =IF(Meetings1!A70="","",Meetings1!A70) ->  | K90: =IF(Meetings1!B70="","",Meetings1!C70) ->  | O90: =IF(Meetings1!B70="","",getAddress(Meetings1!E70)) -> 
J91: =IF(Meetings1!A71="","",Meetings1!A71) ->  | K91: =IF(Meetings1!B71="","",Meetings1!C71) ->  | O91: =IF(Meetings1!B71="","",getAddress(Meetings1!E71)) -> 
J92: =IF(Meetings1!A72="","",Meetings1!A72) ->  | K92: =IF(Meetings1!B72="","",Meetings1!C72) ->  | O92: =IF(Meetings1!B72="","",getAddress(Meetings1!E72)) -> 
J93: =IF(Meetings1!A73="","",Meetings1!A73) ->  | K93: =IF(Meetings1!B73="","",Meetings1!C73) ->  | O93: =IF(Meetings1!B73="","",getAddress(Meetings1!E73)) -> 
J94: =IF(Meetings1!A74="","",Meetings1!A74) ->  | K94: =IF(Meetings1!B74="","",Meetings1!C74) ->  | O94: =IF(Meetings1!B74="","",getAddress(Meetings1!E74)) -> 
J95: =IF(Meetings1!A75="","",Meetings1!A75) ->  | K95: =IF(Meetings1!B75="","",Meetings1!C75) ->  | O95: =IF(Meetings1!B75="","",getAddress(Meetings1!E75)) -> 
J96: =IF(Meetings1!A76="","",Meetings1!A76) ->  | K96: =IF(Meetings1!B76="","",Meetings1!C76) ->  | O96: =IF(Meetings1!B76="","",getAddress(Meetings1!E76)) -> 
J97: =IF(Meetings1!A77="","",Meetings1!A77) ->  | K97: =IF(Meetings1!B77="","",Meetings1!C77) ->  | O97: =IF(Meetings1!B77="","",getAddress(Meetings1!E77)) -> 
J98: =IF(Meetings1!A78="","",Meetings1!A78) ->  | K98: =IF(Meetings1!B78="","",Meetings1!C78) ->  | O98: =IF(Meetings1!B78="","",getAddress(Meetings1!E78)) -> 
J99: =IF(Meetings1!A79="","",Meetings1!A79) ->  | K99: =IF(Meetings1!B79="","",Meetings1!C79) ->  | O99: =IF(Meetings1!B79="","",getAddress(Meetings1!E79)) -> 
J100: =IF(Meetings1!A80="","",Meetings1!A80) ->  | K100: =IF(Meetings1!B80="","",Meetings1!C80) ->  | O100: =IF(Meetings1!B80="","",getAddress(Meetings1!E80)) -> 
J101: =IF(Meetings1!A81="","",Meetings1!A81) ->  | K101: =IF(Meetings1!B81="","",Meetings1!C81) ->  | O101: =IF(Meetings1!B81="","",getAddress(Meetings1!E81)) -> 
J102: =IF(Meetings1!A82="","",Meetings1!A82) ->  | K102: =IF(Meetings1!B82="","",Meetings1!C82) ->  | O102: =IF(Meetings1!B82="","",getAddress(Meetings1!E82)) -> 
J103: =IF(Meetings1!A83="","",Meetings1!A83) ->  | K103: =IF(Meetings1!B83="","",Meetings1!C83) ->  | O103: =IF(Meetings1!B83="","",getAddress(Meetings1!E83)) -> 
J104: =IF(Meetings1!A84="","",Meetings1!A84) ->  | K104: =IF(Meetings1!B84="","",Meetings1!C84) ->  | O104: =IF(Meetings1!B84="","",getAddress(Meetings1!E84)) -> 
J105: =IF(Meetings1!A85="","",Meetings1!A85) ->  | K105: =IF(Meetings1!B85="","",Meetings1!C85) ->  | O105: =IF(Meetings1!B85="","",getAddress(Meetings1!E85)) -> 
J106: =IF(Meetings1!A86="","",Meetings1!A86) ->  | K106: =IF(Meetings1!B86="","",Meetings1!C86) ->  | O106: =IF(Meetings1!B86="","",getAddress(Meetings1!E86)) -> 
J107: =IF(Meetings1!A87="","",Meetings1!A87) ->  | K107: =IF(Meetings1!B87="","",Meetings1!C87) ->  | O107: =IF(Meetings1!B87="","",getAddress(Meetings1!E87)) -> 
J108: =IF(Meetings1!A88="","",Meetings1!A88) ->  | K108: =IF(Meetings1!B88="","",Meetings1!C88) ->  | O108: =IF(Meetings1!B88="","",getAddress(Meetings1!E88)) -> 
J109: =IF(Meetings1!A89="","",Meetings1!A89) ->  | K109: =IF(Meetings1!B89="","",Meetings1!C89) ->  | O109: =IF(Meetings1!B89="","",getAddress(Meetings1!E89)) -> 
J110: =IF(Meetings1!A90="","",Meetings1!A90) ->  | K110: =IF(Meetings1!B90="","",Meetings1!C90) ->  | O110: =IF(Meetings1!B90="","",getAddress(Meetings1!E90)) -> 
J111: =IF(Meetings1!A91="","",Meetings1!A91) ->  | K111: =IF(Meetings1!B91="","",Meetings1!C91) ->  | O111: =IF(Meetings1!B91="","",getAddress(Meetings1!E91)) -> 
J112: =IF(Meetings1!A92="","",Meetings1!A92) ->  | K112: =IF(Meetings1!B92="","",Meetings1!C92) ->  | O112: =IF(Meetings1!B92="","",getAddress(Meetings1!E92)) -> 
J113: =IF(Meetings1!A93="","",Meetings1!A93) ->  | K113: =IF(Meetings1!B93="","",Meetings1!C93) ->  | O113: =IF(Meetings1!B93="","",getAddress(Meetings1!E93)) -> 
J114: =IF(Meetings1!A94="","",Meetings1!A94) ->  | K114: =IF(Meetings1!B94="","",Meetings1!C94) ->  | O114: =IF(Meetings1!B94="","",getAddress(Meetings1!E94)) -> 
J115: =IF(Meetings1!A95="","",Meetings1!A95) ->  | K115: =IF(Meetings1!B95="","",Meetings1!C95) ->  | O115: =IF(Meetings1!B95="","",getAddress(Meetings1!E95)) -> 
J116: =IF(Meetings1!A96="","",Meetings1!A96) ->  | K116: =IF(Meetings1!B96="","",Meetings1!C96) ->  | O116: =IF(Meetings1!B96="","",getAddress(Meetings1!E96)) -> 
J117: =IF(Meetings1!A97="","",Meetings1!A97) ->  | K117: =IF(Meetings1!B97="","",Meetings1!C97) ->  | O117: =IF(Meetings1!B97="","",getAddress(Meetings1!E97)) -> 
J118: =IF(Meetings1!A98="","",Meetings1!A98) ->  | K118: =IF(Meetings1!B98="","",Meetings1!C98) ->  | O118: =IF(Meetings1!B98="","",getAddress(Meetings1!E98)) -> 
J119: =IF(Meetings1!A99="","",Meetings1!A99) ->  | K119: =IF(Meetings1!B99="","",Meetings1!C99) ->  | O119: =IF(Meetings1!B99="","",getAddress(Meetings1!E99)) -> 
J120: =IF(Meetings1!A100="","",Meetings1!A100) ->  | K120: =IF(Meetings1!B100="","",Meetings1!C100) ->  | O120: =IF(Meetings1!B100="","",getAddress(Meetings1!E100)) -> 
J121: =IF(Meetings1!A101="","",Meetings1!A101) ->  | K121: =IF(Meetings1!B101="","",Meetings1!C101) ->  | O121: =IF(Meetings1!B101="","",getAddress(Meetings1!E101)) -> 
J122: =IF(Meetings1!A102="","",Meetings1!A102) ->  | K122: =IF(Meetings1!B102="","",Meetings1!C102) ->  | O122: =IF(Meetings1!B102="","",getAddress(Meetings1!E102)) -> 
J123: =IF(Meetings1!A103="","",Meetings1!A103) ->  | K123: =IF(Meetings1!B103="","",Meetings1!C103) ->  | O123: =IF(Meetings1!B103="","",getAddress(Meetings1!E103)) -> 
J124: =IF(Meetings1!A104="","",Meetings1!A104) ->  | K124: =IF(Meetings1!B104="","",Meetings1!C104) ->  | O124: =IF(Meetings1!B104="","",getAddress(Meetings1!E104)) -> 
J125: =IF(Meetings1!A105="","",Meetings1!A105) ->  | K125: =IF(Meetings1!B105="","",Meetings1!C105) ->  | O125: =IF(Meetings1!B105="","",getAddress(Meetings1!E105)) -> 
J126: =IF(Meetings1!A106="","",Meetings1!A106) ->  | K126: =IF(Meetings1!B106="","",Meetings1!C106) ->  | O126: =IF(Meetings1!B106="","",getAddress(Meetings1!E106)) -> 
J127: =IF(Meetings1!A107="","",Meetings1!A107) ->  | K127: =IF(Meetings1!B107="","",Meetings1!C107) ->  | O127: =IF(Meetings1!B107="","",getAddress(Meetings1!E107)) -> 
J128: =IF(Meetings1!A108="","",Meetings1!A108) ->  | K128: =IF(Meetings1!B108="","",Meetings1!C108) ->  | O128: =IF(Meetings1!B108="","",getAddress(Meetings1!E108)) -> 
J129: =IF(Meetings1!A109="","",Meetings1!A109) ->  | K129: =IF(Meetings1!B109="","",Meetings1!C109) ->  | O129: =IF(Meetings1!B109="","",getAddress(Meetings1!E109)) -> 
J130: =IF(Meetings1!A110="","",Meetings1!A110) ->  | K130: =IF(Meetings1!B110="","",Meetings1!C110) ->  | O130: =IF(Meetings1!B110="","",getAddress(Meetings1!E110)) -> 
J131: =IF(Meetings1!A111="","",Meetings1!A111) ->  | K131: =IF(Meetings1!B111="","",Meetings1!C111) ->  | O131: =IF(Meetings1!B111="","",getAddress(Meetings1!E111)) -> 
J132: =IF(Meetings1!A112="","",Meetings1!A112) ->  | K132: =IF(Meetings1!B112="","",Meetings1!C112) ->  | O132: =IF(Meetings1!B112="","",getAddress(Meetings1!E112)) -> 
J133: =IF(Meetings1!A113="","",Meetings1!A113) ->  | K133: =IF(Meetings1!B113="","",Meetings1!C113) ->  | O133: =IF(Meetings1!B113="","",getAddress(Meetings1!E113)) -> 
J134: =IF(Meetings1!A114="","",Meetings1!A114) ->  | K134: =IF(Meetings1!B114="","",Meetings1!C114) ->  | O134: =IF(Meetings1!B114="","",getAddress(Meetings1!E114)) -> 
J135: =IF(Meetings1!A115="","",Meetings1!A115) ->  | K135: =IF(Meetings1!B115="","",Meetings1!C115) ->  | O135: =IF(Meetings1!B115="","",getAddress(Meetings1!E115)) -> 
J136: =IF(Meetings1!A116="","",Meetings1!A116) ->  | K136: =IF(Meetings1!B116="","",Meetings1!C116) ->  | O136: =IF(Meetings1!B116="","",getAddress(Meetings1!E116)) -> 
J137: =IF(Meetings1!A117="","",Meetings1!A117) ->  | K137: =IF(Meetings1!B117="","",Meetings1!C117) ->  | O137: =IF(Meetings1!B117="","",getAddress(Meetings1!E117)) -> 
J138: =IF(Meetings1!A118="","",Meetings1!A118) ->  | K138: =IF(Meetings1!B118="","",Meetings1!C118) ->  | O138: =IF(Meetings1!B118="","",getAddress(Meetings1!E118)) -> 
J139: =IF(Meetings1!A119="","",Meetings1!A119) ->  | K139: =IF(Meetings1!B119="","",Meetings1!C119) ->  | O139: =IF(Meetings1!B119="","",getAddress(Meetings1!E119)) -> 
J140: =IF(Meetings1!A120="","",Meetings1!A120) ->  | K140: =IF(Meetings1!B120="","",Meetings1!C120) ->  | O140: =IF(Meetings1!B120="","",getAddress(Meetings1!E120)) -> 
J141: =IF(Meetings1!A121="","",Meetings1!A121) ->  | K141: =IF(Meetings1!B121="","",Meetings1!C121) ->  | O141: =IF(Meetings1!B121="","",getAddress(Meetings1!E121)) -> 
J142: =IF(Meetings1!A122="","",Meetings1!A122) ->  | K142: =IF(Meetings1!B122="","",Meetings1!C122) ->  | O142: =IF(Meetings1!B122="","",getAddress(Meetings1!E122)) -> 
J143: =IF(Meetings1!A123="","",Meetings1!A123) ->  | K143: =IF(Meetings1!B123="","",Meetings1!C123) ->  | O143: =IF(Meetings1!B123="","",getAddress(Meetings1!E123)) -> 
J144: =IF(Meetings1!A124="","",Meetings1!A124) ->  | K144: =IF(Meetings1!B124="","",Meetings1!C124) ->  | O144: =IF(Meetings1!B124="","",getAddress(Meetings1!E124)) -> 
J145: =IF(Meetings1!A125="","",Meetings1!A125) ->  | K145: =IF(Meetings1!B125="","",Meetings1!C125) ->  | O145: =IF(Meetings1!B125="","",getAddress(Meetings1!E125)) -> 
J146: =IF(Meetings1!A126="","",Meetings1!A126) ->  | K146: =IF(Meetings1!B126="","",Meetings1!C126) ->  | O146: =IF(Meetings1!B126="","",getAddress(Meetings1!E126)) -> 
J147: =IF(Meetings1!A127="","",Meetings1!A127) ->  | K147: =IF(Meetings1!B127="","",Meetings1!C127) ->  | O147: =IF(Meetings1!B127="","",getAddress(Meetings1!E127)) -> 
J148: =IF(Meetings1!A128="","",Meetings1!A128) ->  | K148: =IF(Meetings1!B128="","",Meetings1!C128) ->  | O148: =IF(Meetings1!B128="","",getAddress(Meetings1!E128)) -> 
J149: =IF(Meetings1!A129="","",Meetings1!A129) ->  | K149: =IF(Meetings1!B129="","",Meetings1!C129) ->  | O149: =IF(Meetings1!B129="","",getAddress(Meetings1!E129)) -> 
J150: =IF(Meetings1!A130="","",Meetings1!A130) ->  | K150: =IF(Meetings1!B130="","",Meetings1!C130) ->  | O150: =IF(Meetings1!B130="","",getAddress(Meetings1!E130)) -> 
J151: =IF(Meetings1!A131="","",Meetings1!A131) ->  | K151: =IF(Meetings1!B131="","",Meetings1!C131) ->  | O151: =IF(Meetings1!B131="","",getAddress(Meetings1!E131)) -> 
J152: =IF(Meetings1!A132="","",Meetings1!A132) ->  | K152: =IF(Meetings1!B132="","",Meetings1!C132) ->  | O152: =IF(Meetings1!B132="","",getAddress(Meetings1!E132)) -> 
J153: =IF(Meetings1!A133="","",Meetings1!A133) ->  | K153: =IF(Meetings1!B133="","",Meetings1!C133) ->  | O153: =IF(Meetings1!B133="","",getAddress(Meetings1!E133)) -> 
J154: =IF(Meetings1!A134="","",Meetings1!A134) ->  | K154: =IF(Meetings1!B134="","",Meetings1!C134) ->  | O154: =IF(Meetings1!B134="","",getAddress(Meetings1!E134)) -> 
J155: =IF(Meetings1!A135="","",Meetings1!A135) ->  | K155: =IF(Meetings1!B135="","",Meetings1!C135) ->  | O155: =IF(Meetings1!B135="","",getAddress(Meetings1!E135)) -> 
J156: =IF(Meetings1!A136="","",Meetings1!A136) ->  | K156: =IF(Meetings1!B136="","",Meetings1!C136) ->  | O156: =IF(Meetings1!B136="","",getAddress(Meetings1!E136)) -> 
J157: =IF(Meetings1!A137="","",Meetings1!A137) ->  | K157: =IF(Meetings1!B137="","",Meetings1!C137) ->  | O157: =IF(Meetings1!B137="","",getAddress(Meetings1!E137)) -> 
J158: =IF(Meetings1!A138="","",Meetings1!A138) ->  | K158: =IF(Meetings1!B138="","",Meetings1!C138) ->  | O158: =IF(Meetings1!B138="","",getAddress(Meetings1!E138)) -> 
J159: =IF(Meetings1!A139="","",Meetings1!A139) ->  | K159: =IF(Meetings1!B139="","",Meetings1!C139) ->  | O159: =IF(Meetings1!B139="","",getAddress(Meetings1!E139)) -> 
J160: =IF(Meetings1!A140="","",Meetings1!A140) ->  | K160: =IF(Meetings1!B140="","",Meetings1!C140) ->  | O160: =IF(Meetings1!B140="","",getAddress(Meetings1!E140)) -> 
J161: =IF(Meetings1!A141="","",Meetings1!A141) ->  | K161: =IF(Meetings1!B141="","",Meetings1!C141) ->  | O161: =IF(Meetings1!B141="","",getAddress(Meetings1!E141)) -> 
J162: =IF(Meetings1!A142="","",Meetings1!A142) ->  | K162: =IF(Meetings1!B142="","",Meetings1!C142) ->  | O162: =IF(Meetings1!B142="","",getAddress(Meetings1!E142)) -> 
J163: =IF(Meetings1!A143="","",Meetings1!A143) ->  | K163: =IF(Meetings1!B143="","",Meetings1!C143) ->  | O163: =IF(Meetings1!B143="","",getAddress(Meetings1!E143)) -> 
J164: =IF(Meetings1!A144="","",Meetings1!A144) ->  | K164: =IF(Meetings1!B144="","",Meetings1!C144) ->  | O164: =IF(Meetings1!B144="","",getAddress(Meetings1!E144)) -> 
J165: =IF(Meetings1!A145="","",Meetings1!A145) ->  | K165: =IF(Meetings1!B145="","",Meetings1!C145) ->  | O165: =IF(Meetings1!B145="","",getAddress(Meetings1!E145)) -> 
J166: =IF(Meetings1!A146="","",Meetings1!A146) ->  | K166: =IF(Meetings1!B146="","",Meetings1!C146) ->  | O166: =IF(Meetings1!B146="","",getAddress(Meetings1!E146)) -> 
J167: =IF(Meetings1!A147="","",Meetings1!A147) ->  | K167: =IF(Meetings1!B147="","",Meetings1!C147) ->  | O167: =IF(Meetings1!B147="","",getAddress(Meetings1!E147)) -> 
J168: =IF(Meetings1!A148="","",Meetings1!A148) ->  | K168: =IF(Meetings1!B148="","",Meetings1!C148) ->  | O168: =IF(Meetings1!B148="","",getAddress(Meetings1!E148)) -> 
J169: =IF(Meetings1!A149="","",Meetings1!A149) ->  | K169: =IF(Meetings1!B149="","",Meetings1!C149) ->  | O169: =IF(Meetings1!B149="","",getAddress(Meetings1!E149)) -> 
J170: =IF(Meetings1!A150="","",Meetings1!A150) ->  | K170: =IF(Meetings1!B150="","",Meetings1!C150) ->  | O170: =IF(Meetings1!B150="","",getAddress(Meetings1!E150)) -> 
J171: =IF(Meetings1!A151="","",Meetings1!A151) ->  | K171: =IF(Meetings1!B151="","",Meetings1!C151) ->  | O171: =IF(Meetings1!B151="","",getAddress(Meetings1!E151)) -> 
J172: =IF(Meetings1!A152="","",Meetings1!A152) ->  | K172: =IF(Meetings1!B152="","",Meetings1!C152) ->  | O172: =IF(Meetings1!B152="","",getAddress(Meetings1!E152)) -> 
J173: =IF(Meetings1!A153="","",Meetings1!A153) ->  | K173: =IF(Meetings1!B153="","",Meetings1!C153) ->  | O173: =IF(Meetings1!B153="","",getAddress(Meetings1!E153)) -> 
J174: =IF(Meetings1!A154="","",Meetings1!A154) ->  | K174: =IF(Meetings1!B154="","",Meetings1!C154) ->  | O174: =IF(Meetings1!B154="","",getAddress(Meetings1!E154)) -> 
J175: =IF(Meetings1!A155="","",Meetings1!A155) ->  | K175: =IF(Meetings1!B155="","",Meetings1!C155) ->  | O175: =IF(Meetings1!B155="","",getAddress(Meetings1!E155)) -> 
J176: =IF(Meetings1!A156="","",Meetings1!A156) ->  | K176: =IF(Meetings1!B156="","",Meetings1!C156) ->  | O176: =IF(Meetings1!B156="","",getAddress(Meetings1!E156)) -> 
J177: =IF(Meetings1!A157="","",Meetings1!A157) ->  | K177: =IF(Meetings1!B157="","",Meetings1!C157) ->  | O177: =IF(Meetings1!B157="","",getAddress(Meetings1!E157)) -> 
J178: =IF(Meetings1!A158="","",Meetings1!A158) ->  | K178: =IF(Meetings1!B158="","",Meetings1!C158) ->  | O178: =IF(Meetings1!B158="","",getAddress(Meetings1!E158)) -> 
J179: =IF(Meetings1!A159="","",Meetings1!A159) ->  | K179: =IF(Meetings1!B159="","",Meetings1!C159) ->  | O179: =IF(Meetings1!B159="","",getAddress(Meetings1!E159)) -> 
J180: =IF(Meetings1!A160="","",Meetings1!A160) ->  | K180: =IF(Meetings1!B160="","",Meetings1!C160) ->  | O180: =IF(Meetings1!B160="","",getAddress(Meetings1!E160)) -> 
J181: =IF(Meetings1!A161="","",Meetings1!A161) ->  | K181: =IF(Meetings1!B161="","",Meetings1!C161) ->  | O181: =IF(Meetings1!B161="","",getAddress(Meetings1!E161)) -> 
J182: =IF(Meetings1!A162="","",Meetings1!A162) ->  | K182: =IF(Meetings1!B162="","",Meetings1!C162) ->  | O182: =IF(Meetings1!B162="","",getAddress(Meetings1!E162)) -> 
J183: =IF(Meetings1!A163="","",Meetings1!A163) ->  | K183: =IF(Meetings1!B163="","",Meetings1!C163) ->  | O183: =IF(Meetings1!B163="","",getAddress(Meetings1!E163)) -> 
J184: =IF(Meetings1!A164="","",Meetings1!A164) ->  | K184: =IF(Meetings1!B164="","",Meetings1!C164) ->  | O184: =IF(Meetings1!B164="","",getAddress(Meetings1!E164)) -> 
J185: =IF(Meetings1!A165="","",Meetings1!A165) ->  | K185: =IF(Meetings1!B165="","",Meetings1!C165) ->  | O185: =IF(Meetings1!B165="","",getAddress(Meetings1!E165)) -> 
J186: =IF(Meetings1!A166="","",Meetings1!A166) ->  | K186: =IF(Meetings1!B166="","",Meetings1!C166) ->  | O186: =IF(Meetings1!B166="","",getAddress(Meetings1!E166)) -> 
J187: =IF(Meetings1!A167="","",Meetings1!A167) ->  | K187: =IF(Meetings1!B167="","",Meetings1!C167) ->  | O187: =IF(Meetings1!B167="","",getAddress(Meetings1!E167)) -> 
J188: =IF(Meetings1!A168="","",Meetings1!A168) ->  | K188: =IF(Meetings1!B168="","",Meetings1!C168) ->  | O188: =IF(Meetings1!B168="","",getAddress(Meetings1!E168)) -> 
J189: =IF(Meetings1!A169="","",Meetings1!A169) ->  | K189: =IF(Meetings1!B169="","",Meetings1!C169) ->  | O189: =IF(Meetings1!B169="","",getAddress(Meetings1!E169)) -> 
J190: =IF(Meetings1!A170="","",Meetings1!A170) ->  | K190: =IF(Meetings1!B170="","",Meetings1!C170) ->  | O190: =IF(Meetings1!B170="","",getAddress(Meetings1!E170)) -> 
J191: =IF(Meetings1!A171="","",Meetings1!A171) ->  | K191: =IF(Meetings1!B171="","",Meetings1!C171) ->  | O191: =IF(Meetings1!B171="","",getAddress(Meetings1!E171)) -> 
J192: =IF(Meetings1!A172="","",Meetings1!A172) ->  | K192: =IF(Meetings1!B172="","",Meetings1!C172) ->  | O192: =IF(Meetings1!B172="","",getAddress(Meetings1!E172)) -> 
J193: =IF(Meetings1!A173="","",Meetings1!A173) ->  | K193: =IF(Meetings1!B173="","",Meetings1!C173) ->  | O193: =IF(Meetings1!B173="","",getAddress(Meetings1!E173)) -> 
J194: =IF(Meetings1!A174="","",Meetings1!A174) ->  | K194: =IF(Meetings1!B174="","",Meetings1!C174) ->  | O194: =IF(Meetings1!B174="","",getAddress(Meetings1!E174)) -> 
J195: =IF(Meetings1!A175="","",Meetings1!A175) ->  | K195: =IF(Meetings1!B175="","",Meetings1!C175) ->  | O195: =IF(Meetings1!B175="","",getAddress(Meetings1!E175)) -> 
J196: =IF(Meetings1!A176="","",Meetings1!A176) ->  | K196: =IF(Meetings1!B176="","",Meetings1!C176) ->  | O196: =IF(Meetings1!B176="","",getAddress(Meetings1!E176)) -> 
J197: =IF(Meetings1!A177="","",Meetings1!A177) ->  | K197: =IF(Meetings1!B177="","",Meetings1!C177) ->  | O197: =IF(Meetings1!B177="","",getAddress(Meetings1!E177)) -> 
J198: =IF(Meetings1!A178="","",Meetings1!A178) ->  | K198: =IF(Meetings1!B178="","",Meetings1!C178) ->  | O198: =IF(Meetings1!B178="","",getAddress(Meetings1!E178)) -> 
J199: =IF(Meetings1!A179="","",Meetings1!A179) ->  | K199: =IF(Meetings1!B179="","",Meetings1!C179) ->  | O199: =IF(Meetings1!B179="","",getAddress(Meetings1!E179)) -> 
J200: =IF(Meetings1!A180="","",Meetings1!A180) ->  | K200: =IF(Meetings1!B180="","",Meetings1!C180) ->  | O200: =IF(Meetings1!B180="","",getAddress(Meetings1!E180)) -> 
J201: =IF(Meetings1!A181="","",Meetings1!A181) ->  | K201: =IF(Meetings1!B181="","",Meetings1!C181) ->  | O201: =IF(Meetings1!B181="","",getAddress(Meetings1!E181)) -> 
... 100 more rows

Sheet MainSheet
B2: =Race!A5 -> RADIO TAB | D2: =Race!B5 -> *1-4-3-2 | F2: =Race!C5 -> 0 | H2: =Race!D5 -> 0 | J2: =Race!E5 -> Late Mail 1
C4: Venue | D4: =Data!N1 -> Rockhampton | G4: Race | H4: =Data!O2 -> 5 | I4: Class | J4: =Form!E2 -> Class 4 | L4: Value | M4: =Form!H3 -> 10000 | N4: Distance | O4: =Form!I2 -> 1300m | T4: Race Time | V4: =Form!A3-(X4/24) -> 01:05:00 | W4: - | X4: 3 | Y4: Hours
B7: Form | C7: No | D7: Runner | G7: Trainer | I7: Jockey | K7: Weight | L7: Barrier | M7: Rated | N7: Rating | S7: Price
B9: =IF(C9="","",Form!B5) -> 114823 | C9: =IF(Data!BC2="","",Data!BC2) -> 1 | D9: =IF(C9="","",IF(VLOOKUP(Data!BA2,Race!C1:N100,6,FALSE)="SCRATCHED","SCRATCHED",Data!BA2)) -> Dack's Faz | G9: =IF(C9="","",IF(D9="SCRATCHED","",Form!D5)) -> Craig Smith | I9: =IF(C9="","",IF(D9="SCRATCHED","",Form!E5)) -> Ali Taylor | K9: =IF(C9="","",IF(D9="SCRATCHED","",Form!F5)) -> 58 | L9: =IF(C9="","",IF(D9="SCRATCHED","",Data!BE2)) -> 8 | M9: =IF(C9="","",IF(N9="","",IF(RANK(N9,$N$9:$N$32)<6,RANK(N9,$N$9:$N$32),""))) -> 1 | N9: =IF(C9="","",IF(D9="SCRATCHED","",Data!EH2)) -> 81 | O9: =IF(M9="","",N9) -> 81 | P9: =IF(N9="","",N9) -> 81 | Q9: =IF(O9="","",O9/$O$34*100) -> 25.51020408 | R9: =IF(P9="","",P9/$P$34*100) -> 19.22164215 | S9: =IF(N9="","",IF(Q9<>"",100/Q9*1.15,100/R9+1.15)) -> 4.508 | T9: =IF(Race!D2="Paying","Paying","") -> Paying
B10: =IF(C10="","",Form!B6) -> 515137 | C10: =IF(Data!BC3="","",Data!BC3) -> 2 | D10: =IF(C10="","",IF(VLOOKUP(Data!BA3,Race!C2:N101,6,FALSE)="SCRATCHED","SCRATCHED",Data!BA3)) -> Igotitfrommymumma | G10: =IF(B10="","",IF(D10="SCRATCHED","",Form!D6)) -> T Cook | I10: =IF(B10="","",IF(D10="SCRATCHED","",Form!E6)) -> A Coome | K10: =IF(B10="","",IF(D10="SCRATCHED","",Form!F6)) -> 55.5 | L10: =IF(C10="","",IF(D10="SCRATCHED","",Data!BE3)) -> 3 | M10: =IF(C10="","",IF(N10="","",IF(RANK(N10,$N$9:$N$32)<6,RANK(N10,$N$9:$N$32),""))) -> 2 | N10: =IF(C10="","",IF(D10="SCRATCHED","",Data!EH3)) -> 73 | O10: =IF(M10="","",N10) -> 73 | P10: =IF(N10="","",N10) -> 73 | Q10: =IF(O10="","",O10/$O$34*100) -> 22.99067775 | R10: =IF(P10="","",P10/$P$34*100) -> 17.32320835 | S10: =IF(N10="","",IF(Q10<>"",100/Q10*1.15,100/R10+1.15)) -> 5.002027397 | X10: =IF($T$9<>"","Win","") -> Win | Y10: =IF($T$9<>"","Place","") -> Place
B11: =IF(C11="","",Form!B7) -> 258918 | C11: =IF(Data!BC4="","",Data!BC4) -> 3 | D11: =IF(C11="","",IF(VLOOKUP(Data!BA4,Race!C3:N102,6,FALSE)="SCRATCHED","SCRATCHED",Data!BA4)) -> Noble Lustre | G11: =IF(B11="","",IF(D11="SCRATCHED","",Form!D7)) -> J Brown | I11: =IF(B11="","",IF(D11="SCRATCHED","",Form!E7)) -> J Kropp | K11: =IF(B11="","",IF(D11="SCRATCHED","",Form!F7)) -> 55.5 | L11: =IF(C11="","",IF(D11="SCRATCHED","",Data!BE4)) -> 5 | M11: =IF(C11="","",IF(N11="","",IF(RANK(N11,$N$9:$N$32)<6,RANK(N11,$N$9:$N$32),""))) -> 5 | N11: =IF(C11="","",IF(D11="SCRATCHED","",Data!EH4)) -> 47 | O11: =IF(M11="","",N11) -> 47 | P11: =IF(N11="","",N11) -> 47 | Q11: =IF(O11="","",O11/$O$34*100) -> 14.80221718 | R11: =IF(P11="","",P11/$P$34*100) -> 11.15329853 | S11: =IF(N11="","",IF(Q11<>"",100/Q11*1.15,100/R11+1.15)) -> 7.769106383 | T11: =IF($T$9<>"","1st","") -> 1st | U11: =IF($T$9="","",INDEX(Race!$A$1:$A$20,MATCH("QN",Race!$A1:$A$20,0)-4,0)) -> 3 | V11: =IF($T$9="","",INDEX(Race!$A$1:$C20,MATCH("QN",Race!$A1:$A$20,0)-4,3)) -> NOBLE LUSTRE | X11: =IF($T$9="","",INDEX(Race!$A$1:$E20,MATCH("QN",Race!$A1:$A$20,0)-4,4)) -> 6.1 | Y11: =IF($T$9="","",INDEX(Race!$A$1:$E20,MATCH("QN",Race!$A1:$A$20,0)-4,5)) -> 1.7
B12: =IF(C12="","",Form!B8) -> 351546 | C12: =IF(Data!BC5="","",Data!BC5) -> 4 | D12: =IF(C12="","",IF(VLOOKUP(Data!BA5,Race!C4:N103,6,FALSE)="SCRATCHED","SCRATCHED",Data!BA5)) -> Chabal | G12: =IF(B12="","",IF(D12="SCRATCHED","",Form!D8)) -> R J Walsh | I12: =IF(B12="","",IF(D12="SCRATCHED","",Form!E8)) -> D Simmons | K12: =IF(B12="","",IF(D12="SCRATCHED","",Form!F8)) -> 55 | L12: =IF(C12="","",IF(D12="SCRATCHED","",Data!BE5)) -> 4 | N12: =IF(C12="","",IF(D12="SCRATCHED","",Data!EH5)) -> 45 | P12: 45 | R12: 10.67869008 | S12: 10.51444444 | T12: =IF($T$9<>"","2nd","") -> 2nd | U12: =IF($T$9="","",INDEX(Race!$A$1:$A$20,MATCH("QN",Race!$A1:$A$20,0)-3,0)) -> 7 | V12: =IF($T$9="","",INDEX(Race!$A$1:$C21,MATCH("QN",Race!$A2:$A$20,0)-2,3)) -> ZENACITY | Y12: =IF($T$9="","",INDEX(Race!$A$1:$E20,MATCH("QN",Race!$A1:$A$20,0)-3,5)) -> 2.9
B13: =IF(C13="","",Form!B9) -> 799371 | C13: =IF(Data!BC6="","",Data!BC6) -> 5 | D13: =IF(C13="","",IF(VLOOKUP(Data!BA6,Race!C5:N104,6,FALSE)="SCRATCHED","SCRATCHED",Data!BA6)) -> SCRATCHED | G13: =IF(B13="","",IF(D13="SCRATCHED","",Form!D9)) ->  | I13: =IF(B13="","",IF(D13="SCRATCHED","",Form!E9)) ->  | K13: =IF(B13="","",IF(D13="SCRATCHED","",Form!F9)) ->  | L13: =IF(C13="","",IF(D13="SCRATCHED","",Data!BE6)) ->  | N13: =IF(C13="","",IF(D13="SCRATCHED","",Data!EH6)) ->  | T13: =IF($T$9<>"","3rd","") -> 3rd | U13: =IF($T$9="","",INDEX(Race!$A$1:$A$20,MATCH("QN",Race!$A1:$A$20,0)-2,0)) -> 1 | V13: =IF($T$9="","",INDEX(Race!$A$1:$C22,MATCH("QN",Race!$A3:$A$20,0)-0,3)) -> DACK'S FAZ | Y13: =IF($T$9="","",INDEX(Race!$A$1:$E20,MATCH("QN",Race!$A1:$A$20,0)-2,5)) -> 1.4
B14: =IF(C14="","",Form!B10) -> 374161 | C14: =IF(Data!BC7="","",Data!BC7) -> 6 | D14: =IF(C14="","",IF(VLOOKUP(Data!BA7,Race!C6:N105,6,FALSE)="SCRATCHED","SCRATCHED",Data!BA7)) -> Lola Brigida | G14: =IF(B14="","",IF(D14="SCRATCHED","",Form!D10)) -> D J Munns | I14: =IF(B14="","",IF(D14="SCRATCHED","",Form!E10)) -> T Bannon | K14: =IF(B14="","",IF(D14="SCRATCHED","",Form!F10)) -> 54 | L14: =IF(C14="","",IF(D14="SCRATCHED","",Data!BE7)) -> 7 | M14: 3 | N14: =IF(C14="","",IF(D14="SCRATCHED","",Data!EH7)) -> 67 | O14: 67 | P14: 67 | Q14: 21.10103301 | R14: 15.89938301 | S14: 5.449970149
B15: =IF(C15="","",Form!B11) -> 838930 | C15: =IF(Data!BC8="","",Data!BC8) -> 7 | D15: =IF(C15="","",IF(VLOOKUP(Data!BA8,Race!C7:N106,6,FALSE)="SCRATCHED","SCRATCHED",Data!BA8)) -> Zenacity | G15: =IF(B15="","",IF(D15="SCRATCHED","",Form!D11)) -> J P O'Shea | I15: =IF(B15="","",IF(D15="SCRATCHED","",Form!E11)) -> C Whiteley | K15: =IF(B15="","",IF(D15="SCRATCHED","",Form!F11)) -> 54 | L15: =IF(C15="","",IF(D15="SCRATCHED","",Data!BE8)) -> 1 | N15: =IF(C15="","",IF(D15="SCRATCHED","",Data!EH8)) -> 36 | P15: 36 | R15: 8.542952065 | S15: 12.85555556 | T15: =IF($T$9="","","QN") -> QN | U15: =IF($T$9="","",INDEX(Race!$A$1:$C20,MATCH("EX",Race!$A1:$A$20,0)-1,2)) -> 3* 7 | X15: =IF($T$9="","",INDEX(Race!$A$1:$C20,MATCH("EX",Race!$A1:$A$20,0)-1,3)) -> 67.2
B16: =IF(C16="","",Form!B12) -> 960457 | C16: =IF(Data!BC9="","",Data!BC9) -> 8 | D16: =IF(C16="","",IF(VLOOKUP(Data!BA9,Race!C8:N107,6,FALSE)="SCRATCHED","SCRATCHED",Data!BA9)) -> Dandy Kat | G16: =IF(B16="","",IF(D16="SCRATCHED","",Form!D12)) -> R Vale | I16: =IF(B16="","",IF(D16="SCRATCHED","",Form!E12)) -> J P Stanley | K16: =IF(B16="","",IF(D16="SCRATCHED","",Form!F12)) -> 54 | L16: =IF(C16="","",IF(D16="SCRATCHED","",Data!BE9)) -> 6 | M16: 4 | N16: =IF(C16="","",IF(D16="SCRATCHED","",Data!EH9)) -> 56 | O16: 56 | P16: 56 | Q16: 17.6366843 | R16: 13.28903654 | S16: 6.5205 | T16: =IF($T$9="","","EX") -> EX | U16: =IF($T$9="","",INDEX(Race!$A$1:$C21,MATCH("QN",Race!$A2:$A$20,0)+2,2)) -> 3* 7 | X16: =IF($T$9="","",INDEX(Race!$A$1:$C21,MATCH("QN",Race!$A2:$A$20,0)+2,3)) -> 139.4
B17: =IF(C17="","",Form!B13) -> 358366 | C17: =IF(Data!BC10="","",Data!BC10) -> 9 | D17: =IF(C17="","",IF(VLOOKUP(Data!BA10,Race!C9:N108,6,FALSE)="SCRATCHED","SCRATCHED",Data!BA10)) -> Fu Min Bu | G17: =IF(B17="","",IF(D17="SCRATCHED","",Form!D13)) -> R Sullivan | I17: =IF(B17="","",IF(D17="SCRATCHED","",Form!E13)) -> R Bell | K17: =IF(B17="","",IF(D17="SCRATCHED","",Form!F13)) -> 54 | L17: =IF(C17="","",IF(D17="SCRATCHED","",Data!BE10)) -> 9 | N17: =IF(C17="","",IF(D17="SCRATCHED","",Data!EH10)) -> 25 | P17: 25 | R17: 5.9326056 | S17: 18.006 | T17: =IF($T$9="","","TF") -> TF | U17: =IF($T$9="","",INDEX(Race!$A$1:$I20,MATCH("EX",Race!$A1:$A$20,0)-1,8)) -> 3* 7* 1 | X17: =IF($T$9="","",INDEX(Race!$A$1:$I20,MATCH("EX",Race!$A1:$A$20,0)-1,9)) -> 553.8
B18: =IF(C18="","",Form!B14) ->  | C18: =IF(Data!BC11="","",Data!BC11) ->  | D18: =IF(C18="","",IF(VLOOKUP(Data!BA11,Race!C10:N109,6,FALSE)="SCRATCHED","SCRATCHED",Data!BA11)) ->  | G18: =IF(B18="","",IF(D18="SCRATCHED","",Form!D14)) ->  | I18: =IF(B18="","",IF(D18="SCRATCHED","",Form!E14)) ->  | K18: =IF(B18="","",IF(D18="SCRATCHED","",Form!F14)) ->  | L18: =IF(C18="","",IF(D18="SCRATCHED","",Data!BE11)) ->  | N18: =IF(C18="","",IF(D18="SCRATCHED","",Data!EH11)) ->  | T18: =IF($T$9="","","F4") -> F4 | U18: =IF($T$9="","",INDEX(Race!$A$1:$C23,MATCH("EX",Race!$A4:$A$20,0)+4,2)) -> 3* 7* 1* 6 | X18: =IF($T$9="","",INDEX(Race!$A$1:$C23,MATCH("EX",Race!$A4:$A$20,0)+4,3)) -> 2043.4
B19: =IF(C19="","",Form!B15) ->  | C19: =IF(Data!BC12="","",Data!BC12) ->  | D19: =IF(C19="","",IF(VLOOKUP(Data!BA12,Race!C11:N110,6,FALSE)="SCRATCHED","SCRATCHED",Data!BA12)) ->  | G19: =IF(B19="","",IF(D19="SCRATCHED","",Form!D15)) ->  | I19: =IF(B19="","",IF(D19="SCRATCHED","",Form!E15)) ->  | K19: =IF(B19="","",IF(D19="SCRATCHED","",Form!F15)) ->  | L19: =IF(C19="","",IF(D19="SCRATCHED","",Data!BE12)) ->  | N19: =IF(C19="","",IF(D19="SCRATCHED","",Data!EH12)) -> 
B20: =IF(C20="","",Form!B16) ->  | C20: =IF(Data!BC13="","",Data!BC13) ->  | D20: =IF(C20="","",IF(VLOOKUP(Data!BA13,Race!C12:N111,6,FALSE)="SCRATCHED","SCRATCHED",Data!BA13)) ->  | G20: =IF(B20="","",IF(D20="SCRATCHED","",Form!D16)) ->  | I20: =IF(B20="","",IF(D20="SCRATCHED","",Form!E16)) ->  | K20: =IF(B20="","",IF(D20="SCRATCHED","",Form!F16)) ->  | L20: =IF(C20="","",IF(D20="SCRATCHED","",Data!BE13)) ->  | N20: =IF(C20="","",IF(D20="SCRATCHED","",Data!EH13)) -> 
B21: =IF(C21="","",Form!B17) ->  | C21: =IF(Data!BC14="","",Data!BC14) ->  | D21: =IF(C21="","",IF(VLOOKUP(Data!BA14,Race!C13:N112,6,FALSE)="SCRATCHED","SCRATCHED",Data!BA14)) ->  | G21: =IF(B21="","",IF(D21="SCRATCHED","",Form!D17)) ->  | I21: =IF(B21="","",IF(D21="SCRATCHED","",Form!E17)) ->  | K21: =IF(B21="","",IF(D21="SCRATCHED","",Form!F17)) ->  | L21: =IF(C21="","",IF(D21="SCRATCHED","",Data!BE14)) ->  | N21: =IF(C21="","",IF(D21="SCRATCHED","",Data!EH14)) -> 
B22: =IF(C22="","",Form!B18) ->  | C22: =IF(Data!BC15="","",Data!BC15) ->  | D22: =IF(C22="","",IF(VLOOKUP(Data!BA15,Race!C14:N113,6,FALSE)="SCRATCHED","SCRATCHED",Data!BA15)) ->  | G22: =IF(B22="","",IF(D22="SCRATCHED","",Form!D18)) ->  | I22: =IF(B22="","",IF(D22="SCRATCHED","",Form!E18)) ->  | K22: =IF(B22="","",IF(D22="SCRATCHED","",Form!F18)) ->  | L22: =IF(C22="","",IF(D22="SCRATCHED","",Data!BE15)) ->  | N22: =IF(C22="","",IF(D22="SCRATCHED","",Data!EH15)) -> 
B23: =IF(C23="","",Form!B19) ->  | C23: =IF(Data!BC16="","",Data!BC16) ->  | D23: =IF(C23="","",IF(VLOOKUP(Data!BA16,Race!C15:N114,6,FALSE)="SCRATCHED","SCRATCHED",Data!BA16)) ->  | G23: =IF(B23="","",IF(D23="SCRATCHED","",Form!D19)) ->  | I23: =IF(B23="","",IF(D23="SCRATCHED","",Form!E19)) ->  | K23: =IF(B23="","",IF(D23="SCRATCHED","",Form!F19)) ->  | L23: =IF(C23="","",IF(D23="SCRATCHED","",Data!BE16)) ->  | N23: =IF(C23="","",IF(D23="SCRATCHED","",Data!EH16)) ->  | U23: =IF($T$9="","",D4) -> Rockhampton | W23: =IF($T$9="","",G4) -> Race | Y23: =IF($T$9="","",H4) -> 5
B24: =IF(C24="","",Form!B20) ->  | C24: =IF(Data!BC17="","",Data!BC17) ->  | D24: =IF(C24="","",IF(VLOOKUP(Data!BA17,Race!C16:N115,6,FALSE)="SCRATCHED","SCRATCHED",Data!BA17)) ->  | G24: =IF(B24="","",IF(D24="SCRATCHED","",Form!D20)) ->  | I24: =IF(B24="","",IF(D24="SCRATCHED","",Form!E20)) ->  | K24: =IF(B24="","",IF(D24="SCRATCHED","",Form!F20)) ->  | L24: =IF(C24="","",IF(D24="SCRATCHED","",Data!BE17)) ->  | N24: =IF(C24="","",IF(D24="SCRATCHED","",Data!EH17)) ->  | U24: =IF($T$9="","","1st") -> 1st | V24: =IF($T$9="","",INDEX($D$9:$D$32,MATCH(1,$M$9:$M$32,0),1)) -> Dack's Faz | X24: =IF($T$9="","",IF(ISNA(VLOOKUP(V24,$V$11:$X$13,2,FALSE)),"",VLOOKUP(V24,$V$11:$X$13,3,FALSE))) -> 0
B25: =IF(C25="","",Form!B21) ->  | C25: =IF(Data!BC18="","",Data!BC18) ->  | D25: =IF(C25="","",IF(VLOOKUP(Data!BA18,Race!C17:N116,6,FALSE)="SCRATCHED","SCRATCHED",Data!BA18)) ->  | G25: =IF(B25="","",IF(D25="SCRATCHED","",Form!D21)) ->  | I25: =IF(B25="","",IF(D25="SCRATCHED","",Form!E21)) ->  | K25: =IF(B25="","",IF(D25="SCRATCHED","",Form!F21)) ->  | L25: =IF(C25="","",IF(D25="SCRATCHED","",Data!BE18)) ->  | N25: =IF(C25="","",IF(D25="SCRATCHED","",Data!EH18)) ->  | U25: =IF($T$9="","","2nd") -> 2nd | V25: =IF($T$9="","",INDEX($D$9:$D$32,MATCH(2,$M$9:$M$32,0),1)) -> Igotitfrommymumma | X25: =IF($T$9="","",IF(ISNA(VLOOKUP(V25,$V$11:$X$13,2,FALSE)),"",VLOOKUP(V25,$V$11:$X$13,3,FALSE))) -> 
B26: =IF(C26="","",Form!B22) ->  | C26: =IF(Data!BC19="","",Data!BC19) ->  | D26: =IF(C26="","",IF(VLOOKUP(Data!BA19,Race!C18:N117,6,FALSE)="SCRATCHED","SCRATCHED",Data!BA19)) ->  | G26: =IF(B26="","",IF(D26="SCRATCHED","",Form!D22)) ->  | I26: =IF(B26="","",IF(D26="SCRATCHED","",Form!E22)) ->  | K26: =IF(B26="","",IF(D26="SCRATCHED","",Form!F22)) ->  | L26: =IF(C26="","",IF(D26="SCRATCHED","",Data!BE19)) ->  | N26: =IF(C26="","",IF(D26="SCRATCHED","",Data!EH19)) ->  | U26: =IF($T$9="","","3rd") -> 3rd | V26: =IF($T$9="","",INDEX($D$9:$D$32,MATCH(3,$M$9:$M$32,0),1)) -> Lola Brigida | X26: =IF($T$9="","",IF(ISNA(VLOOKUP(V26,$V$11:$X$13,2,FALSE)),"",VLOOKUP(V26,$V$11:$X$13,3,FALSE))) -> 
B27: =IF(C27="","",Form!B23) ->  | C27: =IF(Data!BC20="","",Data!BC20) ->  | D27: =IF(C27="","",IF(VLOOKUP(Data!BA20,Race!C19:N118,6,FALSE)="SCRATCHED","SCRATCHED",Data!BA20)) ->  | G27: =IF(B27="","",IF(D27="SCRATCHED","",Form!D23)) ->  | I27: =IF(B27="","",IF(D27="SCRATCHED","",Form!E23)) ->  | K27: =IF(B27="","",IF(D27="SCRATCHED","",Form!F23)) ->  | L27: =IF(C27="","",IF(D27="SCRATCHED","",Data!BE20)) ->  | N27: =IF(C27="","",IF(D27="SCRATCHED","",Data!EH20)) ->  | U27: =IF($T$9="","","4th") -> 4th | V27: =IF($T$9="","",INDEX($D$9:$D$32,MATCH(4,$M$9:$M$32,0),1)) -> Dandy Kat | X27: =IF($T$9="","",IF(ISNA(VLOOKUP(V27,$V$11:$X$13,2,FALSE)),"",VLOOKUP(V27,$V$11:$X$13,3,FALSE))) -> 
B28: =IF(C28="","",Form!B24) ->  | C28: =IF(Data!BC21="","",Data!BC21) ->  | D28: =IF(C28="","",IF(VLOOKUP(Data!BA21,Race!C20:N119,6,FALSE)="SCRATCHED","SCRATCHED",Data!BA21)) ->  | G28: =IF(B28="","",IF(D28="SCRATCHED","",Form!D24)) ->  | I28: =IF(B28="","",IF(D28="SCRATCHED","",Form!E24)) ->  | K28: =IF(B28="","",IF(D28="SCRATCHED","",Form!F24)) ->  | L28: =IF(C28="","",IF(D28="SCRATCHED","",Data!BE21)) ->  | N28: =IF(C28="","",IF(D28="SCRATCHED","",Data!EH21)) ->  | U28: =IF($T$9="","","5th") -> 5th | V28: =IF($T$9="","",INDEX($D$9:$D$32,MATCH(5,$M$9:$M$32,0),1)) -> Noble Lustre | X28: =IF($T$9="","",IF(ISNA(VLOOKUP(V28,$V$11:$X$13,2,FALSE)),"",VLOOKUP(V28,$V$11:$X$13,3,FALSE))) -> 6.1
B29: =IF(C29="","",Form!B25) ->  | C29: =IF(Data!BC22="","",Data!BC22) ->  | D29: =IF(C29="","",IF(VLOOKUP(Data!BA22,Race!C21:N120,6,FALSE)="SCRATCHED","SCRATCHED",Data!BA22)) ->  | G29: =IF(B29="","",IF(D29="SCRATCHED","",Form!D25)) ->  | I29: =IF(B29="","",IF(D29="SCRATCHED","",Form!E25)) ->  | K29: =IF(B29="","",IF(D29="SCRATCHED","",Form!F25)) ->  | L29: =IF(C29="","",IF(D29="SCRATCHED","",Data!BE22)) ->  | N29: =IF(C29="","",IF(D29="SCRATCHED","",Data!EH22)) -> 
B30: =IF(C30="","",Form!B26) ->  | C30: =IF(Data!BC23="","",Data!BC23) ->  | D30: =IF(C30="","",IF(VLOOKUP(Data!BA23,Race!C22:N121,6,FALSE)="SCRATCHED","SCRATCHED",Data!BA23)) ->  | G30: =IF(B30="","",IF(D30="SCRATCHED","",Form!D26)) ->  | I30: =IF(B30="","",IF(D30="SCRATCHED","",Form!E26)) ->  | K30: =IF(B30="","",IF(D30="SCRATCHED","",Form!F26)) ->  | L30: =IF(C30="","",IF(D30="SCRATCHED","",Data!BE23)) ->  | N30: =IF(C30="","",IF(D30="SCRATCHED","",Data!EH23)) -> 
B31: =IF(C31="","",Form!B27) ->  | C31: =IF(Data!BC24="","",Data!BC24) ->  | D31: =IF(C31="","",IF(VLOOKUP(Data!BA24,Race!C23:N122,6,FALSE)="SCRATCHED","SCRATCHED",Data!BA24)) ->  | G31: =IF(B31="","",IF(D31="SCRATCHED","",Form!D27)) ->  | I31: =IF(B31="","",IF(D31="SCRATCHED","",Form!E27)) ->  | K31: =IF(B31="","",IF(D31="SCRATCHED","",Form!F27)) ->  | L31: =IF(C31="","",IF(D31="SCRATCHED","",Data!BE24)) ->  | N31: =IF(C31="","",IF(D31="SCRATCHED","",Data!EH24)) -> 
B32: =IF(C32="","",Form!B28) ->  | C32: =IF(Data!BC25="","",Data!BC25) ->  | D32: =IF(C32="","",IF(VLOOKUP(Data!BA25,Race!C24:N123,6,FALSE)="SCRATCHED","SCRATCHED",Data!BA25)) ->  | G32: =IF(B32="","",IF(D32="SCRATCHED","",Form!D28)) ->  | I32: =IF(B32="","",IF(D32="SCRATCHED","",Form!E28)) ->  | K32: =IF(B32="","",IF(D32="SCRATCHED","",Form!F28)) ->  | L32: =IF(C32="","",IF(D32="SCRATCHED","",Data!BE25)) ->  | N32: =IF(C32="","",IF(D32="SCRATCHED","",Data!EH25)) -> 
O34: =SUM(O9:O33)*0.98 -> 317.52 | P34: =SUM(P9:P33)*0.98 -> 421.4

Sheet Meetings1
A1: Select Date | H1: Live Odds By
A2: Geelong
A3: 1 | B3: 01:00:00 | C3: Carr & Harvey Accountants Mdn - 1330m | D3: Fields | E3: Form | F3: Xtra Ratings | G3: Consistency
A4: 2 | B4: 01:35:00 | C4: Alc Quality Foods Mdn Plate - 1530m | D4: Fields | E4: Form | F4: Xtra Ratings | G4: Consistency
A5: 3 | B5: 02:10:00 | C5: Nib Health Funds Hcp (c1) - 1130m | D5: Fields | E5: Form | F5: Xtra Ratings | G5: Consistency
A6: 4 | B6: 02:45:00 | C6: It Trophy & Clothing Mdn - 1230m | D6: Fields | E6: Form | F6: Xtra Ratings | G6: Consistency
A7: 5 | B7: 03:20:00 | C7: Quinlan Cranes Hcp (62) - 1530m | D7: Fields | E7: Form | F7: Xtra Ratings | G7: Consistency
A8: 6 | B8: 03:57:00 | C8: Briseis Gold Cup - 1741m | D8: Fields | E8: Form | F8: Xtra Ratings | G8: Consistency
A9: 7 | B9: 04:37:00 | C9: Doxa Joe Youth Foundation (68) - 2447m | D9: Fields | E9: Form | F9: Xtra Ratings | G9: Consistency
A10: 8 | B10: 05:17:00 | C10: C Q Recruitment Hcp (62) - 1330m | D10: Fields | E10: Form | F10: Xtra Ratings | G10: Consistency
A11: Hawkesbury
A12: 1 | B12: 01:15:00 | C12: Clarendon Parklea Displays-c1 - 1400m | D12: Fields | E12: Form | F12: Xtra Ratings | G12: Consistency
A13: 2 | B13: 01:50:00 | C13: Brivis Air Conditioning Mdn - 1000m | D13: Fields | E13: Form | F13: Xtra Ratings | G13: Consistency
A14: 3 | B14: 02:25:00 | C14: Tfh Temporary Fence Hire Mdn - 1000m | D14: Fields | E14: Form | F14: Xtra Ratings | G14: Consistency
A15: 4 | B15: 03:00:00 | C15: Clarendon Chairman's (bm60) - 1000m | D15: Fields | E15: Form | F15: Xtra Ratings | G15: Consistency
A16: 5 | B16: 03:35:00 | C16: Clarendon Homes (bm60) - 1600m | D16: Fields | E16: Form | F16: Xtra Ratings | G16: Consistency
A17: 6 | B17: 04:14:00 | C17: M & Z Tiling Mdn Plate - 1800m | D17: Fields | E17: Form | F17: Xtra Ratings | G17: Consistency
A18: 7 | B18: 04:54:00 | C18: Clarendon Trades Hcp (c2) - 1200m | D18: Fields | E18: Form | F18: Xtra Ratings | G18: Consistency
A19: 8 | B19: 05:34:00 | C19: Clarendon Resi Projects Mdn - 1400m | D19: Fields | E19: Form | F19: Xtra Ratings | G19: Consistency
A20: Launceston
A21: 1 | B21: 06:28:00 | C21: Alps & Amici Mdn Plate - 1100m | D21: Fields | E21: Form | F21: Xtra Ratings | G21: Consistency
A22: 2 | B22: 07:02:00 | C22: Juicy Isle Mdn Plate - 1200m | D22: Fields | E22: Form | F22: Xtra Ratings | G22: Consistency
A23: 3 | B23: 07:34:00 | C23: Cripps Nu-bake Hcp (c4) - 1400m | D23: Fields | E23: Form | F23: Xtra Ratings | G23: Consistency
A24: 4 | B24: 08:11:00 | C24: Jack Chambers (bm68) - 2100m | D24: Fields | E24: Form | F24: Xtra Ratings | G24: Consistency
A25: 5 | B25: 08:41:00 | C25: Field Family Hcp - 1400m | D25: Fields | E25: Form | F25: Xtra Ratings | G25: Consistency
A26: 6 | B26: 09:12:00 | C26: Pfd Foodservices W F A - 1400m | D26: Fields | E26: Form | F26: Xtra Ratings | G26: Consistency
A27: 7 | B27: 09:42:00 | C27: West's Bakery Hcp (c2) - 1400m | D27: Fields | E27: Form | F27: Xtra Ratings | G27: Consistency
A28: 8 | B28: 10:12:00 | C28: Abel's Tempest Hcp (c1) - 1200m | D28: Fields | E28: Form | F28: Xtra Ratings | G28: Consistency
A29: Pinjarra
A30: 1 | B30: 01:07:00 | C30: Peel Bins Mdn - 1000m | D30: Fields | E30: Form | F30: Xtra Ratings | G30: Consistency
A31: 2 | B31: 01:47:00 | C31: Traders & Stable Affairs Mdn - 1200m | D31: Fields | E31: Form | F31: Xtra Ratings | G31: Consistency
A32: 3 | B32: 02:27:00 | C32: Crystals Surf Mdn - 1200m | D32: Fields | E32: Form | F32: Xtra Ratings | G32: Consistency
A33: 4 | B33: 03:07:00 | C33: George 'n' Dragon Tavern Mdn - 1600m | D33: Fields | E33: Form | F33: Xtra Ratings | G33: Consistency
A34: 5 | B34: 03:42:00 | C34: Bennu Intl Consultancy Hcp-68 - 1600m | D34: Fields | E34: Form | F34: Xtra Ratings | G34: Consistency
A35: 6 | B35: 04:22:00 | C35: Ideas In Furniture Hcp (c1) - 1400m | D35: Fields | E35: Form | F35: Xtra Ratings | G35: Consistency
A36: 7 | B36: 04:57:00 | C36: Boddington Earthmoving Hcp-64 - 2000m | D36: Fields | E36: Form | F36: Xtra Ratings | G36: Consistency
A37: 8 | B37: 05:36:00 | C37: Magic Millions (bm60+) - 1200m | D37: Fields | E37: Form | F37: Xtra Ratings | G37: Consistency
A38: Rockhampton
A39: 1 | B39: 01:35:00 | C39: Goody's Earth Moving Mdn Hcp - 1600m | D39: Fields | E39: Form | F39: Xtra Ratings | G39: Consistency
A40: 2 | B40: 02:10:00 | C40: Cq Powdercoaters Hcp - 970m | D40: Fields | E40: Form | F40: Xtra Ratings | G40: Consistency
A41: 3 | B41: 02:45:00 | C41: Rockyvegas 600 Social Clb Mdn - 970m | D41: Fields | E41: Form | F41: Xtra Ratings | G41: Consistency
A42: 4 | B42: 03:25:00 | C42: Kele Property Group Hcp (c1) - 1400m | D42: Fields | E42: Form | F42: Xtra Ratings | G42: Consistency
A43: 5 | B43: 04:05:00 | C43: Allenstown Hotel Hcp (c4) - 1300m | D43: Fields | E43: Form | F43: Xtra Ratings | G43: Consistency
A44: 6 | B44: 04:45:00 | C44: Daniels Surgical & Health (c2) - 1050m | D44: Fields | E44: Form | F44: Xtra Ratings | G44: Consistency
A45: END

Sheet Meetings2
A2: Thursday, 2 December 2010 | B2: Times are Aust EST
A4: Daily Double Jackpot! | B4: ALBION PARK (BG) race 07 ($1,064)
A5: First4 Jackpot! | B5: ALBION PARK (BG) race 08 ($9,161)
A6: Exacta Jackpot! | B6: ANGLE PARK (AG) race 08 ($8,636)
A7: Races | D7: 1 | E7: 2 | F7: 3 | G7: 4 | H7: 5 | I7: 6 | J7: 7 | K7: 8 | L7: 9 | M7: 10 | N7: 11 | O7: 12
B8: ROCKHAMPTON (QR) | C8: Fields | D8: 3,1,8 F4 | E8: 5,7,8 F4 | F8: 14,9,10 F4 | G8: 4,8,6 F4 | H8: 3,7,1 F4 | I8: 2,4,11 F4
B9: HAWKESBURY (NR) | C9: Fields | D9: Abnd | E9: Abnd | F9: Abnd | G9: Abnd | H9: Abnd | I9: Abnd | J9: Abnd | K9: Abnd
B10: GEELONG (VR) | C10: Fields | D10: 5,7,10 | E10: 7,4,5 | F10: 7,3,1 | G10: 2,11,4 | H10: 9,8,6 F4 | I10: 4,1,3 F4 | J10: 7,8,10 F4 | K10: 7,6,9 F4
B11: PINJARRA (PR) | C11: Fields | D11: 13,4,6 | E11: 9,1,2 | F11: 4,3,6 | G11: 17,12,10 | H11: 25m | I11: 06:22:00 | J11: 06:57:00 | K11: 07:36:00
B12: LAUNCESTON (TR) | C12: Fields | D12: 11m | E12: 45m | F12: 06:34:00 | G12: 07:11:00 | H12: 07:41:00 | I12: 08:12:00 | J12: 08:42:00 | K12: 09:12:00
B13: VAAL (AS) | C13: Fields | D13: 08:55:00 | E13: 09:30:00 | F13: 10:05:00 | G13: 10:40:00 | H13: 11:15:00 | I13: 11:50:00 | J13: 12:25am
B14: LINGFIELD (ES) | C14: Fields | D14: 11:00:00 | E14: 11:30:00 | F14: 12:00am | G14: 12:30am
B15: MATAMATA (ZS) | C15: Fields | D15: 15,13,7 | E15: 10,7,2 | F15: 12,1,9 | G15: 1,7,9 | H15: 8,14,6 | I15: 4,12,3 | J15: 11,12,1 | K15: 3,4,9 | L15: 8,10,5 | M15: 1,8,3
A16: Trots | D16: 1 | E16: 2 | F16: 3 | G16: 4 | H16: 5 | I16: 6 | J16: 7 | K16: 8 | L16: 9 | M16: 10 | N16: 11 | O16: 12
B17: PENRITH (ST) | C17: Fields | D17: 7m | E17: 33m | F17: 58m | G17: 06:47:00 | H17: 07:17:00 | I17: 07:47:00 | J17: 08:17:00 | K17: 08:47:00
B18: MELTON (MT) | C18: Fields | D18: 1,2,6 | E18: 1,5,4 | F18: 6,2,3 | G18: 4,9,2 | H18: 10,6,5 | I18: 8,1,2 | J18: 9,4,1 | K18: Closed
B19: GOLD COAST (QT) | C19: Fields | D19: 5,7,6 F4 | E19: 3,1,6 F4 | F19: 2,8,1 F4 | G19: 4,3,7 F4 | H19: 9,8,1 F4 | I19: 1,8,9 F4 | J19: 10,11,7 F4
B20: NEWCASTLE (NT) | C20: Fields | D20: 10,8,2 | E20: 3,6,5 | F20: 6,5,8 | G20: 9,3,6 | H20: 12,8,11 | I20: 2,8,7 | J20: 3,1,9 | K20: 11,3,9
B21: BALLARAT (VT) | C21: Fields | D21: 16m | E21: 41m | F21: 06:30:00 | G21: 07:02:00 | H21: 07:30:00 | I21: 08:00:00 | J21: 08:30:00 | K21: 09:00:00
B22: HARVEY (PT) | C22: Fields | D22: 07:54:00 | E22: 08:24:00 | F22: 08:54:00 | G22: 09:24:00 | H22: 09:54:00 | I22: 10:24:00 | J22: 10:50:00 | K22: 11:21:00
B23: VINCENNES (FT) | C23: Fields | D23: 10:40:00 | E23: 11:10:00 | F23: 11:40:00 | H23: 12:45am
B24: ASCOT PARK (ZT) | C24: Fields | D24: 5,9,3 | E24: 13,6,14 | F24: 14,1,10 | G24: 5,4,8 | H24: 2,3,14 | I24: 9,2,4 | J24: 2,1,7 | K24: Interim | L24: 17m
A25: Greyhounds | D25: 1 | E25: 2 | F25: 3 | G25: 4 | H25: 5 | I25: 6 | J25: 7 | K25: 8 | L25: 9 | M25: 10 | N25: 11 | O25: 12
B26: ALBION PARK (BG) | C26: Fields | D26: 6:41 F4 | E26: 7:06 F4 | F26: 7:25 F4 | G26: 7:45 F4 | H26: 8:08 F4 | I26: 8:28 F4 | J26: 8:52 F4 | K26: 9:11 F4 | L26: 9:32 F4 | M26: 9:52 F4
B27: DAPTO (SG) | C27: Fields | D27: 06:28:00 | E27: 06:52:00 | F27: 07:12:00 | G27: 07:34:00 | H27: 07:55:00 | I27: 08:14:00 | J27: 08:38:00 | K27: 08:58:00 | L27: 09:22:00 | M27: 09:40:00
B28: SANDOWN PARK (MG) | C28: Fields | D28: 50m | E28: 06:25:00 | F28: 06:44:00 | G28: 07:09:00 | H28: 07:28:00 | I28: 07:52:00 | J28: 08:11:00 | K28: 08:35:00 | L28: 08:55:00 | M28: 09:14:00 | N28: 09:36:00
B29: MAITLAND (NG) | C29: Fields | D29: 8,1,6 | E29: 5,1,7 | F29: 8,4,7 | G29: 2,8,6 | H29: 4,3,5 | I29: 8,6,2 | J29: 3m | K29: 21m | L29: 38m | M29: 57m
B30: SHEPPARTON (VG) | C30: Fields | D30: 3,8,1 | E30: 1,6,8 | F30: 8,7,5 | G30: 8,5,3 | H30: 4,8,5 | I30: 6,2,3 | J30: 7,1,8 | K30: 1,7,2 | L30: 13m | M30: 30m | N30: 46m | O30: 06:19:00
B31: ANGLE PARK (AG) | C31: Fields | D31: 55m F4 | E31: 6:35 F4 | F31: 6:55 F4 | G31: 7:15 F4 | H31: 7:39 F4 | I31: 7:58 F4 | J31: 8:22 F4 | K31: 8:41 F4 | L31: 9:05 F4 | M31: 9:25 F4 | N31: 9:44 F4
B32: GRAFTON (CG) | C32: Fields | D32: 3,7,4 | E32: 6,7,2 | F32: 3,1,8 | G32: 9,4,8 | H32: 4,5,1 | I32: 8,2,3 | J32: 4,8,5 | K32: 3,6,7 | L32: 5,6,1 | M32: 5,8,6
B33: MANDURAH (PG) | C33: Fields | D33: 08:36:00 | E33: 08:51:00 | F33: 09:06:00 | G33: 09:21:00 | H33: 09:39:00 | I33: 10:00:00 | J33: 10:17:00 | K33: 10:35:00 | L33: 10:57:00 | M33: 11:12:00 | N33: 11:32:00 | O33: 11:52:00
B34: WARRAGUL (EG) | C34: Fields | D34: 6,1,8 | E34: 1,4,5 | F34: 7,8,3 | G34: 2,5,3 | H34: 7,1,3 | I34: 4,2,1 | J34: 4,8,7 | K34: 7,6,4 | L34: 2,3,6 | M34: 8,1,10 | N34: 8,5,1 | O34: 5,2,7
B35: CAMBRIDGE (OG) | C35: Fields | D35: 5,7,2 | E35: 6,1,7 | F35: 5,6,2 | G35: 8,7,3 | H35: 8,5,3 | I35: 2,1,7 | J35: 8,7,5 | K35: 2,5,3 | L35: 1,3,5 | M35: 1,2,6 | N35: 5,1,4 | O35: 7,6,4
B36: ADDINGTON (ZG) | C36: Fields | D36: 1,4,7 | E36: 8,7,1 | F36: 5,8,9 | G36: 8,1,2 | H36: 6,2,5 | I36: Abnd | J36: Abnd | K36: Abnd | L36: Abnd | M36: Abnd | N36: Abnd | O36: Abnd
B37: HOBART (TG) | C37: Fields | D37: 06:38:00 | E37: 07:00:00 | F37: 07:22:00 | G37: 07:42:00 | H37: 08:05:00 | I37: 08:25:00 | J37: 08:44:00 | K37: 09:08:00 | L37: 09:28:00 | M37: 09:48:00
A38: Last Race Results | B38: Multi-leg Info | C38: Scratchings
A40: Help | B40: Gambling Advice | C40: TAB Home | D40: Refresh
A41: © Copyright UNiTAB Ltd | B41: Created: Thu, 02 Dec 2010 17:16:50 Aust EST

Sheet Form
A1: Form - Rockhampton 02/12/10
A2: Race 5 | C2: Allenstown Hotel Hcp (c4) | E2: Class 4 | I2: 1300m
A3: 04:05:00 | C3: Apprentices Can Claim | E3: Handicap Min Hcp Wgt : 54.0 | H3: 10000
A4: # | B4: Form | C4: Horse (Barrier) | D4: Trainer | E4: Jockey | F4: Weight | G4: API | H4: Win % | I4: Place %
A5: 1 | B5: 114823 | C5: Dack's Faz (8) | D5: Craig Smith | E5: Ali Taylor | F5: 58 | G5: 2.4 | H5: 28.6 | I5: 64.3
A6: 2 | B6: 515137 | C6: Igotitfrommymumma (3) | D6: T Cook | E6: A Coome | F6: 55.5 | G6: 1.3 | H6: 12.9 | I6: 41.9
A7: 3 | B7: 258918 | C7: Noble Lustre (5) | D7: J Brown | E7: J Kropp | F7: 55.5 | G7: 2.1 | H7: 11.1 | I7: 33.3
A8: 4 | B8: 351546 | C8: Chabal (4) | D8: R J Walsh | E8: D Simmons | F8: 55 | G8: 1.1 | H8: 12.5 | I8: 41.7
A9: 5 | B9: 799371 | C9: Craiglea Tina (2) | D9: P Fleming | F9: 54 | G9: 2.3 | H9: 17.6 | I9: 41.2
A10: 6 | B10: 374161 | C10: Lola Brigida (7) | D10: D J Munns | E10: T Bannon | F10: 54 | G10: 1.1 | H10: 9.1 | I10: 30.3
A11: 7 | B11: 838930 | C11: Zenacity (1) | D11: J P O'Shea | E11: C Whiteley | F11: 54 | G11: 0.9 | H11: 8.6 | I11: 28.6
A12: 1900-01-08 | B12: 4529-08-21 | C12: Dandy Kat (6) | D12: R Vale | E12: J P Stanley | F12: 54 | G12: 1.3 | H12: 11.8 | I12: 47.1
A13: 9 | B13: 358366 | C13: Fu Min Bu (9) | D13: R Sullivan | E13: R Bell | F13: 54 | G13: 0.5 | H13: 5.4 | I13: 21.6
A15: 1 Dack's Faz (8) 58.0kg 5yo b/br g | D15: Trainer: Craig Smith at Roma | G15: Jockey: Ali Taylor
A16: Colours: Gold, black sash and cap | D16: Breeding: Fasliyev (USA) - Fifth Ward (USA) by Houston
A17: Owners: D L McLennan
A18: Career: | B18: Earnings: | C18: Win: 28.6% | D18: API: | E18: First Up: | F18: Second Up: | G18: Distance: | H18: Track:
A19: 2010-02-03T14:04:00 | B19: 33125 | C19: Place: 64.3% | D19: 2.4 | E19: 2010-01-01T04:02:00 | F19: 3:1-0-0 | G19: 0:0-0-0 | H19: 3:1-1-0
A20: Fast: | B20: Good: | C20: Dead: | D20: Slow: | E20: Heavy:
A21: 1:1-0-0 | B21: 2010-02-03T09:00:00 | C21: 2:1-0-0 | D21: 1:1-0-0 | E21: 1:1-0-0
A22: 3-12 2.0L, Roma, 2010-11-20, 1200m, Good, Race 4, Plate, Cls 6, $15000, ($1500), Ali Taylor, 4, Cd 57.5-0.0, (SW), 1:12.99, (), 7/1, Settled-- 1200-- 800-- Turn--, 1-Fidakat 57.0
A23: 2-9 0.1L, Emrld, 2010-11-06, 1200m, Good, Race 3, Hcp, Cls 4, $6000, ($1200), Ali Taylor, 8, Cd 60.5-0.0, (55.0), 1:09.56, (), 13/4, Settled-- 1200-- 800-- Turn--, 1-Senorina 53.0
A24: 8-10 4.7L, G Cst, 2010-10-28, 1100m, Dead, Race 6, Hcp, Cls 5, $12000, ($0), C McIver, 1, Cd 54.5-0.0, (54.0), 1:04.47, (34.63), 10/1, Settled-5 1200-- 800-- Turn-10, 1-Tonkatsu 55.5
A25: 4-11 3.4L, Emrld, 2010-10-09, 1000m, Good, Race 2, Hcp, Cls 4, $6000, ($200), R Cox, 3, Cd 59.5--1.5, (55.0), 0:57.38, (), 1/1F, Settled-- 1200-- 800-- Turn--, 1-Black Angus 56.0
A26: 1-9 0.3L, Rocky, 2010-09-23, 970m, Heavy, Race 6, Hcp, Cls 3, $12000, ($7800), C McIver, 6, Cd 56.5-0.0, (54.0), 0:57.42, (34.27), 7/2, Settled-- 1200-- 800-- Turn--, 2-Basheeba 54.5
A27: 1-7 4.3L, Chinch, 2008-11-08, 1200m, Dead, Race 2, Plate, Cls 3, $6500, ($4200), L McCoy, 6, Cd 58.0-0.0, (SW), 1:10.02, (), 8/11F, Settled-- 1200-- 800-- Turn--, 2-My Kavita 54.5
A28: 2-8 3.0L, Twba, 2008-10-24, 1000m, Good, Race 8, 3yo+ Hcp, Cls 3 3+, $10000, ($2000), L McCoy, 3, Cd 54.0-0.0, (54.0), 0:58.95, (34.59), 13/4, Settled-2 1200-- 800-- Turn-2, 1-Morcombe 52.0
A29: 1-9 2.5L, Twba, 2008-10-11, 1012m, Slow, Race 2, 3yo+ Hcp, Cls 1 3+, $10000, ($6500), C Eaton, 1, Cd 54.0-0.0, (54.0), 1:01.05, (36.05), 8/1, Settled-1 1200-- 800-- Turn-1, 2-Magical Joker 58.0
A30: 1-10 2.5L, Taroom, 2008-09-27, 1000m, Fast, Race 1, 3yo+ Mdn, Mdn 3+, $8000, ($5200), L McCoy, 1, Cd 57.0-0.0, (SW), 0:58.86, (), 2/1F, Settled-- 1200-- 800-- Turn--, 2-Mon Jolie 56.5
A31: 7-10 10.3L, Rocky, 2008-04-19, 1200m, Good, Race 4, 2yo Classic, Open 2, $30000, ($0), L McCoy, 9, Cd 57.0-0.0, (54.0), 1:12.27, (), 6/1, Settled-- 1200-- 800-- Turn--, 1-Ready Royal 55.0
A32: 2 Igotitfrommymumma (3) 55.5kg 6yo b g | D32: Trainer: T Cook at Rockhampton | G32: Jockey: A Coome
A33: Colours: White with green dollar sign, red sleeves and cap | D33: Breeding: Natural Act - Fuji Mama by Fuji Kiseki
A34: Owners: Mrs K & C Curd
A35: Career: | B35: Earnings: | C35: Win: 12.9% | D35: API: | E35: First Up: | F35: Second Up: | G35: Distance: | H35: Track:
A36: 40303.29444 | B36: 41245 | C36: Place: 41.9% | D36: 1900-01-01T07:12:00 | E36: 4:0-0-1 | F36: 3:0-0-1 | G36: 3:0-0-0 | H36: 2010-01-01T11:01:00
A37: Fast: | B37: Good: | C37: Dead: | D37: Slow: | E37: Heavy:
A38: 0:0-0-0 | B38: 40242.04375 | C38: 5:1-0-2 | D38: 0:0-0-0 | E38: 1:0-0-0
A39: 7-8 4.2L, Rocky, 2010-11-04, 1300m, Dead, Race 4, Hcp, Cls 5, $12000, ($0), C Pye, 1, Cd 52.0--2.0, (54.0), 1:18.05, (35.11), 12/1, Settled-- 1200-- 800-- Turn--, 1-Martiros 54.5
A40: 3-7 2.4L, Mackay, 2010-10-19, 1500m, Good, Race 2, Plate, Cls 6, $10000, ($1000), C Pye, 6, Cd 52.5--3.0, (SW), 1:30.50, (), 5/1, Settled-2 1200-- 800-- Turn-3, 1-Polrossa 55.5
A41: 1-6 0.2L, Mackay, 2010-10-09, 1500m, Good, Race 2, Hcp, Cls 4, $7500, ($4800), K Cross, 6, Cd 51.0--3.0, (54.0), 1:28.90, (), 5/2, Settled-- 1200-- 800-- Turn--, 2-Ellehro 54.0
A42: 5-9 8.5L, Mackay, 2010-09-28, 1250m, Heavy, Race 6, Plate, Cls 3, $10000, ($0), H O'Hara, 9, Cd 55.5--3.0, (SW), 1:16.40, (), 8/1, Settled-8 1200-- 800-- Turn-8, 1-Achill Island 57.0
A43: 1-7 3.0L, S'sure, 2010-09-18, 1400m, Good, Race 5, Hcp, Cls 2, $5100, ($3400), H O'Hara, 6, Cd 54.5--2.0, (55.0), 1:27.55, (), 3/1, Settled-- 1200-- 800-- Turn--, 2-Craiglea Fancy 53.0
A44: 5-11 5.7L, Mackay, 2010-09-07, 1250m, Good, Race 5, Hcp, Cls 2, $10000, ($0), H O'Hara, 7, Cd 52.0--2.0, (54.0), 1:14.00, (), 20/1, Settled-9 1200-- 800-- Turn-8, 1-Essington 58.0
A45: 10-12 7.7L, Mackay, 2010-06-17, 1500m, Good, Race 5, Hcp, Cls 2, $10000, ($0), R Wiggins, 9, Cd 54.0-0.0, (54.0), 1:29.75, (), 12/1, Settled-8 1200-- 800-- Turn-11, 1-Great Gretzky 56.0
A46: 9-10 8.6L, Rocky, 2010-05-22, 1600m, Good, Race 3, Hcp, Cls 3, $6000, ($0), C McIver, 2, Cd 54.0-0.0, (54.0), 1:36.03, (37.20), 14/1, Settled-- 1200-- 800-- Turn--, 1-Timecall 58.0
A47: 4-6 5.5L, Mackay, 2010-05-01, 1250m, Good, Race 1, Hcp, Cls 3, $6000, ($200), D Simmons, 4, Cd 54.0-0.0, (54.0), 1:14.13, (), 5/2, Settled-- 1200-- 800-- Turn--, 1-Eagledance Kid 54.0
A48: 3-9 1.8L, Mackay, 2010-04-13, 1050m, Dead, Race 7, Hcp, Cls 2, $12000, ($1200), T Bannon, 1, Cd 55.0-0.0, (54.5), 1:01.58, (), 12/1, Settled-- 1200-- 800-- Turn--, 1-God's Window 55.5
A49: 3 Noble Lustre (5) 55.5kg 5yo b/br g | D49: Trainer: J Brown at Rockhampton | G49: Jockey: J Kropp
A50: Colours: Dark blue, yellow seams and cap | D50: Breeding: Lujain (USA) - Noreaster by Fuji Kiseki
A51: Owners: J Brown, L L Chang & V Brown
A52: Career: | B52: Earnings: | C52: Win: 11.1% | D52: API: | E52: First Up: | F52: Second Up: | G52: Distance: | H52: Track:
A53: 40241.12708 | B53: 57482 | C53: Place: 33.3% | D53: 2.1 | E53: 5:1-0-0 | F53: 5:0-1-0 | G53: 0:0-0-0 | H53: 5:1-0-0
A54: Fast: | B54: Good: | C54: Dead: | D54: Slow: | E54: Heavy:
A55: 0:0-0-0 | B55: 2010-01-02T11:01:00 | C55: 2010-01-01T08:00:00 | D55: 4:1-0-1 | E55: 4:1-0-0
A56: 8-13 4.5L, Rocky, 2010-11-11, 1200m, Good, Race 7, Hcp, Cls 3, $10000, ($0), B Stewart, 6, Cd 57.0-0.0, (54.0), 1:10.07, (34.16), 7/1, Settled-- 1200-- 800-- Turn--, 1-Angel Force 54.0
A57: 1-6 2.0L, Rocky, 2010-11-02, 1200m, Good, Race 4, Plate, Cls 3, $6000, ($4000), K Cross, 1, Cd 54.0--3.0, (SW), 1:10.31, (33.24), 5/2, Settled-- 1200-- 800-- Turn--, 2-Mountain King 54.0
A58: 9-15 7.2L, Rocky, 2010-10-07, 1200m, Good, Race 7, Hcp, Cls 3, $10000, ($0), B Stewart, 12, Cd 56.0-0.0, (54.0), 1:10.26, (34.68), 7/1, Settled-- 1200-- 800-- Turn--, 1-Basheeba 56.0
A59: 8-9 5.4L, Rocky, 2010-09-23, 970m, Heavy, Race 6, Hcp, Cls 3, $12000, ($0), B Stewart, 2, Cd 55.5-0.0, (54.0), 0:57.42, (34.27), 13/4E, Settled-- 1200-- 800-- Turn--, 1-Dack's Faz 56.5
A60: 5-10 4.0L, Rocky, 2010-09-09, 970m, Good, Race 1, Hcp, Cls 2, $10000, ($0), D Simmons, 7, Cd 58.0-0.0, (54.0), 0:55.87, (33.16), 3/1E, Settled-- 1200-- 800-- Turn--, 1-Noosa Bay 53.0
A61: 2-5 2.0L, Ball't, 2010-03-04, 1100m, Dead, Race 5, Hcp, RB72, $15000, ($2700), L Nolen, 2, Cd 55.0-0.0, (53.0), 1:06.04, (), 7/4, Settled-3 1200-- 800-- Turn-2, 1-My Girl Helen 56.5
A62: 6-11 1.8L, K'more, 2010-02-14, 1200m, Dead, Race 6, Hcp, RB68, $22500, ($200), B Rawiller, 9, Cd 57.5-0.0, (53.0), 1:11.22, (), 9/2E, Settled-2 1200-- 800-- Turn-1, 1-De Dion Bouton 57.5
A63: 4-8 2.0L, Morn., 2010-01-29, 1223m, Dead, Race 5, Hcp, RB68, $13000, ($500), B Rawiller, 5, Cd 57.5-0.0, (54.0), 1:13.52, (), 7/4F, Settled-2 1200-- 800-- Turn-1, 1-Into The Sun 58.0
A64: 2-13 0.5L, Ball't, 2010-01-14, 1200m, Good, Race 8, Hcp, RB68, $22500, ($4200), B Rawiller, 11, Cd 57.0-0.0, (53.0), 1:10.18, (), 12/1, Settled-3 1200-- 800-- Turn-2, 1-Mikeys Magic 56.0
A65: 3-8 1.1L, St.Ck, 2009-12-28, 1100m, Good, Race 6, Hcp, RB68, $12000, ($1000), J Noonan, 8, Cd 56.0--2.0, (53.0), 1:06.52, (), 13/2, Settled-8 1200-- 800-- Turn-7, 1-Shaemist Mountain 54.5
A66: 4 Chabal (4) 55.0kg 5yo b g | D66: Trainer: R J Walsh at Mackay | G66: Jockey: D Simmons
A67: Colours: Black, lime green sleeves and cap | D67: Breeding: Kbenjar - Fietinski by Semipalatinsk
A68: Owners: Mrs K E Walsh, C E Watts & D W Matsen
A69: Career: | B69: Earnings: | C69: Win: 12.5% | D69: API: | E69: First Up: | F69: Second Up: | G69: Distance: | H69: Track:
A70: 40301.00208 | B70: 26875 | C70: Place: 41.7% | D70: 1900-01-01T02:24:00 | E70: 4:0-0-3 | F70: 4:0-0-0 | G70: 3:1-0-0 | H70: 5:0-0-1
A71: Fast: | B71: Good: | C71: Dead: | D71: Slow: | E71: Heavy:
A72: 0:0-0-0 | B72: 2010-03-02T17:02:00 | C72: 5:1-0-1 | D72: 1:0-0-1 | E72: 1:0-0-0
A73: 6-13 3.1L, Rocky, 2010-11-11, 1200m, Good, Race 7, Hcp, Cls 3, $10000, ($0), J P Stanley, 7, Cd 56.5-0.0, (54.0), 1:10.07, (34.16), 25/1, Settled-- 1200-- 800-- Turn--, 1-Angel Force 54.0
A74: 4-11 2.8L, Rocky, 2010-08-26, 2243m, Dead, Race 4, Hcp, Cls 4, $12000, ($600), Dale Missen, 8, Cd 56.5-0.0, (54.0), 2:21.97, (36.58), 8/1, Settled-- 1200-- 800-- Turn--, 1-Sir Echo 55.5
A75: 5-11 2.2L, T'vill, 2010-08-21, 1630m, Good, Race 4, Hcp, Cls 4, $15000, ($0), A Merritt, 11, Cd 54.0-0.0, (54.0), 1:39.31, (35.60), 8/1, Settled-- 1200-- 800-- Turn--, 1-Northern Apache 54.0
A76: 1-11 0.1L, T'vill, 2010-08-03, 1630m, Good, Race 5, Hcp, Cls 3, $12000, ($7800), T Bannon, 2, Cd 54.0-0.0, (54.0), 1:39.75, (35.37), 11/1, Settled-- 1200-- 800-- Turn--, 2-Hamatym 56.5
A77: 5-11 5.0L, Rocky, 2010-07-15, 1814m, Good, Race 3, Hcp, Cls 2, $12000, ($0), Dale Missen, 10, Cd 57.5-0.0, (54.0), 1:54.00, (34.39), 13/4, Settled-- 1200-- 800-- Turn--, 1-Hot Shot Henry 54.0
A78: 3-12 0.3L, T'vill, 2010-06-14, 1630m, Good, Race 2, Plate, Cls 3, $10000, ($1000), Dale Missen, 6, Cd 57.0-0.0, (SW), 1:39.48, (35.81), 5/1, Settled-- 1200-- 800-- Turn--, 1-Keen On You 58.5
A79: 1-8 5.0L, Mackay, 2010-05-29, 1800m, Dead, Race 4, Hcp, Cls 1, $7500, ($4800), Dale Missen, 7, Cd 58.0-0.0, (54.0), 1:50.22, (), 15/4, Settled-- 1200-- 800-- Turn--, 2-Sure Of Heart 54.0
A80: 3-6 11.1L, Mackay, 2010-05-11, 1800m, Slow, Race 1, Hcp, Cls 1, $10000, ($1000), Dale Missen, 1, Cd 57.0-0.0, (54.0), 1:57.79, (), 2/1, Settled-- 1200-- 800-- Turn--, 1-Galaxy Stalker 56.0
A81: 2-8 0.4L, Mackay, 2010-05-01, 1500m, Good, Race 6, Hcp, Cls 1, $6000, ($1200), N Patchett, 5, Cd 54.0-0.0, (54.0), 1:31.04, (), 7/1, Settled-- 1200-- 800-- Turn--, 1-Prom Knight 54.0
A82: 6-8 4.1L, T'vill, 2010-04-22, 1400m, Good, Race 1, Hcp, Cls 1, $10000, ($0), A Spinks, 6, Cd 54.0-0.0, (54.0), 1:23.39, (34.60), 7/1, Settled-- 1200-- 800-- Turn--, 1-Cinque Terre 58.5
A83: 5 Craiglea Tina (2) 54.0kg 3yo br f | D83: Trainer: P Fleming at Sunshine Coast | G83: Jockey:
A84: Colours: Blue, white crossed sashes, white striped sleeves, blue cap | D84: Breeding: Top Echelon - Clementina by Scenic
A85: Owners: S M Johnston, Mrs M L Johnston, W A & J J Johnston & Miss K J E Johnston
A86: Career: | B86: Earnings: | C86: Win: 17.6% | D86: API: | E86: First Up: | F86: Second Up: | G86: Distance: | H86: Track:
A87: 2010-03-01T17:03:00 | B87: 39150 | C87: Place: 41.2% | D87: 1900-01-02T07:12:00 | E87: 2:1-0-0 | F87: 2:1-0-0 | G87: 2:0-1-0 | H87: 2:0-0-0
A88: Fast: | B88: Good: | C88: Dead: | D88: Slow: | E88: Heavy:
A89: 0:0-0-0 | B89: 2010-03-01T15:03:00 | C89: 0:0-0-0 | D89: 2:0-0-0 | E89: 0:0-0-0
A90: 1-9 2.0L, Gympie, 2010-11-27, 1470m, Good, Race 3, Plate, Cls 3, $6000, ($4000), K James, 4, Cd 53.0--3.0, (SW), 1:31.06, (), 5/2, Settled-- 1200-- 800-- Turn--, 2-Tic Toc Tiger 56.0
A91: 7-12 6.4L, Roma, 2010-11-20, 1640m, Good, Race 6, Plate, Cls 3, $15000, ($0), K James, 8, Cd 54.0--3.0, (SW), 1:45.13, (), 7/1, Settled-- 1200-- 800-- Turn--, 1-Bruncher 59.0
A92: 3-6 2.2L, SCstIn, 2010-11-14, 1250m, Good, Race 2, Hcp, Cls 2, $10000, ($1000), K Wharton, 2, Cd 54.0-0.0, (54.0), 1:16.65, (35.16), 5/2, Settled-1 1200-- 800-- Turn-2, 1-Monashee Matty 51.0
A93: 9-11 6.8L, Rocky, 2010-10-21, 1300m, Good, Race 7, Hcp, Cls 4, $10000, ($0), J Kropp, 11, Cd 52.0--2.0, (54.0), 1:17.04, (34.86), 12/1, Settled-- 1200-- 800-- Turn--, 1-Ewey Bay 51.0
A94: 9-14 11.5L, E.Farm, 2010-10-02, 1400m, Slow, Race 5, 3yo Hcp, Open 3, $50000, ($0), J Kropp, 4, Cd 51.5--1.5, (53.0), 1:25.45, (37.84), 100/1, Settled-3 1200-- 800-- Turn-3, 1-Random Orbit 53.0
A95: 7-8 2.2L, Suncst, 2010-09-19, 1600m, Good, Race 2, 3yo Hcp, Cls 2 3, $10000, ($0), J Kropp, 6, Cd 53.0--2.0, (54.0), 1:37.87, (35.19), 14/1, Settled-1 1200-- 800-1 Turn-1, 1-Satch 57.5
A96: 3-11 1.5L, Mackay, 2010-09-07, 1250m, Good, Race 5, Hcp, Cls 2, $10000, ($1000), K Cross, 3, Cd 51.0--3.0, (54.0), 1:14.00, (), 13/4, Settled-2 1200-- 800-- Turn-1, 1-Essington 58.0
A97: 4-7 3.8L, Suncst, 2010-08-15, 1600m, Slow, Race 1, 3yo Hcp, Cls 2 3, $10000, ($500), K Wharton, 4, Cd 55.5-0.0, (54.0), 1:39.71, (37.59), 4/1, Settled-3 1200-- 800-5 Turn-4, 1-Just About Ready 56.0
A98: 10-15 9.1L, E.Farm, 2010-07-24, 1500m, Good, Race 1, 2yo Hcp, Open 2, $50000, ($0), J Kropp, 2, Cd 51.5--3.0, (53.0), 1:30.06, (35.91), 60/1, Settled-1 1200-- 800-- Turn-1, 1-Fillydelphia 56.0
A99: 2-7 5.0L, Twbc, 2010-07-17, 1300m, Good, Race 6, 2yo Hcp, Open 2, $10000, ($2000), K Wharton, 1, Cd 56.0-0.0, (54.0), 1:20.16, (36.70), 15/4, Settled-4 1200-- 800-- Turn-3, 1-Hidden Treasure 57.0
A100: 6 Lola Brigida (7) 54.0kg 5yo ch m | D100: Trainer: D J Munns at Bluff | G100: Jockey: T Bannon
A101: Colours: Lime green, maroon sash, maroon sleeves | D101: Breeding: Street Cry (IRE) - Kiss The Flame by Prince Of Birds
A102: Owners: D Munns
A103: Career: | B103: Earnings: | C103: Win: 9.1% | D103: API: | E103: First Up: | F103: Second Up: | G103: Distance: | H103: Track:
A104: 40272.37708 | B104: 36350 | C104: Place: 30.3% | D104: 1900-01-01T02:24:00 | E104: 3:0-0-0 | F104: 3:1-0-0 | G104: 4:1-0-1 | H104: 8:1-0-3
A105: Fast: | B105: Good: | C105: Dead: | D105: Slow: | E105: Heavy:
A106: 0:0-0-0 | B106: 2010-03-01T13:01:00 | C106: 2010-01-01T18:02:00 | D106: 0:0-0-0 | E106: 2:0-1-0
A107: 1-11 4.5L, Emrld, 2010-11-27, 1300m, Good, Race 5, Plate, Cls 3, $6000, ($4000), T Bannon, 10, Cd 56.0-0.0, (SW), 1:17.32, (), 5/1, Settled-- 1200-- 800-- Turn--, 2-Senorina 55.5
A108: 6-11 4.4L, Rocky, 2010-11-18, 1200m, Good, Race 6, Hcp, Cls 4, $12000, ($0), C McIver, 7, Cd 54.0-0.0, (54.0), 1:10.05, (34.36), 14/1, Settled-- 1200-- 800-- Turn--, 1-Two Tone 58.5
A109: 1-9 0.5L, Rocky, 2010-11-04, 1200m, Dead, Race 5, Hcp, Cls 1, $10000, ($6500), Ash Butler, 9, Cd 54.5-0.0, (54.0), 1:11.60, (35.17), 11/1, Settled-- 1200-- 800-- Turn--, 2-Kickdahabit 53.5
A110: 4-6 9.3L, Glad., 2010-10-23, 1194m, Good, Race 5, Hcp, Cls 2, $6000, ($200), C A Beets, 3, Cd 57.0-0.0, (55.0), 1:12.77, (), 13/8, Settled-- 1200-- 800-- Turn--, 1-Old Flame 55.0
A111: 7-12 4.7L, Rocky, 2010-10-14, 1100m, Good, Race 5, F&m Hcp, Cls 1 fm, $10000, ($0), T Bannon, 3, Cd 57.5-0.0, (54.0), 1:03.96, (33.99), 4/1, Settled-- 1200-- 800-- Turn--, 1-Run Kylie Run 58.5
A112: 3-14 1.4L, Rocky, 2010-09-16, 1200m, Good, Race 5, Hcp, Cls 2, $10000, ($1000), H O'Hara, 6, Cd 53.0--2.0, (54.0), 1:10.21, (34.58), 6/1, Settled-- 1200-- 800-- Turn--, 1-Senorina 52.0
A113: 3-9 2.8L, Rocky, 2010-09-09, 1300m, Good, Race 3, Hcp, Cls 4, $12000, ($1200), H O'Hara, 1, Cd 53.0--1.0, (54.0), 1:16.40, (34.90), 9/1, Settled-- 1200-- 800-- Turn--, 1-Martiros 55.0
A114: 6-11 1.8L, Emrld, 2010-09-04, 1200m, Good, Race 3, Hcp, Cls 4, $6000, ($0), M Cant, 6, Cd 55.0-0.0, (55.0), 1:09.81, (), 8/1, Settled-- 1200-- 800-- Turn--, 1-Kalkie Miss 54.5
A115: 13-13 50.1L, Rocky, 2010-08-26, 1100m, Dead, Race 6, Hcp, Cls 1, $10000, ($0), N Thomas, 10, Cd 54.5-0.0, (54.0), 1:04.66, (34.91), 10/1, Settled-- 1200-- 800-- Turn--, 1-Dad's Best Mate 54.0
A116: 3-10 2.5L, Rocky, 2010-08-12, 1200m, Dead, Race 6, Hcp, Cls 2, $10000, ($1000), N Thomas, 2, Cd 54.0-0.0, (54.0), 1:11.28, (34.02), 8/1, Settled-- 1200-- 800-- Turn--, 1-Aladah 56.0
A117: 7 Zenacity (1) 54.0kg 7yo b m | D117: Trainer: J P O'Shea at Rockhampton | G117: Jockey: C Whiteley
A118: Colours: Pink, blue hooped sleeves and pink cap | D118: Breeding: Ne Coupez Pas (USA) - Ancity Roller (NZ) by Citidancer
A119: Owners: D O'Shea & S J Little
A120: Career: | B120: Earnings: | C120: Win: 8.6% | D120: API: | E120: First Up: | F120: Second Up: | G120: Distance: | H120: Track:
A121: 40272.46042 | B121: 30725 | C121: Place: 28.6% | D121: 21:36:00 | E121: 6:1-0-2 | F121: 6:0-0-2 | G121: 3:0-1-0 | H121: 5:0-0-1
A122: Fast: | B122: Good: | C122: Dead: | D122: Slow: | E122: Heavy:
A123: 0:0-0-0 | B123: 2010-02-01T20:03:00 | C123: 5:0-0-1 | D123: 5:0-2-0 | E123: 5:0-0-1
A124: 11-11 7.5L, Rocky, 2010-11-18, 1200m, Good, Race 6, Hcp, Cls 4, $12000, ($0), R Hall, 10, Cd 54.0-0.0, (54.0), 1:10.05, (34.36), 25/1, Settled-- 1200-- 800-- Turn--, 1-Two Tone 58.5
A125: 3-5 3.7L, Glad., 2010-11-02, 1000m, Dead, Race 2, Plate, Cls 3, $6000, ($600), R Hall, 2, Cd 57.5-0.0, (SW), 1:00.21, (), 6/4, Settled-- 1200-- 800-- Turn--, 1-Mala Mala 54.0
A126: 9-13 8.4L, Rocky, 2010-06-01, 1400m, Good, Race 7, Hcp, Cls 4, $10000, ($0), C Whiteley, 1, Cd 54.0-0.0, (54.0), 1:22.03, (34.27), 12/1, Settled-- 1200-- 800-- Turn--, 1-Writer 54.5
A127: 8-12 4.2L, Rocky, 2010-05-18, 1300m, Good, Race 8, Hcp, Cls 4, $10000, ($0), M Hellyer, 5, Cd 54.0-0.0, (54.0), 1:16.57, (35.01), 12/1, Settled-- 1200-- 800-- Turn--, 1-Allbutmine 54.0
A128: 3-10 3.1L, Rocky, 2010-05-06, 1050m, Good, Race 7, Hcp, Cls 4, $10000, ($1000), C Whiteley, 2, Cd 54.0-0.0, (54.0), 1:00.35, (33.75), 25/1, Settled-- 1200-- 800-- Turn--, 1-Andy Said 55.5
A129: 8-10 3.3L, Rocky, 2010-04-20, 970m, Good, Race 5, Hcp, Cls 4, $10000, ($0), R Hall, 6, Cd 55.0-0.0, (54.0), 0:56.50, (33.40), 20/1, Settled-- 1200-- 800-- Turn--, 1-Falvalea 58.0
A130: 6-7 8.8L, Cushio, 2010-01-22, 1600m, Good, Race 2, Hcp, Cls 4, $10000, ($0), J Holder, 7, Cd 54.0-0.0, (54.0), 1:38.76, (36.89), 5/1, Settled-6 1200-- 800-5 Turn-4, 1-Irishkiwi 56.5
A131: 7-11 6.0L, D'Ben, 2010-01-13, 1650m, Good, Race 5, Hcp, Cls 4, $13000, ($0), J Wood, 2, Cd 50.0--3.0, (53.0), 1:39.23, (35.33), 12/1, Settled-9 1200-- 800-10 Turn-10, 1-Bretonneux 53.5
A132: 6-13 4.0L, D'Ben, 2009-12-26, 1350m, Dead, Race 2, F&m Rst0, RS0MW fm, $45000, ($0), J Holder, 5, Cd 53.0-0.0, (53.0), 1:19.84, (35.23), 25/1, Settled-10 1200-- 800-- Turn-11, 1-Alberton Park 53.0
A133: 1-12 0.4L, Cushio, 2009-12-11, 1400m, Good, Race 9, Hcp, Cls 2, $10000, ($6500), S Katsidis, 9, Cd 54.0-0.0, (54.0), 1:25.80, (37.38), 2/1E, Settled-8 1200-- 800-- Turn-8, 2-Qwerty 54.0
A134: 8 Dandy Kat (6) 54.0kg 6yo b g | D134: Trainer: R Vale at Rockhampton | G134: Jockey: J P Stanley
A135: Colours: Blue, gold horseshoe, gold armbands and blue and gold qtrd cap | D135: Breeding: Tabkir (USA) - Racing Queen (USA) by Alysheba
A136: Owners: A P Pianta & C R Green
A137: Career: | B137: Earnings: | C137: Win: 11.8% | D137: API: | E137: First Up: | F137: Second Up: | G137: Distance: | H137: Track:
A138: 40306.41944 | B138: 43660 | C138: Place: 47.1% | D138: 1900-01-01T07:12:00 | E138: 2010-01-01T05:00:00 | F138: 5:0-1-0 | G138: 2010-01-02T04:01:00 | H138: 2010-01-02T17:02:00
A139: Fast: | B139: Good: | C139: Dead: | D139: Slow: | E139: Heavy:
A140: 0:0-0-0 | B140: 40276.25208 | C140: 3:1-0-1 | D140: 1:0-0-0 | E140: 0:0-0-0
A141: 7-8 9.9L, Twbc, 2010-11-06, 1850m, Good, Race 5, Plate, Cls 3, $12000, ($0), P Wolfgram, 5, Cd 58.5-0.0, (SW), 1:56.75, (37.93), 7/2, Settled-5 1200-- 800-5 Turn-7, 1-Sunday Advice 55.5
A142: 5-7 6.4L, Rocky, 2010-10-21, 1500m, Good, Race 3, Open, Open, $10000, ($0), A Coome, 7, Cd 54.0-0.0, (54.0), 1:29.91, (34.58), 5/1, Settled-- 1200-- 800-- Turn--, 1-Tantat Secret 60.0
A143: 4-10 3.0L, Rocky, 2010-10-14, 1821m, Good, Race 4, Hcp, Cls 3, $12000, ($600), A Coome, 10, Cd 57.0-0.0, (54.0), 1:50.68, (35.19), 4/1, Settled-- 1200-- 800-- Turn--, 1-Ewey Bay 52.5
A144: 11-15 7.7L, Rocky, 2010-10-07, 1200m, Good, Race 7, Hcp, Cls 3, $10000, ($0), C McIver, 4, Cd 56.0-0.0, (54.0), 1:10.26, (34.68), 25/1, Settled-- 1200-- 800-- Turn--, 1-Basheeba 56.0
A145: 6-7 8.7L, Mackay, 2010-09-18, 1250m, Good, Race 2, Plate, Cls 3, $7500, ($0), D Whitmore, 2, Cd 58.5-0.0, (SW), 1:13.30, (), 5/1, Settled-- 1200-- 800-- Turn--, 1-Springbok Lad 58.5
A146: 9-10 6.3L, Rocky, 2010-06-01, 1828m, Good, Race 6, Hcp, Cls 3, $12000, ($0), A Coome, 3, Cd 58.0-0.0, (54.0), 1:50.41, (35.43), 5/1, Settled-- 1200-- 800-- Turn--, 1-A Boy Called Sue 57.0
A147: 2-8 0.2L, Rocky, 2010-05-06, 1823m, Good, Race 3, Hcp, Cls 3, $10000, ($2000), Dale Missen, 5, Cd 57.5-0.0, (54.0), 1:51.02, (35.41), 4/1, Settled-- 1200-- 800-- Turn--, 1-Sir Echo 55.0
A148: 9-13 8.7L, Rocky, 2010-04-28, 1500m, Good, Race 7, Hcp, Cls 4, $10000, ($0), B Hull, 10, Cd 54.5-0.0, (54.0), 1:28.69, (35.45), 8/1, Settled-- 1200-- 800-- Turn--, 1-Tomkins 52.0
A149: 2-9 1.5L, Rocky, 2010-04-09, 2203m, Good, Race 5, Plate, Cls 3, $15000, ($3000), A Coome, 2, Cd 58.5-0.0, (SW), 2:14.98, (), 9/2, Settled-- 1200-- 800-- Turn--, 1-Craiglea Bella 55.0
A150: 5-8 3.1L, Rocky, 2010-03-25, 2200m, Dead, Race 2, Hcp, Cls 3, $10000, ($0), A Coome, 2, Cd 57.5-0.0, (54.0), 2:24.47, (), 9/4F, Settled-- 1200-- 800-- Turn--, 1-Gremmo 56.5
A151: 9 Fu Min Bu (9) 54.0kg 5yo b/br m | D151: Trainer: R Sullivan at Charleville | G151: Jockey: R Bell
A152: Colours: Red with purple sash, purple armbands and white cap | D152: Breeding: Fubu - Theaminda by Marwina
A153: Owners: Mrs G J Sullivan & B Sullivan
A154: Career: | B154: Earnings: | C154: Win: 5.4% | D154: API: | E154: First Up: | F154: Second Up: | G154: Distance: | H154: Track:
A155: 40241.54306 | B155: 19300 | C155: Place: 21.6% | D155: 0.5 | E155: 5:1-0-0 | F155: 5:0-1-0 | G155: 4:0-0-1 | H155: 0:0-0-0
A156: Fast: | B156: Good: | C156: Dead: | D156: Slow: | E156: Heavy:
A157: 0:0-0-0 | B157: 40212.00139 | C157: 7:0-0-1 | D157: 4:0-1-0 | E157: 2:0-0-0
A158: 6-8 4.0L, Corowa, 2010-11-02, 1000m, Dead, Race 5, , BM45, $4000, ($0), A Beer, 4, Cd 53.5--2.0, (54.0), 0:57.88, (), 4/1, Settled-- 1200-- 800-- Turn--, 1-Teshi Tallarah 55.5
A159: 6-7 4.8L, Wagga, 2010-10-02, 1200m, Dead, Race 4, F&m, BM45 fm, $4000, ($0), A Bloomfield, 3, Cd 58.0-0.0, (54.0), 1:11.44, (), 5/2E, Settled-- 1200-- 800-- Turn--, 1-Rustie Bugles 59.5
A160: 3-12 1.8L, Grenfl, 2010-09-25, 1200m, Good, Race 4, , BM45, $3500, ($300), A Bloomfield, 10, Cd 56.0-0.0, (54.0), 1:13.44, (), 9/1, Settled-- 1200-- 800-- Turn--, 1-Cleary's Creek 57.5
A161: 8-11 7.0L, G'burn, 2010-09-07, 1300m, Dead, Race 7, , BM50, $10000, ($0), R Bensley, 4, Cd 54.0-0.0, (54.0), 1:18.55, (37.39), 20/1, Settled-8 1200-- 800-- Turn-7, 1-Monzero 59.0
A162: 5-12 1.1L, Narran, 2010-08-28, 1400m, Dead, Race 7, F&m, BM50 fm, $9000, ($0), A Bloomfield, 3, Cd 56.0-0.0, (54.0), 1:25.77, (37.40), 7/1, Settled-- 1200-- 800-- Turn--, 1-Covers 59.5
A163: 3-12 2.4L, Narran, 2010-08-21, 1200m, Dead, Race 3, , BM45, $4000, ($400), W Pearson, 8, Cd 56.5-0.0, (54.0), 1:12.68, (37.93), 5/1, Settled-- 1200-- 800-- Turn--, 1-Awesome Feeling 58.5
A164: 5-8 4.2L, Leeton, 2010-08-08, 1000m, Dead, Race 7, , BM55, $9000, ($0), J Kissick, 5, Cd 50.0--4.0, (54.0), 0:59.40, (35.26), 8/1, Settled-- 1200-- 800-- Turn--, 1-Prime Cognac 59.5
A165: 4-10 3.0L, Wagga, 2010-07-27, 1000m, Slow, Race 7, , BM50, $9000, ($0), S G Walsh, 8, Cd 55.0-0.0, (54.0), 0:58.91, (), 20/1, Settled-- 1200-- 800-- Turn--, 1-Look At The Rose 58.0
A166: 11-12 9.1L, Acton, 2010-07-11, 1080m, Good, Race 6, Hcp, Cls 2, $11000, ($0), A Bloomfield, 12, Cd 54.0-0.0, (54.0), 1:02.68, (34.61), 25/1, Settled-11 1200-- 800-- Turn-12, 1-Plutonic 55.0
A167: 8-10 3.6L, Tumut, 2010-03-13, 1200m, Good, Race 3, Hcp, BM45, $5100, ($0), T Jeffries, 1, Cd 56.5--2.0, (54.0), 1:12.04, (), 13/4, Settled-- 1200-- 800-- Turn--, 1-Thatsmyemgee 56.0

Sheet Race
A2: ROCKHAMPTON | C2: QR 5 | D2: PAYING
A4: 2010-12-02 | B4: CLASS 4 HANDICAP | E4: Fixed Price
A5: RADIO TAB | B5: *1-4-3-2 | E5: Late Mail 1 | F5: 1300M | G5: OVERCAST | H5: DEAD(5)
G7: SCR 5
A8: 3 | C8: NOBLE LUSTRE | D8: 6.1 | E8: 1.7
A9: 7 | C9: ZENACITY | E9: 2.9 | G9: Sub Fav 6
A10: 1 | C10: DACK'S FAZ | E10: 1.4
A12: QN | B12: 3* 7 | C12: 67.2 | G12: TF | H12: 3* 7* 1 | I12: 553.8
A13: EX | B13: 3* 7 | C13: 139.4 | G13: A2 | H13: 3* 7 | I13: 16.5
A14: F4 | B14: 3* 7* 1* 6 | C14: 2043.4 | H14: 1* 3 | I14: 3.2
H15: 1* 7 | I15: 12.8
A16: No. | C16: Name | D16: 04:03:00 | E16: Win | F16: Plc | H16: Rider | I16: Bar | J16: Wght | L16: Form | M16: L3S | N16: Rtng
A17: 1 | C17: DACK'S FAZ | D17: 2.9 | E17: 3.1 | F17: 1.4 | H17: ALISHA TAYLOR(A) | I17: 8 | J17: 58 | L17: WT | M17: 823 | N17: 99
A18: 2 | C18: IGOTITFROMMYMUMMA | D18: 8 | E18: 9.4 | F18: 2.1 | H18: A COOME | I18: 3 | J18: 55.5 | L18: T | M18: 137 | N18: 99
A19: 3 | C19: NOBLE LUSTRE | D19: 8.6 | E19: 6.1 | F19: 1.7 | H19: J KROPP(A) | I19: 5 | J19: 55.5 | L19: WT | M19: 918 | N19: 100
A20: 4 | C20: CHABAL | D20: 8 | E20: 9.3 | F20: 2.7 | H20: D SIMMONS | I20: 4 | J20: 55 | L20: D | M20: 4X6 | N20: 98
A21: 5 | C21: CRAIGLEA TINA | H21: SCRATCHED | I21: 2
A22: 6 | C22: LOLA BRIGIDA | D22: 4.5 | E22: 3 | F22: 1.6 | H22: T BANNON | I22: 7 | J22: 54 | L22: DWT | M22: 161 | N22: 96
A23: 7 | C23: ZENACITY | D23: 10.1 | E23: 15 | F23: 2.9 | H23: C WHITELEY | I23: 1 | J23: 54 | M23: X30 | N23: 92
A24: 8 | C24: DANDY KAT | D24: 9.7 | E24: 17.9 | F24: 3.3 | H24: J P STANLEY | I24: 6 | J24: 54 | L24: TC | M24: 457 | N24: 94
A25: 9 | C25: FU MIN BU | D25: 23.9 | E25: 42.8 | F25: 5.8 | H25: J STEPHENS | I25: 9 | J25: 54 | M25: 366 | N25: 96
A27: UNiTAB Pool Totals
A28: WN | B28: 33061 | C28: QN | D28: 2730 | E28: TF | F28: 12157 | G28: DD(5,6) $5309
A29: PL | B29: 9339 | C29: EX | D29: 1485 | E29: F4 | F29: 2162 | G29: TT(4,5,6)
C30: A2 | D30: 506 | G30: QD(3,4,5,6)
A32: << QR 1 2 3 4 5 6 DD/TT/QD XD Riders Fixed Price >>
A34: Help | B34: Gambling Advice | C34: TAB Home | D34: Refresh
A35: © Copyright UNiTAB Ltd | B35: Created: Thu, 02 Dec 2010 16:12:13 Aust EST

Sheet Tables
U1: Track | V1: =Data!N2 -> DEAD | W1: =IF(V1="SLOW",1,IF(V1="HEAVY",1,0)) -> 0
A3: Exclude | C3: Exclude | E3: Exclude | G3: Exclude | I3: Exclude | K3: Exclude | M3: Exclude | O3: Exclude | Q3: Exclude | S3: Exclude | U3: Exclude | W3: Exclude | Y3: Exclude | AA3: Exclude | AC3: Exclude | AE3: Exclude | AG3: Exclude | AI3: Exclude | AK3: Exclude | AM3: Exclude | AO3: Exclude | AQ3: Exclude
A4: Tab Number | C4: Barrier | E4: Weight | G4: L/S Weight Change | I4: API | K4: Win% | M4: Place% | O4: Distance | Q4: Track | S4: Course | U4: Wet | W4: Days L/S | Y4: Days 2nd L/S | AA4: Days 3rd L/S | AC4: Class | AE4: LS FP | AG4: L/S Margin | AI4: 2nd LS FP | AK4: 2nd L/S Margin | AM4: 3rd LS FP | AO4: 3rd L/S Margin | AQ4: Qld Tab Rating
A5: =IF(B$3<>"","",1) -> 1 | B5: 5 | C5: =IF(D$3<>"","",1) -> 1 | D5: 5 | E5: =IF(F$3<>"","",70) -> 70 | F5: 0 | G5: =IF(H$3<>"","",0+12) -> 12 | H5: 0 | I5: =IF(J$3<>"","",1) -> 1 | J5: 8 | K5: =IF(L$3<>"","",1) -> 1 | L5: 8 | M5: =IF(N$3<>"","",1) -> 1 | N5: 8 | O5: =IF(P$3<>"","","Y") -> Y | P5: 5 | Q5: =IF(R$3<>"","","Y") -> Y | R5: 5 | S5: =IF(T$3<>"","","Y") -> Y | T5: 8 | U5: =IF(W1=0,"",IF(V$3<>"","","Y")) ->  | V5: 8 | W5: =IF(X$3<>"","",1) -> 1 | X5: 3 | Y5: =IF(Z$3<>"","",1) -> 1 | Z5: 3 | AA5: =IF(AB$3<>"","",1) -> 1 | AB5: 3 | AC5: =IF(AD$3<>"","",1) -> 1 | AD5: -5 | AE5: =IF(AF$3<>"","",1) -> 1 | AF5: 7 | AG5: =IF(AH$3<>"","",0.5) -> 0.5 | AH5: 7 | AI5: =IF(AJ$3<>"","",1) -> 1 | AJ5: 7 | AK5: =IF(AL$3<>"","",0.5) -> 0.5 | AL5: 7 | AM5: =IF(AN$3<>"","",1) -> 1 | AN5: 7 | AO5: =IF(AP$3<>"","",0.5) -> 0.5 | AP5: 7 | AQ5: =IF(AR$3<>"","",100) -> 100 | AR5: 7
A6: =IF(B$3<>"","",A5+1) -> 2 | B6: 5 | C6: =IF(D$3<>"","",C5+1) -> 2 | D6: 5 | E6: =IF(F$3<>"","",E5-0.5) -> 69.5 | F6: 0 | G6: =IF(H$3<>"","",0+G5-0.5) -> 11.5 | H6: 0 | I6: =IF(J$3<>"","",I5+1) -> 2 | J6: 6 | K6: =IF(L$3<>"","",K5+1) -> 2 | L6: 6 | M6: =IF(N$3<>"","",M5+1) -> 2 | N6: 6 | O6: =IF(P$3<>"","","N") -> N | P6: 0 | Q6: =IF(R$3<>"","","N") -> N | R6: 0 | S6: =IF(T$3<>"","","N") -> N | T6: 0 | U6: =IF(W1=0,"",IF(V$3<>"","","Y")) ->  | V6: 0 | W6: =IF(X$3<>"","",W5+1) -> 2 | X6: 3 | Y6: =IF(Z$3<>"","",Y5+1) -> 2 | Z6: 3 | AA6: =IF(AB$3<>"","",AA5+1) -> 2 | AB6: 3 | AC6: =IF(AD$3<>"","",2) -> 2 | AD6: 10 | AE6: =IF(AF$3<>"","",AE5+1) -> 2 | AF6: 5 | AG6: =IF(AH$3<>"","",AG5+0.5) -> 1 | AH6: 7 | AI6: =IF(AJ$3<>"","",AI5+1) -> 2 | AJ6: 5 | AK6: =IF(AL$3<>"","",AK5+0.5) -> 1 | AL6: 7 | AM6: =IF(AN$3<>"","",AM5+1) -> 2 | AN6: 5 | AO6: =IF(AP$3<>"","",AO5+0.5) -> 1 | AP6: 7 | AQ6: =IF(AR$3<>"","",AQ5-1) -> 99 | AR6: 5
A7: =IF(B$3<>"","",A6+1) -> 3 | B7: 5 | C7: =IF(D$3<>"","",C6+1) -> 3 | D7: 5 | E7: =IF(F$3<>"","",E6-0.5) -> 69 | F7: 0 | G7: =IF(H$3<>"","",0+G6-0.5) -> 11 | H7: 0 | I7: =IF(J$3<>"","",I6+1) -> 3 | J7: 4 | K7: =IF(L$3<>"","",K6+1) -> 3 | L7: 4 | M7: =IF(N$3<>"","",M6+1) -> 3 | N7: 4 | W7: =IF(X$3<>"","",W6+1) -> 3 | X7: 3 | Y7: =IF(Z$3<>"","",Y6+1) -> 3 | Z7: 3 | AA7: =IF(AB$3<>"","",AA6+1) -> 3 | AB7: 3 | AC7: =IF(AD$3<>"","",3) -> 3 | AD7: 0 | AE7: =IF(AF$3<>"","",AE6+1) -> 3 | AF7: 3 | AG7: =IF(AH$3<>"","",AG6+0.5) -> 1.5 | AH7: 5 | AI7: 3 | AJ7: 3 | AK7: =IF(AL$3<>"","",AK6+0.5) -> 1.5 | AL7: 5 | AM7: 3 | AN7: 3 | AO7: =IF(AP$3<>"","",AO6+0.5) -> 1.5 | AP7: 5 | AQ7: =IF(AR$3<>"","",AQ6-1) -> 98 | AR7: 3
A8: 4 | B8: 3 | C8: 4 | D8: 3 | E8: 68.5 | F8: 0 | G8: 10.5 | H8: 0 | I8: 4 | J8: 3 | K8: 4 | L8: 3 | M8: 4 | N8: 3 | W8: 4 | X8: 3 | Y8: 4 | Z8: 3 | AA8: 4 | AB8: 3 | AE8: 4 | AF8: 2 | AG8: =IF(AH$3<>"","",AG7+0.5) -> 2 | AH8: 5 | AI8: 4 | AJ8: 2 | AK8: 2 | AL8: 5 | AM8: 4 | AN8: 2 | AO8: 2 | AP8: 5 | AQ8: 97 | AR8: 3
A9: 5 | B9: 3 | C9: 5 | D9: 3 | E9: 68 | F9: 0 | G9: 10 | H9: 0 | I9: 5 | J9: 3 | K9: 5 | L9: 3 | M9: 5 | N9: 3 | W9: 5 | X9: 5 | Y9: 5 | Z9: 3 | AA9: 5 | AB9: 3 | AE9: 5 | AF9: 2 | AG9: 2.5 | AH9: 5 | AI9: 5 | AJ9: 2 | AK9: 2.5 | AL9: 5 | AM9: 5 | AN9: 2 | AO9: 2.5 | AP9: 5 | AQ9: 96 | AR9: 3
A10: 6 | B10: 3 | C10: 6 | D10: 3 | E10: 67.5 | F10: 0 | G10: 9.5 | H10: 0 | I10: 6 | J10: 2 | K10: 6 | L10: 2 | M10: 6 | N10: 2 | W10: 6 | X10: 5 | Y10: 6 | Z10: 3 | AA10: 6 | AB10: 3 | AE10: 6 | AF10: 0 | AG10: 3 | AH10: 3 | AI10: 6 | AJ10: 0 | AK10: 3 | AL10: 3 | AM10: 6 | AN10: 0 | AO10: 3 | AP10: 3 | AQ10: 95 | AR10: 2
A11: 7 | B11: 2 | C11: 7 | D11: 2 | E11: 67 | F11: 0 | G11: 9 | H11: 0 | I11: 7 | J11: 2 | K11: 7 | L11: 2 | M11: 7 | N11: 2 | W11: 7 | X11: 5 | Y11: 7 | Z11: 3 | AA11: 7 | AB11: 3 | AE11: 7 | AF11: 0 | AG11: 3.5 | AH11: 2 | AI11: 7 | AJ11: 0 | AK11: 3.5 | AL11: 2 | AM11: 7 | AN11: 0 | AO11: 3.5 | AP11: 2 | AQ11: 94 | AR11: 2
A12: 8 | B12: 2 | C12: 8 | D12: 2 | E12: 66.5 | F12: 0 | G12: 8.5 | H12: 0 | I12: 8 | J12: 2 | K12: 8 | L12: 2 | M12: 8 | N12: 2 | W12: 8 | X12: 5 | Y12: 8 | Z12: 3 | AA12: 8 | AB12: 3 | AE12: 8 | AF12: 0 | AG12: 4 | AH12: 2 | AI12: 8 | AJ12: 0 | AK12: 4 | AL12: 2 | AM12: 8 | AN12: 0 | AO12: 4 | AP12: 2 | AQ12: 93 | AR12: 0
A13: 9 | B13: 2 | C13: 9 | D13: 2 | E13: 66 | F13: 0 | G13: 8 | H13: 0 | I13: 9 | J13: 2 | K13: 9 | L13: 2 | M13: 9 | N13: 2 | W13: 9 | X13: 5 | Y13: 9 | Z13: 3 | AA13: 9 | AB13: 3 | AE13: 9 | AF13: 0 | AG13: 4.5 | AH13: 2 | AI13: 9 | AJ13: 0 | AK13: 4.5 | AL13: 2 | AM13: 9 | AN13: 0 | AO13: 4.5 | AP13: 2 | AQ13: 92 | AR13: 0
A14: 10 | B14: 1 | C14: 10 | D14: 1 | E14: 65.5 | F14: 0 | G14: 7.5 | H14: 0 | I14: 10 | J14: 2 | K14: 10 | L14: 2 | M14: 10 | N14: 2 | W14: 10 | X14: 5 | Y14: 10 | Z14: 3 | AA14: 10 | AB14: 3 | AE14: 10 | AF14: 0 | AG14: 5 | AH14: 2 | AI14: 10 | AJ14: 0 | AK14: 5 | AL14: 2 | AM14: 10 | AN14: 0 | AO14: 5 | AP14: 2 | AQ14: 91 | AR14: 0
A15: 11 | B15: 1 | C15: 11 | D15: 1 | E15: 65 | F15: 0 | G15: 7 | H15: 2 | I15: 11 | J15: 2 | K15: 11 | L15: 2 | M15: 11 | N15: 2 | W15: 11 | X15: 3 | Y15: 11 | Z15: 3 | AA15: 11 | AB15: 3 | AE15: =IF(AF$3<>"","",0) -> 0 | AF15: 0 | AG15: 5.5 | AH15: 0 | AI15: =IF(AJ$3<>"","",0) -> 0 | AJ15: 0 | AK15: 5.5 | AL15: 0 | AM15: =IF(AN$3<>"","",0) -> 0 | AN15: 0 | AO15: 5.5 | AP15: 0 | AQ15: 90 | AR15: 0
A16: 12 | B16: 1 | C16: 12 | D16: 1 | E16: 64.5 | F16: 0 | G16: 6.5 | H16: 2 | I16: 12 | J16: 0 | K16: 12 | L16: 0 | M16: 12 | N16: 0 | W16: 12 | X16: 3 | Y16: 12 | Z16: 5 | AA16: 12 | AB16: 3 | AG16: 6 | AH16: 0 | AK16: 6 | AL16: 0 | AO16: 6 | AP16: 0 | AQ16: 89 | AR16: 0
A17: 13 | B17: 0 | C17: 13 | D17: 0 | E17: 64 | F17: 0 | G17: 6 | H17: 2 | I17: 13 | J17: 0 | K17: 13 | L17: 0 | M17: 13 | N17: 0 | W17: 13 | X17: 3 | Y17: 13 | Z17: 5 | AA17: 13 | AB17: 3 | AG17: 6.5 | AH17: 0 | AK17: 6.5 | AL17: 0 | AO17: 6.5 | AP17: 0 | AQ17: 88 | AR17: 0
A18: 14 | B18: 0 | C18: 14 | D18: 0 | E18: 63.5 | F18: 0 | G18: 5.5 | H18: 2 | I18: 14 | J18: 0 | K18: 14 | L18: 0 | M18: 14 | N18: 0 | W18: 14 | X18: 3 | Y18: 14 | Z18: 5 | AA18: 14 | AB18: 3 | AG18: 7 | AH18: 0 | AK18: 7 | AL18: 0 | AO18: 7 | AP18: 0 | AQ18: 87 | AR18: 0
A19: 15 | B19: 0 | C19: 15 | D19: 0 | E19: 63 | F19: 0 | G19: 5 | H19: 5 | I19: 15 | J19: 0 | K19: 15 | L19: 0 | M19: 15 | N19: 0 | W19: 15 | X19: 2 | Y19: 15 | Z19: 5 | AA19: 15 | AB19: 3 | AG19: 7.5 | AH19: 0 | AK19: 7.5 | AL19: 0 | AO19: 7.5 | AP19: 0 | AQ19: 86 | AR19: 0
A20: 16 | B20: 0 | C20: 16 | D20: 0 | E20: 62.5 | F20: 0 | G20: 4.5 | H20: 5 | I20: 16 | J20: 0 | K20: 16 | L20: 0 | M20: 16 | N20: 0 | W20: 16 | X20: 2 | Y20: 16 | Z20: 5 | AA20: 16 | AB20: 3 | AG20: 8 | AH20: 0 | AK20: 8 | AL20: 0 | AO20: 8 | AP20: 0 | AQ20: 85 | AR20: 0
A21: 17 | B21: 0 | C21: 17 | D21: 0 | E21: 62 | F21: 0 | G21: 4 | H21: 5 | I21: 17 | J21: 0 | K21: 17 | L21: 0 | M21: 17 | N21: 0 | W21: 17 | X21: 2 | Y21: 17 | Z21: 5 | AA21: 17 | AB21: 3 | AG21: 8.5 | AH21: 0 | AK21: 8.5 | AL21: 0 | AO21: 8.5 | AP21: 0 | AQ21: =IF(AR$3<>"","",0) -> 0 | AR21: 0
A22: 18 | B22: 0 | C22: 18 | D22: 0 | E22: 61.5 | F22: 0 | G22: 3.5 | H22: 5 | I22: 18 | J22: 0 | K22: 18 | L22: 0 | M22: 18 | N22: 0 | W22: 18 | X22: 2 | Y22: 18 | Z22: 3 | AA22: 18 | AB22: 3 | AG22: 9 | AH22: 0 | AK22: 9 | AL22: 0 | AO22: 9 | AP22: 0
A23: 19 | B23: 0 | C23: 19 | D23: 0 | E23: 61 | F23: 1 | G23: 3 | H23: 5 | I23: 19 | J23: 0 | K23: 19 | L23: 0 | M23: 19 | N23: 0 | W23: 19 | X23: 2 | Y23: 19 | Z23: 3 | AA23: 19 | AB23: 5 | AG23: 9.5 | AH23: 0 | AK23: 9.5 | AL23: 0 | AO23: 9.5 | AP23: 0
A24: 20 | B24: 0 | C24: 20 | D24: 0 | E24: 60.5 | F24: 1 | G24: 2.5 | H24: 5 | I24: 20 | J24: 0 | K24: 20 | L24: 0 | M24: 20 | N24: 0 | W24: 20 | X24: 2 | Y24: 20 | Z24: 3 | AA24: 20 | AB24: 5 | AG24: 10 | AH24: 0 | AK24: 10 | AL24: 0 | AO24: 10 | AP24: 0
A25: 21 | B25: 0 | C25: 21 | D25: 0 | E25: 60 | F25: 1 | G25: 2 | H25: 3 | I25: 21 | J25: 0 | K25: 21 | L25: 0 | M25: 21 | N25: 0 | W25: 21 | X25: 2 | Y25: 21 | Z25: 3 | AA25: 21 | AB25: 5 | AG25: =IF(AH$3<>"","",0) -> 0 | AH25: 7 | AK25: =IF(AL$3<>"","",0) -> 0 | AL25: 7 | AO25: =IF(AP$3<>"","",0) -> 0 | AP25: 7
A26: 22 | B26: 0 | C26: 22 | D26: 0 | E26: 59.5 | F26: 2 | G26: 1.5 | H26: 3 | I26: 22 | J26: 0 | K26: 22 | L26: 0 | M26: 22 | N26: 0 | W26: 22 | X26: 0 | Y26: 22 | Z26: 2 | AA26: 22 | AB26: 5
A27: 23 | B27: 0 | C27: 23 | D27: 0 | E27: 59 | F27: 2 | G27: 1 | H27: 3 | I27: 23 | J27: 0 | K27: 23 | L27: 0 | N27: 0 | W27: 23 | X27: 0 | Y27: 23 | Z27: 2 | AA27: 23 | AB27: 5
A28: 24 | B28: 0 | C28: 24 | D28: 0 | E28: 58.5 | F28: 3 | G28: 0.5 | H28: 3 | I28: 24 | J28: 0 | K28: 24 | L28: 0 | M28: =IF(N$3<>"","",Data!BT25) ->  | N28: 0 | W28: 24 | X28: 0 | Y28: 24 | Z28: 2 | AA28: 24 | AB28: 5
C29: =IF(D$3<>"","",0) -> 0 | D29: 0 | E29: 58 | F29: 3 | G29: 0 | H29: 3 | W29: 25 | X29: 0 | Y29: 25 | Z29: 2 | AA29: 25 | AB29: 3
E30: 57.5 | F30: 3 | G30: -0.5 | H30: 3 | W30: 26 | X30: 0 | Y30: 26 | Z30: 2 | AA30: 26 | AB30: 3
E31: 57 | F31: 5 | G31: -1 | H31: 3 | W31: 27 | X31: 0 | Y31: 27 | Z31: 2 | AA31: 27 | AB31: 3
E32: 56.5 | F32: 5 | G32: -1.5 | H32: 3 | W32: 28 | X32: 0 | Y32: 28 | Z32: 2 | AA32: 28 | AB32: 3
E33: 56 | F33: 5 | G33: -2 | H33: 3 | W33: 29 | X33: 0 | Y33: 29 | Z33: 0 | AA33: 29 | AB33: 2
E34: 55.5 | F34: 3 | G34: -2.5 | H34: 5 | W34: 30 | X34: 0 | Y34: 30 | Z34: 0 | AA34: 30 | AB34: 2
E35: 55 | F35: 3 | G35: -3 | H35: 5 | W35: 31 | X35: 0 | Y35: 31 | Z35: 0 | AA35: 31 | AB35: 2
E36: 54.5 | F36: 3 | G36: -3.5 | H36: 5 | L36: =IF(K36="","",K36/2.5) ->  | W36: 32 | X36: 0 | Y36: 32 | Z36: 0 | AA36: 32 | AB36: 2
E37: 54 | F37: 2 | G37: -4 | H37: 5 | L37: =IF(K37="","",K37/10) ->  | W37: 33 | X37: 0 | Y37: 33 | Z37: 0 | AA37: 33 | AB37: 2
E38: 53.5 | F38: 2 | G38: -4.5 | H38: 5 | W38: 34 | X38: 0 | Y38: 34 | Z38: 0 | AA38: 34 | AB38: 2
E39: 53 | F39: 1 | G39: -5 | H39: 5 | W39: 35 | X39: 0 | Y39: 35 | Z39: 0 | AA39: 35 | AB39: 2
E40: 52.5 | F40: 1 | G40: -5.5 | H40: 2 | W40: 36 | X40: 0 | Y40: 36 | Z40: 0 | AA40: 36 | AB40: 2
E41: 52 | F41: 1 | G41: -6 | H41: 2 | W41: 37 | X41: 0 | Y41: 37 | Z41: 0 | AA41: 37 | AB41: 0
E42: 51.5 | F42: 0 | G42: -6.5 | H42: 2 | W42: 38 | X42: 0 | Y42: 38 | Z42: 0 | AA42: 38 | AB42: 0
E43: 51 | F43: 0 | G43: -7 | H43: 2 | W43: 39 | X43: 0 | Y43: 39 | Z43: 0 | AA43: 39 | AB43: 0
E44: 50.5 | F44: 0 | G44: -7.5 | H44: 0 | W44: 40 | X44: 0 | Y44: 40 | Z44: 0 | AA44: 40 | AB44: 0
E45: 50 | F45: 0 | G45: -8 | H45: 0 | W45: 41 | X45: 0 | Y45: 41 | Z45: 0 | AA45: 41 | AB45: 0
E46: 49.5 | F46: 0 | G46: -8.5 | H46: 0 | W46: 42 | X46: 0 | Y46: 42 | Z46: 0 | AA46: 42 | AB46: 0
E47: 49 | F47: 0 | G47: -9 | H47: 0 | W47: 43 | X47: 0 | Y47: 43 | Z47: 0 | AA47: 43 | AB47: 0
E48: 48.5 | F48: 0 | G48: -9.5 | H48: 0 | W48: 44 | X48: 0 | Y48: 44 | Z48: 0 | AA48: 44 | AB48: 0
E49: 48 | F49: 0 | G49: -10 | H49: 0 | W49: 45 | X49: 0 | Y49: 45 | Z49: 0 | AA49: 45 | AB49: 0
E50: 47.5 | F50: 0 | G50: -10.5 | H50: 0 | W50: 46 | X50: 0 | Y50: 46 | Z50: 0 | AA50: 46 | AB50: 0
E51: 47 | F51: 0 | G51: -11 | H51: 0 | W51: 47 | X51: 0 | Y51: 47 | Z51: 0 | AA51: 47 | AB51: 0
E52: 46.5 | F52: 0 | G52: -11.5 | H52: 0 | W52: 48 | X52: 0 | Y52: 48 | Z52: 0 | AA52: 48 | AB52: 0
E53: 46 | F53: 0 | G53: -12 | H53: 0 | W53: 49 | X53: 0 | Y53: 49 | Z53: 0 | AA53: 49 | AB53: 0
E54: 45.5 | F54: 0 | W54: 50 | X54: 0 | Y54: 50 | Z54: 0 | AA54: 50 | AB54: 0
E55: 45 | F55: 0 | W55: 51 | X55: 0 | Y55: 51 | Z55: 0 | AA55: 51 | AB55: 0
W56: 52 | X56: 0 | Y56: 52 | Z56: 0 | AA56: 52 | AB56: 0
W57: 53 | X57: 0 | Y57: 53 | Z57: 0 | AA57: 53 | AB57: 0
W58: 54 | X58: 0 | Y58: 54 | Z58: 0 | AA58: 54 | AB58: 0
W59: 55 | X59: 0 | Y59: 55 | Z59: 0 | AA59: 55 | AB59: 0
W60: 56 | X60: 0 | Y60: 56 | Z60: 0 | AA60: 56 | AB60: 0
W61: 57 | X61: 0 | Y61: 57 | Z61: 0 | AA61: 57 | AB61: 0
W62: 58 | X62: 0 | Y62: 58 | Z62: 0 | AA62: 58 | AB62: 0
W63: 59 | X63: 0 | Y63: 59 | Z63: 0 | AA63: 59 | AB63: 0
W64: 60 | X64: 0 | Y64: 60 | Z64: 0 | AA64: 60 | AB64: 0
W65: 61 | X65: 0 | Y65: 61 | Z65: 0 | AA65: 61 | AB65: 0
W66: 62 | X66: 0 | Y66: 62 | Z66: 0 | AA66: 62 | AB66: 0
W67: 63 | X67: 0 | Y67: 63 | Z67: 0 | AA67: 63 | AB67: 0
W68: 64 | X68: 0 | Y68: 64 | Z68: 0 | AA68: 64 | AB68: 0
W69: 65 | X69: 0 | Y69: 65 | Z69: 0 | AA69: 65 | AB69: 0
W70: 66 | X70: 0 | Y70: 66 | Z70: 0 | AA70: 66 | AB70: 0
W71: =IF(X$3<>"","",W70+1) -> 67 | X71: 0 | Y71: =IF(Z$3<>"","",Y70+1) -> 67 | Z71: 0 | AA71: =IF(AB$3<>"","",AA70+1) -> 67 | AB71: 0
W72: 68 | X72: 0 | Y72: 68 | Z72: 0 | AA72: 68 | AB72: 0
W73: 69 | X73: 0 | Y73: 69 | Z73: 0 | AA73: 69 | AB73: 0
W74: 70 | X74: 0 | Y74: 70 | Z74: 0 | AA74: 70 | AB74: 0
W75: 71 | X75: 0 | Y75: 71 | Z75: 0 | AA75: 71 | AB75: 0
W76: 72 | X76: 0 | Y76: 72 | Z76: 0 | AA76: 72 | AB76: 0
W77: 73 | X77: 0 | Y77: 73 | Z77: 0 | AA77: 73 | AB77: 0
W78: 74 | X78: 0 | Y78: 74 | Z78: 0 | AA78: 74 | AB78: 0
W79: 75 | X79: 0 | Y79: 75 | Z79: 0 | AA79: 75 | AB79: 0
W80: 76 | X80: 0 | Y80: 76 | Z80: 0 | AA80: 76 | AB80: 0
W81: 77 | X81: 0 | Y81: 77 | Z81: 0 | AA81: 77 | AB81: 0
W82: 78 | X82: 0 | Y82: 78 | Z82: 0 | AA82: 78 | AB82: 0
W83: 79 | X83: 0 | Y83: 79 | Z83: 0 | AA83: 79 | AB83: 0
W84: 80 | X84: 0 | Y84: 80 | Z84: 0 | AA84: 80 | AB84: 0
W85: 81 | X85: 0 | Y85: 81 | Z85: 0 | AA85: 81 | AB85: 0
W86: 82 | X86: 0 | Y86: 82 | Z86: 0 | AA86: 82 | AB86: 0
W87: 83 | X87: 0 | Y87: 83 | Z87: 0 | AA87: 83 | AB87: 0
W88: 84 | X88: 0 | Y88: 84 | Z88: 0 | AA88: 84 | AB88: 0
W89: 85 | X89: 0 | Y89: 85 | Z89: 0 | AA89: 85 | AB89: 0
W90: 86 | X90: 0 | Y90: 86 | Z90: 0 | AA90: 86 | AB90: 0
W91: 87 | X91: 0 | Y91: 87 | Z91: 0 | AA91: 87 | AB91: 0
W92: 88 | X92: 0 | Y92: 88 | Z92: 0 | AA92: 88 | AB92: 0
W93: 89 | X93: 0 | Y93: 89 | Z93: 0 | AA93: 89 | AB93: 0
W94: 90 | X94: 0 | Y94: 90 | Z94: 0 | AA94: 90 | AB94: 0
W95: 0 | X95: 0 | Y95: 0 | Z95: 0 | AA95: 0 | AB95: 0

Sheet Data
A1: =A2 -> http://formguide.cyberhorse.com.au/index.php/Form/form.html?formdate=2010-12-02&track=Rocky&raceno=5 | L1: END | M1: =IF(Form!A1="","",LEFT(Form!A1,FIND("/",Form!A1)-3)) -> Form - Rockhampton | N1: =IF(M1="","",TRIM(MID(M1,7,20))) -> Rockhampton | Z1: =IF(AA1="","",IF(ISERROR(MID(AA1,FIND(" ",AA1,1)+1,FIND("(",AA1,1)-FIND(" ",AA1,1)-2)),"",MID(AA1,FIND(" ",AA1,1)+1,FIND("(",AA1,1)-FIND(" ",AA1,1)-2))) ->  | AA1: Form - Rockhampton 02/12/10 | AV1: Select Date | AW1: =IF(ISNUMBER(AV1),"",IF(AV1="Select Date","",AV1)) ->  | AX1: =IF(Race!N1<>"",Race!C1,"") ->  | AY1: =IF(AX1<>"",Race!N1,"") ->  | AZ1: =IF(AX1<>"",Race!I1,"") ->  | BA1: Name | BC1: Tab No | BD1: Tab No | BE1: Barrier | BF1: Barrier | BG1: Weight | BH1: Weight | BL1: LS/Weight | BM1: LS/Weight | BN1: API | BP1: API | BQ1: Win% | BS1: Win% | BT1: Place% | BV1: Place% | BX1: D | BY1: Distance | BZ1: Distance | CA1: T | CB1: Track | CC1: Track | CD1: C | CE1: Course | CF1: Course | CG1: w | CH1: Wet | CI1: Wet | CK1: Days LS | CM1: Days LS | CO1: Days 2ndLS | CQ1: Days 2ndLS | CS1: Days 3rdLS | CU1: Days 3rdLS | CV1: Class | CY1: Class | DB1: LS FP | DC1: LS FP | DH1: LS Mrg | DI1: LS Mrg | DL1: 2nd LS FP | DM1: 2nd LS FP | DR1: 2nd LS Mrg | DS1: 2nd LS Mrg | DV1: 3rd LS FP | DW1: 3rd LS FP | EB1: 3rd Las Mrg | EC1: 3rd Las Mrg | EE1: Qld Rtg | EG1: Qld Rtg | EH1: Final Rating | EK1: =MAX(EH2:EH25) -> 81
A2: http://formguide.cyberhorse.com.au/index.php/Form/form.html?formdate=2010-12-02&track=Rocky&raceno=5 | M2: 2010-12-02 | N2: =IF(Race!H5="","",LEFT(Race!H5,FIND("(",Race!H5)-1)) -> DEAD | O2: =IF(Form!A2="","",TRIM(MID(Form!A2,5,2))) -> 5 | P2: =IF(ISNA(VLOOKUP(N1,M3:Y20,$O$2+2,FALSE)),"",VLOOKUP(N1,M3:Y20,$O$2+2,FALSE)) -> http://www.tabonline.com.au/2010/12/02/QR05.html | Z2: =IF(AA2="","",IF(ISERROR(MID(AA2,FIND(" ",AA2,1)+1,FIND("(",AA2,1)-FIND(" ",AA2,1)-2)),"",MID(AA2,FIND(" ",AA2,1)+1,FIND("(",AA2,1)-FIND(" ",AA2,1)-2))) ->  | AA2: Race 5 | AV2: Rockhampton | AW2: =IF(ISNUMBER(AV2),"",IF(AV2="Select Date","",AV2)) -> Rockhampton | AX2: =IF(Race!N2<>"",Race!C2,"") ->  | AY2: =IF(AX2<>"",Race!N2,"") ->  | AZ2: =IF(AX2<>"",Race!I2,"") ->  | BA2: =IF(Form!I5<>"",LEFT(Form!C5,FIND("(",Form!C5)-2),"") -> Dack's Faz | BC2: =IF(BA2="","",Form!A5) -> 1 | BD2: =IF($BA2="","",IF(ISNA(VLOOKUP(BC2,Tables!A$5:B$100,2,FALSE)),"0",VLOOKUP(BC2,Tables!A$5:B$100,2,FALSE))) -> 5 | BE2: =IF($BA2="","",IF(ISNA(VLOOKUP(BA2,AX1:AZ100,3,FALSE)),"",VLOOKUP(BA2,AX1:AZ100,3,FALSE))) -> 8 | BF2: =IF($BE2="","0",IF(ISNA(VLOOKUP(BE2,Tables!C$5:D$100,2,FALSE)),"0",VLOOKUP(BE2,Tables!C$5:D$100,2,FALSE))) -> 2 | BG2: =IF(BA2="","",Form!F5) -> 58 | BH2: =IF($BA2="","",IF(ISNA(VLOOKUP(BG2,Tables!E$5:F$100,2,FALSE)),"0",VLOOKUP(BG2,Tables!E$5:F$100,2,FALSE))) -> 3 | BI2: =IF($BA2="","",INDEX($AA$1:$AT$499,MATCH($BA2,$Z$1:$Z$499,0)+7,13)) -> Cd 57.5-0.0 | BJ2: =IF($BA2="","",LEFT(BI2,FIND("-",BI2)-1)) -> Cd 57.5 | BK2: =IF(BG2="","",BG2-BL2) -> 0.5 | BL2: =IF($BA2="","",TRIM(MID(BJ2,4,5))) -> 57.5 | BM2: =IF($BA2="","",IF(ISERROR(BL2),0,IF(ISNA(VLOOKUP(BK2,Tables!G$5:H$100,2,FALSE)),"0",VLOOKUP(BK2,Tables!G5:H$100,2,FALSE)))) -> 3 | BN2: =IF($BA2="","",Form!G5) -> 2.4 | BO2: =IF(BN2="","",IF(RANK(BN2,$BN$2:$BN$32)<25,RANK(BN2,$BN$2:$BN$32),"")) -> 1 | BP2: =IF($BA2="","",IF(ISNA(VLOOKUP(BO2,Tables!I$5:J$100,2,FALSE)),"0",VLOOKUP(BO2,Tables!I$5:J$100,2,FALSE))) -> 8 | BQ2: =IF($BA2="","",Form!H5) -> 28.6 | BR2: =IF(BA2="","",IF(RANK(BQ2,$BQ$2:$BQ$32)<25,RANK(BQ2,$BQ$2:$BQ$32),"")) -> 1 | BS2: =IF($BA2="","",IF(ISNA(VLOOKUP(BR2,Tables!K$5:L$100,2,FALSE)),"0",VLOOKUP(BR2,Tables!K$5:L$100,2,FALSE))) -> 8 | BT2: =IF($BA2="","",Form!I5) -> 64.3 | BU2: =IF(BA2="","",IF(RANK(BT2,$BT$2:$BT$32)<25,RANK(BT2,$BT$2:$BT$32),"")) -> 1 | BV2: =IF($BA2="","",IF(ISNA(VLOOKUP(BU2,Tables!M$5:N$100,2,FALSE)),"0",VLOOKUP(BU2,Tables!M$5:N$100,2,FALSE))) -> 8 | BW2: =IF($BA2="","",INDEX(Race!$D$1:$P$100,MATCH($BA2,Race!$C$1:$C$100,0)+0,9)) -> 0 | BX2: =IF($BA2="","",IF(ISERROR(FIND(BX$1,$BW2,1)),"",BX$1)) ->  | BY2: =IF(BX2<>"","Y","N") -> N | BZ2: =IF($BA2="","",IF(ISNA(VLOOKUP(BY2,Tables!O$5:P$100,2,FALSE)),0,VLOOKUP(BY2,Tables!O$5:P$100,2,FALSE))) -> 0 | CA2: =IF($BA2="","",IF(ISERROR(FIND(CA$1,$BW2,1)),"",CA$1)) ->  | CB2: =IF(CA2<>"","Y","N") -> N | CC2: =IF($BA2="","",IF(ISNA(VLOOKUP(CB2,Tables!Q$5:R$100,2,FALSE)),0,VLOOKUP(CB2,Tables!Q$5:R$100,2,FALSE))) -> 0 | CD2: =IF($BA2="","",IF(ISERROR(FIND(CD$1,$BW2,1)),"",CD$1)) ->  | CE2: =IF(CD2<>"","Y","N") -> N | CF2: =IF($BA2="","",IF(ISNA(VLOOKUP(CE2,Tables!S$5:T$100,2,FALSE)),0,VLOOKUP(CE2,Tables!S$5:T$100,2,FALSE))) -> 0 | CG2: =IF($BA2="","",IF(ISERROR(FIND(CG$1,$BW2,1)),"",CG$1)) ->  | CH2: =IF(CG2<>"","Y","N") -> N | CI2: =IF($BA2="","",IF(ISNA(VLOOKUP(CH2,Tables!U$5:V$100,2,FALSE)),0,VLOOKUP(CH2,Tables!U$5:V$100,2,FALSE))) -> 0 | CJ2: =IF($BA2="","",INDEX($AA$1:$AT$499,MATCH($BA2,$Z$1:$Z$499,0)+7,3)) -> 2010-11-20 | CK2: =IF(CJ2="","",($M$2-CJ2)) -> 12 | CL2: =IF(CK2>90,0,CK2) -> 12 | CM2: =IF($BA2="","",IF(ISERROR(CL2),0,IF(ISNA(VLOOKUP(CL2,Tables!W$5:X$100,2,FALSE)),"0",VLOOKUP(CL2,Tables!W$5:X$100,2,FALSE)))) -> 3 | CN2: =IF($BA2="","",INDEX($AA$1:$AT$499,MATCH($BA2,$Z$1:$Z$499,0)+8,3)) -> 2010-11-06 | CO2: =IF(CN2="","",$M$2-CN2) -> 26 | CP2: =IF(CO2>90,0,CO2) -> 26 | CQ2: =IF($BA2="","",IF(ISERROR(CP2),0,IF(ISNA(VLOOKUP(CP2,Tables!Y$5:Z$100,2,FALSE)),"0",VLOOKUP(CP2,Tables!Y$5:Z$100,2,FALSE)))) -> 2 | CR2: =IF($BA2="","",INDEX($AA$1:$AT$499,MATCH($BA2,$Z$1:$Z$499,0)+9,3)) -> 2010-10-28 | CS2: =IF(CR2="","",$M$2-CR2) -> 35 | CT2: =IF(CS2>90,0,CS2) -> 35 | CU2: =IF($BA2="","",IF(ISERROR(CT2),0,IF(ISNA(VLOOKUP(CT2,Tables!AA$5:AB$100,2,FALSE)),"0",VLOOKUP(CT2,Tables!AA$5:AB$100,2,FALSE)))) -> 2 | CV2: =IF($BA2="","",INDEX($AA$1:$AT$499,MATCH($BA2,$Z$1:$Z$499,0)+7,9)) -> 15000 | CW2: =IF(CV2="","",(Form!$H$3-CV2)/CV2*100) -> -33.33333333 | CX2: =IF(CW2="","",IF(CW2>10,1,IF(CW2<-10,2,3))) -> 2 | CY2: =IF($BA2="","",IF(ISERROR(CX2),0,IF(ISNA(VLOOKUP(CX2,Tables!AC$5:AD$100,2,FALSE)),"0",VLOOKUP(CX2,Tables!AC$5:AD$100,2,FALSE)))) -> 10 | CZ2: =IF($BA2="","",INDEX($AA$1:$AT$499,MATCH($BA2,$Z$1:$Z$499,0)+7,1)) -> 3-12 2.0L | DA2: =IF($CZ2="","",CLEAN(LEFT(CZ2,FIND("-",CZ2)-1))) -> 3 | DB2: =IF($DA2="","",IF(0+DA2>10,0,0+DA2)) -> 3 | DC2: =IF($BA2="","",IF(ISERROR(DB2),0,IF(ISNA(VLOOKUP(DB2,Tables!AE$5:AF$100,2,FALSE)),"0",VLOOKUP(DB2,Tables!AE$5:AF$100,2,FALSE)))) -> 3 | DD2: =IF(CZ2="","",MID(CZ2,FIND(CHAR(22),SUBSTITUTE(CZ2," ",CHAR(22),LEN(CZ2)-LEN(SUBSTITUTE(CZ2," ",""))))+1,255)) -> 2.0L | DE2: =IF($BI2="","",LEFT(DD2,FIND("L",DD2)-1)) -> 2.0 | DF2: =IF($BI2="","",ROUND(0+DE2/0.5,0)*0.5) -> 2 | DG2: =IF(DF2="","",IF(DB2=1,0,DF2)) -> 2 | DH2: =IF(DG2="","",DG2) -> 2 | DI2: =IF($BA2="","",IF(ISERROR(DH2),0,IF(ISNA(VLOOKUP(DG2,Tables!AG$5:AH$100,2,FALSE)),"0",VLOOKUP(DG2,Tables!AG$5:AH$100,2,FALSE)))) -> 5 | DJ2: =IF($BA2="","",INDEX($AA$1:$AT$499,MATCH($BA2,$Z$1:$Z$499,0)+8,1)) -> 2-9 0.1L | DK2: =IF($DJ2="","",CLEAN(LEFT(DJ2,FIND("-",DJ2)-1))) -> 2 | DL2: =IF($DK2="","",IF(0+DK2>10,0,0+DK2)) -> 2 | DM2: =IF($BA2="","",IF(ISERROR(DL2),0,IF(ISNA(VLOOKUP(DL2,Tables!AI$5:AJ$100,2,FALSE)),"0",VLOOKUP(DL2,Tables!AI$5:AJ$100,2,FALSE)))) -> 5 | DN2: =IF(DJ2="","",MID(DJ2,FIND(CHAR(22),SUBSTITUTE(DJ2," ",CHAR(22),LEN(DJ2)-LEN(SUBSTITUTE(DJ2," ",""))))+1,255)) -> 0.1L | DO2: =IF($BI2="","",LEFT(DN2,FIND("L",DN2)-1)) -> 0.1 | DP2: =IF($BI2="","",ROUND(0+DO2/0.5,0)*0.5) -> 0 | DQ2: =IF(DP2="","",IF(DL2=1,0,DP2)) -> 0 | DR2: =IF(DQ2="","",DQ2) -> 0 | DS2: =IF($BA2="","",IF(ISERROR(DR2),0,IF(ISNA(VLOOKUP(DQ2,Tables!AK$5:AL$100,2,FALSE)),"0",VLOOKUP(DQ2,Tables!AK$5:AL$100,2,FALSE)))) -> 7 | DT2: =IF($BA2="","",INDEX($AA$1:$AT$499,MATCH($BA2,$Z$1:$Z$499,0)+9,1)) -> 8-10 4.7L | DU2: =IF($DJ2="","",CLEAN(LEFT(DT2,FIND("-",DT2)-1))) -> 8 | DV2: =IF($DU2="","",IF(ISERROR(IF(0+DU2>10,0,0+DU2)),0,IF(0+DU2>10,0,0+DU2))) -> 8 | DW2: =IF($BA2="","",IF(ISERROR(DV2),0,IF(ISNA(VLOOKUP(DV2,Tables!AM$5:AN$100,2,FALSE)),"0",VLOOKUP(DV2,Tables!AM$5:AN$100,2,FALSE)))) -> 0 | DX2: =IF(DT2="","",MID(DT2,FIND(CHAR(22),SUBSTITUTE(DT2," ",CHAR(22),LEN(DT2)-LEN(SUBSTITUTE(DT2," ",""))))+1,255)) -> 4.7L | DY2: =IF($BI2="","",LEFT(DX2,FIND("L",DX2)-1)) -> 4.7 | DZ2: =IF($BI2="","",ROUND(0+DY2/0.5,0)*0.5) -> 4.5 | EA2: =IF(DZ2="","",IF(DV2=1,0,DZ2)) -> 4.5 | EB2: =IF(EA2="","",EA2) -> 4.5 | EC2: =IF($BC2="","",IF(ISERROR(EB2),0,IF(ISNA(VLOOKUP(EA2,Tables!AO$5:AP$100,2,FALSE)),"0",VLOOKUP(EA2,Tables!AO$5:AP$100,2,FALSE)))) -> 2 | ED2: =IF(BA2="","",IF(ISNA(VLOOKUP(BA2,$AX$1:$AY$100,2,FALSE)),"",VLOOKUP(BA2,$AX$1:$AY$100,2,FALSE))) -> 99 | EE2: =IF($BA2="","",CLEAN(TRIM(ED2))) -> 99 | EF2: =IF(EE2="","",0+EE2) -> 99 | EG2: =IF($EE2="","0",IF(ISNA(VLOOKUP(EF2,Tables!AQ$5:AR$100,2,FALSE)),"0",VLOOKUP(EF2,Tables!AQ$5:AR$100,2,FALSE))) -> 5 | EH2: =IF(BA2="","",IF(MainSheet!D9="Scratched","",BD2+BF2+BH2+BM2+BP2+BS2+BV2+BZ2+CC2+CF2+CI2+CM2+CQ2+CU2+CY2+DC2+DI2+DM2+DS2+DW2+EC2+EG2)) -> 81
A3: =IF(Meetings1!A3="","",IF(Meetings1!A3="END","END",IF(Meetings1!E3="","",getAddress(Meetings1!E3)))) -> http://formguide.cyberhorse.com.au/index.php/Form/form.html?formdate=2010-12-02&track=G'long&raceno=1 | M3: =IF(ISNA(VLOOKUP(N3,RaceList!$J$3:$L$19,3,FALSE)),"",VLOOKUP(N3,RaceList!$J$3:$L$19,3,FALSE)) ->  | N3: =IF(Meetings2!$B3="","",Meetings2!$B3) ->  | O3: =IF(Meetings2!D3="","",getAddress(Meetings2!D3)) ->  | P3: =IF(Meetings2!E3="","",getAddress(Meetings2!E3)) ->  | Q3: =IF(Meetings2!F3="","",getAddress(Meetings2!F3)) ->  | R3: =IF(Meetings2!G3="","",getAddress(Meetings2!G3)) ->  | S3: =IF(Meetings2!H3="","",getAddress(Meetings2!H3)) ->  | T3: =IF(Meetings2!I3="","",getAddress(Meetings2!I3)) ->  | U3: =IF(Meetings2!J3="","",getAddress(Meetings2!J3)) ->  | V3: =IF(Meetings2!K3="","",getAddress(Meetings2!K3)) ->  | W3: =IF(Meetings2!L3="","",getAddress(Meetings2!L3)) ->  | X3: =IF(Meetings2!M3="","",getAddress(Meetings2!M3)) ->  | Y3: =IF(Meetings2!N3="","",getAddress(Meetings2!N3)) ->  | AA3: 0.1701388889 | AV3: Pinjarra | AW3: Pinjarra | AX3: =IF(Race!N3<>"",Race!C3,"") ->  | AY3: =IF(AX3<>"",Race!N3,"") ->  | AZ3: =IF(AX3<>"",Race!I3,"") ->  | BA3: =IF(Form!I6<>"",LEFT(Form!C6,FIND("(",Form!C6)-2),"") -> Igotitfrommymumma | BC3: =IF(BA3="","",Form!A6) -> 2 | BD3: =IF($BA3="","",IF(ISNA(VLOOKUP(BC3,Tables!A$5:B$100,2,FALSE)),"0",VLOOKUP(BC3,Tables!A$5:B$100,2,FALSE))) -> 5 | BE3: =IF($BA3="","",IF(ISNA(VLOOKUP(BA3,AX2:AZ101,3,FALSE)),"",VLOOKUP(BA3,AX2:AZ101,3,FALSE))) -> 3 | BF3: =IF($BE3="","0",IF(ISNA(VLOOKUP(BE3,Tables!C$5:D$100,2,FALSE)),"0",VLOOKUP(BE3,Tables!C$5:D$100,2,FALSE))) -> 5 | BG3: =IF(BA3="","",Form!F6) -> 55.5 | BH3: =IF($BA3="","",IF(ISNA(VLOOKUP(BG3,Tables!E$5:F$100,2,FALSE)),"0",VLOOKUP(BG3,Tables!E$5:F$100,2,FALSE))) -> 3 | BI3: =IF($BA3="","",INDEX($AA$1:$AT$499,MATCH($BA3,$Z$1:$Z$499,0)+7,13)) -> Cd 52.0--2.0 | BJ3: =IF($BA3="","",LEFT(BI3,FIND("-",BI3)-1)) -> Cd 52.0 | BK3: =IF(BG3="","",BG3-BL3) -> 3.5 | BL3: =IF($BA3="","",TRIM(MID(BJ3,4,5))) -> 52.0 | BM3: =IF($BA3="","",IF(ISERROR(BL3),0,IF(ISNA(VLOOKUP(BK3,Tables!G$5:H$100,2,FALSE)),"0",VLOOKUP(BK3,Tables!G6:H$100,2,FALSE)))) -> 5 | BN3: =IF($BA3="","",Form!G6) -> 1.3 | BO3: =IF(BN3="","",IF(RANK(BN3,$BN$2:$BN$32)<25,RANK(BN3,$BN$2:$BN$32),"")) -> 4 | BP3: =IF($BA3="","",IF(ISNA(VLOOKUP(BO3,Tables!I$5:J$100,2,FALSE)),"0",VLOOKUP(BO3,Tables!I$5:J$100,2,FALSE))) -> 3 | BQ3: =IF($BA3="","",Form!H6) -> 12.9 | BR3: =IF(BA3="","",IF(RANK(BQ3,$BQ$2:$BQ$32)<25,RANK(BQ3,$BQ$2:$BQ$32),"")) -> 3 | BS3: =IF($BA3="","",IF(ISNA(VLOOKUP(BR3,Tables!K$5:L$100,2,FALSE)),"0",VLOOKUP(BR3,Tables!K$5:L$100,2,FALSE))) -> 4 | BT3: =IF($BA3="","",Form!I6) -> 41.9 | BU3: =IF(BA3="","",IF(RANK(BT3,$BT$2:$BT$32)<25,RANK(BT3,$BT$2:$BT$32),"")) -> 3 | BV3: =IF($BA3="","",IF(ISNA(VLOOKUP(BU3,Tables!M$5:N$100,2,FALSE)),"0",VLOOKUP(BU3,Tables!M$5:N$100,2,FALSE))) -> 4 | BW3: =IF($BA3="","",INDEX(Race!$D$1:$P$100,MATCH($BA3,Race!$C$1:$C$100,0)+0,9)) -> T | BX3: =IF($BA3="","",IF(ISERROR(FIND(BX$1,$BW3,1)),"",BX$1)) ->  | BY3: =IF(BX3<>"","Y","N") -> N | BZ3: =IF($BA3="","",IF(ISNA(VLOOKUP(BY3,Tables!O$5:P$100,2,FALSE)),0,VLOOKUP(BY3,Tables!O$5:P$100,2,FALSE))) -> 0 | CA3: =IF($BA3="","",IF(ISERROR(FIND(CA$1,$BW3,1)),"",CA$1)) -> T | CB3: =IF(CA3<>"","Y","N") -> Y | CC3: =IF($BA3="","",IF(ISNA(VLOOKUP(CB3,Tables!Q$5:R$100,2,FALSE)),0,VLOOKUP(CB3,Tables!Q$5:R$100,2,FALSE))) -> 5 | CD3: =IF($BA3="","",IF(ISERROR(FIND(CD$1,$BW3,1)),"",CD$1)) ->  | CE3: =IF(CD3<>"","Y","N") -> N | CF3: =IF($BA3="","",IF(ISNA(VLOOKUP(CE3,Tables!S$5:T$100,2,FALSE)),0,VLOOKUP(CE3,Tables!S$5:T$100,2,FALSE))) -> 0 | CG3: =IF($BA3="","",IF(ISERROR(FIND(CG$1,$BW3,1)),"",CG$1)) ->  | CH3: =IF(CG3<>"","Y","N") -> N | CI3: =IF($BA3="","",IF(ISNA(VLOOKUP(CH3,Tables!U$5:V$100,2,FALSE)),0,VLOOKUP(CH3,Tables!U$5:V$100,2,FALSE))) -> 0 | CJ3: =IF($BA3="","",INDEX($AA$1:$AT$499,MATCH($BA3,$Z$1:$Z$499,0)+7,3)) -> 2010-11-04 | CK3: =IF(CJ3="","",$M$2-CJ3) -> 28 | CL3: =IF(CK3>90,0,CK3) -> 28 | CM3: =IF($BA3="","",IF(ISERROR(CL3),0,IF(ISNA(VLOOKUP(CL3,Tables!W$5:X$100,2,FALSE)),"0",VLOOKUP(CL3,Tables!W$5:X$100,2,FALSE)))) -> 0 | CN3: =IF($BA3="","",INDEX($AA$1:$AT$499,MATCH($BA3,$Z$1:$Z$499,0)+8,3)) -> 2010-10-19 | CO3: =IF(CN3="","",$M$2-CN3) -> 44 | CP3: =IF(CO3>90,0,CO3) -> 44 | CQ3: =IF($BA3="","",IF(ISERROR(CP3),0,IF(ISNA(VLOOKUP(CP3,Tables!Y$5:Z$100,2,FALSE)),"0",VLOOKUP(CP3,Tables!Y$5:Z$100,2,FALSE)))) -> 0 | CR3: =IF($BA3="","",INDEX($AA$1:$AT$499,MATCH($BA3,$Z$1:$Z$499,0)+9,3)) -> 2010-10-09 | CS3: =IF(CR3="","",$M$2-CR3) -> 54 | CT3: =IF(CS3>90,0,CS3) -> 54 | CU3: =IF($BA3="","",IF(ISERROR(CT3),0,IF(ISNA(VLOOKUP(CT3,Tables!AA$5:AB$100,2,FALSE)),"0",VLOOKUP(CT3,Tables!AA$5:AB$100,2,FALSE)))) -> 0 | CV3: =IF($BA3="","",INDEX($AA$1:$AT$499,MATCH($BA3,$Z$1:$Z$499,0)+7,9)) -> 12000 | CW3: =IF(CV3="","",(Form!$H$3-CV3)/CV3*100) -> -16.66666667 | CX3: =IF(CW3="","",IF(CW3>10,1,IF(CW3<-10,2,3))) -> 2 | CY3: =IF($BA3="","",IF(ISERROR(CX3),0,IF(ISNA(VLOOKUP(CX3,Tables!AC$5:AD$100,2,FALSE)),"0",VLOOKUP(CX3,Tables!AC$5:AD$100,2,FALSE)))) -> 10 | CZ3: =IF($BA3="","",INDEX($AA$1:$AT$499,MATCH($BA3,$Z$1:$Z$499,0)+7,1)) -> 7-8 4.2L | DA3: =IF($CZ3="","",CLEAN(LEFT(CZ3,FIND("-",CZ3)-1))) -> 7 | DB3: =IF($DA3="","",IF(0+DA3>10,0,0+DA3)) -> 7 | DC3: =IF($BA3="","",IF(ISERROR(DB3),0,IF(ISNA(VLOOKUP(DB3,Tables!AE$5:AF$100,2,FALSE)),"0",VLOOKUP(DB3,Tables!AE$5:AF$100,2,FALSE)))) -> 0 | DD3: 4.2L | DE3: =IF($BI3="","",LEFT(DD3,FIND("L",DD3)-1)) -> 4.2 | DF3: =IF($BI3="","",ROUND(0+DE3/0.5,0)*0.5) -> 4 | DG3: =IF(DF3="","",IF(DB3=1,0,DF3)) -> 4 | DH3: =IF(DG3="","",DG3) -> 4 | DI3: =IF($BA3="","",IF(ISERROR(DH3),0,IF(ISNA(VLOOKUP(DG3,Tables!AG$5:AH$100,2,FALSE)),"0",VLOOKUP(DG3,Tables!AG$5:AH$100,2,FALSE)))) -> 2 | DJ3: =IF($BA3="","",INDEX($AA$1:$AT$499,MATCH($BA3,$Z$1:$Z$499,0)+8,1)) -> 3-7 2.4L | DK3: =IF($DJ3="","",CLEAN(LEFT(DJ3,FIND("-",DJ3)-1))) -> 3 | DL3: =IF($DK3="","",IF(0+DK3>10,0,0+DK3)) -> 3 | DM3: =IF($BA3="","",IF(ISERROR(DL3),0,IF(ISNA(VLOOKUP(DL3,Tables!AI$5:AJ$100,2,FALSE)),"0",VLOOKUP(DL3,Tables!AI$5:AJ$100,2,FALSE)))) -> 3 | DN3: 2.4L | DO3: 2.4 | DP3: 2.5 | DQ3: =IF(DP3="","",IF(DL3=1,0,DP3)) -> 2.5 | DR3: =IF(DQ3="","",DQ3) -> 2.5 | DS3: =IF($BA3="","",IF(ISERROR(DR3),0,IF(ISNA(VLOOKUP(DQ3,Tables!AK$5:AL$100,2,FALSE)),"0",VLOOKUP(DQ3,Tables!AK$5:AL$100,2,FALSE)))) -> 5 | DT3: =IF($BA3="","",INDEX($AA$1:$AT$499,MATCH($BA3,$Z$1:$Z$499,0)+9,1)) -> 1-6 0.2L | DU3: =IF($DJ3="","",CLEAN(LEFT(DT3,FIND("-",DT3)-1))) -> 1 | DV3: =IF($DU3="","",IF(ISERROR(IF(0+DU3>10,0,0+DU3)),0,IF(0+DU3>10,0,0+DU3))) -> 1 | DW3: =IF($BA3="","",IF(ISERROR(DV3),0,IF(ISNA(VLOOKUP(DV3,Tables!AM$5:AN$100,2,FALSE)),"0",VLOOKUP(DV3,Tables!AM$5:AN$100,2,FALSE)))) -> 7 | DX3: 0.2L | DY3: =IF($BI3="","",LEFT(DX3,FIND("L",DX3)-1)) -> 0.2 | DZ3: 0 | EA3: =IF(DZ3="","",IF(DV3=1,0,DZ3)) -> 0 | EB3: =IF(EA3="","",EA3) -> 0 | EC3: =IF($BC3="","",IF(ISERROR(EB3),0,IF(ISNA(VLOOKUP(EA3,Tables!AO$5:AP$100,2,FALSE)),"0",VLOOKUP(EA3,Tables!AO$5:AP$100,2,FALSE)))) -> 7 | ED3: =IF(BA3="","",IF(ISNA(VLOOKUP(BA3,$AX$1:$AY$100,2,FALSE)),"",VLOOKUP(BA3,$AX$1:$AY$100,2,FALSE))) -> 99 | EE3: =IF($BA3="","",CLEAN(TRIM(ED3))) -> 99 | EF3: =IF(EE3="","",0+EE3) -> 99 | EG3: =IF($EE3="","0",IF(ISNA(VLOOKUP(EF3,Tables!AQ$5:AR$100,2,FALSE)),"0",VLOOKUP(EF3,Tables!AQ$5:AR$100,2,FALSE))) -> 5 | EH3: =IF(BA3="","",IF(MainSheet!D10="Scratched","",BD3+BF3+BH3+BM3+BP3+BS3+BV3+BZ3+CC3+CF3+CI3+CM3+CQ3+CU3+CY3+DC3+DI3+DM3+DS3+DW3+EC3+EG3)) -> 73
A4: =IF(Meetings1!A4="","",IF(Meetings1!A4="END","END",IF(Meetings1!E4="","",getAddress(Meetings1!E4)))) -> http://formguide.cyberhorse.com.au/index.php/Form/form.html?formdate=2010-12-02&track=G'long&raceno=2 | M4: =IF(ISNA(VLOOKUP(N4,RaceList!$J$3:$L$19,3,FALSE)),"",VLOOKUP(N4,RaceList!$J$3:$L$19,3,FALSE)) ->  | N4: =IF(Meetings2!$B4="","",Meetings2!$B4) -> ALBION PARK (BG) race 07 ($1,064) | O4: =IF(Meetings2!D4="","",getAddress(Meetings2!D4)) ->  | P4: =IF(Meetings2!E4="","",getAddress(Meetings2!E4)) ->  | Q4: =IF(Meetings2!F4="","",getAddress(Meetings2!F4)) ->  | R4: =IF(Meetings2!G4="","",getAddress(Meetings2!G4)) ->  | S4: =IF(Meetings2!H4="","",getAddress(Meetings2!H4)) ->  | T4: =IF(Meetings2!I4="","",getAddress(Meetings2!I4)) ->  | U4: =IF(Meetings2!J4="","",getAddress(Meetings2!J4)) ->  | V4: =IF(Meetings2!K4="","",getAddress(Meetings2!K4)) ->  | W4: =IF(Meetings2!L4="","",getAddress(Meetings2!L4)) ->  | X4: =IF(Meetings2!M4="","",getAddress(Meetings2!M4)) ->  | Y4: =IF(Meetings2!N4="","",getAddress(Meetings2!N4)) ->  | AA4: # | AV4: Launceston | AW4: Launceston | AX4: =IF(Race!N4<>"",Race!C4,"") ->  | AY4: =IF(AX4<>"",Race!N4,"") ->  | AZ4: =IF(AX4<>"",Race!I4,"") ->  | BA4: =IF(Form!I7<>"",LEFT(Form!C7,FIND("(",Form!C7)-2),"") -> Noble Lustre | BC4: =IF(BA4="","",Form!A7) -> 3 | BD4: =IF($BA4="","",IF(ISNA(VLOOKUP(BC4,Tables!A$5:B$100,2,FALSE)),"0",VLOOKUP(BC4,Tables!A$5:B$100,2,FALSE))) -> 5 | BE4: 5 | BF4: =IF($BE4="","0",IF(ISNA(VLOOKUP(BE4,Tables!C$5:D$100,2,FALSE)),"0",VLOOKUP(BE4,Tables!C$5:D$100,2,FALSE))) -> 3 | BG4: =IF(BA4="","",Form!F7) -> 55.5 | BH4: =IF($BA4="","",IF(ISNA(VLOOKUP(BG4,Tables!E$5:F$100,2,FALSE)),"0",VLOOKUP(BG4,Tables!E$5:F$100,2,FALSE))) -> 3 | BI4: =IF($BA4="","",INDEX($AA$1:$AT$499,MATCH($BA4,$Z$1:$Z$499,0)+7,13)) -> Cd 57.0-0.0 | BJ4: Cd 57.0 | BK4: -1.5 | BL4: 57.0 | BM4: =IF($BA4="","",IF(ISERROR(BL4),0,IF(ISNA(VLOOKUP(BK4,Tables!G$5:H$100,2,FALSE)),"0",VLOOKUP(BK4,Tables!G7:H$100,2,FALSE)))) -> 3 | BN4: =IF($BA4="","",Form!G7) -> 2.1 | BO4: 3 | BP4: =IF($BA4="","",IF(ISNA(VLOOKUP(BO4,Tables!I$5:J$100,2,FALSE)),"0",VLOOKUP(BO4,Tables!I$5:J$100,2,FALSE))) -> 4 | BQ4: =IF($BA4="","",Form!H7) -> 11.1 | BR4: 6 | BS4: =IF($BA4="","",IF(ISNA(VLOOKUP(BR4,Tables!K$5:L$100,2,FALSE)),"0",VLOOKUP(BR4,Tables!K$5:L$100,2,FALSE))) -> 2 | BT4: =IF($BA4="","",Form!I7) -> 33.3 | BU4: 6 | BV4: =IF($BA4="","",IF(ISNA(VLOOKUP(BU4,Tables!M$5:N$100,2,FALSE)),"0",VLOOKUP(BU4,Tables!M$5:N$100,2,FALSE))) -> 2 | BW4: =IF($BA4="","",INDEX(Race!$D$1:$P$100,MATCH($BA4,Race!$C$1:$C$100,0)+0,9)) -> 0 | BY4: N | BZ4: =IF($BA4="","",IF(ISNA(VLOOKUP(BY4,Tables!O$5:P$100,2,FALSE)),0,VLOOKUP(BY4,Tables!O$5:P$100,2,FALSE))) -> 0 | CB4: N | CC4: =IF($BA4="","",IF(ISNA(VLOOKUP(CB4,Tables!Q$5:R$100,2,FALSE)),0,VLOOKUP(CB4,Tables!Q$5:R$100,2,FALSE))) -> 0 | CE4: N | CF4: =IF($BA4="","",IF(ISNA(VLOOKUP(CE4,Tables!S$5:T$100,2,FALSE)),0,VLOOKUP(CE4,Tables!S$5:T$100,2,FALSE))) -> 0 | CH4: N | CI4: =IF($BA4="","",IF(ISNA(VLOOKUP(CH4,Tables!U$5:V$100,2,FALSE)),0,VLOOKUP(CH4,Tables!U$5:V$100,2,FALSE))) -> 0 | CJ4: 2010-11-11 | CK4: 21 | CL4: 21 | CM4: =IF($BA4="","",IF(ISERROR(CL4),0,IF(ISNA(VLOOKUP(CL4,Tables!W$5:X$100,2,FALSE)),"0",VLOOKUP(CL4,Tables!W$5:X$100,2,FALSE)))) -> 2 | CN4: 2010-11-02 | CO4: 30 | CP4: 30 | CQ4: =IF($BA4="","",IF(ISERROR(CP4),0,IF(ISNA(VLOOKUP(CP4,Tables!Y$5:Z$100,2,FALSE)),"0",VLOOKUP(CP4,Tables!Y$5:Z$100,2,FALSE)))) -> 0 | CR4: 2010-10-07 | CS4: 56 | CT4: 56 | CU4: =IF($BA4="","",IF(ISERROR(CT4),0,IF(ISNA(VLOOKUP(CT4,Tables!AA$5:AB$100,2,FALSE)),"0",VLOOKUP(CT4,Tables!AA$5:AB$100,2,FALSE)))) -> 0 | CV4: 10000 | CW4: =IF(CV4="","",(Form!$H$3-CV4)/CV4*100) -> 0 | CX4: 3 | CY4: =IF($BA4="","",IF(ISERROR(CX4),0,IF(ISNA(VLOOKUP(CX4,Tables!AC$5:AD$100,2,FALSE)),"0",VLOOKUP(CX4,Tables!AC$5:AD$100,2,FALSE)))) -> 0 | CZ4: 8-13 4.5L | DA4: 8 | DB4: 8 | DC4: =IF($BA4="","",IF(ISERROR(DB4),0,IF(ISNA(VLOOKUP(DB4,Tables!AE$5:AF$100,2,FALSE)),"0",VLOOKUP(DB4,Tables!AE$5:AF$100,2,FALSE)))) -> 0 | DD4: 4.5L | DE4: 4.5 | DF4: 4.5 | DG4: 4.5 | DH4: 4.5 | DI4: =IF($BA4="","",IF(ISERROR(DH4),0,IF(ISNA(VLOOKUP(DG4,Tables!AG$5:AH$100,2,FALSE)),"0",VLOOKUP(DG4,Tables!AG$5:AH$100,2,FALSE)))) -> 2 | DJ4: 1-6 2.0L | DK4: 1 | DL4: 1 | DM4: =IF($BA4="","",IF(ISERROR(DL4),0,IF(ISNA(VLOOKUP(DL4,Tables!AI$5:AJ$100,2,FALSE)),"0",VLOOKUP(DL4,Tables!AI$5:AJ$100,2,FALSE)))) -> 7 | DN4: 2.0L | DO4: 2.0 | DP4: 2 | DQ4: 0 | DR4: 0 | DS4: =IF($BA4="","",IF(ISERROR(DR4),0,IF(ISNA(VLOOKUP(DQ4,Tables!AK$5:AL$100,2,FALSE)),"0",VLOOKUP(DQ4,Tables!AK$5:AL$100,2,FALSE)))) -> 7 | DT4: 9-15 7.2L | DU4: 9 | DV4: 9 | DW4: =IF($BA4="","",IF(ISERROR(DV4),0,IF(ISNA(VLOOKUP(DV4,Tables!AM$5:AN$100,2,FALSE)),"0",VLOOKUP(DV4,Tables!AM$5:AN$100,2,FALSE)))) -> 0 | DX4: 7.2L | DY4: 7.2 | DZ4: 7 | EA4: 7 | EB4: 7 | EC4: =IF($BC4="","",IF(ISERROR(EB4),0,IF(ISNA(VLOOKUP(EA4,Tables!AO$5:AP$100,2,FALSE)),"0",VLOOKUP(EA4,Tables!AO$5:AP$100,2,FALSE)))) -> 0 | ED4: 100 | EE4: 100 | EF4: 100 | EG4: =IF($EE4="","0",IF(ISNA(VLOOKUP(EF4,Tables!AQ$5:AR$100,2,FALSE)),"0",VLOOKUP(EF4,Tables!AQ$5:AR$100,2,FALSE))) -> 7 | EH4: =IF(BA4="","",IF(MainSheet!D11="Scratched","",BD4+BF4+BH4+BM4+BP4+BS4+BV4+BZ4+CC4+CF4+CI4+CM4+CQ4+CU4+CY4+DC4+DI4+DM4+DS4+DW4+EC4+EG4)) -> 47
A5: =IF(Meetings1!A5="","",IF(Meetings1!A5="END","END",IF(Meetings1!E5="","",getAddress(Meetings1!E5)))) -> http://formguide.cyberhorse.com.au/index.php/Form/form.html?formdate=2010-12-02&track=G'long&raceno=3 | M5: =IF(ISNA(VLOOKUP(N5,RaceList!$J$3:$L$19,3,FALSE)),"",VLOOKUP(N5,RaceList!$J$3:$L$19,3,FALSE)) ->  | N5: =IF(Meetings2!$B5="","",Meetings2!$B5) -> ALBION PARK (BG) race 08 ($9,161) | O5: =IF(Meetings2!D5="","",getAddress(Meetings2!D5)) ->  | P5: =IF(Meetings2!E5="","",getAddress(Meetings2!E5)) ->  | Q5: =IF(Meetings2!F5="","",getAddress(Meetings2!F5)) ->  | R5: =IF(Meetings2!G5="","",getAddress(Meetings2!G5)) ->  | S5: =IF(Meetings2!H5="","",getAddress(Meetings2!H5)) ->  | T5: =IF(Meetings2!I5="","",getAddress(Meetings2!I5)) ->  | U5: =IF(Meetings2!J5="","",getAddress(Meetings2!J5)) ->  | V5: =IF(Meetings2!K5="","",getAddress(Meetings2!K5)) ->  | W5: =IF(Meetings2!L5="","",getAddress(Meetings2!L5)) ->  | X5: =IF(Meetings2!M5="","",getAddress(Meetings2!M5)) ->  | Y5: =IF(Meetings2!N5="","",getAddress(Meetings2!N5)) ->  | AA5: 1 | AV5: Hawkesbury | AW5: Hawkesbury | AX5: =IF(Race!N5<>"",Race!C5,"") ->  | AY5: =IF(AX5<>"",Race!N5,"") ->  | AZ5: =IF(AX5<>"",Race!I5,"") ->  | BA5: =IF(Form!I8<>"",LEFT(Form!C8,FIND("(",Form!C8)-2),"") -> Chabal | BC5: =IF(BA5="","",Form!A8) -> 4 | BD5: =IF($BA5="","",IF(ISNA(VLOOKUP(BC5,Tables!A$5:B$100,2,FALSE)),"0",VLOOKUP(BC5,Tables!A$5:B$100,2,FALSE))) -> 3 | BE5: 4 | BF5: =IF($BE5="","0",IF(ISNA(VLOOKUP(BE5,Tables!C$5:D$100,2,FALSE)),"0",VLOOKUP(BE5,Tables!C$5:D$100,2,FALSE))) -> 3 | BG5: =IF(BA5="","",Form!F8) -> 55 | BH5: =IF($BA5="","",IF(ISNA(VLOOKUP(BG5,Tables!E$5:F$100,2,FALSE)),"0",VLOOKUP(BG5,Tables!E$5:F$100,2,FALSE))) -> 3 | BI5: Cd 56.5-0.0 | BJ5: Cd 56.5 | BK5: -1.5 | BL5: 56.5 | BM5: =IF($BA5="","",IF(ISERROR(BL5),0,IF(ISNA(VLOOKUP(BK5,Tables!G$5:H$100,2,FALSE)),"0",VLOOKUP(BK5,Tables!G8:H$100,2,FALSE)))) -> 3 | BN5: =IF($BA5="","",Form!G8) -> 1.1 | BO5: 6 | BP5: =IF($BA5="","",IF(ISNA(VLOOKUP(BO5,Tables!I$5:J$100,2,FALSE)),"0",VLOOKUP(BO5,Tables!I$5:J$100,2,FALSE))) -> 2 | BQ5: =IF($BA5="","",Form!H8) -> 12.5 | BR5: 4 | BS5: =IF($BA5="","",IF(ISNA(VLOOKUP(BR5,Tables!K$5:L$100,2,FALSE)),"0",VLOOKUP(BR5,Tables!K$5:L$100,2,FALSE))) -> 3 | BT5: =IF($BA5="","",Form!I8) -> 41.7 | BU5: 4 | BV5: =IF($BA5="","",IF(ISNA(VLOOKUP(BU5,Tables!M$5:N$100,2,FALSE)),"0",VLOOKUP(BU5,Tables!M$5:N$100,2,FALSE))) -> 3 | BW5: =IF($BA5="","",INDEX(Race!$D$1:$P$100,MATCH($BA5,Race!$C$1:$C$100,0)+0,9)) -> D | BX5: D | BY5: Y | BZ5: =IF($BA5="","",IF(ISNA(VLOOKUP(BY5,Tables!O$5:P$100,2,FALSE)),0,VLOOKUP(BY5,Tables!O$5:P$100,2,FALSE))) -> 5 | CB5: N | CC5: =IF($BA5="","",IF(ISNA(VLOOKUP(CB5,Tables!Q$5:R$100,2,FALSE)),0,VLOOKUP(CB5,Tables!Q$5:R$100,2,FALSE))) -> 0 | CE5: N | CF5: =IF($BA5="","",IF(ISNA(VLOOKUP(CE5,Tables!S$5:T$100,2,FALSE)),0,VLOOKUP(CE5,Tables!S$5:T$100,2,FALSE))) -> 0 | CH5: N | CI5: =IF($BA5="","",IF(ISNA(VLOOKUP(CH5,Tables!U$5:V$100,2,FALSE)),0,VLOOKUP(CH5,Tables!U$5:V$100,2,FALSE))) -> 0 | CJ5: 2010-11-11 | CK5: 21 | CL5: 21 | CM5: =IF($BA5="","",IF(ISERROR(CL5),0,IF(ISNA(VLOOKUP(CL5,Tables!W$5:X$100,2,FALSE)),"0",VLOOKUP(CL5,Tables!W$5:X$100,2,FALSE)))) -> 2 | CN5: 2010-08-26 | CO5: 98 | CP5: 0 | CQ5: =IF($BA5="","",IF(ISERROR(CP5),0,IF(ISNA(VLOOKUP(CP5,Tables!Y$5:Z$100,2,FALSE)),"0",VLOOKUP(CP5,Tables!Y$5:Z$100,2,FALSE)))) -> 0 | CR5: 2010-08-21 | CS5: 103 | CT5: 0 | CU5: =IF($BA5="","",IF(ISERROR(CT5),0,IF(ISNA(VLOOKUP(CT5,Tables!AA$5:AB$100,2,FALSE)),"0",VLOOKUP(CT5,Tables!AA$5:AB$100,2,FALSE)))) -> 0 | CV5: 10000 | CW5: =IF(CV5="","",(Form!$H$3-CV5)/CV5*100) -> 0 | CX5: 3 | CY5: =IF($BA5="","",IF(ISERROR(CX5),0,IF(ISNA(VLOOKUP(CX5,Tables!AC$5:AD$100,2,FALSE)),"0",VLOOKUP(CX5,Tables!AC$5:AD$100,2,FALSE)))) -> 0 | CZ5: 6-13 3.1L | DA5: 6 | DB5: 6 | DC5: =IF($BA5="","",IF(ISERROR(DB5),0,IF(ISNA(VLOOKUP(DB5,Tables!AE$5:AF$100,2,FALSE)),"0",VLOOKUP(DB5,Tables!AE$5:AF$100,2,FALSE)))) -> 0 | DD5: 3.1L | DE5: 3.1 | DF5: 3 | DG5: 3 | DH5: 3 | DI5: =IF($BA5="","",IF(ISERROR(DH5),0,IF(ISNA(VLOOKUP(DG5,Tables!AG$5:AH$100,2,FALSE)),"0",VLOOKUP(DG5,Tables!AG$5:AH$100,2,FALSE)))) -> 3 | DJ5: 4-11 2.8L | DK5: 4 | DL5: 4 | DM5: =IF($BA5="","",IF(ISERROR(DL5),0,IF(ISNA(VLOOKUP(DL5,Tables!AI$5:AJ$100,2,FALSE)),"0",VLOOKUP(DL5,Tables!AI$5:AJ$100,2,FALSE)))) -> 2 | DN5: 2.8L | DO5: 2.8 | DP5: 3 | DQ5: 3 | DR5: 3 | DS5: =IF($BA5="","",IF(ISERROR(DR5),0,IF(ISNA(VLOOKUP(DQ5,Tables!AK$5:AL$100,2,FALSE)),"0",VLOOKUP(DQ5,Tables!AK$5:AL$100,2,FALSE)))) -> 3 | DT5: 5-11 2.2L | DU5: 5 | DV5: 5 | DW5: =IF($BA5="","",IF(ISERROR(DV5),0,IF(ISNA(VLOOKUP(DV5,Tables!AM$5:AN$100,2,FALSE)),"0",VLOOKUP(DV5,Tables!AM$5:AN$100,2,FALSE)))) -> 2 | DX5: 2.2L | DY5: 2.2 | DZ5: 2 | EA5: 2 | EB5: 2 | EC5: =IF($BC5="","",IF(ISERROR(EB5),0,IF(ISNA(VLOOKUP(EA5,Tables!AO$5:AP$100,2,FALSE)),"0",VLOOKUP(EA5,Tables!AO$5:AP$100,2,FALSE)))) -> 5 | ED5: 98 | EE5: 98 | EF5: 98 | EG5: =IF($EE5="","0",IF(ISNA(VLOOKUP(EF5,Tables!AQ$5:AR$100,2,FALSE)),"0",VLOOKUP(EF5,Tables!AQ$5:AR$100,2,FALSE))) -> 3 | EH5: =IF(BA5="","",IF(MainSheet!D12="Scratched","",BD5+BF5+BH5+BM5+BP5+BS5+BV5+BZ5+CC5+CF5+CI5+CM5+CQ5+CU5+CY5+DC5+DI5+DM5+DS5+DW5+EC5+EG5)) -> 45
A6: =IF(Meetings1!A6="","",IF(Meetings1!A6="END","END",IF(Meetings1!E6="","",getAddress(Meetings1!E6)))) -> http://formguide.cyberhorse.com.au/index.php/Form/form.html?formdate=2010-12-02&track=G'long&raceno=4 | M6: =IF(ISNA(VLOOKUP(N6,RaceList!$J$3:$L$19,3,FALSE)),"",VLOOKUP(N6,RaceList!$J$3:$L$19,3,FALSE)) ->  | N6: =IF(Meetings2!$B6="","",Meetings2!$B6) -> ANGLE PARK (AG) race 08 ($8,636) | O6: =IF(Meetings2!D6="","",getAddress(Meetings2!D6)) ->  | P6: =IF(Meetings2!E6="","",getAddress(Meetings2!E6)) ->  | Q6: =IF(Meetings2!F6="","",getAddress(Meetings2!F6)) ->  | R6: =IF(Meetings2!G6="","",getAddress(Meetings2!G6)) ->  | S6: =IF(Meetings2!H6="","",getAddress(Meetings2!H6)) ->  | T6: =IF(Meetings2!I6="","",getAddress(Meetings2!I6)) ->  | U6: =IF(Meetings2!J6="","",getAddress(Meetings2!J6)) ->  | V6: =IF(Meetings2!K6="","",getAddress(Meetings2!K6)) ->  | W6: =IF(Meetings2!L6="","",getAddress(Meetings2!L6)) ->  | X6: =IF(Meetings2!M6="","",getAddress(Meetings2!M6)) ->  | Y6: =IF(Meetings2!N6="","",getAddress(Meetings2!N6)) ->  | AA6: 2 | AV6: Geelong | AW6: Geelong | AX6: =IF(Race!N6<>"",Race!C6,"") ->  | AY6: =IF(AX6<>"",Race!N6,"") ->  | AZ6: =IF(AX6<>"",Race!I6,"") ->  | BA6: =IF(Form!I9<>"",LEFT(Form!C9,FIND("(",Form!C9)-2),"") -> Craiglea Tina | BC6: =IF(BA6="","",Form!A9) -> 5 | BD6: =IF($BA6="","",IF(ISNA(VLOOKUP(BC6,Tables!A$5:B$100,2,FALSE)),"0",VLOOKUP(BC6,Tables!A$5:B$100,2,FALSE))) -> 3 | BF6: =IF($BE6="","0",IF(ISNA(VLOOKUP(BE6,Tables!C$5:D$100,2,FALSE)),"0",VLOOKUP(BE6,Tables!C$5:D$100,2,FALSE))) -> 0 | BG6: =IF(BA6="","",Form!F9) -> 54 | BH6: =IF($BA6="","",IF(ISNA(VLOOKUP(BG6,Tables!E$5:F$100,2,FALSE)),"0",VLOOKUP(BG6,Tables!E$5:F$100,2,FALSE))) -> 2 | BI6: Cd 53.0--3.0 | BJ6: Cd 53.0 | BK6: 1 | BL6: 53.0 | BM6: =IF($BA6="","",IF(ISERROR(BL6),0,IF(ISNA(VLOOKUP(BK6,Tables!G$5:H$100,2,FALSE)),"0",VLOOKUP(BK6,Tables!G9:H$100,2,FALSE)))) -> 3 | BN6: =IF($BA6="","",Form!G9) -> 2.3 | BO6: 2 | BP6: =IF($BA6="","",IF(ISNA(VLOOKUP(BO6,Tables!I$5:J$100,2,FALSE)),"0",VLOOKUP(BO6,Tables!I$5:J$100,2,FALSE))) -> 6 | BQ6: =IF($BA6="","",Form!H9) -> 17.6 | BR6: 2 | BS6: =IF($BA6="","",IF(ISNA(VLOOKUP(BR6,Tables!K$5:L$100,2,FALSE)),"0",VLOOKUP(BR6,Tables!K$5:L$100,2,FALSE))) -> 6 | BT6: =IF($BA6="","",Form!I9) -> 41.2 | BU6: 5 | BV6: =IF($BA6="","",IF(ISNA(VLOOKUP(BU6,Tables!M$5:N$100,2,FALSE)),"0",VLOOKUP(BU6,Tables!M$5:N$100,2,FALSE))) -> 3 | BW6: =IF($BA6="","",INDEX(Race!$D$1:$P$100,MATCH($BA6,Race!$C$1:$C$100,0)+0,9)) -> 0 | BY6: N | BZ6: =IF($BA6="","",IF(ISNA(VLOOKUP(BY6,Tables!O$5:P$100,2,FALSE)),0,VLOOKUP(BY6,Tables!O$5:P$100,2,FALSE))) -> 0 | CB6: N | CC6: =IF($BA6="","",IF(ISNA(VLOOKUP(CB6,Tables!Q$5:R$100,2,FALSE)),0,VLOOKUP(CB6,Tables!Q$5:R$100,2,FALSE))) -> 0 | CE6: N | CF6: =IF($BA6="","",IF(ISNA(VLOOKUP(CE6,Tables!S$5:T$100,2,FALSE)),0,VLOOKUP(CE6,Tables!S$5:T$100,2,FALSE))) -> 0 | CH6: N | CI6: =IF($BA6="","",IF(ISNA(VLOOKUP(CH6,Tables!U$5:V$100,2,FALSE)),0,VLOOKUP(CH6,Tables!U$5:V$100,2,FALSE))) -> 0 | CJ6: 2010-11-27 | CK6: 5 | CL6: 5 | CM6: =IF($BA6="","",IF(ISERROR(CL6),0,IF(ISNA(VLOOKUP(CL6,Tables!W$5:X$100,2,FALSE)),"0",VLOOKUP(CL6,Tables!W$5:X$100,2,FALSE)))) -> 5 | CN6: 2010-11-20 | CO6: 12 | CP6: 12 | CQ6: =IF($BA6="","",IF(ISERROR(CP6),0,IF(ISNA(VLOOKUP(CP6,Tables!Y$5:Z$100,2,FALSE)),"0",VLOOKUP(CP6,Tables!Y$5:Z$100,2,FALSE)))) -> 5 | CR6: 2010-11-14 | CS6: 18 | CT6: 18 | CU6: =IF($BA6="","",IF(ISERROR(CT6),0,IF(ISNA(VLOOKUP(CT6,Tables!AA$5:AB$100,2,FALSE)),"0",VLOOKUP(CT6,Tables!AA$5:AB$100,2,FALSE)))) -> 3 | CV6: 6000 | CW6: =IF(CV6="","",(Form!$H$3-CV6)/CV6*100) -> 66.66666667 | CX6: 1 | CY6: =IF($BA6="","",IF(ISERROR(CX6),0,IF(ISNA(VLOOKUP(CX6,Tables!AC$5:AD$100,2,FALSE)),"0",VLOOKUP(CX6,Tables!AC$5:AD$100,2,FALSE)))) -> -5 | CZ6: 1-9 2.0L | DA6: 1 | DB6: 1 | DC6: =IF($BA6="","",IF(ISERROR(DB6),0,IF(ISNA(VLOOKUP(DB6,Tables!AE$5:AF$100,2,FALSE)),"0",VLOOKUP(DB6,Tables!AE$5:AF$100,2,FALSE)))) -> 7 | DD6: 2.0L | DE6: 2.0 | DF6: 2 | DG6: 0 | DH6: 0 | DI6: =IF($BA6="","",IF(ISERROR(DH6),0,IF(ISNA(VLOOKUP(DG6,Tables!AG$5:AH$100,2,FALSE)),"0",VLOOKUP(DG6,Tables!AG$5:AH$100,2,FALSE)))) -> 7 | DJ6: 7-12 6.4L | DK6: 7 | DL6: 7 | DM6: =IF($BA6="","",IF(ISERROR(DL6),0,IF(ISNA(VLOOKUP(DL6,Tables!AI$5:AJ$100,2,FALSE)),"0",VLOOKUP(DL6,Tables!AI$5:AJ$100,2,FALSE)))) -> 0 | DN6: 6.4L | DO6: 6.4 | DP6: 6.5 | DQ6: 6.5 | DR6: 6.5 | DS6: =IF($BA6="","",IF(ISERROR(DR6),0,IF(ISNA(VLOOKUP(DQ6,Tables!AK$5:AL$100,2,FALSE)),"0",VLOOKUP(DQ6,Tables!AK$5:AL$100,2,FALSE)))) -> 0 | DT6: 3-6 2.2L | DU6: 3 | DV6: 3 | DW6: =IF($BA6="","",IF(ISERROR(DV6),0,IF(ISNA(VLOOKUP(DV6,Tables!AM$5:AN$100,2,FALSE)),"0",VLOOKUP(DV6,Tables!AM$5:AN$100,2,FALSE)))) -> 3 | DX6: 2.2L | DY6: 2.2 | DZ6: 2 | EA6: 2 | EB6: 2 | EC6: =IF($BC6="","",IF(ISERROR(EB6),0,IF(ISNA(VLOOKUP(EA6,Tables!AO$5:AP$100,2,FALSE)),"0",VLOOKUP(EA6,Tables!AO$5:AP$100,2,FALSE)))) -> 5 | EG6: =IF($EE6="","0",IF(ISNA(VLOOKUP(EF6,Tables!AQ$5:AR$100,2,FALSE)),"0",VLOOKUP(EF6,Tables!AQ$5:AR$100,2,FALSE))) -> 0 | EH6: =IF(BA6="","",IF(MainSheet!D13="Scratched","",BD6+BF6+BH6+BM6+BP6+BS6+BV6+BZ6+CC6+CF6+CI6+CM6+CQ6+CU6+CY6+DC6+DI6+DM6+DS6+DW6+EC6+EG6)) -> 
A7: =IF(Meetings1!A7="","",IF(Meetings1!A7="END","END",IF(Meetings1!E7="","",getAddress(Meetings1!E7)))) -> http://formguide.cyberhorse.com.au/index.php/Form/form.html?formdate=2010-12-02&track=G'long&raceno=5 | M7: =IF(ISNA(VLOOKUP(N7,RaceList!$J$3:$L$19,3,FALSE)),"",VLOOKUP(N7,RaceList!$J$3:$L$19,3,FALSE)) ->  | N7: =IF(Meetings2!$B7="","",Meetings2!$B7) ->  | O7: =IF(Meetings2!D7="","",getAddress(Meetings2!D7)) ->  | P7: =IF(Meetings2!E7="","",getAddress(Meetings2!E7)) ->  | Q7: =IF(Meetings2!F7="","",getAddress(Meetings2!F7)) ->  | R7: =IF(Meetings2!G7="","",getAddress(Meetings2!G7)) ->  | S7: =IF(Meetings2!H7="","",getAddress(Meetings2!H7)) ->  | T7: =IF(Meetings2!I7="","",getAddress(Meetings2!I7)) ->  | U7: =IF(Meetings2!J7="","",getAddress(Meetings2!J7)) ->  | V7: =IF(Meetings2!K7="","",getAddress(Meetings2!K7)) ->  | W7: =IF(Meetings2!L7="","",getAddress(Meetings2!L7)) ->  | X7: =IF(Meetings2!M7="","",getAddress(Meetings2!M7)) ->  | Y7: =IF(Meetings2!N7="","",getAddress(Meetings2!N7)) ->  | AA7: 3 | AV7: 8 | AX7: =IF(Race!N7<>"",Race!C7,"") ->  | AY7: =IF(AX7<>"",Race!N7,"") ->  | AZ7: =IF(AX7<>"",Race!I7,"") ->  | BA7: =IF(Form!I10<>"",LEFT(Form!C10,FIND("(",Form!C10)-2),"") -> Lola Brigida | BC7: =IF(BA7="","",Form!A10) -> 6 | BD7: =IF($BA7="","",IF(ISNA(VLOOKUP(BC7,Tables!A$5:B$100,2,FALSE)),"0",VLOOKUP(BC7,Tables!A$5:B$100,2,FALSE))) -> 3 | BE7: 7 | BF7: =IF($BE7="","0",IF(ISNA(VLOOKUP(BE7,Tables!C$5:D$100,2,FALSE)),"0",VLOOKUP(BE7,Tables!C$5:D$100,2,FALSE))) -> 2 | BG7: =IF(BA7="","",Form!F10) -> 54 | BH7: =IF($BA7="","",IF(ISNA(VLOOKUP(BG7,Tables!E$5:F$100,2,FALSE)),"0",VLOOKUP(BG7,Tables!E$5:F$100,2,FALSE))) -> 2 | BI7: Cd 56.0-0.0 | BJ7: Cd 56.0 | BK7: -2 | BL7: 56.0 | BM7: =IF($BA7="","",IF(ISERROR(BL7),0,IF(ISNA(VLOOKUP(BK7,Tables!G$5:H$100,2,FALSE)),"0",VLOOKUP(BK7,Tables!G10:H$100,2,FALSE)))) -> 3 | BN7: =IF($BA7="","",Form!G10) -> 1.1 | BO7: 6 | BP7: =IF($BA7="","",IF(ISNA(VLOOKUP(BO7,Tables!I$5:J$100,2,FALSE)),"0",VLOOKUP(BO7,Tables!I$5:J$100,2,FALSE))) -> 2 | BQ7: =IF($BA7="","",Form!H10) -> 9.1 | BR7: 7 | BS7: =IF($BA7="","",IF(ISNA(VLOOKUP(BR7,Tables!K$5:L$100,2,FALSE)),"0",VLOOKUP(BR7,Tables!K$5:L$100,2,FALSE))) -> 2 | BT7: =IF($BA7="","",Form!I10) -> 30.3 | BU7: 7 | BV7: =IF($BA7="","",IF(ISNA(VLOOKUP(BU7,Tables!M$5:N$100,2,FALSE)),"0",VLOOKUP(BU7,Tables!M$5:N$100,2,FALSE))) -> 2 | BW7: =IF($BA7="","",INDEX(Race!$D$1:$P$100,MATCH($BA7,Race!$C$1:$C$100,0)+0,9)) -> DWT | BX7: D | BY7: Y | BZ7: =IF($BA7="","",IF(ISNA(VLOOKUP(BY7,Tables!O$5:P$100,2,FALSE)),0,VLOOKUP(BY7,Tables!O$5:P$100,2,FALSE))) -> 5 | CA7: T | CB7: Y | CC7: =IF($BA7="","",IF(ISNA(VLOOKUP(CB7,Tables!Q$5:R$100,2,FALSE)),0,VLOOKUP(CB7,Tables!Q$5:R$100,2,FALSE))) -> 5 | CE7: N | CF7: =IF($BA7="","",IF(ISNA(VLOOKUP(CE7,Tables!S$5:T$100,2,FALSE)),0,VLOOKUP(CE7,Tables!S$5:T$100,2,FALSE))) -> 0 | CH7: N | CI7: =IF($BA7="","",IF(ISNA(VLOOKUP(CH7,Tables!U$5:V$100,2,FALSE)),0,VLOOKUP(CH7,Tables!U$5:V$100,2,FALSE))) -> 0 | CJ7: 2010-11-27 | CK7: 5 | CL7: 5 | CM7: =IF($BA7="","",IF(ISERROR(CL7),0,IF(ISNA(VLOOKUP(CL7,Tables!W$5:X$100,2,FALSE)),"0",VLOOKUP(CL7,Tables!W$5:X$100,2,FALSE)))) -> 5 | CN7: 2010-11-18 | CO7: 14 | CP7: 14 | CQ7: =IF($BA7="","",IF(ISERROR(CP7),0,IF(ISNA(VLOOKUP(CP7,Tables!Y$5:Z$100,2,FALSE)),"0",VLOOKUP(CP7,Tables!Y$5:Z$100,2,FALSE)))) -> 5 | CR7: 2010-11-04 | CS7: 28 | CT7: 28 | CU7: =IF($BA7="","",IF(ISERROR(CT7),0,IF(ISNA(VLOOKUP(CT7,Tables!AA$5:AB$100,2,FALSE)),"0",VLOOKUP(CT7,Tables!AA$5:AB$100,2,FALSE)))) -> 3 | CV7: 6000 | CW7: =IF(CV7="","",(Form!$H$3-CV7)/CV7*100) -> 66.66666667 | CX7: 1 | CY7: =IF($BA7="","",IF(ISERROR(CX7),0,IF(ISNA(VLOOKUP(CX7,Tables!AC$5:AD$100,2,FALSE)),"0",VLOOKUP(CX7,Tables!AC$5:AD$100,2,FALSE)))) -> -5 | CZ7: 1-11 4.5L | DA7: 1 | DB7: 1 | DC7: =IF($BA7="","",IF(ISERROR(DB7),0,IF(ISNA(VLOOKUP(DB7,Tables!AE$5:AF$100,2,FALSE)),"0",VLOOKUP(DB7,Tables!AE$5:AF$100,2,FALSE)))) -> 7 | DD7: 4.5L | DE7: 4.5 | DF7: 4.5 | DG7: 0 | DH7: 0 | DI7: =IF($BA7="","",IF(ISERROR(DH7),0,IF(ISNA(VLOOKUP(DG7,Tables!AG$5:AH$100,2,FALSE)),"0",VLOOKUP(DG7,Tables!AG$5:AH$100,2,FALSE)))) -> 7 | DJ7: 6-11 4.4L | DK7: 6 | DL7: 6 | DM7: =IF($BA7="","",IF(ISERROR(DL7),0,IF(ISNA(VLOOKUP(DL7,Tables!AI$5:AJ$100,2,FALSE)),"0",VLOOKUP(DL7,Tables!AI$5:AJ$100,2,FALSE)))) -> 0 | DN7: 4.4L | DO7: 4.4 | DP7: 4.5 | DQ7: 4.5 | DR7: 4.5 | DS7: =IF($BA7="","",IF(ISERROR(DR7),0,IF(ISNA(VLOOKUP(DQ7,Tables!AK$5:AL$100,2,FALSE)),"0",VLOOKUP(DQ7,Tables!AK$5:AL$100,2,FALSE)))) -> 2 | DT7: 1-9 0.5L | DU7: 1 | DV7: 1 | DW7: =IF($BA7="","",IF(ISERROR(DV7),0,IF(ISNA(VLOOKUP(DV7,Tables!AM$5:AN$100,2,FALSE)),"0",VLOOKUP(DV7,Tables!AM$5:AN$100,2,FALSE)))) -> 7 | DX7: 0.5L | DY7: 0.5 | DZ7: 0.5 | EA7: 0 | EB7: 0 | EC7: =IF($BC7="","",IF(ISERROR(EB7),0,IF(ISNA(VLOOKUP(EA7,Tables!AO$5:AP$100,2,FALSE)),"0",VLOOKUP(EA7,Tables!AO$5:AP$100,2,FALSE)))) -> 7 | ED7: 96 | EE7: 96 | EF7: 96 | EG7: =IF($EE7="","0",IF(ISNA(VLOOKUP(EF7,Tables!AQ$5:AR$100,2,FALSE)),"0",VLOOKUP(EF7,Tables!AQ$5:AR$100,2,FALSE))) -> 3 | EH7: =IF(BA7="","",IF(MainSheet!D14="Scratched","",BD7+BF7+BH7+BM7+BP7+BS7+BV7+BZ7+CC7+CF7+CI7+CM7+CQ7+CU7+CY7+DC7+DI7+DM7+DS7+DW7+EC7+EG7)) -> 67
A8: =IF(Meetings1!A8="","",IF(Meetings1!A8="END","END",IF(Meetings1!E8="","",getAddress(Meetings1!E8)))) -> http://formguide.cyberhorse.com.au/index.php/Form/form.html?formdate=2010-12-02&track=G'long&raceno=6 | M8: =IF(ISNA(VLOOKUP(N8,RaceList!$J$3:$L$19,3,FALSE)),"",VLOOKUP(N8,RaceList!$J$3:$L$19,3,FALSE)) -> Rockhampton | N8: =IF(Meetings2!$B8="","",Meetings2!$B8) -> ROCKHAMPTON (QR) | O8: =IF(Meetings2!D8="","",getAddress(Meetings2!D8)) -> http://www.tabonline.com.au/2010/12/02/QR01.html | P8: =IF(Meetings2!E8="","",getAddress(Meetings2!E8)) -> http://www.tabonline.com.au/2010/12/02/QR02.html | Q8: =IF(Meetings2!F8="","",getAddress(Meetings2!F8)) -> http://www.tabonline.com.au/2010/12/02/QR03.html | R8: =IF(Meetings2!G8="","",getAddress(Meetings2!G8)) -> http://www.tabonline.com.au/2010/12/02/QR04.html | S8: =IF(Meetings2!H8="","",getAddress(Meetings2!H8)) -> http://www.tabonline.com.au/2010/12/02/QR05.html | T8: =IF(Meetings2!I8="","",getAddress(Meetings2!I8)) -> http://www.tabonline.com.au/2010/12/02/QR06.html | U8: =IF(Meetings2!J8="","",getAddress(Meetings2!J8)) ->  | V8: =IF(Meetings2!K8="","",getAddress(Meetings2!K8)) ->  | W8: =IF(Meetings2!L8="","",getAddress(Meetings2!L8)) ->  | X8: =IF(Meetings2!M8="","",getAddress(Meetings2!M8)) ->  | Y8: =IF(Meetings2!N8="","",getAddress(Meetings2!N8)) ->  | AA8: 4 | AV8: 8 | AX8: =IF(Race!N8<>"",Race!C8,"") ->  | AY8: =IF(AX8<>"",Race!N8,"") ->  | AZ8: =IF(AX8<>"",Race!I8,"") ->  | BA8: =IF(Form!I11<>"",LEFT(Form!C11,FIND("(",Form!C11)-2),"") -> Zenacity | BC8: =IF(BA8="","",Form!A11) -> 7 | BD8: =IF($BA8="","",IF(ISNA(VLOOKUP(BC8,Tables!A$5:B$100,2,FALSE)),"0",VLOOKUP(BC8,Tables!A$5:B$100,2,FALSE))) -> 2 | BE8: 1 | BF8: =IF($BE8="","0",IF(ISNA(VLOOKUP(BE8,Tables!C$5:D$100,2,FALSE)),"0",VLOOKUP(BE8,Tables!C$5:D$100,2,FALSE))) -> 5 | BG8: =IF(BA8="","",Form!F11) -> 54 | BH8: =IF($BA8="","",IF(ISNA(VLOOKUP(BG8,Tables!E$5:F$100,2,FALSE)),"0",VLOOKUP(BG8,Tables!E$5:F$100,2,FALSE))) -> 2 | BI8: Cd 54.0-0.0 | BJ8: Cd 54.0 | BK8: 0 | BL8: 54.0 | BM8: =IF($BA8="","",IF(ISERROR(BL8),0,IF(ISNA(VLOOKUP(BK8,Tables!G$5:H$100,2,FALSE)),"0",VLOOKUP(BK8,Tables!G11:H$100,2,FALSE)))) -> 3 | BN8: =IF($BA8="","",Form!G11) -> 0.9 | BO8: 8 | BP8: =IF($BA8="","",IF(ISNA(VLOOKUP(BO8,Tables!I$5:J$100,2,FALSE)),"0",VLOOKUP(BO8,Tables!I$5:J$100,2,FALSE))) -> 2 | BQ8: =IF($BA8="","",Form!H11) -> 8.6 | BR8: 8 | BS8: =IF($BA8="","",IF(ISNA(VLOOKUP(BR8,Tables!K$5:L$100,2,FALSE)),"0",VLOOKUP(BR8,Tables!K$5:L$100,2,FALSE))) -> 2 | BT8: =IF($BA8="","",Form!I11) -> 28.6 | BU8: 8 | BV8: =IF($BA8="","",IF(ISNA(VLOOKUP(BU8,Tables!M$5:N$100,2,FALSE)),"0",VLOOKUP(BU8,Tables!M$5:N$100,2,FALSE))) -> 2 | BW8: =IF($BA8="","",INDEX(Race!$D$1:$P$100,MATCH($BA8,Race!$C$1:$C$100,0)+0,9)) -> 0 | BY8: N | BZ8: =IF($BA8="","",IF(ISNA(VLOOKUP(BY8,Tables!O$5:P$100,2,FALSE)),0,VLOOKUP(BY8,Tables!O$5:P$100,2,FALSE))) -> 0 | CB8: N | CC8: =IF($BA8="","",IF(ISNA(VLOOKUP(CB8,Tables!Q$5:R$100,2,FALSE)),0,VLOOKUP(CB8,Tables!Q$5:R$100,2,FALSE))) -> 0 | CE8: N | CF8: =IF($BA8="","",IF(ISNA(VLOOKUP(CE8,Tables!S$5:T$100,2,FALSE)),0,VLOOKUP(CE8,Tables!S$5:T$100,2,FALSE))) -> 0 | CH8: N | CI8: =IF($BA8="","",IF(ISNA(VLOOKUP(CH8,Tables!U$5:V$100,2,FALSE)),0,VLOOKUP(CH8,Tables!U$5:V$100,2,FALSE))) -> 0 | CJ8: 2010-11-18 | CK8: 14 | CL8: 14 | CM8: =IF($BA8="","",IF(ISERROR(CL8),0,IF(ISNA(VLOOKUP(CL8,Tables!W$5:X$100,2,FALSE)),"0",VLOOKUP(CL8,Tables!W$5:X$100,2,FALSE)))) -> 3 | CN8: 2010-11-02 | CO8: 30 | CP8: 30 | CQ8: =IF($BA8="","",IF(ISERROR(CP8),0,IF(ISNA(VLOOKUP(CP8,Tables!Y$5:Z$100,2,FALSE)),"0",VLOOKUP(CP8,Tables!Y$5:Z$100,2,FALSE)))) -> 0 | CR8: 2010-06-01 | CS8: 184 | CT8: 0 | CU8: =IF($BA8="","",IF(ISERROR(CT8),0,IF(ISNA(VLOOKUP(CT8,Tables!AA$5:AB$100,2,FALSE)),"0",VLOOKUP(CT8,Tables!AA$5:AB$100,2,FALSE)))) -> 0 | CV8: 12000 | CW8: =IF(CV8="","",(Form!$H$3-CV8)/CV8*100) -> -16.66666667 | CX8: 2 | CY8: =IF($BA8="","",IF(ISERROR(CX8),0,IF(ISNA(VLOOKUP(CX8,Tables!AC$5:AD$100,2,FALSE)),"0",VLOOKUP(CX8,Tables!AC$5:AD$100,2,FALSE)))) -> 10 | CZ8: 11-11 7.5L | DA8: 11 | DB8: 0 | DC8: =IF($BA8="","",IF(ISERROR(DB8),0,IF(ISNA(VLOOKUP(DB8,Tables!AE$5:AF$100,2,FALSE)),"0",VLOOKUP(DB8,Tables!AE$5:AF$100,2,FALSE)))) -> 0 | DD8: 7.5L | DE8: 7.5 | DF8: 7.5 | DG8: 7.5 | DH8: 7.5 | DI8: =IF($BA8="","",IF(ISERROR(DH8),0,IF(ISNA(VLOOKUP(DG8,Tables!AG$5:AH$100,2,FALSE)),"0",VLOOKUP(DG8,Tables!AG$5:AH$100,2,FALSE)))) -> 0 | DJ8: 3-5 3.7L | DK8: 3 | DL8: 3 | DM8: =IF($BA8="","",IF(ISERROR(DL8),0,IF(ISNA(VLOOKUP(DL8,Tables!AI$5:AJ$100,2,FALSE)),"0",VLOOKUP(DL8,Tables!AI$5:AJ$100,2,FALSE)))) -> 3 | DN8: 3.7L | DO8: 3.7 | DP8: 3.5 | DQ8: 3.5 | DR8: 3.5 | DS8: =IF($BA8="","",IF(ISERROR(DR8),0,IF(ISNA(VLOOKUP(DQ8,Tables!AK$5:AL$100,2,FALSE)),"0",VLOOKUP(DQ8,Tables!AK$5:AL$100,2,FALSE)))) -> 2 | DT8: 9-13 8.4L | DU8: 9 | DV8: 9 | DW8: =IF($BA8="","",IF(ISERROR(DV8),0,IF(ISNA(VLOOKUP(DV8,Tables!AM$5:AN$100,2,FALSE)),"0",VLOOKUP(DV8,Tables!AM$5:AN$100,2,FALSE)))) -> 0 | DX8: 8.4L | DY8: 8.4 | DZ8: 8.5 | EA8: 8.5 | EB8: 8.5 | EC8: =IF($BC8="","",IF(ISERROR(EB8),0,IF(ISNA(VLOOKUP(EA8,Tables!AO$5:AP$100,2,FALSE)),"0",VLOOKUP(EA8,Tables!AO$5:AP$100,2,FALSE)))) -> 0 | ED8: 92 | EE8: 92 | EF8: 92 | EG8: =IF($EE8="","0",IF(ISNA(VLOOKUP(EF8,Tables!AQ$5:AR$100,2,FALSE)),"0",VLOOKUP(EF8,Tables!AQ$5:AR$100,2,FALSE))) -> 0 | EH8: =IF(BA8="","",IF(MainSheet!D15="Scratched","",BD8+BF8+BH8+BM8+BP8+BS8+BV8+BZ8+CC8+CF8+CI8+CM8+CQ8+CU8+CY8+DC8+DI8+DM8+DS8+DW8+EC8+EG8)) -> 36
A9: =IF(Meetings1!A9="","",IF(Meetings1!A9="END","END",IF(Meetings1!E9="","",getAddress(Meetings1!E9)))) -> http://formguide.cyberhorse.com.au/index.php/Form/form.html?formdate=2010-12-02&track=G'long&raceno=7 | M9: =IF(ISNA(VLOOKUP(N9,RaceList!$J$3:$L$19,3,FALSE)),"",VLOOKUP(N9,RaceList!$J$3:$L$19,3,FALSE)) ->  | N9: =IF(Meetings2!$B9="","",Meetings2!$B9) -> HAWKESBURY (NR) | O9: =IF(Meetings2!D9="","",getAddress(Meetings2!D9)) -> http://www.tabonline.com.au/2010/12/02/NR01.html | P9: =IF(Meetings2!E9="","",getAddress(Meetings2!E9)) -> http://www.tabonline.com.au/2010/12/02/NR02.html | Q9: =IF(Meetings2!F9="","",getAddress(Meetings2!F9)) -> http://www.tabonline.com.au/2010/12/02/NR03.html | R9: =IF(Meetings2!G9="","",getAddress(Meetings2!G9)) -> http://www.tabonline.com.au/2010/12/02/NR04.html | S9: =IF(Meetings2!H9="","",getAddress(Meetings2!H9)) -> http://www.tabonline.com.au/2010/12/02/NR05.html | T9: =IF(Meetings2!I9="","",getAddress(Meetings2!I9)) -> http://www.tabonline.com.au/2010/12/02/NR06.html | U9: =IF(Meetings2!J9="","",getAddress(Meetings2!J9)) -> http://www.tabonline.com.au/2010/12/02/NR07.html | V9: =IF(Meetings2!K9="","",getAddress(Meetings2!K9)) -> http://www.tabonline.com.au/2010/12/02/NR08.html | W9: =IF(Meetings2!L9="","",getAddress(Meetings2!L9)) ->  | X9: =IF(Meetings2!M9="","",getAddress(Meetings2!M9)) ->  | Y9: =IF(Meetings2!N9="","",getAddress(Meetings2!N9)) ->  | AA9: 5 | AV9: 8 | AX9: =IF(Race!N9<>"",Race!C9,"") ->  | AY9: =IF(AX9<>"",Race!N9,"") ->  | AZ9: =IF(AX9<>"",Race!I9,"") ->  | BA9: =IF(Form!I12<>"",LEFT(Form!C12,FIND("(",Form!C12)-2),"") -> Dandy Kat | BC9: =IF(BA9="","",Form!A12) -> 8 | BD9: =IF($BA9="","",IF(ISNA(VLOOKUP(BC9,Tables!A$5:B$100,2,FALSE)),"0",VLOOKUP(BC9,Tables!A$5:B$100,2,FALSE))) -> 2 | BE9: 6 | BF9: =IF($BE9="","0",IF(ISNA(VLOOKUP(BE9,Tables!C$5:D$100,2,FALSE)),"0",VLOOKUP(BE9,Tables!C$5:D$100,2,FALSE))) -> 3 | BG9: =IF(BA9="","",Form!F12) -> 54 | BH9: =IF($BA9="","",IF(ISNA(VLOOKUP(BG9,Tables!E$5:F$100,2,FALSE)),"0",VLOOKUP(BG9,Tables!E$5:F$100,2,FALSE))) -> 2 | BI9: Cd 58.5-0.0 | BJ9: Cd 58.5 | BK9: -4.5 | BL9: 58.5 | BM9: =IF($BA9="","",IF(ISERROR(BL9),0,IF(ISNA(VLOOKUP(BK9,Tables!G$5:H$100,2,FALSE)),"0",VLOOKUP(BK9,Tables!G12:H$100,2,FALSE)))) -> 5 | BN9: =IF($BA9="","",Form!G12) -> 1.3 | BO9: 4 | BP9: =IF($BA9="","",IF(ISNA(VLOOKUP(BO9,Tables!I$5:J$100,2,FALSE)),"0",VLOOKUP(BO9,Tables!I$5:J$100,2,FALSE))) -> 3 | BQ9: =IF($BA9="","",Form!H12) -> 11.8 | BR9: 5 | BS9: =IF($BA9="","",IF(ISNA(VLOOKUP(BR9,Tables!K$5:L$100,2,FALSE)),"0",VLOOKUP(BR9,Tables!K$5:L$100,2,FALSE))) -> 3 | BT9: =IF($BA9="","",Form!I12) -> 47.1 | BU9: 2 | BV9: =IF($BA9="","",IF(ISNA(VLOOKUP(BU9,Tables!M$5:N$100,2,FALSE)),"0",VLOOKUP(BU9,Tables!M$5:N$100,2,FALSE))) -> 6 | BW9: =IF($BA9="","",INDEX(Race!$D$1:$P$100,MATCH($BA9,Race!$C$1:$C$100,0)+0,9)) -> TC | BY9: N | BZ9: =IF($BA9="","",IF(ISNA(VLOOKUP(BY9,Tables!O$5:P$100,2,FALSE)),0,VLOOKUP(BY9,Tables!O$5:P$100,2,FALSE))) -> 0 | CA9: T | CB9: Y | CC9: =IF($BA9="","",IF(ISNA(VLOOKUP(CB9,Tables!Q$5:R$100,2,FALSE)),0,VLOOKUP(CB9,Tables!Q$5:R$100,2,FALSE))) -> 5 | CD9: C | CE9: Y | CF9: =IF($BA9="","",IF(ISNA(VLOOKUP(CE9,Tables!S$5:T$100,2,FALSE)),0,VLOOKUP(CE9,Tables!S$5:T$100,2,FALSE))) -> 8 | CH9: N | CI9: =IF($BA9="","",IF(ISNA(VLOOKUP(CH9,Tables!U$5:V$100,2,FALSE)),0,VLOOKUP(CH9,Tables!U$5:V$100,2,FALSE))) -> 0 | CJ9: 2010-11-06 | CK9: 26 | CL9: 26 | CM9: =IF($BA9="","",IF(ISERROR(CL9),0,IF(ISNA(VLOOKUP(CL9,Tables!W$5:X$100,2,FALSE)),"0",VLOOKUP(CL9,Tables!W$5:X$100,2,FALSE)))) -> 0 | CN9: 2010-10-21 | CO9: 42 | CP9: 42 | CQ9: =IF($BA9="","",IF(ISERROR(CP9),0,IF(ISNA(VLOOKUP(CP9,Tables!Y$5:Z$100,2,FALSE)),"0",VLOOKUP(CP9,Tables!Y$5:Z$100,2,FALSE)))) -> 0 | CR9: 2010-10-14 | CS9: 49 | CT9: 49 | CU9: =IF($BA9="","",IF(ISERROR(CT9),0,IF(ISNA(VLOOKUP(CT9,Tables!AA$5:AB$100,2,FALSE)),"0",VLOOKUP(CT9,Tables!AA$5:AB$100,2,FALSE)))) -> 0 | CV9: 12000 | CW9: =IF(CV9="","",(Form!$H$3-CV9)/CV9*100) -> -16.66666667 | CX9: 2 | CY9: =IF($BA9="","",IF(ISERROR(CX9),0,IF(ISNA(VLOOKUP(CX9,Tables!AC$5:AD$100,2,FALSE)),"0",VLOOKUP(CX9,Tables!AC$5:AD$100,2,FALSE)))) -> 10 | CZ9: 7-8 9.9L | DA9: 7 | DB9: 7 | DC9: =IF($BA9="","",IF(ISERROR(DB9),0,IF(ISNA(VLOOKUP(DB9,Tables!AE$5:AF$100,2,FALSE)),"0",VLOOKUP(DB9,Tables!AE$5:AF$100,2,FALSE)))) -> 0 | DD9: 9.9L | DE9: 9.9 | DF9: 10 | DG9: 10 | DH9: 10 | DI9: =IF($BA9="","",IF(ISERROR(DH9),0,IF(ISNA(VLOOKUP(DG9,Tables!AG$5:AH$100,2,FALSE)),"0",VLOOKUP(DG9,Tables!AG$5:AH$100,2,FALSE)))) -> 0 | DJ9: 5-7 6.4L | DK9: 5 | DL9: 5 | DM9: =IF($BA9="","",IF(ISERROR(DL9),0,IF(ISNA(VLOOKUP(DL9,Tables!AI$5:AJ$100,2,FALSE)),"0",VLOOKUP(DL9,Tables!AI$5:AJ$100,2,FALSE)))) -> 2 | DN9: 6.4L | DO9: 6.4 | DP9: 6.5 | DQ9: 6.5 | DR9: 6.5 | DS9: =IF($BA9="","",IF(ISERROR(DR9),0,IF(ISNA(VLOOKUP(DQ9,Tables!AK$5:AL$100,2,FALSE)),"0",VLOOKUP(DQ9,Tables!AK$5:AL$100,2,FALSE)))) -> 0 | DT9: 4-10 3.0L | DU9: 4 | DV9: 4 | DW9: =IF($BA9="","",IF(ISERROR(DV9),0,IF(ISNA(VLOOKUP(DV9,Tables!AM$5:AN$100,2,FALSE)),"0",VLOOKUP(DV9,Tables!AM$5:AN$100,2,FALSE)))) -> 2 | DX9: 3.0L | DY9: 3.0 | DZ9: 3 | EA9: 3 | EB9: 3 | EC9: =IF($BC9="","",IF(ISERROR(EB9),0,IF(ISNA(VLOOKUP(EA9,Tables!AO$5:AP$100,2,FALSE)),"0",VLOOKUP(EA9,Tables!AO$5:AP$100,2,FALSE)))) -> 3 | ED9: 94 | EE9: 94 | EF9: 94 | EG9: =IF($EE9="","0",IF(ISNA(VLOOKUP(EF9,Tables!AQ$5:AR$100,2,FALSE)),"0",VLOOKUP(EF9,Tables!AQ$5:AR$100,2,FALSE))) -> 2 | EH9: =IF(BA9="","",IF(MainSheet!D16="Scratched","",BD9+BF9+BH9+BM9+BP9+BS9+BV9+BZ9+CC9+CF9+CI9+CM9+CQ9+CU9+CY9+DC9+DI9+DM9+DS9+DW9+EC9+EG9)) -> 56
A10: =IF(Meetings1!A10="","",IF(Meetings1!A10="END","END",IF(Meetings1!E10="","",getAddress(Meetings1!E10)))) -> http://formguide.cyberhorse.com.au/index.php/Form/form.html?formdate=2010-12-02&track=G'long&raceno=8 | M10: =IF(ISNA(VLOOKUP(N10,RaceList!$J$3:$L$19,3,FALSE)),"",VLOOKUP(N10,RaceList!$J$3:$L$19,3,FALSE)) ->  | N10: =IF(Meetings2!$B10="","",Meetings2!$B10) -> GEELONG (VR) | O10: =IF(Meetings2!D10="","",getAddress(Meetings2!D10)) -> http://www.tabonline.com.au/2010/12/02/VR01.html | P10: =IF(Meetings2!E10="","",getAddress(Meetings2!E10)) -> http://www.tabonline.com.au/2010/12/02/VR02.html | Q10: =IF(Meetings2!F10="","",getAddress(Meetings2!F10)) -> http://www.tabonline.com.au/2010/12/02/VR03.html | R10: =IF(Meetings2!G10="","",getAddress(Meetings2!G10)) -> http://www.tabonline.com.au/2010/12/02/VR04.html | S10: =IF(Meetings2!H10="","",getAddress(Meetings2!H10)) -> http://www.tabonline.com.au/2010/12/02/VR05.html | T10: =IF(Meetings2!I10="","",getAddress(Meetings2!I10)) -> http://www.tabonline.com.au/2010/12/02/VR06.html | U10: =IF(Meetings2!J10="","",getAddress(Meetings2!J10)) -> http://www.tabonline.com.au/2010/12/02/VR07.html | V10: =IF(Meetings2!K10="","",getAddress(Meetings2!K10)) -> http://www.tabonline.com.au/2010/12/02/VR08.html | W10: =IF(Meetings2!L10="","",getAddress(Meetings2!L10)) ->  | X10: =IF(Meetings2!M10="","",getAddress(Meetings2!M10)) ->  | Y10: =IF(Meetings2!N10="","",getAddress(Meetings2!N10)) ->  | AA10: 6 | AV10: 8 | AX10: =IF(Race!N10<>"",Race!C10,"") ->  | AY10: =IF(AX10<>"",Race!N10,"") ->  | AZ10: =IF(AX10<>"",Race!I10,"") ->  | BA10: =IF(Form!I13<>"",LEFT(Form!C13,FIND("(",Form!C13)-2),"") -> Fu Min Bu | BC10: =IF(BA10="","",Form!A13) -> 9 | BD10: =IF($BA10="","",IF(ISNA(VLOOKUP(BC10,Tables!A$5:B$100,2,FALSE)),"0",VLOOKUP(BC10,Tables!A$5:B$100,2,FALSE))) -> 2 | BE10: 9 | BF10: =IF($BE10="","0",IF(ISNA(VLOOKUP(BE10,Tables!C$5:D$100,2,FALSE)),"0",VLOOKUP(BE10,Tables!C$5:D$100,2,FALSE))) -> 2 | BG10: =IF(BA10="","",Form!F13) -> 54 | BH10: =IF($BA10="","",IF(ISNA(VLOOKUP(BG10,Tables!E$5:F$100,2,FALSE)),"0",VLOOKUP(BG10,Tables!E$5:F$100,2,FALSE))) -> 2 | BI10: Cd 53.5--2.0 | BJ10: Cd 53.5 | BK10: 0.5 | BL10: 53.5 | BM10: =IF($BA10="","",IF(ISERROR(BL10),0,IF(ISNA(VLOOKUP(BK10,Tables!G$5:H$100,2,FALSE)),"0",VLOOKUP(BK10,Tables!G13:H$100,2,FALSE)))) -> 3 | BN10: =IF($BA10="","",Form!G13) -> 0.5 | BO10: 9 | BP10: =IF($BA10="","",IF(ISNA(VLOOKUP(BO10,Tables!I$5:J$100,2,FALSE)),"0",VLOOKUP(BO10,Tables!I$5:J$100,2,FALSE))) -> 2 | BQ10: =IF($BA10="","",Form!H13) -> 5.4 | BR10: 9 | BS10: =IF($BA10="","",IF(ISNA(VLOOKUP(BR10,Tables!K$5:L$100,2,FALSE)),"0",VLOOKUP(BR10,Tables!K$5:L$100,2,FALSE))) -> 2 | BT10: =IF($BA10="","",Form!I13) -> 21.6 | BU10: 9 | BV10: =IF($BA10="","",IF(ISNA(VLOOKUP(BU10,Tables!M$5:N$100,2,FALSE)),"0",VLOOKUP(BU10,Tables!M$5:N$100,2,FALSE))) -> 2 | BW10: =IF($BA10="","",INDEX(Race!$D$1:$P$100,MATCH($BA10,Race!$C$1:$C$100,0)+0,9)) -> 0 | BY10: N | BZ10: =IF($BA10="","",IF(ISNA(VLOOKUP(BY10,Tables!O$5:P$100,2,FALSE)),0,VLOOKUP(BY10,Tables!O$5:P$100,2,FALSE))) -> 0 | CB10: N | CC10: =IF($BA10="","",IF(ISNA(VLOOKUP(CB10,Tables!Q$5:R$100,2,FALSE)),0,VLOOKUP(CB10,Tables!Q$5:R$100,2,FALSE))) -> 0 | CE10: N | CF10: =IF($BA10="","",IF(ISNA(VLOOKUP(CE10,Tables!S$5:T$100,2,FALSE)),0,VLOOKUP(CE10,Tables!S$5:T$100,2,FALSE))) -> 0 | CH10: N | CI10: =IF($BA10="","",IF(ISNA(VLOOKUP(CH10,Tables!U$5:V$100,2,FALSE)),0,VLOOKUP(CH10,Tables!U$5:V$100,2,FALSE))) -> 0 | CJ10: 2010-11-02 | CK10: 30 | CL10: 30 | CM10: =IF($BA10="","",IF(ISERROR(CL10),0,IF(ISNA(VLOOKUP(CL10,Tables!W$5:X$100,2,FALSE)),"0",VLOOKUP(CL10,Tables!W$5:X$100,2,FALSE)))) -> 0 | CN10: 2010-10-02 | CO10: 61 | CP10: 61 | CQ10: =IF($BA10="","",IF(ISERROR(CP10),0,IF(ISNA(VLOOKUP(CP10,Tables!Y$5:Z$100,2,FALSE)),"0",VLOOKUP(CP10,Tables!Y$5:Z$100,2,FALSE)))) -> 0 | CR10: 2010-09-25 | CS10: 68 | CT10: 68 | CU10: =IF($BA10="","",IF(ISERROR(CT10),0,IF(ISNA(VLOOKUP(CT10,Tables!AA$5:AB$100,2,FALSE)),"0",VLOOKUP(CT10,Tables!AA$5:AB$100,2,FALSE)))) -> 0 | CV10: 4000 | CW10: =IF(CV10="","",(Form!$H$3-CV10)/CV10*100) -> 150 | CX10: 1 | CY10: =IF($BA10="","",IF(ISERROR(CX10),0,IF(ISNA(VLOOKUP(CX10,Tables!AC$5:AD$100,2,FALSE)),"0",VLOOKUP(CX10,Tables!AC$5:AD$100,2,FALSE)))) -> -5 | CZ10: 6-8 4.0L | DA10: 6 | DB10: 6 | DC10: =IF($BA10="","",IF(ISERROR(DB10),0,IF(ISNA(VLOOKUP(DB10,Tables!AE$5:AF$100,2,FALSE)),"0",VLOOKUP(DB10,Tables!AE$5:AF$100,2,FALSE)))) -> 0 | DD10: 4.0L | DE10: 4.0 | DF10: 4 | DG10: 4 | DH10: 4 | DI10: =IF($BA10="","",IF(ISERROR(DH10),0,IF(ISNA(VLOOKUP(DG10,Tables!AG$5:AH$100,2,FALSE)),"0",VLOOKUP(DG10,Tables!AG$5:AH$100,2,FALSE)))) -> 2 | DJ10: 6-7 4.8L | DK10: 6 | DL10: 6 | DM10: =IF($BA10="","",IF(ISERROR(DL10),0,IF(ISNA(VLOOKUP(DL10,Tables!AI$5:AJ$100,2,FALSE)),"0",VLOOKUP(DL10,Tables!AI$5:AJ$100,2,FALSE)))) -> 0 | DN10: 4.8L | DO10: 4.8 | DP10: 5 | DQ10: 5 | DR10: 5 | DS10: =IF($BA10="","",IF(ISERROR(DR10),0,IF(ISNA(VLOOKUP(DQ10,Tables!AK$5:AL$100,2,FALSE)),"0",VLOOKUP(DQ10,Tables!AK$5:AL$100,2,FALSE)))) -> 2 | DT10: 3-12 1.8L | DU10: 3 | DV10: 3 | DW10: =IF($BA10="","",IF(ISERROR(DV10),0,IF(ISNA(VLOOKUP(DV10,Tables!AM$5:AN$100,2,FALSE)),"0",VLOOKUP(DV10,Tables!AM$5:AN$100,2,FALSE)))) -> 3 | DX10: 1.8L | DY10: 1.8 | DZ10: 2 | EA10: 2 | EB10: 2 | EC10: =IF($BC10="","",IF(ISERROR(EB10),0,IF(ISNA(VLOOKUP(EA10,Tables!AO$5:AP$100,2,FALSE)),"0",VLOOKUP(EA10,Tables!AO$5:AP$100,2,FALSE)))) -> 5 | ED10: 96 | EE10: 96 | EF10: 96 | EG10: =IF($EE10="","0",IF(ISNA(VLOOKUP(EF10,Tables!AQ$5:AR$100,2,FALSE)),"0",VLOOKUP(EF10,Tables!AQ$5:AR$100,2,FALSE))) -> 3 | EH10: =IF(BA10="","",IF(MainSheet!D17="Scratched","",BD10+BF10+BH10+BM10+BP10+BS10+BV10+BZ10+CC10+CF10+CI10+CM10+CQ10+CU10+CY10+DC10+DI10+DM10+DS10+DW10+EC10+EG10)) -> 25
A11: =IF(Meetings1!A11="","",IF(Meetings1!A11="END","END",IF(Meetings1!E11="","",getAddress(Meetings1!E11)))) ->  | M11: =IF(ISNA(VLOOKUP(N11,RaceList!$J$3:$L$19,3,FALSE)),"",VLOOKUP(N11,RaceList!$J$3:$L$19,3,FALSE)) ->  | N11: =IF(Meetings2!$B11="","",Meetings2!$B11) -> PINJARRA (PR) | O11: =IF(Meetings2!D11="","",getAddress(Meetings2!D11)) -> http://www.tabonline.com.au/2010/12/02/PR01.html | P11: =IF(Meetings2!E11="","",getAddress(Meetings2!E11)) -> http://www.tabonline.com.au/2010/12/02/PR02.html | Q11: =IF(Meetings2!F11="","",getAddress(Meetings2!F11)) -> http://www.tabonline.com.au/2010/12/02/PR03.html | R11: =IF(Meetings2!G11="","",getAddress(Meetings2!G11)) -> http://www.tabonline.com.au/2010/12/02/PR04.html | S11: =IF(Meetings2!H11="","",getAddress(Meetings2!H11)) -> http://www.tabonline.com.au/2010/12/02/PR05.html | T11: =IF(Meetings2!I11="","",getAddress(Meetings2!I11)) -> http://www.tabonline.com.au/2010/12/02/PR06.html | U11: =IF(Meetings2!J11="","",getAddress(Meetings2!J11)) -> http://www.tabonline.com.au/2010/12/02/PR07.html | V11: =IF(Meetings2!K11="","",getAddress(Meetings2!K11)) -> http://www.tabonline.com.au/2010/12/02/PR08.html | W11: =IF(Meetings2!L11="","",getAddress(Meetings2!L11)) ->  | X11: =IF(Meetings2!M11="","",getAddress(Meetings2!M11)) ->  | Y11: =IF(Meetings2!N11="","",getAddress(Meetings2!N11)) ->  | AA11: 7 | AV11: 7 | AX11: =IF(Race!N11<>"",Race!C11,"") ->  | AY11: =IF(AX11<>"",Race!N11,"") ->  | AZ11: =IF(AX11<>"",Race!I11,"") ->  | BA11: =IF(Form!I14<>"",LEFT(Form!C14,FIND("(",Form!C14)-2),"") ->  | BC11: =IF(BA11="","",Form!A14) ->  | BD11: =IF($BA11="","",IF(ISNA(VLOOKUP(BC11,Tables!A$5:B$100,2,FALSE)),"0",VLOOKUP(BC11,Tables!A$5:B$100,2,FALSE))) ->  | BF11: =IF($BE11="","0",IF(ISNA(VLOOKUP(BE11,Tables!C$5:D$100,2,FALSE)),"0",VLOOKUP(BE11,Tables!C$5:D$100,2,FALSE))) -> 0 | BG11: =IF(BA11="","",Form!F14) ->  | BH11: =IF($BA11="","",IF(ISNA(VLOOKUP(BG11,Tables!E$5:F$100,2,FALSE)),"0",VLOOKUP(BG11,Tables!E$5:F$100,2,FALSE))) ->  | BM11: =IF($BA11="","",IF(ISERROR(BL11),0,IF(ISNA(VLOOKUP(BK11,Tables!G$5:H$100,2,FALSE)),"0",VLOOKUP(BK11,Tables!G14:H$100,2,FALSE)))) ->  | BN11: =IF($BA11="","",Form!G14) ->  | BP11: =IF($BA11="","",IF(ISNA(VLOOKUP(BO11,Tables!I$5:J$100,2,FALSE)),"0",VLOOKUP(BO11,Tables!I$5:J$100,2,FALSE))) ->  | BQ11: =IF($BA11="","",Form!H14) ->  | BS11: =IF($BA11="","",IF(ISNA(VLOOKUP(BR11,Tables!K$5:L$100,2,FALSE)),"0",VLOOKUP(BR11,Tables!K$5:L$100,2,FALSE))) ->  | BT11: =IF($BA11="","",Form!I14) ->  | BV11: =IF($BA11="","",IF(ISNA(VLOOKUP(BU11,Tables!M$5:N$100,2,FALSE)),"0",VLOOKUP(BU11,Tables!M$5:N$100,2,FALSE))) ->  | BW11: =IF($BA11="","",INDEX(Race!$D$1:$P$100,MATCH($BA11,Race!$C$1:$C$100,0)+0,9)) ->  | BY11: N | BZ11: =IF($BA11="","",IF(ISNA(VLOOKUP(BY11,Tables!O$5:P$100,2,FALSE)),0,VLOOKUP(BY11,Tables!O$5:P$100,2,FALSE))) ->  | CB11: N | CC11: =IF($BA11="","",IF(ISNA(VLOOKUP(CB11,Tables!Q$5:R$100,2,FALSE)),0,VLOOKUP(CB11,Tables!Q$5:R$100,2,FALSE))) ->  | CE11: N | CF11: =IF($BA11="","",IF(ISNA(VLOOKUP(CE11,Tables!S$5:T$100,2,FALSE)),0,VLOOKUP(CE11,Tables!S$5:T$100,2,FALSE))) ->  | CH11: N | CI11: =IF($BA11="","",IF(ISNA(VLOOKUP(CH11,Tables!U$5:V$100,2,FALSE)),0,VLOOKUP(CH11,Tables!U$5:V$100,2,FALSE))) ->  | CL11: 0 | CM11: =IF($BA11="","",IF(ISERROR(CL11),0,IF(ISNA(VLOOKUP(CL11,Tables!W$5:X$100,2,FALSE)),"0",VLOOKUP(CL11,Tables!W$5:X$100,2,FALSE)))) ->  | CP11: 0 | CQ11: =IF($BA11="","",IF(ISERROR(CP11),0,IF(ISNA(VLOOKUP(CP11,Tables!Y$5:Z$100,2,FALSE)),"0",VLOOKUP(CP11,Tables!Y$5:Z$100,2,FALSE)))) ->  | CT11: 0 | CU11: =IF($BA11="","",IF(ISERROR(CT11),0,IF(ISNA(VLOOKUP(CT11,Tables!AA$5:AB$100,2,FALSE)),"0",VLOOKUP(CT11,Tables!AA$5:AB$100,2,FALSE)))) ->  | CW11: =IF(CV11="","",(Form!$H$3-CV11)/CV11*100) ->  | CY11: =IF($BA11="","",IF(ISERROR(CX11),0,IF(ISNA(VLOOKUP(CX11,Tables!AC$5:AD$100,2,FALSE)),"0",VLOOKUP(CX11,Tables!AC$5:AD$100,2,FALSE)))) ->  | DC11: =IF($BA11="","",IF(ISERROR(DB11),0,IF(ISNA(VLOOKUP(DB11,Tables!AE$5:AF$100,2,FALSE)),"0",VLOOKUP(DB11,Tables!AE$5:AF$100,2,FALSE)))) ->  | DI11: =IF($BA11="","",IF(ISERROR(DH11),0,IF(ISNA(VLOOKUP(DG11,Tables!AG$5:AH$100,2,FALSE)),"0",VLOOKUP(DG11,Tables!AG$5:AH$100,2,FALSE)))) ->  | DM11: =IF($BA11="","",IF(ISERROR(DL11),0,IF(ISNA(VLOOKUP(DL11,Tables!AI$5:AJ$100,2,FALSE)),"0",VLOOKUP(DL11,Tables!AI$5:AJ$100,2,FALSE)))) ->  | DS11: =IF($BA11="","",IF(ISERROR(DR11),0,IF(ISNA(VLOOKUP(DQ11,Tables!AK$5:AL$100,2,FALSE)),"0",VLOOKUP(DQ11,Tables!AK$5:AL$100,2,FALSE)))) ->  | DW11: =IF($BA11="","",IF(ISERROR(DV11),0,IF(ISNA(VLOOKUP(DV11,Tables!AM$5:AN$100,2,FALSE)),"0",VLOOKUP(DV11,Tables!AM$5:AN$100,2,FALSE)))) ->  | EC11: =IF($BC11="","",IF(ISERROR(EB11),0,IF(ISNA(VLOOKUP(EA11,Tables!AO$5:AP$100,2,FALSE)),"0",VLOOKUP(EA11,Tables!AO$5:AP$100,2,FALSE)))) ->  | EG11: =IF($EE11="","0",IF(ISNA(VLOOKUP(EF11,Tables!AQ$5:AR$100,2,FALSE)),"0",VLOOKUP(EF11,Tables!AQ$5:AR$100,2,FALSE))) -> 0 | EH11: =IF(BA11="","",IF(MainSheet!D18="Scratched","",BD11+BF11+BH11+BM11+BP11+BS11+BV11+BZ11+CC11+CF11+CI11+CM11+CQ11+CU11+CY11+DC11+DI11+DM11+DS11+DW11+EC11+EG11)) -> 
A12: =IF(Meetings1!A12="","",IF(Meetings1!A12="END","END",IF(Meetings1!E12="","",getAddress(Meetings1!E12)))) -> http://formguide.cyberhorse.com.au/index.php/Form/form.html?formdate=2010-12-02&track=H'bury&raceno=1 | M12: =IF(ISNA(VLOOKUP(N12,RaceList!$J$3:$L$19,3,FALSE)),"",VLOOKUP(N12,RaceList!$J$3:$L$19,3,FALSE)) ->  | N12: =IF(Meetings2!$B12="","",Meetings2!$B12) -> LAUNCESTON (TR) | O12: =IF(Meetings2!D12="","",getAddress(Meetings2!D12)) -> http://www.tabonline.com.au/2010/12/02/TR01.html | P12: =IF(Meetings2!E12="","",getAddress(Meetings2!E12)) -> http://www.tabonline.com.au/2010/12/02/TR02.html | Q12: =IF(Meetings2!F12="","",getAddress(Meetings2!F12)) -> http://www.tabonline.com.au/2010/12/02/TR03.html | R12: =IF(Meetings2!G12="","",getAddress(Meetings2!G12)) -> http://www.tabonline.com.au/2010/12/02/TR04.html | S12: =IF(Meetings2!H12="","",getAddress(Meetings2!H12)) -> http://www.tabonline.com.au/2010/12/02/TR05.html | T12: =IF(Meetings2!I12="","",getAddress(Meetings2!I12)) -> http://www.tabonline.com.au/2010/12/02/TR06.html | U12: =IF(Meetings2!J12="","",getAddress(Meetings2!J12)) -> http://www.tabonline.com.au/2010/12/02/TR07.html | V12: =IF(Meetings2!K12="","",getAddress(Meetings2!K12)) -> http://www.tabonline.com.au/2010/12/02/TR08.html | W12: =IF(Meetings2!L12="","",getAddress(Meetings2!L12)) ->  | X12: =IF(Meetings2!M12="","",getAddress(Meetings2!M12)) ->  | Y12: =IF(Meetings2!N12="","",getAddress(Meetings2!N12)) ->  | AA12: 8 | AV12: 7 | AX12: =IF(Race!N12<>"",Race!C12,"") ->  | AY12: =IF(AX12<>"",Race!N12,"") ->  | AZ12: =IF(AX12<>"",Race!I12,"") ->  | BA12: =IF(Form!I15<>"",LEFT(Form!C15,FIND("(",Form!C15)-2),"") ->  | BC12: =IF(BA12="","",Form!A15) ->  | BD12: =IF($BA12="","",IF(ISNA(VLOOKUP(BC12,Tables!A$5:B$100,2,FALSE)),"0",VLOOKUP(BC12,Tables!A$5:B$100,2,FALSE))) ->  | BF12: =IF($BE12="","0",IF(ISNA(VLOOKUP(BE12,Tables!C$5:D$100,2,FALSE)),"0",VLOOKUP(BE12,Tables!C$5:D$100,2,FALSE))) -> 0 | BG12: =IF(BA12="","",Form!F15) ->  | BH12: =IF($BA12="","",IF(ISNA(VLOOKUP(BG12,Tables!E$5:F$100,2,FALSE)),"0",VLOOKUP(BG12,Tables!E$5:F$100,2,FALSE))) ->  | BM12: =IF($BA12="","",IF(ISERROR(BL12),0,IF(ISNA(VLOOKUP(BK12,Tables!G$5:H$100,2,FALSE)),"0",VLOOKUP(BK12,Tables!G15:H$100,2,FALSE)))) ->  | BN12: =IF($BA12="","",Form!G15) ->  | BP12: =IF($BA12="","",IF(ISNA(VLOOKUP(BO12,Tables!I$5:J$100,2,FALSE)),"0",VLOOKUP(BO12,Tables!I$5:J$100,2,FALSE))) ->  | BQ12: =IF($BA12="","",Form!H15) ->  | BS12: =IF($BA12="","",IF(ISNA(VLOOKUP(BR12,Tables!K$5:L$100,2,FALSE)),"0",VLOOKUP(BR12,Tables!K$5:L$100,2,FALSE))) ->  | BT12: =IF($BA12="","",Form!I15) ->  | BV12: =IF($BA12="","",IF(ISNA(VLOOKUP(BU12,Tables!M$5:N$100,2,FALSE)),"0",VLOOKUP(BU12,Tables!M$5:N$100,2,FALSE))) ->  | BW12: =IF($BA12="","",INDEX(Race!$D$1:$P$100,MATCH($BA12,Race!$C$1:$C$100,0)+0,9)) ->  | BY12: N | BZ12: =IF($BA12="","",IF(ISNA(VLOOKUP(BY12,Tables!O$5:P$100,2,FALSE)),0,VLOOKUP(BY12,Tables!O$5:P$100,2,FALSE))) ->  | CB12: N | CC12: =IF($BA12="","",IF(ISNA(VLOOKUP(CB12,Tables!Q$5:R$100,2,FALSE)),0,VLOOKUP(CB12,Tables!Q$5:R$100,2,FALSE))) ->  | CE12: N | CF12: =IF($BA12="","",IF(ISNA(VLOOKUP(CE12,Tables!S$5:T$100,2,FALSE)),0,VLOOKUP(CE12,Tables!S$5:T$100,2,FALSE))) ->  | CH12: N | CI12: =IF($BA12="","",IF(ISNA(VLOOKUP(CH12,Tables!U$5:V$100,2,FALSE)),0,VLOOKUP(CH12,Tables!U$5:V$100,2,FALSE))) ->  | CL12: 0 | CM12: =IF($BA12="","",IF(ISERROR(CL12),0,IF(ISNA(VLOOKUP(CL12,Tables!W$5:X$100,2,FALSE)),"0",VLOOKUP(CL12,Tables!W$5:X$100,2,FALSE)))) ->  | CP12: 0 | CQ12: =IF($BA12="","",IF(ISERROR(CP12),0,IF(ISNA(VLOOKUP(CP12,Tables!Y$5:Z$100,2,FALSE)),"0",VLOOKUP(CP12,Tables!Y$5:Z$100,2,FALSE)))) ->  | CT12: 0 | CU12: =IF($BA12="","",IF(ISERROR(CT12),0,IF(ISNA(VLOOKUP(CT12,Tables!AA$5:AB$100,2,FALSE)),"0",VLOOKUP(CT12,Tables!AA$5:AB$100,2,FALSE)))) ->  | CW12: =IF(CV12="","",(Form!$H$3-CV12)/CV12*100) ->  | CY12: =IF($BA12="","",IF(ISERROR(CX12),0,IF(ISNA(VLOOKUP(CX12,Tables!AC$5:AD$100,2,FALSE)),"0",VLOOKUP(CX12,Tables!AC$5:AD$100,2,FALSE)))) ->  | DC12: =IF($BA12="","",IF(ISERROR(DB12),0,IF(ISNA(VLOOKUP(DB12,Tables!AE$5:AF$100,2,FALSE)),"0",VLOOKUP(DB12,Tables!AE$5:AF$100,2,FALSE)))) ->  | DI12: =IF($BA12="","",IF(ISERROR(DH12),0,IF(ISNA(VLOOKUP(DG12,Tables!AG$5:AH$100,2,FALSE)),"0",VLOOKUP(DG12,Tables!AG$5:AH$100,2,FALSE)))) ->  | DM12: =IF($BA12="","",IF(ISERROR(DL12),0,IF(ISNA(VLOOKUP(DL12,Tables!AI$5:AJ$100,2,FALSE)),"0",VLOOKUP(DL12,Tables!AI$5:AJ$100,2,FALSE)))) ->  | DS12: =IF($BA12="","",IF(ISERROR(DR12),0,IF(ISNA(VLOOKUP(DQ12,Tables!AK$5:AL$100,2,FALSE)),"0",VLOOKUP(DQ12,Tables!AK$5:AL$100,2,FALSE)))) ->  | DW12: =IF($BA12="","",IF(ISERROR(DV12),0,IF(ISNA(VLOOKUP(DV12,Tables!AM$5:AN$100,2,FALSE)),"0",VLOOKUP(DV12,Tables!AM$5:AN$100,2,FALSE)))) ->  | EC12: =IF($BC12="","",IF(ISERROR(EB12),0,IF(ISNA(VLOOKUP(EA12,Tables!AO$5:AP$100,2,FALSE)),"0",VLOOKUP(EA12,Tables!AO$5:AP$100,2,FALSE)))) ->  | EG12: =IF($EE12="","0",IF(ISNA(VLOOKUP(EF12,Tables!AQ$5:AR$100,2,FALSE)),"0",VLOOKUP(EF12,Tables!AQ$5:AR$100,2,FALSE))) -> 0 | EH12: =IF(BA12="","",IF(MainSheet!D19="Scratched","",BD12+BF12+BH12+BM12+BP12+BS12+BV12+BZ12+CC12+CF12+CI12+CM12+CQ12+CU12+CY12+DC12+DI12+DM12+DS12+DW12+EC12+EG12)) -> 
A13: =IF(Meetings1!A13="","",IF(Meetings1!A13="END","END",IF(Meetings1!E13="","",getAddress(Meetings1!E13)))) -> http://formguide.cyberhorse.com.au/index.php/Form/form.html?formdate=2010-12-02&track=H'bury&raceno=2 | M13: =IF(ISNA(VLOOKUP(N13,RaceList!$J$3:$L$19,3,FALSE)),"",VLOOKUP(N13,RaceList!$J$3:$L$19,3,FALSE)) ->  | N13: =IF(Meetings2!$B13="","",Meetings2!$B13) -> VAAL (AS) | O13: =IF(Meetings2!D13="","",getAddress(Meetings2!D13)) -> http://www.tabonline.com.au/2010/12/02/AS01.html | P13: =IF(Meetings2!E13="","",getAddress(Meetings2!E13)) -> http://www.tabonline.com.au/2010/12/02/AS02.html | Q13: =IF(Meetings2!F13="","",getAddress(Meetings2!F13)) -> http://www.tabonline.com.au/2010/12/02/AS03.html | R13: =IF(Meetings2!G13="","",getAddress(Meetings2!G13)) -> http://www.tabonline.com.au/2010/12/02/AS04.html | S13: =IF(Meetings2!H13="","",getAddress(Meetings2!H13)) -> http://www.tabonline.com.au/2010/12/02/AS05.html | T13: =IF(Meetings2!I13="","",getAddress(Meetings2!I13)) -> http://www.tabonline.com.au/2010/12/02/AS06.html | U13: =IF(Meetings2!J13="","",getAddress(Meetings2!J13)) -> http://www.tabonline.com.au/2010/12/02/AS07.html | V13: =IF(Meetings2!K13="","",getAddress(Meetings2!K13)) ->  | W13: =IF(Meetings2!L13="","",getAddress(Meetings2!L13)) ->  | X13: =IF(Meetings2!M13="","",getAddress(Meetings2!M13)) ->  | Y13: =IF(Meetings2!N13="","",getAddress(Meetings2!N13)) ->  | AA13: 9 | AV13: 7 | AX13: =IF(Race!N13<>"",Race!C13,"") ->  | AY13: =IF(AX13<>"",Race!N13,"") ->  | AZ13: =IF(AX13<>"",Race!I13,"") ->  | BA13: =IF(Form!I16<>"",LEFT(Form!C16,FIND("(",Form!C16)-2),"") ->  | BC13: =IF(BA13="","",Form!A16) ->  | BD13: =IF($BA13="","",IF(ISNA(VLOOKUP(BC13,Tables!A$5:B$100,2,FALSE)),"0",VLOOKUP(BC13,Tables!A$5:B$100,2,FALSE))) ->  | BF13: =IF($BE13="","0",IF(ISNA(VLOOKUP(BE13,Tables!C$5:D$100,2,FALSE)),"0",VLOOKUP(BE13,Tables!C$5:D$100,2,FALSE))) -> 0 | BG13: =IF(BA13="","",Form!F16) ->  | BH13: =IF($BA13="","",IF(ISNA(VLOOKUP(BG13,Tables!E$5:F$100,2,FALSE)),"0",VLOOKUP(BG13,Tables!E$5:F$100,2,FALSE))) ->  | BM13: =IF($BA13="","",IF(ISERROR(BL13),0,IF(ISNA(VLOOKUP(BK13,Tables!G$5:H$100,2,FALSE)),"0",VLOOKUP(BK13,Tables!G16:H$100,2,FALSE)))) ->  | BN13: =IF($BA13="","",Form!G16) ->  | BP13: =IF($BA13="","",IF(ISNA(VLOOKUP(BO13,Tables!I$5:J$100,2,FALSE)),"0",VLOOKUP(BO13,Tables!I$5:J$100,2,FALSE))) ->  | BQ13: =IF($BA13="","",Form!H16) ->  | BS13: =IF($BA13="","",IF(ISNA(VLOOKUP(BR13,Tables!K$5:L$100,2,FALSE)),"0",VLOOKUP(BR13,Tables!K$5:L$100,2,FALSE))) ->  | BT13: =IF($BA13="","",Form!I16) ->  | BV13: =IF($BA13="","",IF(ISNA(VLOOKUP(BU13,Tables!M$5:N$100,2,FALSE)),"0",VLOOKUP(BU13,Tables!M$5:N$100,2,FALSE))) ->  | BW13: =IF($BA13="","",INDEX(Race!$D$1:$P$100,MATCH($BA13,Race!$C$1:$C$100,0)+0,9)) ->  | BY13: N | BZ13: =IF($BA13="","",IF(ISNA(VLOOKUP(BY13,Tables!O$5:P$100,2,FALSE)),0,VLOOKUP(BY13,Tables!O$5:P$100,2,FALSE))) ->  | CB13: N | CC13: =IF($BA13="","",IF(ISNA(VLOOKUP(CB13,Tables!Q$5:R$100,2,FALSE)),0,VLOOKUP(CB13,Tables!Q$5:R$100,2,FALSE))) ->  | CE13: N | CF13: =IF($BA13="","",IF(ISNA(VLOOKUP(CE13,Tables!S$5:T$100,2,FALSE)),0,VLOOKUP(CE13,Tables!S$5:T$100,2,FALSE))) ->  | CH13: N | CI13: =IF($BA13="","",IF(ISNA(VLOOKUP(CH13,Tables!U$5:V$100,2,FALSE)),0,VLOOKUP(CH13,Tables!U$5:V$100,2,FALSE))) ->  | CL13: 0 | CM13: =IF($BA13="","",IF(ISERROR(CL13),0,IF(ISNA(VLOOKUP(CL13,Tables!W$5:X$100,2,FALSE)),"0",VLOOKUP(CL13,Tables!W$5:X$100,2,FALSE)))) ->  | CP13: 0 | CQ13: =IF($BA13="","",IF(ISERROR(CP13),0,IF(ISNA(VLOOKUP(CP13,Tables!Y$5:Z$100,2,FALSE)),"0",VLOOKUP(CP13,Tables!Y$5:Z$100,2,FALSE)))) ->  | CT13: 0 | CU13: =IF($BA13="","",IF(ISERROR(CT13),0,IF(ISNA(VLOOKUP(CT13,Tables!AA$5:AB$100,2,FALSE)),"0",VLOOKUP(CT13,Tables!AA$5:AB$100,2,FALSE)))) ->  | CW13: =IF(CV13="","",(Form!$H$3-CV13)/CV13*100) ->  | CY13: =IF($BA13="","",IF(ISERROR(CX13),0,IF(ISNA(VLOOKUP(CX13,Tables!AC$5:AD$100,2,FALSE)),"0",VLOOKUP(CX13,Tables!AC$5:AD$100,2,FALSE)))) ->  | DC13: =IF($BA13="","",IF(ISERROR(DB13),0,IF(ISNA(VLOOKUP(DB13,Tables!AE$5:AF$100,2,FALSE)),"0",VLOOKUP(DB13,Tables!AE$5:AF$100,2,FALSE)))) ->  | DI13: =IF($BA13="","",IF(ISERROR(DH13),0,IF(ISNA(VLOOKUP(DG13,Tables!AG$5:AH$100,2,FALSE)),"0",VLOOKUP(DG13,Tables!AG$5:AH$100,2,FALSE)))) ->  | DM13: =IF($BA13="","",IF(ISERROR(DL13),0,IF(ISNA(VLOOKUP(DL13,Tables!AI$5:AJ$100,2,FALSE)),"0",VLOOKUP(DL13,Tables!AI$5:AJ$100,2,FALSE)))) ->  | DS13: =IF($BA13="","",IF(ISERROR(DR13),0,IF(ISNA(VLOOKUP(DQ13,Tables!AK$5:AL$100,2,FALSE)),"0",VLOOKUP(DQ13,Tables!AK$5:AL$100,2,FALSE)))) ->  | DW13: =IF($BA13="","",IF(ISERROR(DV13),0,IF(ISNA(VLOOKUP(DV13,Tables!AM$5:AN$100,2,FALSE)),"0",VLOOKUP(DV13,Tables!AM$5:AN$100,2,FALSE)))) ->  | EC13: =IF($BC13="","",IF(ISERROR(EB13),0,IF(ISNA(VLOOKUP(EA13,Tables!AO$5:AP$100,2,FALSE)),"0",VLOOKUP(EA13,Tables!AO$5:AP$100,2,FALSE)))) ->  | EG13: =IF($EE13="","0",IF(ISNA(VLOOKUP(EF13,Tables!AQ$5:AR$100,2,FALSE)),"0",VLOOKUP(EF13,Tables!AQ$5:AR$100,2,FALSE))) -> 0 | EH13: =IF(BA13="","",IF(MainSheet!D20="Scratched","",BD13+BF13+BH13+BM13+BP13+BS13+BV13+BZ13+CC13+CF13+CI13+CM13+CQ13+CU13+CY13+DC13+DI13+DM13+DS13+DW13+EC13+EG13)) -> 
A14: =IF(Meetings1!A14="","",IF(Meetings1!A14="END","END",IF(Meetings1!E14="","",getAddress(Meetings1!E14)))) -> http://formguide.cyberhorse.com.au/index.php/Form/form.html?formdate=2010-12-02&track=H'bury&raceno=3 | M14: =IF(ISNA(VLOOKUP(N14,RaceList!$J$3:$L$19,3,FALSE)),"",VLOOKUP(N14,RaceList!$J$3:$L$19,3,FALSE)) ->  | N14: =IF(Meetings2!$B14="","",Meetings2!$B14) -> LINGFIELD (ES) | O14: =IF(Meetings2!D14="","",getAddress(Meetings2!D14)) -> http://www.tabonline.com.au/2010/12/02/ES01.html | P14: =IF(Meetings2!E14="","",getAddress(Meetings2!E14)) -> http://www.tabonline.com.au/2010/12/02/ES02.html | Q14: =IF(Meetings2!F14="","",getAddress(Meetings2!F14)) -> http://www.tabonline.com.au/2010/12/02/ES03.html | R14: =IF(Meetings2!G14="","",getAddress(Meetings2!G14)) -> http://www.tabonline.com.au/2010/12/02/ES04.html | S14: =IF(Meetings2!H14="","",getAddress(Meetings2!H14)) ->  | T14: =IF(Meetings2!I14="","",getAddress(Meetings2!I14)) ->  | U14: =IF(Meetings2!J14="","",getAddress(Meetings2!J14)) ->  | V14: =IF(Meetings2!K14="","",getAddress(Meetings2!K14)) ->  | W14: =IF(Meetings2!L14="","",getAddress(Meetings2!L14)) ->  | X14: =IF(Meetings2!M14="","",getAddress(Meetings2!M14)) ->  | Y14: =IF(Meetings2!N14="","",getAddress(Meetings2!N14)) ->  | AV14: 7 | AX14: =IF(Race!N14<>"",Race!C14,"") ->  | AY14: =IF(AX14<>"",Race!N14,"") ->  | AZ14: =IF(AX14<>"",Race!I14,"") ->  | BA14: =IF(Form!I17<>"",LEFT(Form!C17,FIND("(",Form!C17)-2),"") ->  | BC14: =IF(BA14="","",Form!A17) ->  | BD14: =IF($BA14="","",IF(ISNA(VLOOKUP(BC14,Tables!A$5:B$100,2,FALSE)),"0",VLOOKUP(BC14,Tables!A$5:B$100,2,FALSE))) ->  | BF14: =IF($BE14="","0",IF(ISNA(VLOOKUP(BE14,Tables!C$5:D$100,2,FALSE)),"0",VLOOKUP(BE14,Tables!C$5:D$100,2,FALSE))) -> 0 | BG14: =IF(BA14="","",Form!F17) ->  | BH14: =IF($BA14="","",IF(ISNA(VLOOKUP(BG14,Tables!E$5:F$100,2,FALSE)),"0",VLOOKUP(BG14,Tables!E$5:F$100,2,FALSE))) ->  | BM14: =IF($BA14="","",IF(ISERROR(BL14),0,IF(ISNA(VLOOKUP(BK14,Tables!G$5:H$100,2,FALSE)),"0",VLOOKUP(BK14,Tables!G17:H$100,2,FALSE)))) ->  | BN14: =IF($BA14="","",Form!G17) ->  | BP14: =IF($BA14="","",IF(ISNA(VLOOKUP(BO14,Tables!I$5:J$100,2,FALSE)),"0",VLOOKUP(BO14,Tables!I$5:J$100,2,FALSE))) ->  | BQ14: =IF($BA14="","",Form!H17) ->  | BS14: =IF($BA14="","",IF(ISNA(VLOOKUP(BR14,Tables!K$5:L$100,2,FALSE)),"0",VLOOKUP(BR14,Tables!K$5:L$100,2,FALSE))) ->  | BT14: =IF($BA14="","",Form!I17) ->  | BV14: =IF($BA14="","",IF(ISNA(VLOOKUP(BU14,Tables!M$5:N$100,2,FALSE)),"0",VLOOKUP(BU14,Tables!M$5:N$100,2,FALSE))) ->  | BW14: =IF($BA14="","",INDEX(Race!$D$1:$P$100,MATCH($BA14,Race!$C$1:$C$100,0)+0,9)) ->  | BY14: N | BZ14: =IF($BA14="","",IF(ISNA(VLOOKUP(BY14,Tables!O$5:P$100,2,FALSE)),0,VLOOKUP(BY14,Tables!O$5:P$100,2,FALSE))) ->  | CB14: N | CC14: =IF($BA14="","",IF(ISNA(VLOOKUP(CB14,Tables!Q$5:R$100,2,FALSE)),0,VLOOKUP(CB14,Tables!Q$5:R$100,2,FALSE))) ->  | CE14: N | CF14: =IF($BA14="","",IF(ISNA(VLOOKUP(CE14,Tables!S$5:T$100,2,FALSE)),0,VLOOKUP(CE14,Tables!S$5:T$100,2,FALSE))) ->  | CH14: N | CI14: =IF($BA14="","",IF(ISNA(VLOOKUP(CH14,Tables!U$5:V$100,2,FALSE)),0,VLOOKUP(CH14,Tables!U$5:V$100,2,FALSE))) ->  | CL14: 0 | CM14: =IF($BA14="","",IF(ISERROR(CL14),0,IF(ISNA(VLOOKUP(CL14,Tables!W$5:X$100,2,FALSE)),"0",VLOOKUP(CL14,Tables!W$5:X$100,2,FALSE)))) ->  | CP14: 0 | CQ14: =IF($BA14="","",IF(ISERROR(CP14),0,IF(ISNA(VLOOKUP(CP14,Tables!Y$5:Z$100,2,FALSE)),"0",VLOOKUP(CP14,Tables!Y$5:Z$100,2,FALSE)))) ->  | CT14: 0 | CU14: =IF($BA14="","",IF(ISERROR(CT14),0,IF(ISNA(VLOOKUP(CT14,Tables!AA$5:AB$100,2,FALSE)),"0",VLOOKUP(CT14,Tables!AA$5:AB$100,2,FALSE)))) ->  | CW14: =IF(CV14="","",(Form!$H$3-CV14)/CV14*100) ->  | CY14: =IF($BA14="","",IF(ISERROR(CX14),0,IF(ISNA(VLOOKUP(CX14,Tables!AC$5:AD$100,2,FALSE)),"0",VLOOKUP(CX14,Tables!AC$5:AD$100,2,FALSE)))) ->  | DC14: =IF($BA14="","",IF(ISERROR(DB14),0,IF(ISNA(VLOOKUP(DB14,Tables!AE$5:AF$100,2,FALSE)),"0",VLOOKUP(DB14,Tables!AE$5:AF$100,2,FALSE)))) ->  | DI14: =IF($BA14="","",IF(ISERROR(DH14),0,IF(ISNA(VLOOKUP(DG14,Tables!AG$5:AH$100,2,FALSE)),"0",VLOOKUP(DG14,Tables!AG$5:AH$100,2,FALSE)))) ->  | DM14: =IF($BA14="","",IF(ISERROR(DL14),0,IF(ISNA(VLOOKUP(DL14,Tables!AI$5:AJ$100,2,FALSE)),"0",VLOOKUP(DL14,Tables!AI$5:AJ$100,2,FALSE)))) ->  | DS14: =IF($BA14="","",IF(ISERROR(DR14),0,IF(ISNA(VLOOKUP(DQ14,Tables!AK$5:AL$100,2,FALSE)),"0",VLOOKUP(DQ14,Tables!AK$5:AL$100,2,FALSE)))) ->  | DW14: =IF($BA14="","",IF(ISERROR(DV14),0,IF(ISNA(VLOOKUP(DV14,Tables!AM$5:AN$100,2,FALSE)),"0",VLOOKUP(DV14,Tables!AM$5:AN$100,2,FALSE)))) ->  | EC14: =IF($BC14="","",IF(ISERROR(EB14),0,IF(ISNA(VLOOKUP(EA14,Tables!AO$5:AP$100,2,FALSE)),"0",VLOOKUP(EA14,Tables!AO$5:AP$100,2,FALSE)))) ->  | EG14: =IF($EE14="","0",IF(ISNA(VLOOKUP(EF14,Tables!AQ$5:AR$100,2,FALSE)),"0",VLOOKUP(EF14,Tables!AQ$5:AR$100,2,FALSE))) -> 0 | EH14: =IF(BA14="","",IF(MainSheet!D21="Scratched","",BD14+BF14+BH14+BM14+BP14+BS14+BV14+BZ14+CC14+CF14+CI14+CM14+CQ14+CU14+CY14+DC14+DI14+DM14+DS14+DW14+EC14+EG14)) -> 
A15: =IF(Meetings1!A15="","",IF(Meetings1!A15="END","END",IF(Meetings1!E15="","",getAddress(Meetings1!E15)))) -> http://formguide.cyberhorse.com.au/index.php/Form/form.html?formdate=2010-12-02&track=H'bury&raceno=4 | M15: =IF(ISNA(VLOOKUP(N15,RaceList!$J$3:$L$19,3,FALSE)),"",VLOOKUP(N15,RaceList!$J$3:$L$19,3,FALSE)) ->  | N15: =IF(Meetings2!$B15="","",Meetings2!$B15) -> MATAMATA (ZS) | O15: =IF(Meetings2!D15="","",getAddress(Meetings2!D15)) -> http://www.tabonline.com.au/2010/12/02/ZS01.html | P15: =IF(Meetings2!E15="","",getAddress(Meetings2!E15)) -> http://www.tabonline.com.au/2010/12/02/ZS02.html | Q15: =IF(Meetings2!F15="","",getAddress(Meetings2!F15)) -> http://www.tabonline.com.au/2010/12/02/ZS03.html | R15: =IF(Meetings2!G15="","",getAddress(Meetings2!G15)) -> http://www.tabonline.com.au/2010/12/02/ZS04.html | S15: =IF(Meetings2!H15="","",getAddress(Meetings2!H15)) -> http://www.tabonline.com.au/2010/12/02/ZS05.html | T15: =IF(Meetings2!I15="","",getAddress(Meetings2!I15)) -> http://www.tabonline.com.au/2010/12/02/ZS06.html | U15: =IF(Meetings2!J15="","",getAddress(Meetings2!J15)) -> http://www.tabonline.com.au/2010/12/02/ZS07.html | V15: =IF(Meetings2!K15="","",getAddress(Meetings2!K15)) -> http://www.tabonline.com.au/2010/12/02/ZS08.html | W15: =IF(Meetings2!L15="","",getAddress(Meetings2!L15)) -> http://www.tabonline.com.au/2010/12/02/ZS09.html | X15: =IF(Meetings2!M15="","",getAddress(Meetings2!M15)) -> http://www.tabonline.com.au/2010/12/02/ZS10.html | Y15: =IF(Meetings2!N15="","",getAddress(Meetings2!N15)) ->  | Z15: Dack's Faz | AA15: 1 Dack's Faz (8) 58.0kg 5yo b/br g | AV15: 6 | AX15: =IF(Race!N15<>"",Race!C15,"") ->  | AY15: =IF(AX15<>"",Race!N15,"") ->  | AZ15: =IF(AX15<>"",Race!I15,"") ->  | BA15: =IF(Form!I18<>"",LEFT(Form!C18,FIND("(",Form!C18)-2),"") ->  | BC15: =IF(BA15="","",Form!A18) ->  | BD15: =IF($BA15="","",IF(ISNA(VLOOKUP(BC15,Tables!A$5:B$100,2,FALSE)),"0",VLOOKUP(BC15,Tables!A$5:B$100,2,FALSE))) ->  | BF15: =IF($BE15="","0",IF(ISNA(VLOOKUP(BE15,Tables!C$5:D$100,2,FALSE)),"0",VLOOKUP(BE15,Tables!C$5:D$100,2,FALSE))) -> 0 | BG15: =IF(BA15="","",Form!F18) ->  | BH15: =IF($BA15="","",IF(ISNA(VLOOKUP(BG15,Tables!E$5:F$100,2,FALSE)),"0",VLOOKUP(BG15,Tables!E$5:F$100,2,FALSE))) ->  | BM15: =IF($BA15="","",IF(ISERROR(BL15),0,IF(ISNA(VLOOKUP(BK15,Tables!G$5:H$100,2,FALSE)),"0",VLOOKUP(BK15,Tables!G18:H$100,2,FALSE)))) ->  | BN15: =IF($BA15="","",Form!G18) ->  | BP15: =IF($BA15="","",IF(ISNA(VLOOKUP(BO15,Tables!I$5:J$100,2,FALSE)),"0",VLOOKUP(BO15,Tables!I$5:J$100,2,FALSE))) ->  | BQ15: =IF($BA15="","",Form!H18) ->  | BS15: =IF($BA15="","",IF(ISNA(VLOOKUP(BR15,Tables!K$5:L$100,2,FALSE)),"0",VLOOKUP(BR15,Tables!K$5:L$100,2,FALSE))) ->  | BT15: =IF($BA15="","",Form!I18) ->  | BV15: =IF($BA15="","",IF(ISNA(VLOOKUP(BU15,Tables!M$5:N$100,2,FALSE)),"0",VLOOKUP(BU15,Tables!M$5:N$100,2,FALSE))) ->  | BW15: =IF($BA15="","",INDEX(Race!$D$1:$P$100,MATCH($BA15,Race!$C$1:$C$100,0)+0,9)) ->  | BY15: N | BZ15: =IF($BA15="","",IF(ISNA(VLOOKUP(BY15,Tables!O$5:P$100,2,FALSE)),0,VLOOKUP(BY15,Tables!O$5:P$100,2,FALSE))) ->  | CB15: N | CC15: =IF($BA15="","",IF(ISNA(VLOOKUP(CB15,Tables!Q$5:R$100,2,FALSE)),0,VLOOKUP(CB15,Tables!Q$5:R$100,2,FALSE))) ->  | CE15: N | CF15: =IF($BA15="","",IF(ISNA(VLOOKUP(CE15,Tables!S$5:T$100,2,FALSE)),0,VLOOKUP(CE15,Tables!S$5:T$100,2,FALSE))) ->  | CH15: N | CI15: =IF($BA15="","",IF(ISNA(VLOOKUP(CH15,Tables!U$5:V$100,2,FALSE)),0,VLOOKUP(CH15,Tables!U$5:V$100,2,FALSE))) ->  | CL15: 0 | CM15: =IF($BA15="","",IF(ISERROR(CL15),0,IF(ISNA(VLOOKUP(CL15,Tables!W$5:X$100,2,FALSE)),"0",VLOOKUP(CL15,Tables!W$5:X$100,2,FALSE)))) ->  | CP15: 0 | CQ15: =IF($BA15="","",IF(ISERROR(CP15),0,IF(ISNA(VLOOKUP(CP15,Tables!Y$5:Z$100,2,FALSE)),"0",VLOOKUP(CP15,Tables!Y$5:Z$100,2,FALSE)))) ->  | CT15: 0 | CU15: =IF($BA15="","",IF(ISERROR(CT15),0,IF(ISNA(VLOOKUP(CT15,Tables!AA$5:AB$100,2,FALSE)),"0",VLOOKUP(CT15,Tables!AA$5:AB$100,2,FALSE)))) ->  | CW15: =IF(CV15="","",(Form!$H$3-CV15)/CV15*100) ->  | CY15: =IF($BA15="","",IF(ISERROR(CX15),0,IF(ISNA(VLOOKUP(CX15,Tables!AC$5:AD$100,2,FALSE)),"0",VLOOKUP(CX15,Tables!AC$5:AD$100,2,FALSE)))) ->  | DC15: =IF($BA15="","",IF(ISERROR(DB15),0,IF(ISNA(VLOOKUP(DB15,Tables!AE$5:AF$100,2,FALSE)),"0",VLOOKUP(DB15,Tables!AE$5:AF$100,2,FALSE)))) ->  | DI15: =IF($BA15="","",IF(ISERROR(DH15),0,IF(ISNA(VLOOKUP(DG15,Tables!AG$5:AH$100,2,FALSE)),"0",VLOOKUP(DG15,Tables!AG$5:AH$100,2,FALSE)))) ->  | DM15: =IF($BA15="","",IF(ISERROR(DL15),0,IF(ISNA(VLOOKUP(DL15,Tables!AI$5:AJ$100,2,FALSE)),"0",VLOOKUP(DL15,Tables!AI$5:AJ$100,2,FALSE)))) ->  | DS15: =IF($BA15="","",IF(ISERROR(DR15),0,IF(ISNA(VLOOKUP(DQ15,Tables!AK$5:AL$100,2,FALSE)),"0",VLOOKUP(DQ15,Tables!AK$5:AL$100,2,FALSE)))) ->  | DW15: =IF($BA15="","",IF(ISERROR(DV15),0,IF(ISNA(VLOOKUP(DV15,Tables!AM$5:AN$100,2,FALSE)),"0",VLOOKUP(DV15,Tables!AM$5:AN$100,2,FALSE)))) ->  | EC15: =IF($BC15="","",IF(ISERROR(EB15),0,IF(ISNA(VLOOKUP(EA15,Tables!AO$5:AP$100,2,FALSE)),"0",VLOOKUP(EA15,Tables!AO$5:AP$100,2,FALSE)))) ->  | EG15: =IF($EE15="","0",IF(ISNA(VLOOKUP(EF15,Tables!AQ$5:AR$100,2,FALSE)),"0",VLOOKUP(EF15,Tables!AQ$5:AR$100,2,FALSE))) -> 0 | EH15: =IF(BA15="","",IF(MainSheet!D22="Scratched","",BD15+BF15+BH15+BM15+BP15+BS15+BV15+BZ15+CC15+CF15+CI15+CM15+CQ15+CU15+CY15+DC15+DI15+DM15+DS15+DW15+EC15+EG15)) -> 
A16: =IF(Meetings1!A16="","",IF(Meetings1!A16="END","END",IF(Meetings1!E16="","",getAddress(Meetings1!E16)))) -> http://formguide.cyberhorse.com.au/index.php/Form/form.html?formdate=2010-12-02&track=H'bury&raceno=5 | M16: =IF(ISNA(VLOOKUP(N16,RaceList!$J$3:$L$19,3,FALSE)),"",VLOOKUP(N16,RaceList!$J$3:$L$19,3,FALSE)) ->  | N16: =IF(Meetings2!$B16="","",Meetings2!$B16) ->  | O16: =IF(Meetings2!D16="","",getAddress(Meetings2!D16)) ->  | P16: =IF(Meetings2!E16="","",getAddress(Meetings2!E16)) ->  | Q16: =IF(Meetings2!F16="","",getAddress(Meetings2!F16)) ->  | R16: =IF(Meetings2!G16="","",getAddress(Meetings2!G16)) ->  | S16: =IF(Meetings2!H16="","",getAddress(Meetings2!H16)) ->  | T16: =IF(Meetings2!I16="","",getAddress(Meetings2!I16)) ->  | U16: =IF(Meetings2!J16="","",getAddress(Meetings2!J16)) ->  | V16: =IF(Meetings2!K16="","",getAddress(Meetings2!K16)) ->  | W16: =IF(Meetings2!L16="","",getAddress(Meetings2!L16)) ->  | X16: =IF(Meetings2!M16="","",getAddress(Meetings2!M16)) ->  | Y16: =IF(Meetings2!N16="","",getAddress(Meetings2!N16)) ->  | AA16: Colours: Gold | AB16: black sash and cap | AV16: 6 | AX16: =IF(Race!N16<>"",Race!C16,"") -> Name | AY16: =IF(AX16<>"",Race!N16,"") -> Rtng | AZ16: =IF(AX16<>"",Race!I16,"") -> Bar | BA16: =IF(Form!I19<>"",LEFT(Form!C19,FIND("(",Form!C19)-2),"") ->  | BC16: =IF(BA16="","",Form!A19) ->  | BD16: =IF($BA16="","",IF(ISNA(VLOOKUP(BC16,Tables!A$5:B$100,2,FALSE)),"0",VLOOKUP(BC16,Tables!A$5:B$100,2,FALSE))) ->  | BF16: =IF($BE16="","0",IF(ISNA(VLOOKUP(BE16,Tables!C$5:D$100,2,FALSE)),"0",VLOOKUP(BE16,Tables!C$5:D$100,2,FALSE))) -> 0 | BG16: =IF(BA16="","",Form!F19) ->  | BH16: =IF($BA16="","",IF(ISNA(VLOOKUP(BG16,Tables!E$5:F$100,2,FALSE)),"0",VLOOKUP(BG16,Tables!E$5:F$100,2,FALSE))) ->  | BM16: =IF($BA16="","",IF(ISERROR(BL16),0,IF(ISNA(VLOOKUP(BK16,Tables!G$5:H$100,2,FALSE)),"0",VLOOKUP(BK16,Tables!G19:H$100,2,FALSE)))) ->  | BN16: =IF($BA16="","",Form!G19) ->  | BP16: =IF($BA16="","",IF(ISNA(VLOOKUP(BO16,Tables!I$5:J$100,2,FALSE)),"0",VLOOKUP(BO16,Tables!I$5:J$100,2,FALSE))) ->  | BQ16: =IF($BA16="","",Form!H19) ->  | BS16: =IF($BA16="","",IF(ISNA(VLOOKUP(BR16,Tables!K$5:L$100,2,FALSE)),"0",VLOOKUP(BR16,Tables!K$5:L$100,2,FALSE))) ->  | BT16: =IF($BA16="","",Form!I19) ->  | BV16: =IF($BA16="","",IF(ISNA(VLOOKUP(BU16,Tables!M$5:N$100,2,FALSE)),"0",VLOOKUP(BU16,Tables!M$5:N$100,2,FALSE))) ->  | BW16: =IF($BA16="","",INDEX(Race!$D$1:$P$100,MATCH($BA16,Race!$C$1:$C$100,0)+0,9)) ->  | BY16: N | BZ16: =IF($BA16="","",IF(ISNA(VLOOKUP(BY16,Tables!O$5:P$100,2,FALSE)),0,VLOOKUP(BY16,Tables!O$5:P$100,2,FALSE))) ->  | CB16: N | CC16: =IF($BA16="","",IF(ISNA(VLOOKUP(CB16,Tables!Q$5:R$100,2,FALSE)),0,VLOOKUP(CB16,Tables!Q$5:R$100,2,FALSE))) ->  | CE16: N | CF16: =IF($BA16="","",IF(ISNA(VLOOKUP(CE16,Tables!S$5:T$100,2,FALSE)),0,VLOOKUP(CE16,Tables!S$5:T$100,2,FALSE))) ->  | CH16: N | CI16: =IF($BA16="","",IF(ISNA(VLOOKUP(CH16,Tables!U$5:V$100,2,FALSE)),0,VLOOKUP(CH16,Tables!U$5:V$100,2,FALSE))) ->  | CL16: 0 | CM16: =IF($BA16="","",IF(ISERROR(CL16),0,IF(ISNA(VLOOKUP(CL16,Tables!W$5:X$100,2,FALSE)),"0",VLOOKUP(CL16,Tables!W$5:X$100,2,FALSE)))) ->  | CP16: 0 | CQ16: =IF($BA16="","",IF(ISERROR(CP16),0,IF(ISNA(VLOOKUP(CP16,Tables!Y$5:Z$100,2,FALSE)),"0",VLOOKUP(CP16,Tables!Y$5:Z$100,2,FALSE)))) ->  | CT16: 0 | CU16: =IF($BA16="","",IF(ISERROR(CT16),0,IF(ISNA(VLOOKUP(CT16,Tables!AA$5:AB$100,2,FALSE)),"0",VLOOKUP(CT16,Tables!AA$5:AB$100,2,FALSE)))) ->  | CW16: =IF(CV16="","",(Form!$H$3-CV16)/CV16*100) ->  | CY16: =IF($BA16="","",IF(ISERROR(CX16),0,IF(ISNA(VLOOKUP(CX16,Tables!AC$5:AD$100,2,FALSE)),"0",VLOOKUP(CX16,Tables!AC$5:AD$100,2,FALSE)))) ->  | DC16: =IF($BA16="","",IF(ISERROR(DB16),0,IF(ISNA(VLOOKUP(DB16,Tables!AE$5:AF$100,2,FALSE)),"0",VLOOKUP(DB16,Tables!AE$5:AF$100,2,FALSE)))) ->  | DI16: =IF($BA16="","",IF(ISERROR(DH16),0,IF(ISNA(VLOOKUP(DG16,Tables!AG$5:AH$100,2,FALSE)),"0",VLOOKUP(DG16,Tables!AG$5:AH$100,2,FALSE)))) ->  | DM16: =IF($BA16="","",IF(ISERROR(DL16),0,IF(ISNA(VLOOKUP(DL16,Tables!AI$5:AJ$100,2,FALSE)),"0",VLOOKUP(DL16,Tables!AI$5:AJ$100,2,FALSE)))) ->  | DS16: =IF($BA16="","",IF(ISERROR(DR16),0,IF(ISNA(VLOOKUP(DQ16,Tables!AK$5:AL$100,2,FALSE)),"0",VLOOKUP(DQ16,Tables!AK$5:AL$100,2,FALSE)))) ->  | DW16: =IF($BA16="","",IF(ISERROR(DV16),0,IF(ISNA(VLOOKUP(DV16,Tables!AM$5:AN$100,2,FALSE)),"0",VLOOKUP(DV16,Tables!AM$5:AN$100,2,FALSE)))) ->  | EC16: =IF($BC16="","",IF(ISERROR(EB16),0,IF(ISNA(VLOOKUP(EA16,Tables!AO$5:AP$100,2,FALSE)),"0",VLOOKUP(EA16,Tables!AO$5:AP$100,2,FALSE)))) ->  | EG16: =IF($EE16="","0",IF(ISNA(VLOOKUP(EF16,Tables!AQ$5:AR$100,2,FALSE)),"0",VLOOKUP(EF16,Tables!AQ$5:AR$100,2,FALSE))) -> 0 | EH16: =IF(BA16="","",IF(MainSheet!D23="Scratched","",BD16+BF16+BH16+BM16+BP16+BS16+BV16+BZ16+CC16+CF16+CI16+CM16+CQ16+CU16+CY16+DC16+DI16+DM16+DS16+DW16+EC16+EG16)) -> 
A17: =IF(Meetings1!A17="","",IF(Meetings1!A17="END","END",IF(Meetings1!E17="","",getAddress(Meetings1!E17)))) -> http://formguide.cyberhorse.com.au/index.php/Form/form.html?formdate=2010-12-02&track=H'bury&raceno=6 | M17: =IF(ISNA(VLOOKUP(N17,RaceList!$J$3:$L$19,3,FALSE)),"",VLOOKUP(N17,RaceList!$J$3:$L$19,3,FALSE)) ->  | N17: =IF(Meetings2!$B17="","",Meetings2!$B17) -> PENRITH (ST) | O17: =IF(Meetings2!D17="","",getAddress(Meetings2!D17)) -> http://www.tabonline.com.au/2010/12/02/ST01.html | P17: =IF(Meetings2!E17="","",getAddress(Meetings2!E17)) -> http://www.tabonline.com.au/2010/12/02/ST02.html | Q17: =IF(Meetings2!F17="","",getAddress(Meetings2!F17)) -> http://www.tabonline.com.au/2010/12/02/ST03.html | R17: =IF(Meetings2!G17="","",getAddress(Meetings2!G17)) -> http://www.tabonline.com.au/2010/12/02/ST04.html | S17: =IF(Meetings2!H17="","",getAddress(Meetings2!H17)) -> http://www.tabonline.com.au/2010/12/02/ST05.html | T17: =IF(Meetings2!I17="","",getAddress(Meetings2!I17)) -> http://www.tabonline.com.au/2010/12/02/ST06.html | U17: =IF(Meetings2!J17="","",getAddress(Meetings2!J17)) -> http://www.tabonline.com.au/2010/12/02/ST07.html | V17: =IF(Meetings2!K17="","",getAddress(Meetings2!K17)) -> http://www.tabonline.com.au/2010/12/02/ST08.html | W17: =IF(Meetings2!L17="","",getAddress(Meetings2!L17)) ->  | X17: =IF(Meetings2!M17="","",getAddress(Meetings2!M17)) ->  | Y17: =IF(Meetings2!N17="","",getAddress(Meetings2!N17)) ->  | AA17: Owners: D L McLennan | AV17: 6 | AX17: =IF(Race!N17<>"",Race!C17,"") -> DACK'S FAZ | AY17: =IF(AX17<>"",Race!N17,"") -> 99 | AZ17: =IF(AX17<>"",Race!I17,"") -> 8 | BA17: =IF(Form!I20<>"",LEFT(Form!C20,FIND("(",Form!C20)-2),"") ->  | BC17: =IF(BA17="","",Form!A20) ->  | BD17: =IF($BA17="","",IF(ISNA(VLOOKUP(BC17,Tables!A$5:B$100,2,FALSE)),"0",VLOOKUP(BC17,Tables!A$5:B$100,2,FALSE))) ->  | BF17: =IF($BE17="","0",IF(ISNA(VLOOKUP(BE17,Tables!C$5:D$100,2,FALSE)),"0",VLOOKUP(BE17,Tables!C$5:D$100,2,FALSE))) -> 0 | BG17: =IF(BA17="","",Form!F20) ->  | BH17: =IF($BA17="","",IF(ISNA(VLOOKUP(BG17,Tables!E$5:F$100,2,FALSE)),"0",VLOOKUP(BG17,Tables!E$5:F$100,2,FALSE))) ->  | BM17: =IF($BA17="","",IF(ISERROR(BL17),0,IF(ISNA(VLOOKUP(BK17,Tables!G$5:H$100,2,FALSE)),"0",VLOOKUP(BK17,Tables!G20:H$100,2,FALSE)))) ->  | BN17: =IF($BA17="","",Form!G20) ->  | BP17: =IF($BA17="","",IF(ISNA(VLOOKUP(BO17,Tables!I$5:J$100,2,FALSE)),"0",VLOOKUP(BO17,Tables!I$5:J$100,2,FALSE))) ->  | BQ17: =IF($BA17="","",Form!H20) ->  | BS17: =IF($BA17="","",IF(ISNA(VLOOKUP(BR17,Tables!K$5:L$100,2,FALSE)),"0",VLOOKUP(BR17,Tables!K$5:L$100,2,FALSE))) ->  | BT17: =IF($BA17="","",Form!I20) ->  | BV17: =IF($BA17="","",IF(ISNA(VLOOKUP(BU17,Tables!M$5:N$100,2,FALSE)),"0",VLOOKUP(BU17,Tables!M$5:N$100,2,FALSE))) ->  | BW17: =IF($BA17="","",INDEX(Race!$D$1:$P$100,MATCH($BA17,Race!$C$1:$C$100,0)+0,9)) ->  | BY17: N | BZ17: =IF($BA17="","",IF(ISNA(VLOOKUP(BY17,Tables!O$5:P$100,2,FALSE)),0,VLOOKUP(BY17,Tables!O$5:P$100,2,FALSE))) ->  | CB17: N | CC17: =IF($BA17="","",IF(ISNA(VLOOKUP(CB17,Tables!Q$5:R$100,2,FALSE)),0,VLOOKUP(CB17,Tables!Q$5:R$100,2,FALSE))) ->  | CE17: N | CF17: =IF($BA17="","",IF(ISNA(VLOOKUP(CE17,Tables!S$5:T$100,2,FALSE)),0,VLOOKUP(CE17,Tables!S$5:T$100,2,FALSE))) ->  | CH17: N | CI17: =IF($BA17="","",IF(ISNA(VLOOKUP(CH17,Tables!U$5:V$100,2,FALSE)),0,VLOOKUP(CH17,Tables!U$5:V$100,2,FALSE))) ->  | CL17: 0 | CM17: =IF($BA17="","",IF(ISERROR(CL17),0,IF(ISNA(VLOOKUP(CL17,Tables!W$5:X$100,2,FALSE)),"0",VLOOKUP(CL17,Tables!W$5:X$100,2,FALSE)))) ->  | CP17: 0 | CQ17: =IF($BA17="","",IF(ISERROR(CP17),0,IF(ISNA(VLOOKUP(CP17,Tables!Y$5:Z$100,2,FALSE)),"0",VLOOKUP(CP17,Tables!Y$5:Z$100,2,FALSE)))) ->  | CT17: 0 | CU17: =IF($BA17="","",IF(ISERROR(CT17),0,IF(ISNA(VLOOKUP(CT17,Tables!AA$5:AB$100,2,FALSE)),"0",VLOOKUP(CT17,Tables!AA$5:AB$100,2,FALSE)))) ->  | CW17: =IF(CV17="","",(Form!$H$3-CV17)/CV17*100) ->  | CY17: =IF($BA17="","",IF(ISERROR(CX17),0,IF(ISNA(VLOOKUP(CX17,Tables!AC$5:AD$100,2,FALSE)),"0",VLOOKUP(CX17,Tables!AC$5:AD$100,2,FALSE)))) ->  | DC17: =IF($BA17="","",IF(ISERROR(DB17),0,IF(ISNA(VLOOKUP(DB17,Tables!AE$5:AF$100,2,FALSE)),"0",VLOOKUP(DB17,Tables!AE$5:AF$100,2,FALSE)))) ->  | DI17: =IF($BA17="","",IF(ISERROR(DH17),0,IF(ISNA(VLOOKUP(DG17,Tables!AG$5:AH$100,2,FALSE)),"0",VLOOKUP(DG17,Tables!AG$5:AH$100,2,FALSE)))) ->  | DM17: =IF($BA17="","",IF(ISERROR(DL17),0,IF(ISNA(VLOOKUP(DL17,Tables!AI$5:AJ$100,2,FALSE)),"0",VLOOKUP(DL17,Tables!AI$5:AJ$100,2,FALSE)))) ->  | DS17: =IF($BA17="","",IF(ISERROR(DR17),0,IF(ISNA(VLOOKUP(DQ17,Tables!AK$5:AL$100,2,FALSE)),"0",VLOOKUP(DQ17,Tables!AK$5:AL$100,2,FALSE)))) ->  | DW17: =IF($BA17="","",IF(ISERROR(DV17),0,IF(ISNA(VLOOKUP(DV17,Tables!AM$5:AN$100,2,FALSE)),"0",VLOOKUP(DV17,Tables!AM$5:AN$100,2,FALSE)))) ->  | EC17: =IF($BC17="","",IF(ISERROR(EB17),0,IF(ISNA(VLOOKUP(EA17,Tables!AO$5:AP$100,2,FALSE)),"0",VLOOKUP(EA17,Tables!AO$5:AP$100,2,FALSE)))) ->  | EG17: =IF($EE17="","0",IF(ISNA(VLOOKUP(EF17,Tables!AQ$5:AR$100,2,FALSE)),"0",VLOOKUP(EF17,Tables!AQ$5:AR$100,2,FALSE))) -> 0 | EH17: =IF(BA17="","",IF(MainSheet!D24="Scratched","",BD17+BF17+BH17+BM17+BP17+BS17+BV17+BZ17+CC17+CF17+CI17+CM17+CQ17+CU17+CY17+DC17+DI17+DM17+DS17+DW17+EC17+EG17)) -> 
A18: =IF(Meetings1!A18="","",IF(Meetings1!A18="END","END",IF(Meetings1!E18="","",getAddress(Meetings1!E18)))) -> http://formguide.cyberhorse.com.au/index.php/Form/form.html?formdate=2010-12-02&track=H'bury&raceno=7 | M18: =IF(ISNA(VLOOKUP(N18,RaceList!$J$3:$L$19,3,FALSE)),"",VLOOKUP(N18,RaceList!$J$3:$L$19,3,FALSE)) ->  | N18: =IF(Meetings2!$B18="","",Meetings2!$B18) -> MELTON (MT) | O18: =IF(Meetings2!D18="","",getAddress(Meetings2!D18)) -> http://www.tabonline.com.au/2010/12/02/MT01.html | P18: =IF(Meetings2!E18="","",getAddress(Meetings2!E18)) -> http://www.tabonline.com.au/2010/12/02/MT02.html | Q18: =IF(Meetings2!F18="","",getAddress(Meetings2!F18)) -> http://www.tabonline.com.au/2010/12/02/MT03.html | R18: =IF(Meetings2!G18="","",getAddress(Meetings2!G18)) -> http://www.tabonline.com.au/2010/12/02/MT04.html | S18: =IF(Meetings2!H18="","",getAddress(Meetings2!H18)) -> http://www.tabonline.com.au/2010/12/02/MT05.html | T18: =IF(Meetings2!I18="","",getAddress(Meetings2!I18)) -> http://www.tabonline.com.au/2010/12/02/MT06.html | U18: =IF(Meetings2!J18="","",getAddress(Meetings2!J18)) -> http://www.tabonline.com.au/2010/12/02/MT07.html | V18: =IF(Meetings2!K18="","",getAddress(Meetings2!K18)) -> http://www.tabonline.com.au/2010/12/02/MT08.html | W18: =IF(Meetings2!L18="","",getAddress(Meetings2!L18)) ->  | X18: =IF(Meetings2!M18="","",getAddress(Meetings2!M18)) ->  | Y18: =IF(Meetings2!N18="","",getAddress(Meetings2!N18)) ->  | AA18: Career: | AV18: 6 | AX18: =IF(Race!N18<>"",Race!C18,"") -> IGOTITFROMMYMUMMA | AY18: =IF(AX18<>"",Race!N18,"") -> 99 | AZ18: =IF(AX18<>"",Race!I18,"") -> 3 | BA18: =IF(Form!I21<>"",LEFT(Form!C21,FIND("(",Form!C21)-2),"") ->  | BC18: =IF(BA18="","",Form!A21) ->  | BD18: =IF($BA18="","",IF(ISNA(VLOOKUP(BC18,Tables!A$5:B$100,2,FALSE)),"0",VLOOKUP(BC18,Tables!A$5:B$100,2,FALSE))) ->  | BF18: =IF($BE18="","0",IF(ISNA(VLOOKUP(BE18,Tables!C$5:D$100,2,FALSE)),"0",VLOOKUP(BE18,Tables!C$5:D$100,2,FALSE))) -> 0 | BG18: =IF(BA18="","",Form!F21) ->  | BH18: =IF($BA18="","",IF(ISNA(VLOOKUP(BG18,Tables!E$5:F$100,2,FALSE)),"0",VLOOKUP(BG18,Tables!E$5:F$100,2,FALSE))) ->  | BM18: =IF($BA18="","",IF(ISERROR(BL18),0,IF(ISNA(VLOOKUP(BK18,Tables!G$5:H$100,2,FALSE)),"0",VLOOKUP(BK18,Tables!G21:H$100,2,FALSE)))) ->  | BN18: =IF($BA18="","",Form!G21) ->  | BP18: =IF($BA18="","",IF(ISNA(VLOOKUP(BO18,Tables!I$5:J$100,2,FALSE)),"0",VLOOKUP(BO18,Tables!I$5:J$100,2,FALSE))) ->  | BQ18: =IF($BA18="","",Form!H21) ->  | BS18: =IF($BA18="","",IF(ISNA(VLOOKUP(BR18,Tables!K$5:L$100,2,FALSE)),"0",VLOOKUP(BR18,Tables!K$5:L$100,2,FALSE))) ->  | BT18: =IF($BA18="","",Form!I21) ->  | BV18: =IF($BA18="","",IF(ISNA(VLOOKUP(BU18,Tables!M$5:N$100,2,FALSE)),"0",VLOOKUP(BU18,Tables!M$5:N$100,2,FALSE))) ->  | BW18: =IF($BA18="","",INDEX(Race!$D$1:$P$100,MATCH($BA18,Race!$C$1:$C$100,0)+0,9)) ->  | BY18: N | BZ18: =IF($BA18="","",IF(ISNA(VLOOKUP(BY18,Tables!O$5:P$100,2,FALSE)),0,VLOOKUP(BY18,Tables!O$5:P$100,2,FALSE))) ->  | CB18: N | CC18: =IF($BA18="","",IF(ISNA(VLOOKUP(CB18,Tables!Q$5:R$100,2,FALSE)),0,VLOOKUP(CB18,Tables!Q$5:R$100,2,FALSE))) ->  | CE18: N | CF18: =IF($BA18="","",IF(ISNA(VLOOKUP(CE18,Tables!S$5:T$100,2,FALSE)),0,VLOOKUP(CE18,Tables!S$5:T$100,2,FALSE))) ->  | CH18: N | CI18: =IF($BA18="","",IF(ISNA(VLOOKUP(CH18,Tables!U$5:V$100,2,FALSE)),0,VLOOKUP(CH18,Tables!U$5:V$100,2,FALSE))) ->  | CL18: 0 | CM18: =IF($BA18="","",IF(ISERROR(CL18),0,IF(ISNA(VLOOKUP(CL18,Tables!W$5:X$100,2,FALSE)),"0",VLOOKUP(CL18,Tables!W$5:X$100,2,FALSE)))) ->  | CP18: 0 | CQ18: =IF($BA18="","",IF(ISERROR(CP18),0,IF(ISNA(VLOOKUP(CP18,Tables!Y$5:Z$100,2,FALSE)),"0",VLOOKUP(CP18,Tables!Y$5:Z$100,2,FALSE)))) ->  | CT18: 0 | CU18: =IF($BA18="","",IF(ISERROR(CT18),0,IF(ISNA(VLOOKUP(CT18,Tables!AA$5:AB$100,2,FALSE)),"0",VLOOKUP(CT18,Tables!AA$5:AB$100,2,FALSE)))) ->  | CW18: =IF(CV18="","",(Form!$H$3-CV18)/CV18*100) ->  | CY18: =IF($BA18="","",IF(ISERROR(CX18),0,IF(ISNA(VLOOKUP(CX18,Tables!AC$5:AD$100,2,FALSE)),"0",VLOOKUP(CX18,Tables!AC$5:AD$100,2,FALSE)))) ->  | DC18: =IF($BA18="","",IF(ISERROR(DB18),0,IF(ISNA(VLOOKUP(DB18,Tables!AE$5:AF$100,2,FALSE)),"0",VLOOKUP(DB18,Tables!AE$5:AF$100,2,FALSE)))) ->  | DI18: =IF($BA18="","",IF(ISERROR(DH18),0,IF(ISNA(VLOOKUP(DG18,Tables!AG$5:AH$100,2,FALSE)),"0",VLOOKUP(DG18,Tables!AG$5:AH$100,2,FALSE)))) ->  | DM18: =IF($BA18="","",IF(ISERROR(DL18),0,IF(ISNA(VLOOKUP(DL18,Tables!AI$5:AJ$100,2,FALSE)),"0",VLOOKUP(DL18,Tables!AI$5:AJ$100,2,FALSE)))) ->  | DS18: =IF($BA18="","",IF(ISERROR(DR18),0,IF(ISNA(VLOOKUP(DQ18,Tables!AK$5:AL$100,2,FALSE)),"0",VLOOKUP(DQ18,Tables!AK$5:AL$100,2,FALSE)))) ->  | DW18: =IF($BA18="","",IF(ISERROR(DV18),0,IF(ISNA(VLOOKUP(DV18,Tables!AM$5:AN$100,2,FALSE)),"0",VLOOKUP(DV18,Tables!AM$5:AN$100,2,FALSE)))) ->  | EC18: =IF($BC18="","",IF(ISERROR(EB18),0,IF(ISNA(VLOOKUP(EA18,Tables!AO$5:AP$100,2,FALSE)),"0",VLOOKUP(EA18,Tables!AO$5:AP$100,2,FALSE)))) ->  | EG18: =IF($EE18="","0",IF(ISNA(VLOOKUP(EF18,Tables!AQ$5:AR$100,2,FALSE)),"0",VLOOKUP(EF18,Tables!AQ$5:AR$100,2,FALSE))) -> 0 | EH18: =IF(BA18="","",IF(MainSheet!D25="Scratched","",BD18+BF18+BH18+BM18+BP18+BS18+BV18+BZ18+CC18+CF18+CI18+CM18+CQ18+CU18+CY18+DC18+DI18+DM18+DS18+DW18+EC18+EG18)) -> 
A19: =IF(Meetings1!A19="","",IF(Meetings1!A19="END","END",IF(Meetings1!E19="","",getAddress(Meetings1!E19)))) -> http://formguide.cyberhorse.com.au/index.php/Form/form.html?formdate=2010-12-02&track=H'bury&raceno=8 | M19: =IF(ISNA(VLOOKUP(N19,RaceList!$J$3:$L$19,3,FALSE)),"",VLOOKUP(N19,RaceList!$J$3:$L$19,3,FALSE)) ->  | N19: =IF(Meetings2!$B19="","",Meetings2!$B19) -> GOLD COAST (QT) | O19: =IF(Meetings2!D19="","",getAddress(Meetings2!D19)) -> http://www.tabonline.com.au/2010/12/02/QT01.html | P19: =IF(Meetings2!E19="","",getAddress(Meetings2!E19)) -> http://www.tabonline.com.au/2010/12/02/QT02.html | Q19: =IF(Meetings2!F19="","",getAddress(Meetings2!F19)) -> http://www.tabonline.com.au/2010/12/02/QT03.html | R19: =IF(Meetings2!G19="","",getAddress(Meetings2!G19)) -> http://www.tabonline.com.au/2010/12/02/QT04.html | S19: =IF(Meetings2!H19="","",getAddress(Meetings2!H19)) -> http://www.tabonline.com.au/2010/12/02/QT05.html | T19: =IF(Meetings2!I19="","",getAddress(Meetings2!I19)) -> http://www.tabonline.com.au/2010/12/02/QT06.html | U19: =IF(Meetings2!J19="","",getAddress(Meetings2!J19)) -> http://www.tabonline.com.au/2010/12/02/QT07.html | V19: =IF(Meetings2!K19="","",getAddress(Meetings2!K19)) ->  | W19: =IF(Meetings2!L19="","",getAddress(Meetings2!L19)) ->  | X19: =IF(Meetings2!M19="","",getAddress(Meetings2!M19)) ->  | Y19: =IF(Meetings2!N19="","",getAddress(Meetings2!N19)) ->  | AA19: 2010-02-03T14:04:00 | AV19: 6 | AX19: =IF(Race!N19<>"",Race!C19,"") -> NOBLE LUSTRE | AY19: =IF(AX19<>"",Race!N19,"") -> 100 | AZ19: =IF(AX19<>"",Race!I19,"") -> 5 | BA19: =IF(Form!I22<>"",LEFT(Form!C22,FIND("(",Form!C22)-2),"") ->  | BC19: =IF(BA19="","",Form!A22) ->  | BD19: =IF($BA19="","",IF(ISNA(VLOOKUP(BC19,Tables!A$5:B$100,2,FALSE)),"0",VLOOKUP(BC19,Tables!A$5:B$100,2,FALSE))) ->  | BF19: =IF($BE19="","0",IF(ISNA(VLOOKUP(BE19,Tables!C$5:D$100,2,FALSE)),"0",VLOOKUP(BE19,Tables!C$5:D$100,2,FALSE))) -> 0 | BG19: =IF(BA19="","",Form!F22) ->  | BH19: =IF($BA19="","",IF(ISNA(VLOOKUP(BG19,Tables!E$5:F$100,2,FALSE)),"0",VLOOKUP(BG19,Tables!E$5:F$100,2,FALSE))) ->  | BM19: =IF($BA19="","",IF(ISERROR(BL19),0,IF(ISNA(VLOOKUP(BK19,Tables!G$5:H$100,2,FALSE)),"0",VLOOKUP(BK19,Tables!G22:H$100,2,FALSE)))) ->  | BN19: =IF($BA19="","",Form!G22) ->  | BP19: =IF($BA19="","",IF(ISNA(VLOOKUP(BO19,Tables!I$5:J$100,2,FALSE)),"0",VLOOKUP(BO19,Tables!I$5:J$100,2,FALSE))) ->  | BQ19: =IF($BA19="","",Form!H22) ->  | BS19: =IF($BA19="","",IF(ISNA(VLOOKUP(BR19,Tables!K$5:L$100,2,FALSE)),"0",VLOOKUP(BR19,Tables!K$5:L$100,2,FALSE))) ->  | BT19: =IF($BA19="","",Form!I22) ->  | BV19: =IF($BA19="","",IF(ISNA(VLOOKUP(BU19,Tables!M$5:N$100,2,FALSE)),"0",VLOOKUP(BU19,Tables!M$5:N$100,2,FALSE))) ->  | BW19: =IF($BA19="","",INDEX(Race!$D$1:$P$100,MATCH($BA19,Race!$C$1:$C$100,0)+0,9)) ->  | BY19: N | BZ19: =IF($BA19="","",IF(ISNA(VLOOKUP(BY19,Tables!O$5:P$100,2,FALSE)),0,VLOOKUP(BY19,Tables!O$5:P$100,2,FALSE))) ->  | CB19: N | CC19: =IF($BA19="","",IF(ISNA(VLOOKUP(CB19,Tables!Q$5:R$100,2,FALSE)),0,VLOOKUP(CB19,Tables!Q$5:R$100,2,FALSE))) ->  | CE19: N | CF19: =IF($BA19="","",IF(ISNA(VLOOKUP(CE19,Tables!S$5:T$100,2,FALSE)),0,VLOOKUP(CE19,Tables!S$5:T$100,2,FALSE))) ->  | CH19: N | CI19: =IF($BA19="","",IF(ISNA(VLOOKUP(CH19,Tables!U$5:V$100,2,FALSE)),0,VLOOKUP(CH19,Tables!U$5:V$100,2,FALSE))) ->  | CL19: 0 | CM19: =IF($BA19="","",IF(ISERROR(CL19),0,IF(ISNA(VLOOKUP(CL19,Tables!W$5:X$100,2,FALSE)),"0",VLOOKUP(CL19,Tables!W$5:X$100,2,FALSE)))) ->  | CP19: 0 | CQ19: =IF($BA19="","",IF(ISERROR(CP19),0,IF(ISNA(VLOOKUP(CP19,Tables!Y$5:Z$100,2,FALSE)),"0",VLOOKUP(CP19,Tables!Y$5:Z$100,2,FALSE)))) ->  | CT19: 0 | CU19: =IF($BA19="","",IF(ISERROR(CT19),0,IF(ISNA(VLOOKUP(CT19,Tables!AA$5:AB$100,2,FALSE)),"0",VLOOKUP(CT19,Tables!AA$5:AB$100,2,FALSE)))) ->  | CW19: =IF(CV19="","",(Form!$H$3-CV19)/CV19*100) ->  | CY19: =IF($BA19="","",IF(ISERROR(CX19),0,IF(ISNA(VLOOKUP(CX19,Tables!AC$5:AD$100,2,FALSE)),"0",VLOOKUP(CX19,Tables!AC$5:AD$100,2,FALSE)))) ->  | DC19: =IF($BA19="","",IF(ISERROR(DB19),0,IF(ISNA(VLOOKUP(DB19,Tables!AE$5:AF$100,2,FALSE)),"0",VLOOKUP(DB19,Tables!AE$5:AF$100,2,FALSE)))) ->  | DI19: =IF($BA19="","",IF(ISERROR(DH19),0,IF(ISNA(VLOOKUP(DG19,Tables!AG$5:AH$100,2,FALSE)),"0",VLOOKUP(DG19,Tables!AG$5:AH$100,2,FALSE)))) ->  | DM19: =IF($BA19="","",IF(ISERROR(DL19),0,IF(ISNA(VLOOKUP(DL19,Tables!AI$5:AJ$100,2,FALSE)),"0",VLOOKUP(DL19,Tables!AI$5:AJ$100,2,FALSE)))) ->  | DS19: =IF($BA19="","",IF(ISERROR(DR19),0,IF(ISNA(VLOOKUP(DQ19,Tables!AK$5:AL$100,2,FALSE)),"0",VLOOKUP(DQ19,Tables!AK$5:AL$100,2,FALSE)))) ->  | DW19: =IF($BA19="","",IF(ISERROR(DV19),0,IF(ISNA(VLOOKUP(DV19,Tables!AM$5:AN$100,2,FALSE)),"0",VLOOKUP(DV19,Tables!AM$5:AN$100,2,FALSE)))) ->  | EC19: =IF($BC19="","",IF(ISERROR(EB19),0,IF(ISNA(VLOOKUP(EA19,Tables!AO$5:AP$100,2,FALSE)),"0",VLOOKUP(EA19,Tables!AO$5:AP$100,2,FALSE)))) ->  | EG19: =IF($EE19="","0",IF(ISNA(VLOOKUP(EF19,Tables!AQ$5:AR$100,2,FALSE)),"0",VLOOKUP(EF19,Tables!AQ$5:AR$100,2,FALSE))) -> 0 | EH19: =IF(BA19="","",IF(MainSheet!D26="Scratched","",BD19+BF19+BH19+BM19+BP19+BS19+BV19+BZ19+CC19+CF19+CI19+CM19+CQ19+CU19+CY19+DC19+DI19+DM19+DS19+DW19+EC19+EG19)) -> 
A20: =IF(Meetings1!A20="","",IF(Meetings1!A20="END","END",IF(Meetings1!E20="","",getAddress(Meetings1!E20)))) ->  | M20: =IF(ISNA(VLOOKUP(N20,RaceList!$J$3:$L$19,3,FALSE)),"",VLOOKUP(N20,RaceList!$J$3:$L$19,3,FALSE)) ->  | N20: =IF(Meetings2!$B20="","",Meetings2!$B20) -> NEWCASTLE (NT) | O20: =IF(Meetings2!D20="","",getAddress(Meetings2!D20)) -> http://www.tabonline.com.au/2010/12/02/NT01.html | P20: =IF(Meetings2!E20="","",getAddress(Meetings2!E20)) -> http://www.tabonline.com.au/2010/12/02/NT02.html | Q20: =IF(Meetings2!F20="","",getAddress(Meetings2!F20)) -> http://www.tabonline.com.au/2010/12/02/NT03.html | R20: =IF(Meetings2!G20="","",getAddress(Meetings2!G20)) -> http://www.tabonline.com.au/2010/12/02/NT04.html | S20: =IF(Meetings2!H20="","",getAddress(Meetings2!H20)) -> http://www.tabonline.com.au/2010/12/02/NT05.html | T20: =IF(Meetings2!I20="","",getAddress(Meetings2!I20)) -> http://www.tabonline.com.au/2010/12/02/NT06.html | U20: =IF(Meetings2!J20="","",getAddress(Meetings2!J20)) -> http://www.tabonline.com.au/2010/12/02/NT07.html | V20: =IF(Meetings2!K20="","",getAddress(Meetings2!K20)) -> http://www.tabonline.com.au/2010/12/02/NT08.html | W20: =IF(Meetings2!L20="","",getAddress(Meetings2!L20)) ->  | X20: =IF(Meetings2!M20="","",getAddress(Meetings2!M20)) ->  | Y20: =IF(Meetings2!N20="","",getAddress(Meetings2!N20)) ->  | AA20: Fast: | AV20: 5 | AX20: =IF(Race!N20<>"",Race!C20,"") -> CHABAL | AY20: =IF(AX20<>"",Race!N20,"") -> 98 | AZ20: =IF(AX20<>"",Race!I20,"") -> 4 | BA20: =IF(Form!I23<>"",LEFT(Form!C23,FIND("(",Form!C23)-2),"") ->  | BC20: =IF(BA20="","",Form!A23) ->  | BD20: =IF($BA20="","",IF(ISNA(VLOOKUP(BC20,Tables!A$5:B$100,2,FALSE)),"0",VLOOKUP(BC20,Tables!A$5:B$100,2,FALSE))) ->  | BF20: =IF($BE20="","0",IF(ISNA(VLOOKUP(BE20,Tables!C$5:D$100,2,FALSE)),"0",VLOOKUP(BE20,Tables!C$5:D$100,2,FALSE))) -> 0 | BG20: =IF(BA20="","",Form!F23) ->  | BH20: =IF($BA20="","",IF(ISNA(VLOOKUP(BG20,Tables!E$5:F$100,2,FALSE)),"0",VLOOKUP(BG20,Tables!E$5:F$100,2,FALSE))) ->  | BM20: =IF($BA20="","",IF(ISERROR(BL20),0,IF(ISNA(VLOOKUP(BK20,Tables!G$5:H$100,2,FALSE)),"0",VLOOKUP(BK20,Tables!G23:H$100,2,FALSE)))) ->  | BN20: =IF($BA20="","",Form!G23) ->  | BP20: =IF($BA20="","",IF(ISNA(VLOOKUP(BO20,Tables!I$5:J$100,2,FALSE)),"0",VLOOKUP(BO20,Tables!I$5:J$100,2,FALSE))) ->  | BQ20: =IF($BA20="","",Form!H23) ->  | BS20: =IF($BA20="","",IF(ISNA(VLOOKUP(BR20,Tables!K$5:L$100,2,FALSE)),"0",VLOOKUP(BR20,Tables!K$5:L$100,2,FALSE))) ->  | BT20: =IF($BA20="","",Form!I23) ->  | BV20: =IF($BA20="","",IF(ISNA(VLOOKUP(BU20,Tables!M$5:N$100,2,FALSE)),"0",VLOOKUP(BU20,Tables!M$5:N$100,2,FALSE))) ->  | BW20: =IF($BA20="","",INDEX(Race!$D$1:$P$100,MATCH($BA20,Race!$C$1:$C$100,0)+0,9)) ->  | BY20: N | BZ20: =IF($BA20="","",IF(ISNA(VLOOKUP(BY20,Tables!O$5:P$100,2,FALSE)),0,VLOOKUP(BY20,Tables!O$5:P$100,2,FALSE))) ->  | CB20: N | CC20: =IF($BA20="","",IF(ISNA(VLOOKUP(CB20,Tables!Q$5:R$100,2,FALSE)),0,VLOOKUP(CB20,Tables!Q$5:R$100,2,FALSE))) ->  | CE20: N | CF20: =IF($BA20="","",IF(ISNA(VLOOKUP(CE20,Tables!S$5:T$100,2,FALSE)),0,VLOOKUP(CE20,Tables!S$5:T$100,2,FALSE))) ->  | CH20: N | CI20: =IF($BA20="","",IF(ISNA(VLOOKUP(CH20,Tables!U$5:V$100,2,FALSE)),0,VLOOKUP(CH20,Tables!U$5:V$100,2,FALSE))) ->  | CL20: 0 | CM20: =IF($BA20="","",IF(ISERROR(CL20),0,IF(ISNA(VLOOKUP(CL20,Tables!W$5:X$100,2,FALSE)),"0",VLOOKUP(CL20,Tables!W$5:X$100,2,FALSE)))) ->  | CP20: 0 | CQ20: =IF($BA20="","",IF(ISERROR(CP20),0,IF(ISNA(VLOOKUP(CP20,Tables!Y$5:Z$100,2,FALSE)),"0",VLOOKUP(CP20,Tables!Y$5:Z$100,2,FALSE)))) ->  | CT20: 0 | CU20: =IF($BA20="","",IF(ISERROR(CT20),0,IF(ISNA(VLOOKUP(CT20,Tables!AA$5:AB$100,2,FALSE)),"0",VLOOKUP(CT20,Tables!AA$5:AB$100,2,FALSE)))) ->  | CW20: =IF(CV20="","",(Form!$H$3-CV20)/CV20*100) ->  | CY20: =IF($BA20="","",IF(ISERROR(CX20),0,IF(ISNA(VLOOKUP(CX20,Tables!AC$5:AD$100,2,FALSE)),"0",VLOOKUP(CX20,Tables!AC$5:AD$100,2,FALSE)))) ->  | DC20: =IF($BA20="","",IF(ISERROR(DB20),0,IF(ISNA(VLOOKUP(DB20,Tables!AE$5:AF$100,2,FALSE)),"0",VLOOKUP(DB20,Tables!AE$5:AF$100,2,FALSE)))) ->  | DI20: =IF($BA20="","",IF(ISERROR(DH20),0,IF(ISNA(VLOOKUP(DG20,Tables!AG$5:AH$100,2,FALSE)),"0",VLOOKUP(DG20,Tables!AG$5:AH$100,2,FALSE)))) ->  | DM20: =IF($BA20="","",IF(ISERROR(DL20),0,IF(ISNA(VLOOKUP(DL20,Tables!AI$5:AJ$100,2,FALSE)),"0",VLOOKUP(DL20,Tables!AI$5:AJ$100,2,FALSE)))) ->  | DS20: =IF($BA20="","",IF(ISERROR(DR20),0,IF(ISNA(VLOOKUP(DQ20,Tables!AK$5:AL$100,2,FALSE)),"0",VLOOKUP(DQ20,Tables!AK$5:AL$100,2,FALSE)))) ->  | DW20: =IF($BA20="","",IF(ISERROR(DV20),0,IF(ISNA(VLOOKUP(DV20,Tables!AM$5:AN$100,2,FALSE)),"0",VLOOKUP(DV20,Tables!AM$5:AN$100,2,FALSE)))) ->  | EC20: =IF($BC20="","",IF(ISERROR(EB20),0,IF(ISNA(VLOOKUP(EA20,Tables!AO$5:AP$100,2,FALSE)),"0",VLOOKUP(EA20,Tables!AO$5:AP$100,2,FALSE)))) ->  | EG20: =IF($EE20="","0",IF(ISNA(VLOOKUP(EF20,Tables!AQ$5:AR$100,2,FALSE)),"0",VLOOKUP(EF20,Tables!AQ$5:AR$100,2,FALSE))) -> 0 | EH20: =IF(BA20="","",IF(MainSheet!D27="Scratched","",BD20+BF20+BH20+BM20+BP20+BS20+BV20+BZ20+CC20+CF20+CI20+CM20+CQ20+CU20+CY20+DC20+DI20+DM20+DS20+DW20+EC20+EG20)) -> 
A21: =IF(Meetings1!A21="","",IF(Meetings1!A21="END","END",IF(Meetings1!E21="","",getAddress(Meetings1!E21)))) -> http://formguide.cyberhorse.com.au/index.php/Form/form.html?formdate=2010-12-02&track=Launc.&raceno=1 | M21: =IF(ISNA(VLOOKUP(N21,RaceList!$J$3:$L$19,3,FALSE)),"",VLOOKUP(N21,RaceList!$J$3:$L$19,3,FALSE)) ->  | N21: =IF(Meetings2!$B21="","",Meetings2!$B21) -> BALLARAT (VT) | O21: =IF(Meetings2!D21="","",getAddress(Meetings2!D21)) -> http://www.tabonline.com.au/2010/12/02/VT01.html | P21: =IF(Meetings2!E21="","",getAddress(Meetings2!E21)) -> http://www.tabonline.com.au/2010/12/02/VT02.html | Q21: =IF(Meetings2!F21="","",getAddress(Meetings2!F21)) -> http://www.tabonline.com.au/2010/12/02/VT03.html | R21: =IF(Meetings2!G21="","",getAddress(Meetings2!G21)) -> http://www.tabonline.com.au/2010/12/02/VT04.html | S21: =IF(Meetings2!H21="","",getAddress(Meetings2!H21)) -> http://www.tabonline.com.au/2010/12/02/VT05.html | T21: =IF(Meetings2!I21="","",getAddress(Meetings2!I21)) -> http://www.tabonline.com.au/2010/12/02/VT06.html | U21: =IF(Meetings2!J21="","",getAddress(Meetings2!J21)) -> http://www.tabonline.com.au/2010/12/02/VT07.html | V21: =IF(Meetings2!K21="","",getAddress(Meetings2!K21)) -> http://www.tabonline.com.au/2010/12/02/VT08.html | W21: =IF(Meetings2!L21="","",getAddress(Meetings2!L21)) ->  | X21: =IF(Meetings2!M21="","",getAddress(Meetings2!M21)) ->  | Y21: =IF(Meetings2!N21="","",getAddress(Meetings2!N21)) ->  | AA21: 1:1-0-0 | AV21: 5 | AX21: =IF(Race!N21<>"",Race!C21,"") ->  | AY21: =IF(AX21<>"",Race!N21,"") ->  | AZ21: =IF(AX21<>"",Race!I21,"") ->  | BA21: =IF(Form!I24<>"",LEFT(Form!C24,FIND("(",Form!C24)-2),"") ->  | BC21: =IF(BA21="","",Form!A24) ->  | BD21: =IF($BA21="","",IF(ISNA(VLOOKUP(BC21,Tables!A$5:B$100,2,FALSE)),"0",VLOOKUP(BC21,Tables!A$5:B$100,2,FALSE))) ->  | BF21: =IF($BE21="","0",IF(ISNA(VLOOKUP(BE21,Tables!C$5:D$100,2,FALSE)),"0",VLOOKUP(BE21,Tables!C$5:D$100,2,FALSE))) -> 0 | BG21: =IF(BA21="","",Form!F24) ->  | BH21: =IF($BA21="","",IF(ISNA(VLOOKUP(BG21,Tables!E$5:F$100,2,FALSE)),"0",VLOOKUP(BG21,Tables!E$5:F$100,2,FALSE))) ->  | BM21: =IF($BA21="","",IF(ISERROR(BL21),0,IF(ISNA(VLOOKUP(BK21,Tables!G$5:H$100,2,FALSE)),"0",VLOOKUP(BK21,Tables!G24:H$100,2,FALSE)))) ->  | BN21: =IF($BA21="","",Form!G24) ->  | BP21: =IF($BA21="","",IF(ISNA(VLOOKUP(BO21,Tables!I$5:J$100,2,FALSE)),"0",VLOOKUP(BO21,Tables!I$5:J$100,2,FALSE))) ->  | BQ21: =IF($BA21="","",Form!H24) ->  | BS21: =IF($BA21="","",IF(ISNA(VLOOKUP(BR21,Tables!K$5:L$100,2,FALSE)),"0",VLOOKUP(BR21,Tables!K$5:L$100,2,FALSE))) ->  | BT21: =IF($BA21="","",Form!I24) ->  | BV21: =IF($BA21="","",IF(ISNA(VLOOKUP(BU21,Tables!M$5:N$100,2,FALSE)),"0",VLOOKUP(BU21,Tables!M$5:N$100,2,FALSE))) ->  | BW21: =IF($BA21="","",INDEX(Race!$D$1:$P$100,MATCH($BA21,Race!$C$1:$C$100,0)+0,9)) ->  | BY21: N | BZ21: =IF($BA21="","",IF(ISNA(VLOOKUP(BY21,Tables!O$5:P$100,2,FALSE)),0,VLOOKUP(BY21,Tables!O$5:P$100,2,FALSE))) ->  | CB21: N | CC21: =IF($BA21="","",IF(ISNA(VLOOKUP(CB21,Tables!Q$5:R$100,2,FALSE)),0,VLOOKUP(CB21,Tables!Q$5:R$100,2,FALSE))) ->  | CE21: N | CF21: =IF($BA21="","",IF(ISNA(VLOOKUP(CE21,Tables!S$5:T$100,2,FALSE)),0,VLOOKUP(CE21,Tables!S$5:T$100,2,FALSE))) ->  | CH21: N | CI21: =IF($BA21="","",IF(ISNA(VLOOKUP(CH21,Tables!U$5:V$100,2,FALSE)),0,VLOOKUP(CH21,Tables!U$5:V$100,2,FALSE))) ->  | CL21: 0 | CM21: =IF($BA21="","",IF(ISERROR(CL21),0,IF(ISNA(VLOOKUP(CL21,Tables!W$5:X$100,2,FALSE)),"0",VLOOKUP(CL21,Tables!W$5:X$100,2,FALSE)))) ->  | CP21: 0 | CQ21: =IF($BA21="","",IF(ISERROR(CP21),0,IF(ISNA(VLOOKUP(CP21,Tables!Y$5:Z$100,2,FALSE)),"0",VLOOKUP(CP21,Tables!Y$5:Z$100,2,FALSE)))) ->  | CT21: 0 | CU21: =IF($BA21="","",IF(ISERROR(CT21),0,IF(ISNA(VLOOKUP(CT21,Tables!AA$5:AB$100,2,FALSE)),"0",VLOOKUP(CT21,Tables!AA$5:AB$100,2,FALSE)))) ->  | CW21: =IF(CV21="","",(Form!$H$3-CV21)/CV21*100) ->  | CY21: =IF($BA21="","",IF(ISERROR(CX21),0,IF(ISNA(VLOOKUP(CX21,Tables!AC$5:AD$100,2,FALSE)),"0",VLOOKUP(CX21,Tables!AC$5:AD$100,2,FALSE)))) ->  | DC21: =IF($BA21="","",IF(ISERROR(DB21),0,IF(ISNA(VLOOKUP(DB21,Tables!AE$5:AF$100,2,FALSE)),"0",VLOOKUP(DB21,Tables!AE$5:AF$100,2,FALSE)))) ->  | DI21: =IF($BA21="","",IF(ISERROR(DH21),0,IF(ISNA(VLOOKUP(DG21,Tables!AG$5:AH$100,2,FALSE)),"0",VLOOKUP(DG21,Tables!AG$5:AH$100,2,FALSE)))) ->  | DM21: =IF($BA21="","",IF(ISERROR(DL21),0,IF(ISNA(VLOOKUP(DL21,Tables!AI$5:AJ$100,2,FALSE)),"0",VLOOKUP(DL21,Tables!AI$5:AJ$100,2,FALSE)))) ->  | DS21: =IF($BA21="","",IF(ISERROR(DR21),0,IF(ISNA(VLOOKUP(DQ21,Tables!AK$5:AL$100,2,FALSE)),"0",VLOOKUP(DQ21,Tables!AK$5:AL$100,2,FALSE)))) ->  | DW21: =IF($BA21="","",IF(ISERROR(DV21),0,IF(ISNA(VLOOKUP(DV21,Tables!AM$5:AN$100,2,FALSE)),"0",VLOOKUP(DV21,Tables!AM$5:AN$100,2,FALSE)))) ->  | EC21: =IF($BC21="","",IF(ISERROR(EB21),0,IF(ISNA(VLOOKUP(EA21,Tables!AO$5:AP$100,2,FALSE)),"0",VLOOKUP(EA21,Tables!AO$5:AP$100,2,FALSE)))) ->  | EG21: =IF($EE21="","0",IF(ISNA(VLOOKUP(EF21,Tables!AQ$5:AR$100,2,FALSE)),"0",VLOOKUP(EF21,Tables!AQ$5:AR$100,2,FALSE))) -> 0 | EH21: =IF(BA21="","",IF(MainSheet!D28="Scratched","",BD21+BF21+BH21+BM21+BP21+BS21+BV21+BZ21+CC21+CF21+CI21+CM21+CQ21+CU21+CY21+DC21+DI21+DM21+DS21+DW21+EC21+EG21)) -> 
A22: =IF(Meetings1!A22="","",IF(Meetings1!A22="END","END",IF(Meetings1!E22="","",getAddress(Meetings1!E22)))) -> http://formguide.cyberhorse.com.au/index.php/Form/form.html?formdate=2010-12-02&track=Launc.&raceno=2 | M22: =IF(ISNA(VLOOKUP(N22,RaceList!$J$3:$L$19,3,FALSE)),"",VLOOKUP(N22,RaceList!$J$3:$L$19,3,FALSE)) ->  | N22: =IF(Meetings2!$B22="","",Meetings2!$B22) -> HARVEY (PT) | O22: =IF(Meetings2!D22="","",getAddress(Meetings2!D22)) -> http://www.tabonline.com.au/2010/12/02/PT01.html | P22: =IF(Meetings2!E22="","",getAddress(Meetings2!E22)) -> http://www.tabonline.com.au/2010/12/02/PT02.html | Q22: =IF(Meetings2!F22="","",getAddress(Meetings2!F22)) -> http://www.tabonline.com.au/2010/12/02/PT03.html | R22: =IF(Meetings2!G22="","",getAddress(Meetings2!G22)) -> http://www.tabonline.com.au/2010/12/02/PT04.html | S22: =IF(Meetings2!H22="","",getAddress(Meetings2!H22)) -> http://www.tabonline.com.au/2010/12/02/PT05.html | T22: =IF(Meetings2!I22="","",getAddress(Meetings2!I22)) -> http://www.tabonline.com.au/2010/12/02/PT06.html | U22: =IF(Meetings2!J22="","",getAddress(Meetings2!J22)) -> http://www.tabonline.com.au/2010/12/02/PT07.html | V22: =IF(Meetings2!K22="","",getAddress(Meetings2!K22)) -> http://www.tabonline.com.au/2010/12/02/PT08.html | W22: =IF(Meetings2!L22="","",getAddress(Meetings2!L22)) ->  | X22: =IF(Meetings2!M22="","",getAddress(Meetings2!M22)) ->  | Y22: =IF(Meetings2!N22="","",getAddress(Meetings2!N22)) ->  | AA22: 3-12 2.0L | AB22: Roma | AC22: 2010-11-20 | AD22: 1200m | AE22: Good | AF22: Race 4 | AG22: Plate | AH22: Cls 6 | AI22: 15000 | AJ22: -1500 | AK22: Ali Taylor | AL22: 4 | AM22: Cd 57.5-0.0 | AN22: (SW) | AO22: 1:12.99 | AP22: () | AQ22: 7/1 | AR22: Settled-- 1200-- 800-- Turn-- | AS22: 1-Fidakat 57.0 | AV22: 5 | AX22: =IF(Race!N22<>"",Race!C22,"") -> LOLA BRIGIDA | AY22: =IF(AX22<>"",Race!N22,"") -> 96 | AZ22: =IF(AX22<>"",Race!I22,"") -> 7 | BA22: =IF(Form!I25<>"",LEFT(Form!C25,FIND("(",Form!C25)-2),"") ->  | BC22: =IF(BA22="","",Form!A25) ->  | BD22: =IF($BA22="","",IF(ISNA(VLOOKUP(BC22,Tables!A$5:B$100,2,FALSE)),"0",VLOOKUP(BC22,Tables!A$5:B$100,2,FALSE))) ->  | BF22: =IF($BE22="","0",IF(ISNA(VLOOKUP(BE22,Tables!C$5:D$100,2,FALSE)),"0",VLOOKUP(BE22,Tables!C$5:D$100,2,FALSE))) -> 0 | BG22: =IF(BA22="","",Form!F25) ->  | BH22: =IF($BA22="","",IF(ISNA(VLOOKUP(BG22,Tables!E$5:F$100,2,FALSE)),"0",VLOOKUP(BG22,Tables!E$5:F$100,2,FALSE))) ->  | BM22: =IF($BA22="","",IF(ISERROR(BL22),0,IF(ISNA(VLOOKUP(BK22,Tables!G$5:H$100,2,FALSE)),"0",VLOOKUP(BK22,Tables!G25:H$100,2,FALSE)))) ->  | BN22: =IF($BA22="","",Form!G25) ->  | BP22: =IF($BA22="","",IF(ISNA(VLOOKUP(BO22,Tables!I$5:J$100,2,FALSE)),"0",VLOOKUP(BO22,Tables!I$5:J$100,2,FALSE))) ->  | BQ22: =IF($BA22="","",Form!H25) ->  | BS22: =IF($BA22="","",IF(ISNA(VLOOKUP(BR22,Tables!K$5:L$100,2,FALSE)),"0",VLOOKUP(BR22,Tables!K$5:L$100,2,FALSE))) ->  | BT22: =IF($BA22="","",Form!I25) ->  | BV22: =IF($BA22="","",IF(ISNA(VLOOKUP(BU22,Tables!M$5:N$100,2,FALSE)),"0",VLOOKUP(BU22,Tables!M$5:N$100,2,FALSE))) ->  | BW22: =IF($BA22="","",INDEX(Race!$D$1:$P$100,MATCH($BA22,Race!$C$1:$C$100,0)+0,9)) ->  | BY22: N | BZ22: =IF($BA22="","",IF(ISNA(VLOOKUP(BY22,Tables!O$5:P$100,2,FALSE)),0,VLOOKUP(BY22,Tables!O$5:P$100,2,FALSE))) ->  | CB22: N | CC22: =IF($BA22="","",IF(ISNA(VLOOKUP(CB22,Tables!Q$5:R$100,2,FALSE)),0,VLOOKUP(CB22,Tables!Q$5:R$100,2,FALSE))) ->  | CE22: N | CF22: =IF($BA22="","",IF(ISNA(VLOOKUP(CE22,Tables!S$5:T$100,2,FALSE)),0,VLOOKUP(CE22,Tables!S$5:T$100,2,FALSE))) ->  | CH22: N | CI22: =IF($BA22="","",IF(ISNA(VLOOKUP(CH22,Tables!U$5:V$100,2,FALSE)),0,VLOOKUP(CH22,Tables!U$5:V$100,2,FALSE))) ->  | CL22: 0 | CM22: =IF($BA22="","",IF(ISERROR(CL22),0,IF(ISNA(VLOOKUP(CL22,Tables!W$5:X$100,2,FALSE)),"0",VLOOKUP(CL22,Tables!W$5:X$100,2,FALSE)))) ->  | CP22: 0 | CQ22: =IF($BA22="","",IF(ISERROR(CP22),0,IF(ISNA(VLOOKUP(CP22,Tables!Y$5:Z$100,2,FALSE)),"0",VLOOKUP(CP22,Tables!Y$5:Z$100,2,FALSE)))) ->  | CT22: 0 | CU22: =IF($BA22="","",IF(ISERROR(CT22),0,IF(ISNA(VLOOKUP(CT22,Tables!AA$5:AB$100,2,FALSE)),"0",VLOOKUP(CT22,Tables!AA$5:AB$100,2,FALSE)))) ->  | CW22: =IF(CV22="","",(Form!$H$3-CV22)/CV22*100) ->  | CY22: =IF($BA22="","",IF(ISERROR(CX22),0,IF(ISNA(VLOOKUP(CX22,Tables!AC$5:AD$100,2,FALSE)),"0",VLOOKUP(CX22,Tables!AC$5:AD$100,2,FALSE)))) ->  | DC22: =IF($BA22="","",IF(ISERROR(DB22),0,IF(ISNA(VLOOKUP(DB22,Tables!AE$5:AF$100,2,FALSE)),"0",VLOOKUP(DB22,Tables!AE$5:AF$100,2,FALSE)))) ->  | DI22: =IF($BA22="","",IF(ISERROR(DH22),0,IF(ISNA(VLOOKUP(DG22,Tables!AG$5:AH$100,2,FALSE)),"0",VLOOKUP(DG22,Tables!AG$5:AH$100,2,FALSE)))) ->  | DM22: =IF($BA22="","",IF(ISERROR(DL22),0,IF(ISNA(VLOOKUP(DL22,Tables!AI$5:AJ$100,2,FALSE)),"0",VLOOKUP(DL22,Tables!AI$5:AJ$100,2,FALSE)))) ->  | DS22: =IF($BA22="","",IF(ISERROR(DR22),0,IF(ISNA(VLOOKUP(DQ22,Tables!AK$5:AL$100,2,FALSE)),"0",VLOOKUP(DQ22,Tables!AK$5:AL$100,2,FALSE)))) ->  | DW22: =IF($BA22="","",IF(ISERROR(DV22),0,IF(ISNA(VLOOKUP(DV22,Tables!AM$5:AN$100,2,FALSE)),"0",VLOOKUP(DV22,Tables!AM$5:AN$100,2,FALSE)))) ->  | EC22: =IF($BC22="","",IF(ISERROR(EB22),0,IF(ISNA(VLOOKUP(EA22,Tables!AO$5:AP$100,2,FALSE)),"0",VLOOKUP(EA22,Tables!AO$5:AP$100,2,FALSE)))) ->  | EG22: =IF($EE22="","0",IF(ISNA(VLOOKUP(EF22,Tables!AQ$5:AR$100,2,FALSE)),"0",VLOOKUP(EF22,Tables!AQ$5:AR$100,2,FALSE))) -> 0 | EH22: =IF(BA22="","",IF(MainSheet!D29="Scratched","",BD22+BF22+BH22+BM22+BP22+BS22+BV22+BZ22+CC22+CF22+CI22+CM22+CQ22+CU22+CY22+DC22+DI22+DM22+DS22+DW22+EC22+EG22)) -> 
A23: =IF(Meetings1!A23="","",IF(Meetings1!A23="END","END",IF(Meetings1!E23="","",getAddress(Meetings1!E23)))) -> http://formguide.cyberhorse.com.au/index.php/Form/form.html?formdate=2010-12-02&track=Launc.&raceno=3 | M23: =IF(ISNA(VLOOKUP(N23,RaceList!$J$3:$L$19,3,FALSE)),"",VLOOKUP(N23,RaceList!$J$3:$L$19,3,FALSE)) ->  | N23: =IF(Meetings2!$B23="","",Meetings2!$B23) -> VINCENNES (FT) | O23: =IF(Meetings2!D23="","",getAddress(Meetings2!D23)) -> http://www.tabonline.com.au/2010/12/02/FT01.html | P23: =IF(Meetings2!E23="","",getAddress(Meetings2!E23)) -> http://www.tabonline.com.au/2010/12/02/FT02.html | Q23: =IF(Meetings2!F23="","",getAddress(Meetings2!F23)) -> http://www.tabonline.com.au/2010/12/02/FT03.html | R23: =IF(Meetings2!G23="","",getAddress(Meetings2!G23)) ->  | S23: =IF(Meetings2!H23="","",getAddress(Meetings2!H23)) -> http://www.tabonline.com.au/2010/12/02/FT05.html | T23: =IF(Meetings2!I23="","",getAddress(Meetings2!I23)) ->  | U23: =IF(Meetings2!J23="","",getAddress(Meetings2!J23)) ->  | V23: =IF(Meetings2!K23="","",getAddress(Meetings2!K23)) ->  | W23: =IF(Meetings2!L23="","",getAddress(Meetings2!L23)) ->  | X23: =IF(Meetings2!M23="","",getAddress(Meetings2!M23)) ->  | Y23: =IF(Meetings2!N23="","",getAddress(Meetings2!N23)) ->  | AA23: 2-9 0.1L | AB23: Emrld | AC23: 2010-11-06 | AD23: 1200m | AE23: Good | AF23: Race 3 | AG23: Hcp | AH23: Cls 4 | AI23: 6000 | AJ23: -1200 | AK23: Ali Taylor | AL23: 8 | AM23: Cd 60.5-0.0 | AN23: -55 | AO23: 1:09.56 | AP23: () | AQ23: 13/4 | AR23: Settled-- 1200-- 800-- Turn-- | AS23: 1-Senorina 53.0 | AV23: 5 | AX23: =IF(Race!N23<>"",Race!C23,"") -> ZENACITY | AY23: =IF(AX23<>"",Race!N23,"") -> 92 | AZ23: =IF(AX23<>"",Race!I23,"") -> 1 | BA23: =IF(Form!I26<>"",LEFT(Form!C26,FIND("(",Form!C26)-2),"") ->  | BC23: =IF(BA23="","",Form!A26) ->  | BD23: =IF($BA23="","",IF(ISNA(VLOOKUP(BC23,Tables!A$5:B$100,2,FALSE)),"0",VLOOKUP(BC23,Tables!A$5:B$100,2,FALSE))) ->  | BF23: =IF($BE23="","0",IF(ISNA(VLOOKUP(BE23,Tables!C$5:D$100,2,FALSE)),"0",VLOOKUP(BE23,Tables!C$5:D$100,2,FALSE))) -> 0 | BG23: =IF(BA23="","",Form!F26) ->  | BH23: =IF($BA23="","",IF(ISNA(VLOOKUP(BG23,Tables!E$5:F$100,2,FALSE)),"0",VLOOKUP(BG23,Tables!E$5:F$100,2,FALSE))) ->  | BM23: =IF($BA23="","",IF(ISERROR(BL23),0,IF(ISNA(VLOOKUP(BK23,Tables!G$5:H$100,2,FALSE)),"0",VLOOKUP(BK23,Tables!G26:H$100,2,FALSE)))) ->  | BN23: =IF($BA23="","",Form!G26) ->  | BP23: =IF($BA23="","",IF(ISNA(VLOOKUP(BO23,Tables!I$5:J$100,2,FALSE)),"0",VLOOKUP(BO23,Tables!I$5:J$100,2,FALSE))) ->  | BQ23: =IF($BA23="","",Form!H26) ->  | BS23: =IF($BA23="","",IF(ISNA(VLOOKUP(BR23,Tables!K$5:L$100,2,FALSE)),"0",VLOOKUP(BR23,Tables!K$5:L$100,2,FALSE))) ->  | BT23: =IF($BA23="","",Form!I26) ->  | BV23: =IF($BA23="","",IF(ISNA(VLOOKUP(BU23,Tables!M$5:N$100,2,FALSE)),"0",VLOOKUP(BU23,Tables!M$5:N$100,2,FALSE))) ->  | BW23: =IF($BA23="","",INDEX(Race!$D$1:$P$100,MATCH($BA23,Race!$C$1:$C$100,0)+0,9)) ->  | BY23: N | BZ23: =IF($BA23="","",IF(ISNA(VLOOKUP(BY23,Tables!O$5:P$100,2,FALSE)),0,VLOOKUP(BY23,Tables!O$5:P$100,2,FALSE))) ->  | CB23: N | CC23: =IF($BA23="","",IF(ISNA(VLOOKUP(CB23,Tables!Q$5:R$100,2,FALSE)),0,VLOOKUP(CB23,Tables!Q$5:R$100,2,FALSE))) ->  | CE23: N | CF23: =IF($BA23="","",IF(ISNA(VLOOKUP(CE23,Tables!S$5:T$100,2,FALSE)),0,VLOOKUP(CE23,Tables!S$5:T$100,2,FALSE))) ->  | CH23: N | CI23: =IF($BA23="","",IF(ISNA(VLOOKUP(CH23,Tables!U$5:V$100,2,FALSE)),0,VLOOKUP(CH23,Tables!U$5:V$100,2,FALSE))) ->  | CL23: 0 | CM23: =IF($BA23="","",IF(ISERROR(CL23),0,IF(ISNA(VLOOKUP(CL23,Tables!W$5:X$100,2,FALSE)),"0",VLOOKUP(CL23,Tables!W$5:X$100,2,FALSE)))) ->  | CP23: 0 | CQ23: =IF($BA23="","",IF(ISERROR(CP23),0,IF(ISNA(VLOOKUP(CP23,Tables!Y$5:Z$100,2,FALSE)),"0",VLOOKUP(CP23,Tables!Y$5:Z$100,2,FALSE)))) ->  | CT23: 0 | CU23: =IF($BA23="","",IF(ISERROR(CT23),0,IF(ISNA(VLOOKUP(CT23,Tables!AA$5:AB$100,2,FALSE)),"0",VLOOKUP(CT23,Tables!AA$5:AB$100,2,FALSE)))) ->  | CW23: =IF(CV23="","",(Form!$H$3-CV23)/CV23*100) ->  | CY23: =IF($BA23="","",IF(ISERROR(CX23),0,IF(ISNA(VLOOKUP(CX23,Tables!AC$5:AD$100,2,FALSE)),"0",VLOOKUP(CX23,Tables!AC$5:AD$100,2,FALSE)))) ->  | DC23: =IF($BA23="","",IF(ISERROR(DB23),0,IF(ISNA(VLOOKUP(DB23,Tables!AE$5:AF$100,2,FALSE)),"0",VLOOKUP(DB23,Tables!AE$5:AF$100,2,FALSE)))) ->  | DI23: =IF($BA23="","",IF(ISERROR(DH23),0,IF(ISNA(VLOOKUP(DG23,Tables!AG$5:AH$100,2,FALSE)),"0",VLOOKUP(DG23,Tables!AG$5:AH$100,2,FALSE)))) ->  | DM23: =IF($BA23="","",IF(ISERROR(DL23),0,IF(ISNA(VLOOKUP(DL23,Tables!AI$5:AJ$100,2,FALSE)),"0",VLOOKUP(DL23,Tables!AI$5:AJ$100,2,FALSE)))) ->  | DS23: =IF($BA23="","",IF(ISERROR(DR23),0,IF(ISNA(VLOOKUP(DQ23,Tables!AK$5:AL$100,2,FALSE)),"0",VLOOKUP(DQ23,Tables!AK$5:AL$100,2,FALSE)))) ->  | DW23: =IF($BA23="","",IF(ISERROR(DV23),0,IF(ISNA(VLOOKUP(DV23,Tables!AM$5:AN$100,2,FALSE)),"0",VLOOKUP(DV23,Tables!AM$5:AN$100,2,FALSE)))) ->  | EC23: =IF($BC23="","",IF(ISERROR(EB23),0,IF(ISNA(VLOOKUP(EA23,Tables!AO$5:AP$100,2,FALSE)),"0",VLOOKUP(EA23,Tables!AO$5:AP$100,2,FALSE)))) ->  | EG23: =IF($EE23="","0",IF(ISNA(VLOOKUP(EF23,Tables!AQ$5:AR$100,2,FALSE)),"0",VLOOKUP(EF23,Tables!AQ$5:AR$100,2,FALSE))) -> 0 | EH23: =IF(BA23="","",IF(MainSheet!D30="Scratched","",BD23+BF23+BH23+BM23+BP23+BS23+BV23+BZ23+CC23+CF23+CI23+CM23+CQ23+CU23+CY23+DC23+DI23+DM23+DS23+DW23+EC23+EG23)) -> 
A24: =IF(Meetings1!A24="","",IF(Meetings1!A24="END","END",IF(Meetings1!E24="","",getAddress(Meetings1!E24)))) -> http://formguide.cyberhorse.com.au/index.php/Form/form.html?formdate=2010-12-02&track=Launc.&raceno=4 | M24: =IF(ISNA(VLOOKUP(N24,RaceList!$J$3:$L$19,3,FALSE)),"",VLOOKUP(N24,RaceList!$J$3:$L$19,3,FALSE)) ->  | N24: =IF(Meetings2!$B24="","",Meetings2!$B24) -> ASCOT PARK (ZT) | AA24: 8-10 4.7L | AB24: G Cst | AC24: 2010-10-28 | AD24: 1100m | AE24: Dead | AF24: Race 6 | AG24: Hcp | AH24: Cls 5 | AI24: 12000 | AJ24: 0 | AK24: C McIver | AL24: 1 | AM24: Cd 54.5-0.0 | AN24: -54 | AO24: 1:04.47 | AP24: -34.63 | AQ24: 10/1 | AR24: Settled-5 1200-- 800-- Turn-10 | AS24: 1-Tonkatsu 55.5 | AV24: 5 | AX24: =IF(Race!N24<>"",Race!C24,"") -> DANDY KAT | AY24: =IF(AX24<>"",Race!N24,"") -> 94 | AZ24: =IF(AX24<>"",Race!I24,"") -> 6 | BA24: =IF(Form!I27<>"",LEFT(Form!C27,FIND("(",Form!C27)-2),"") ->  | BC24: =IF(BA24="","",Form!A27) ->  | BD24: =IF($BA24="","",IF(ISNA(VLOOKUP(BC24,Tables!A$5:B$100,2,FALSE)),"0",VLOOKUP(BC24,Tables!A$5:B$100,2,FALSE))) ->  | BF24: =IF($BE24="","0",IF(ISNA(VLOOKUP(BE24,Tables!C$5:D$100,2,FALSE)),"0",VLOOKUP(BE24,Tables!C$5:D$100,2,FALSE))) -> 0 | BG24: =IF(BA24="","",Form!F27) ->  | BH24: =IF($BA24="","",IF(ISNA(VLOOKUP(BG24,Tables!E$5:F$100,2,FALSE)),"0",VLOOKUP(BG24,Tables!E$5:F$100,2,FALSE))) ->  | BM24: =IF($BA24="","",IF(ISERROR(BL24),0,IF(ISNA(VLOOKUP(BK24,Tables!G$5:H$100,2,FALSE)),"0",VLOOKUP(BK24,Tables!G27:H$100,2,FALSE)))) ->  | BN24: =IF($BA24="","",Form!G27) ->  | BP24: =IF($BA24="","",IF(ISNA(VLOOKUP(BO24,Tables!I$5:J$100,2,FALSE)),"0",VLOOKUP(BO24,Tables!I$5:J$100,2,FALSE))) ->  | BQ24: =IF($BA24="","",Form!H27) ->  | BS24: =IF($BA24="","",IF(ISNA(VLOOKUP(BR24,Tables!K$5:L$100,2,FALSE)),"0",VLOOKUP(BR24,Tables!K$5:L$100,2,FALSE))) ->  | BT24: =IF($BA24="","",Form!I27) ->  | BV24: =IF($BA24="","",IF(ISNA(VLOOKUP(BU24,Tables!M$5:N$100,2,FALSE)),"0",VLOOKUP(BU24,Tables!M$5:N$100,2,FALSE))) ->  | BW24: =IF($BA24="","",INDEX(Race!$D$1:$P$100,MATCH($BA24,Race!$C$1:$C$100,0)+0,9)) ->  | BY24: N | BZ24: =IF($BA24="","",IF(ISNA(VLOOKUP(BY24,Tables!O$5:P$100,2,FALSE)),0,VLOOKUP(BY24,Tables!O$5:P$100,2,FALSE))) ->  | CB24: N | CC24: =IF($BA24="","",IF(ISNA(VLOOKUP(CB24,Tables!Q$5:R$100,2,FALSE)),0,VLOOKUP(CB24,Tables!Q$5:R$100,2,FALSE))) ->  | CE24: N | CF24: =IF($BA24="","",IF(ISNA(VLOOKUP(CE24,Tables!S$5:T$100,2,FALSE)),0,VLOOKUP(CE24,Tables!S$5:T$100,2,FALSE))) ->  | CH24: N | CI24: =IF($BA24="","",IF(ISNA(VLOOKUP(CH24,Tables!U$5:V$100,2,FALSE)),0,VLOOKUP(CH24,Tables!U$5:V$100,2,FALSE))) ->  | CL24: 0 | CM24: =IF($BA24="","",IF(ISERROR(CL24),0,IF(ISNA(VLOOKUP(CL24,Tables!W$5:X$100,2,FALSE)),"0",VLOOKUP(CL24,Tables!W$5:X$100,2,FALSE)))) ->  | CP24: 0 | CQ24: =IF($BA24="","",IF(ISERROR(CP24),0,IF(ISNA(VLOOKUP(CP24,Tables!Y$5:Z$100,2,FALSE)),"0",VLOOKUP(CP24,Tables!Y$5:Z$100,2,FALSE)))) ->  | CT24: 0 | CU24: =IF($BA24="","",IF(ISERROR(CT24),0,IF(ISNA(VLOOKUP(CT24,Tables!AA$5:AB$100,2,FALSE)),"0",VLOOKUP(CT24,Tables!AA$5:AB$100,2,FALSE)))) ->  | CW24: =IF(CV24="","",(Form!$H$3-CV24)/CV24*100) ->  | CY24: =IF($BA24="","",IF(ISERROR(CX24),0,IF(ISNA(VLOOKUP(CX24,Tables!AC$5:AD$100,2,FALSE)),"0",VLOOKUP(CX24,Tables!AC$5:AD$100,2,FALSE)))) ->  | DC24: =IF($BA24="","",IF(ISERROR(DB24),0,IF(ISNA(VLOOKUP(DB24,Tables!AE$5:AF$100,2,FALSE)),"0",VLOOKUP(DB24,Tables!AE$5:AF$100,2,FALSE)))) ->  | DI24: =IF($BA24="","",IF(ISERROR(DH24),0,IF(ISNA(VLOOKUP(DG24,Tables!AG$5:AH$100,2,FALSE)),"0",VLOOKUP(DG24,Tables!AG$5:AH$100,2,FALSE)))) ->  | DM24: =IF($BA24="","",IF(ISERROR(DL24),0,IF(ISNA(VLOOKUP(DL24,Tables!AI$5:AJ$100,2,FALSE)),"0",VLOOKUP(DL24,Tables!AI$5:AJ$100,2,FALSE)))) ->  | DS24: =IF($BA24="","",IF(ISERROR(DR24),0,IF(ISNA(VLOOKUP(DQ24,Tables!AK$5:AL$100,2,FALSE)),"0",VLOOKUP(DQ24,Tables!AK$5:AL$100,2,FALSE)))) ->  | DW24: =IF($BA24="","",IF(ISERROR(DV24),0,IF(ISNA(VLOOKUP(DV24,Tables!AM$5:AN$100,2,FALSE)),"0",VLOOKUP(DV24,Tables!AM$5:AN$100,2,FALSE)))) ->  | EC24: =IF($BC24="","",IF(ISERROR(EB24),0,IF(ISNA(VLOOKUP(EA24,Tables!AO$5:AP$100,2,FALSE)),"0",VLOOKUP(EA24,Tables!AO$5:AP$100,2,FALSE)))) ->  | EG24: =IF($EE24="","0",IF(ISNA(VLOOKUP(EF24,Tables!AQ$5:AR$100,2,FALSE)),"0",VLOOKUP(EF24,Tables!AQ$5:AR$100,2,FALSE))) -> 0 | EH24: =IF(BA24="","",IF(MainSheet!D31="Scratched","",BD24+BF24+BH24+BM24+BP24+BS24+BV24+BZ24+CC24+CF24+CI24+CM24+CQ24+CU24+CY24+DC24+DI24+DM24+DS24+DW24+EC24+EG24)) -> 
A25: =IF(Meetings1!A25="","",IF(Meetings1!A25="END","END",IF(Meetings1!E25="","",getAddress(Meetings1!E25)))) -> http://formguide.cyberhorse.com.au/index.php/Form/form.html?formdate=2010-12-02&track=Launc.&raceno=5 | M25: =IF(ISNA(VLOOKUP(N25,RaceList!$J$3:$L$19,3,FALSE)),"",VLOOKUP(N25,RaceList!$J$3:$L$19,3,FALSE)) ->  | N25: =IF(Meetings2!$B25="","",Meetings2!$B25) ->  | O25: =IF(Meetings2!D24="","",getAddress(Meetings2!D24)) -> http://www.tabonline.com.au/2010/12/02/ZT01.html | P25: =IF(Meetings2!E24="","",getAddress(Meetings2!E24)) -> http://www.tabonline.com.au/2010/12/02/ZT02.html | Q25: =IF(Meetings2!F24="","",getAddress(Meetings2!F24)) -> http://www.tabonline.com.au/2010/12/02/ZT03.html | R25: =IF(Meetings2!G24="","",getAddress(Meetings2!G24)) -> http://www.tabonline.com.au/2010/12/02/ZT04.html | S25: =IF(Meetings2!H24="","",getAddress(Meetings2!H24)) -> http://www.tabonline.com.au/2010/12/02/ZT05.html | T25: =IF(Meetings2!I24="","",getAddress(Meetings2!I24)) -> http://www.tabonline.com.au/2010/12/02/ZT06.html | U25: =IF(Meetings2!J24="","",getAddress(Meetings2!J24)) -> http://www.tabonline.com.au/2010/12/02/ZT07.html | V25: =IF(Meetings2!K24="","",getAddress(Meetings2!K24)) -> http://www.tabonline.com.au/2010/12/02/ZT08.html | W25: =IF(Meetings2!L24="","",getAddress(Meetings2!L24)) -> http://www.tabonline.com.au/2010/12/02/ZT09.html | X25: =IF(Meetings2!M24="","",getAddress(Meetings2!M24)) ->  | Y25: =IF(Meetings2!N24="","",getAddress(Meetings2!N24)) ->  | Z25: =IF(AA25="","",IF(ISERROR(MID(AA25,FIND(" ",AA25,1)+1,FIND("(",AA25,1)-FIND(" ",AA25,1)-2)),"",MID(AA25,FIND(" ",AA25,1)+1,FIND("(",AA25,1)-FIND(" ",AA25,1)-2))) ->  | AA25: 4-11 3.4L | AB25: Emrld | AC25: 2010-10-09 | AD25: 1000m | AE25: Good | AF25: Race 2 | AG25: Hcp | AH25: Cls 4 | AI25: 6000 | AJ25: -200 | AK25: R Cox | AL25: 3 | AM25: Cd 59.5--1.5 | AN25: -55 | AO25: 0:57.38 | AP25: () | AQ25: 1/1F | AR25: Settled-- 1200-- 800-- Turn-- | AS25: 1-Black Angus 56.0 | AV25: 4 | AX25: =IF(Race!N25<>"",Race!C25,"") -> FU MIN BU | AY25: =IF(AX25<>"",Race!N25,"") -> 96 | AZ25: =IF(AX25<>"",Race!I25,"") -> 9 | BA25: =IF(Form!I28<>"",LEFT(Form!C28,FIND("(",Form!C28)-2),"") ->  | BC25: =IF(BA25="","",Form!A28) ->  | BD25: =IF($BA25="","",IF(ISNA(VLOOKUP(BC25,Tables!A$5:B$100,2,FALSE)),"0",VLOOKUP(BC25,Tables!A$5:B$100,2,FALSE))) ->  | BF25: =IF($BE25="","0",IF(ISNA(VLOOKUP(BE25,Tables!C$5:D$100,2,FALSE)),"0",VLOOKUP(BE25,Tables!C$5:D$100,2,FALSE))) -> 0 | BG25: =IF(BA25="","",Form!F28) ->  | BH25: =IF($BA25="","",IF(ISNA(VLOOKUP(BG25,Tables!E$5:F$100,2,FALSE)),"0",VLOOKUP(BG25,Tables!E$5:F$100,2,FALSE))) ->  | BM25: =IF($BA25="","",IF(ISERROR(BL25),0,IF(ISNA(VLOOKUP(BK25,Tables!G$5:H$100,2,FALSE)),"0",VLOOKUP(BK25,Tables!G28:H$100,2,FALSE)))) ->  | BN25: =IF($BA25="","",Form!G27) ->  | BP25: =IF($BA25="","",IF(ISNA(VLOOKUP(BO25,Tables!I$5:J$100,2,FALSE)),"0",VLOOKUP(BO25,Tables!I$5:J$100,2,FALSE))) ->  | BQ25: =IF($BA25="","",Form!H27) ->  | BS25: =IF($BA25="","",IF(ISNA(VLOOKUP(BR25,Tables!K$5:L$100,2,FALSE)),"0",VLOOKUP(BR25,Tables!K$5:L$100,2,FALSE))) ->  | BT25: =IF($BA25="","",Form!I28) ->  | BV25: =IF($BA25="","",IF(ISNA(VLOOKUP(BU25,Tables!M$5:N$100,2,FALSE)),"0",VLOOKUP(BU25,Tables!M$5:N$100,2,FALSE))) ->  | BW25: =IF($BA25="","",INDEX(Race!$D$1:$P$100,MATCH($BA25,Race!$C$1:$C$100,0)+0,9)) ->  | BY25: N | BZ25: =IF($BA25="","",IF(ISNA(VLOOKUP(BY25,Tables!O$5:P$100,2,FALSE)),0,VLOOKUP(BY25,Tables!O$5:P$100,2,FALSE))) ->  | CB25: N | CC25: =IF($BA25="","",IF(ISNA(VLOOKUP(CB25,Tables!Q$5:R$100,2,FALSE)),0,VLOOKUP(CB25,Tables!Q$5:R$100,2,FALSE))) ->  | CE25: N | CF25: =IF($BA25="","",IF(ISNA(VLOOKUP(CE25,Tables!S$5:T$100,2,FALSE)),0,VLOOKUP(CE25,Tables!S$5:T$100,2,FALSE))) ->  | CH25: N | CI25: =IF($BA25="","",IF(ISNA(VLOOKUP(CH25,Tables!U$5:V$100,2,FALSE)),0,VLOOKUP(CH25,Tables!U$5:V$100,2,FALSE))) ->  | CL25: 0 | CM25: =IF($BA25="","",IF(ISERROR(CL25),0,IF(ISNA(VLOOKUP(CL25,Tables!W$5:X$100,2,FALSE)),"0",VLOOKUP(CL25,Tables!W$5:X$100,2,FALSE)))) ->  | CP25: 0 | CQ25: =IF($BA25="","",IF(ISERROR(CP25),0,IF(ISNA(VLOOKUP(CP25,Tables!Y$5:Z$100,2,FALSE)),"0",VLOOKUP(CP25,Tables!Y$5:Z$100,2,FALSE)))) ->  | CT25: 0 | CU25: =IF($BA25="","",IF(ISERROR(CT25),0,IF(ISNA(VLOOKUP(CT25,Tables!AA$5:AB$100,2,FALSE)),"0",VLOOKUP(CT25,Tables!AA$5:AB$100,2,FALSE)))) ->  | CW25: =IF(CV25="","",(Form!$H$3-CV25)/CV25*100) ->  | CY25: =IF($BA25="","",IF(ISERROR(CX25),0,IF(ISNA(VLOOKUP(CX25,Tables!AC$5:AD$100,2,FALSE)),"0",VLOOKUP(CX25,Tables!AC$5:AD$100,2,FALSE)))) ->  | DC25: =IF($BA25="","",IF(ISERROR(DB25),0,IF(ISNA(VLOOKUP(DB25,Tables!AE$5:AF$100,2,FALSE)),"0",VLOOKUP(DB25,Tables!AE$5:AF$100,2,FALSE)))) ->  | DI25: =IF($BA25="","",IF(ISERROR(DH25),0,IF(ISNA(VLOOKUP(DG25,Tables!AG$5:AH$100,2,FALSE)),"0",VLOOKUP(DG25,Tables!AG$5:AH$100,2,FALSE)))) ->  | DM25: =IF($BA25="","",IF(ISERROR(DL25),0,IF(ISNA(VLOOKUP(DL25,Tables!AI$5:AJ$100,2,FALSE)),"0",VLOOKUP(DL25,Tables!AI$5:AJ$100,2,FALSE)))) ->  | DS25: =IF($BA25="","",IF(ISERROR(DR25),0,IF(ISNA(VLOOKUP(DQ25,Tables!AK$5:AL$100,2,FALSE)),"0",VLOOKUP(DQ25,Tables!AK$5:AL$100,2,FALSE)))) ->  | DW25: =IF($BA25="","",IF(ISERROR(DV25),0,IF(ISNA(VLOOKUP(DV25,Tables!AM$5:AN$100,2,FALSE)),"0",VLOOKUP(DV25,Tables!AM$5:AN$100,2,FALSE)))) ->  | EC25: =IF($BC25="","",IF(ISERROR(EB25),0,IF(ISNA(VLOOKUP(EA25,Tables!AO$5:AP$100,2,FALSE)),"0",VLOOKUP(EA25,Tables!AO$5:AP$100,2,FALSE)))) ->  | EG25: =IF($EE25="","0",IF(ISNA(VLOOKUP(EF25,Tables!AQ$5:AR$100,2,FALSE)),"0",VLOOKUP(EF25,Tables!AQ$5:AR$100,2,FALSE))) -> 0 | EH25: =IF(BA25="","",IF(MainSheet!D32="Scratched","",BD25+BF25+BH25+BM25+BP25+BS25+BV25+BZ25+CC25+CF25+CI25+CM25+CQ25+CU25+CY25+DC25+DI25+DM25+DS25+DW25+EC25+EG25)) -> 
A26: =IF(Meetings1!A26="","",IF(Meetings1!A26="END","END",IF(Meetings1!E26="","",getAddress(Meetings1!E26)))) -> http://formguide.cyberhorse.com.au/index.php/Form/form.html?formdate=2010-12-02&track=Launc.&raceno=6 | M26: =IF(ISNA(VLOOKUP(N26,RaceList!$J$3:$L$19,3,FALSE)),"",VLOOKUP(N26,RaceList!$J$3:$L$19,3,FALSE)) ->  | N26: =IF(Meetings2!$B26="","",Meetings2!$B26) -> ALBION PARK (BG) | O26: =IF(Meetings2!D25="","",getAddress(Meetings2!D25)) ->  | P26: =IF(Meetings2!E25="","",getAddress(Meetings2!E25)) ->  | Q26: =IF(Meetings2!F25="","",getAddress(Meetings2!F25)) ->  | R26: =IF(Meetings2!G25="","",getAddress(Meetings2!G25)) ->  | S26: =IF(Meetings2!H25="","",getAddress(Meetings2!H25)) ->  | T26: =IF(Meetings2!I25="","",getAddress(Meetings2!I25)) ->  | U26: =IF(Meetings2!J25="","",getAddress(Meetings2!J25)) ->  | V26: =IF(Meetings2!K25="","",getAddress(Meetings2!K25)) ->  | W26: =IF(Meetings2!L25="","",getAddress(Meetings2!L25)) ->  | X26: =IF(Meetings2!M25="","",getAddress(Meetings2!M25)) ->  | Y26: =IF(Meetings2!N25="","",getAddress(Meetings2!N25)) ->  | AA26: 1-9 0.3L | AB26: Rocky | AC26: 2010-09-23 | AD26: 970m | AE26: Heavy | AF26: Race 6 | AG26: Hcp | AH26: Cls 3 | AI26: 12000 | AJ26: -7800 | AK26: C McIver | AL26: 6 | AM26: Cd 56.5-0.0 | AN26: -54 | AO26: 0:57.42 | AP26: -34.27 | AQ26: 7/2 | AR26: Settled-- 1200-- 800-- Turn-- | AS26: 2-Basheeba 54.5 | AV26: 4 | AX26: =IF(Race!N26<>"",Race!C26,"") ->  | AY26: =IF(AX26<>"",Race!N26,"") ->  | AZ26: =IF(AX26<>"",Race!I26,"") -> 
A27: =IF(Meetings1!A27="","",IF(Meetings1!A27="END","END",IF(Meetings1!E27="","",getAddress(Meetings1!E27)))) -> http://formguide.cyberhorse.com.au/index.php/Form/form.html?formdate=2010-12-02&track=Launc.&raceno=7 | M27: =IF(ISNA(VLOOKUP(N27,RaceList!$J$3:$L$19,3,FALSE)),"",VLOOKUP(N27,RaceList!$J$3:$L$19,3,FALSE)) ->  | N27: =IF(Meetings2!$B27="","",Meetings2!$B27) -> DAPTO (SG) | O27: =IF(Meetings2!D26="","",getAddress(Meetings2!D26)) -> http://www.tabonline.com.au/2010/12/02/BG01.html | P27: =IF(Meetings2!E26="","",getAddress(Meetings2!E26)) -> http://www.tabonline.com.au/2010/12/02/BG02.html | Q27: =IF(Meetings2!F26="","",getAddress(Meetings2!F26)) -> http://www.tabonline.com.au/2010/12/02/BG03.html | R27: =IF(Meetings2!G26="","",getAddress(Meetings2!G26)) -> http://www.tabonline.com.au/2010/12/02/BG04.html | S27: =IF(Meetings2!H26="","",getAddress(Meetings2!H26)) -> http://www.tabonline.com.au/2010/12/02/BG05.html | T27: =IF(Meetings2!I26="","",getAddress(Meetings2!I26)) -> http://www.tabonline.com.au/2010/12/02/BG06.html | U27: =IF(Meetings2!J26="","",getAddress(Meetings2!J26)) -> http://www.tabonline.com.au/2010/12/02/BG07.html | V27: =IF(Meetings2!K26="","",getAddress(Meetings2!K26)) -> http://www.tabonline.com.au/2010/12/02/BG08.html | W27: =IF(Meetings2!L26="","",getAddress(Meetings2!L26)) -> http://www.tabonline.com.au/2010/12/02/BG09.html | X27: =IF(Meetings2!M26="","",getAddress(Meetings2!M26)) -> http://www.tabonline.com.au/2010/12/02/BG10.html | Y27: =IF(Meetings2!N26="","",getAddress(Meetings2!N26)) ->  | AA27: 1-7 4.3L | AB27: Chinch | AC27: 2008-11-08 | AD27: 1200m | AE27: Dead | AF27: Race 2 | AG27: Plate | AH27: Cls 3 | AI27: 6500 | AJ27: -4200 | AK27: L McCoy | AL27: 6 | AM27: Cd 58.0-0.0 | AN27: (SW) | AO27: 1:10.02 | AP27: () | AQ27: 8/11F | AR27: Settled-- 1200-- 800-- Turn-- | AS27: 2-My Kavita 54.5 | AV27: 4 | AX27: =IF(Race!N27<>"",Race!C27,"") ->  | AY27: =IF(AX27<>"",Race!N27,"") ->  | AZ27: =IF(AX27<>"",Race!I27,"") ->  | DO27: =IF($BI27="","",ROUND(0+DN27/0.5,0)*0.5) ->  | DY27: =IF($BI27="","",ROUND(0+DX27/0.5,0)*0.5) ->  | DZ27: =IF($BI27="","",ROUND(0+DY27/0.5,0)*0.5) -> 
A28: =IF(Meetings1!A28="","",IF(Meetings1!A28="END","END",IF(Meetings1!E28="","",getAddress(Meetings1!E28)))) -> http://formguide.cyberhorse.com.au/index.php/Form/form.html?formdate=2010-12-02&track=Launc.&raceno=8 | M28: =IF(ISNA(VLOOKUP(N28,RaceList!$J$3:$L$19,3,FALSE)),"",VLOOKUP(N28,RaceList!$J$3:$L$19,3,FALSE)) ->  | N28: =IF(Meetings2!$B28="","",Meetings2!$B28) -> SANDOWN PARK (MG) | O28: =IF(Meetings2!D27="","",getAddress(Meetings2!D27)) -> http://www.tabonline.com.au/2010/12/02/SG01.html | P28: =IF(Meetings2!E27="","",getAddress(Meetings2!E27)) -> http://www.tabonline.com.au/2010/12/02/SG02.html | Q28: =IF(Meetings2!F27="","",getAddress(Meetings2!F27)) -> http://www.tabonline.com.au/2010/12/02/SG03.html | R28: =IF(Meetings2!G27="","",getAddress(Meetings2!G27)) -> http://www.tabonline.com.au/2010/12/02/SG04.html | S28: =IF(Meetings2!H27="","",getAddress(Meetings2!H27)) -> http://www.tabonline.com.au/2010/12/02/SG05.html | T28: =IF(Meetings2!I27="","",getAddress(Meetings2!I27)) -> http://www.tabonline.com.au/2010/12/02/SG06.html | U28: =IF(Meetings2!J27="","",getAddress(Meetings2!J27)) -> http://www.tabonline.com.au/2010/12/02/SG07.html | V28: =IF(Meetings2!K27="","",getAddress(Meetings2!K27)) -> http://www.tabonline.com.au/2010/12/02/SG08.html | W28: =IF(Meetings2!L27="","",getAddress(Meetings2!L27)) -> http://www.tabonline.com.au/2010/12/02/SG09.html | X28: =IF(Meetings2!M27="","",getAddress(Meetings2!M27)) -> http://www.tabonline.com.au/2010/12/02/SG10.html | Y28: =IF(Meetings2!N27="","",getAddress(Meetings2!N27)) ->  | AA28: 2-8 3.0L | AB28: Twba | AC28: 2008-10-24 | AD28: 1000m | AE28: Good | AF28: Race 8 | AG28: 3yo+ Hcp | AH28: Cls 3 3+ | AI28: 10000 | AJ28: -2000 | AK28: L McCoy | AL28: 3 | AM28: Cd 54.0-0.0 | AN28: -54 | AO28: 0:58.95 | AP28: -34.59 | AQ28: 13/4 | AR28: Settled-2 1200-- 800-- Turn-2 | AS28: 1-Morcombe 52.0 | AV28: 4 | AX28: =IF(Race!N28<>"",Race!C28,"") ->  | AY28: =IF(AX28<>"",Race!N28,"") ->  | AZ28: =IF(AX28<>"",Race!I28,"") -> 
A29: =IF(Meetings1!A29="","",IF(Meetings1!A29="END","END",IF(Meetings1!E29="","",getAddress(Meetings1!E29)))) ->  | M29: =IF(ISNA(VLOOKUP(N29,RaceList!$J$3:$L$19,3,FALSE)),"",VLOOKUP(N29,RaceList!$J$3:$L$19,3,FALSE)) ->  | N29: =IF(Meetings2!$B29="","",Meetings2!$B29) -> MAITLAND (NG) | O29: =IF(Meetings2!D28="","",getAddress(Meetings2!D28)) -> http://www.tabonline.com.au/2010/12/02/MG01.html | P29: =IF(Meetings2!E28="","",getAddress(Meetings2!E28)) -> http://www.tabonline.com.au/2010/12/02/MG02.html | Q29: =IF(Meetings2!F28="","",getAddress(Meetings2!F28)) -> http://www.tabonline.com.au/2010/12/02/MG03.html | R29: =IF(Meetings2!G28="","",getAddress(Meetings2!G28)) -> http://www.tabonline.com.au/2010/12/02/MG04.html | S29: =IF(Meetings2!H28="","",getAddress(Meetings2!H28)) -> http://www.tabonline.com.au/2010/12/02/MG05.html | T29: =IF(Meetings2!I28="","",getAddress(Meetings2!I28)) -> http://www.tabonline.com.au/2010/12/02/MG06.html | U29: =IF(Meetings2!J28="","",getAddress(Meetings2!J28)) -> http://www.tabonline.com.au/2010/12/02/MG07.html | V29: =IF(Meetings2!K28="","",getAddress(Meetings2!K28)) -> http://www.tabonline.com.au/2010/12/02/MG08.html | W29: =IF(Meetings2!L28="","",getAddress(Meetings2!L28)) -> http://www.tabonline.com.au/2010/12/02/MG09.html | X29: =IF(Meetings2!M28="","",getAddress(Meetings2!M28)) -> http://www.tabonline.com.au/2010/12/02/MG10.html | Y29: =IF(Meetings2!N28="","",getAddress(Meetings2!N28)) -> http://www.tabonline.com.au/2010/12/02/MG11.html | AA29: 1-9 2.5L | AB29: Twba | AC29: 2008-10-11 | AD29: 1012m | AE29: Slow | AF29: Race 2 | AG29: 3yo+ Hcp | AH29: Cls 1 3+ | AI29: 10000 | AJ29: -6500 | AK29: C Eaton | AL29: 1 | AM29: Cd 54.0-0.0 | AN29: -54 | AO29: 1:01.05 | AP29: -36.05 | AQ29: 8/1 | AR29: Settled-1 1200-- 800-- Turn-1 | AS29: 2-Magical Joker 58.0 | AV29: 4 | AX29: =IF(Race!N29<>"",Race!C29,"") ->  | AY29: =IF(AX29<>"",Race!N29,"") ->  | AZ29: =IF(AX29<>"",Race!I29,"") -> 
A30: =IF(Meetings1!A30="","",IF(Meetings1!A30="END","END",IF(Meetings1!E30="","",getAddress(Meetings1!E30)))) -> http://formguide.cyberhorse.com.au/index.php/Form/form.html?formdate=2010-12-02&track=Pinjra&raceno=1 | M30: =IF(ISNA(VLOOKUP(N30,RaceList!$J$3:$L$19,3,FALSE)),"",VLOOKUP(N30,RaceList!$J$3:$L$19,3,FALSE)) ->  | N30: =IF(Meetings2!$B30="","",Meetings2!$B30) -> SHEPPARTON (VG) | O30: =IF(Meetings2!D29="","",getAddress(Meetings2!D29)) -> http://www.tabonline.com.au/2010/12/02/NG01.html | P30: =IF(Meetings2!E29="","",getAddress(Meetings2!E29)) -> http://www.tabonline.com.au/2010/12/02/NG02.html | Q30: =IF(Meetings2!F29="","",getAddress(Meetings2!F29)) -> http://www.tabonline.com.au/2010/12/02/NG03.html | R30: =IF(Meetings2!G29="","",getAddress(Meetings2!G29)) -> http://www.tabonline.com.au/2010/12/02/NG04.html | S30: =IF(Meetings2!H29="","",getAddress(Meetings2!H29)) -> http://www.tabonline.com.au/2010/12/02/NG05.html | T30: =IF(Meetings2!I29="","",getAddress(Meetings2!I29)) -> http://www.tabonline.com.au/2010/12/02/NG06.html | U30: =IF(Meetings2!J29="","",getAddress(Meetings2!J29)) -> http://www.tabonline.com.au/2010/12/02/NG07.html | V30: =IF(Meetings2!K29="","",getAddress(Meetings2!K29)) -> http://www.tabonline.com.au/2010/12/02/NG08.html | W30: =IF(Meetings2!L29="","",getAddress(Meetings2!L29)) -> http://www.tabonline.com.au/2010/12/02/NG09.html | X30: =IF(Meetings2!M29="","",getAddress(Meetings2!M29)) -> http://www.tabonline.com.au/2010/12/02/NG10.html | Y30: =IF(Meetings2!N29="","",getAddress(Meetings2!N29)) ->  | AA30: 1-10 2.5L | AB30: Taroom | AC30: 2008-09-27 | AD30: 1000m | AE30: Fast | AF30: Race 1 | AG30: 3yo+ Mdn | AH30: Mdn 3+ | AI30: 8000 | AJ30: -5200 | AK30: L McCoy | AL30: 1 | AM30: Cd 57.0-0.0 | AN30: (SW) | AO30: 0:58.86 | AP30: () | AQ30: 2/1F | AR30: Settled-- 1200-- 800-- Turn-- | AS30: 2-Mon Jolie 56.5 | AV30: 3 | AX30: =IF(Race!N30<>"",Race!C30,"") ->  | AY30: =IF(AX30<>"",Race!N30,"") ->  | AZ30: =IF(AX30<>"",Race!I30,"") -> 
A31: =IF(Meetings1!A31="","",IF(Meetings1!A31="END","END",IF(Meetings1!E31="","",getAddress(Meetings1!E31)))) -> http://formguide.cyberhorse.com.au/index.php/Form/form.html?formdate=2010-12-02&track=Pinjra&raceno=2 | O31: =IF(Meetings2!D30="","",getAddress(Meetings2!D30)) -> http://www.tabonline.com.au/2010/12/02/VG01.html | P31: =IF(Meetings2!E30="","",getAddress(Meetings2!E30)) -> http://www.tabonline.com.au/2010/12/02/VG02.html | Q31: =IF(Meetings2!F30="","",getAddress(Meetings2!F30)) -> http://www.tabonline.com.au/2010/12/02/VG03.html | R31: =IF(Meetings2!G30="","",getAddress(Meetings2!G30)) -> http://www.tabonline.com.au/2010/12/02/VG04.html | S31: =IF(Meetings2!H30="","",getAddress(Meetings2!H30)) -> http://www.tabonline.com.au/2010/12/02/VG05.html | T31: =IF(Meetings2!I30="","",getAddress(Meetings2!I30)) -> http://www.tabonline.com.au/2010/12/02/VG06.html | U31: =IF(Meetings2!J30="","",getAddress(Meetings2!J30)) -> http://www.tabonline.com.au/2010/12/02/VG07.html | V31: =IF(Meetings2!K30="","",getAddress(Meetings2!K30)) -> http://www.tabonline.com.au/2010/12/02/VG08.html | W31: =IF(Meetings2!L30="","",getAddress(Meetings2!L30)) -> http://www.tabonline.com.au/2010/12/02/VG09.html | X31: =IF(Meetings2!M30="","",getAddress(Meetings2!M30)) -> http://www.tabonline.com.au/2010/12/02/VG10.html | Y31: =IF(Meetings2!N30="","",getAddress(Meetings2!N30)) -> http://www.tabonline.com.au/2010/12/02/VG11.html | AA31: 7-10 10.3L | AB31: Rocky | AC31: 2008-04-19 | AD31: 1200m | AE31: Good | AF31: Race 4 | AG31: 2yo Classic | AH31: Open 2 | AI31: 30000 | AJ31: 0 | AK31: L McCoy | AL31: 9 | AM31: Cd 57.0-0.0 | AN31: -54 | AO31: 1:12.27 | AP31: () | AQ31: 6/1 | AR31: Settled-- 1200-- 800-- Turn-- | AS31: 1-Ready Royal 55.0 | AV31: 3 | AX31: =IF(Race!N31<>"",Race!C31,"") ->  | AY31: =IF(AX31<>"",Race!N31,"") ->  | AZ31: =IF(AX31<>"",Race!I31,"") -> 
A32: =IF(Meetings1!A32="","",IF(Meetings1!A32="END","END",IF(Meetings1!E32="","",getAddress(Meetings1!E32)))) -> http://formguide.cyberhorse.com.au/index.php/Form/form.html?formdate=2010-12-02&track=Pinjra&raceno=3 | O32: =IF(Meetings2!D31="","",getAddress(Meetings2!D31)) -> http://www.tabonline.com.au/2010/12/02/AG01.html | P32: =IF(Meetings2!E31="","",getAddress(Meetings2!E31)) -> http://www.tabonline.com.au/2010/12/02/AG02.html | Q32: =IF(Meetings2!F31="","",getAddress(Meetings2!F31)) -> http://www.tabonline.com.au/2010/12/02/AG03.html | R32: =IF(Meetings2!G31="","",getAddress(Meetings2!G31)) -> http://www.tabonline.com.au/2010/12/02/AG04.html | S32: =IF(Meetings2!H31="","",getAddress(Meetings2!H31)) -> http://www.tabonline.com.au/2010/12/02/AG05.html | T32: =IF(Meetings2!I31="","",getAddress(Meetings2!I31)) -> http://www.tabonline.com.au/2010/12/02/AG06.html | U32: =IF(Meetings2!J31="","",getAddress(Meetings2!J31)) -> http://www.tabonline.com.au/2010/12/02/AG07.html | V32: =IF(Meetings2!K31="","",getAddress(Meetings2!K31)) -> http://www.tabonline.com.au/2010/12/02/AG08.html | W32: =IF(Meetings2!L31="","",getAddress(Meetings2!L31)) -> http://www.tabonline.com.au/2010/12/02/AG09.html | X32: =IF(Meetings2!M31="","",getAddress(Meetings2!M31)) -> http://www.tabonline.com.au/2010/12/02/AG10.html | Y32: =IF(Meetings2!N31="","",getAddress(Meetings2!N31)) -> http://www.tabonline.com.au/2010/12/02/AG11.html | Z32: Igotitfrommymumma | AA32: 2 Igotitfrommymumma (3) 55.5kg 6yo b g | AV32: 3 | AX32: =IF(Race!N32<>"",Race!C32,"") ->  | AY32: =IF(AX32<>"",Race!N32,"") ->  | AZ32: =IF(AX32<>"",Race!I32,"") -> 
A33: =IF(Meetings1!A33="","",IF(Meetings1!A33="END","END",IF(Meetings1!E33="","",getAddress(Meetings1!E33)))) -> http://formguide.cyberhorse.com.au/index.php/Form/form.html?formdate=2010-12-02&track=Pinjra&raceno=4 | O33: =IF(Meetings2!D32="","",getAddress(Meetings2!D32)) -> http://www.tabonline.com.au/2010/12/02/CG01.html | P33: =IF(Meetings2!E32="","",getAddress(Meetings2!E32)) -> http://www.tabonline.com.au/2010/12/02/CG02.html | Q33: =IF(Meetings2!F32="","",getAddress(Meetings2!F32)) -> http://www.tabonline.com.au/2010/12/02/CG03.html | R33: =IF(Meetings2!G32="","",getAddress(Meetings2!G32)) -> http://www.tabonline.com.au/2010/12/02/CG04.html | S33: =IF(Meetings2!H32="","",getAddress(Meetings2!H32)) -> http://www.tabonline.com.au/2010/12/02/CG05.html | T33: =IF(Meetings2!I32="","",getAddress(Meetings2!I32)) -> http://www.tabonline.com.au/2010/12/02/CG06.html | U33: =IF(Meetings2!J32="","",getAddress(Meetings2!J32)) -> http://www.tabonline.com.au/2010/12/02/CG07.html | V33: =IF(Meetings2!K32="","",getAddress(Meetings2!K32)) -> http://www.tabonline.com.au/2010/12/02/CG08.html | W33: =IF(Meetings2!L32="","",getAddress(Meetings2!L32)) -> http://www.tabonline.com.au/2010/12/02/CG09.html | X33: =IF(Meetings2!M32="","",getAddress(Meetings2!M32)) -> http://www.tabonline.com.au/2010/12/02/CG10.html | Y33: =IF(Meetings2!N32="","",getAddress(Meetings2!N32)) ->  | AA33: Colours: White with green dollar sign | AB33: red sleeves and cap | AV33: 3 | AX33: =IF(Race!N33<>"",Race!C33,"") ->  | AY33: =IF(AX33<>"",Race!N33,"") ->  | AZ33: =IF(AX33<>"",Race!I33,"") -> 
A34: =IF(Meetings1!A34="","",IF(Meetings1!A34="END","END",IF(Meetings1!E34="","",getAddress(Meetings1!E34)))) -> http://formguide.cyberhorse.com.au/index.php/Form/form.html?formdate=2010-12-02&track=Pinjra&raceno=5 | O34: =IF(Meetings2!D33="","",getAddress(Meetings2!D33)) -> http://www.tabonline.com.au/2010/12/02/PG01.html | P34: =IF(Meetings2!E33="","",getAddress(Meetings2!E33)) -> http://www.tabonline.com.au/2010/12/02/PG02.html | Q34: =IF(Meetings2!F33="","",getAddress(Meetings2!F33)) -> http://www.tabonline.com.au/2010/12/02/PG03.html | R34: =IF(Meetings2!G33="","",getAddress(Meetings2!G33)) -> http://www.tabonline.com.au/2010/12/02/PG04.html | S34: =IF(Meetings2!H33="","",getAddress(Meetings2!H33)) -> http://www.tabonline.com.au/2010/12/02/PG05.html | T34: =IF(Meetings2!I33="","",getAddress(Meetings2!I33)) -> http://www.tabonline.com.au/2010/12/02/PG06.html | U34: =IF(Meetings2!J33="","",getAddress(Meetings2!J33)) -> http://www.tabonline.com.au/2010/12/02/PG07.html | V34: =IF(Meetings2!K33="","",getAddress(Meetings2!K33)) -> http://www.tabonline.com.au/2010/12/02/PG08.html | W34: =IF(Meetings2!L33="","",getAddress(Meetings2!L33)) -> http://www.tabonline.com.au/2010/12/02/PG09.html | X34: =IF(Meetings2!M33="","",getAddress(Meetings2!M33)) -> http://www.tabonline.com.au/2010/12/02/PG10.html | Y34: =IF(Meetings2!N33="","",getAddress(Meetings2!N33)) -> http://www.tabonline.com.au/2010/12/02/PG11.html | AA34: Owners: Mrs K & C Curd | AV34: 3 | AX34: =IF(Race!N34<>"",Race!C34,"") ->  | AY34: =IF(AX34<>"",Race!N34,"") ->  | AZ34: =IF(AX34<>"",Race!I34,"") -> 
A35: =IF(Meetings1!A35="","",IF(Meetings1!A35="END","END",IF(Meetings1!E35="","",getAddress(Meetings1!E35)))) -> http://formguide.cyberhorse.com.au/index.php/Form/form.html?formdate=2010-12-02&track=Pinjra&raceno=6 | O35: =IF(Meetings2!D34="","",getAddress(Meetings2!D34)) -> http://www.tabonline.com.au/2010/12/02/EG01.html | P35: =IF(Meetings2!E34="","",getAddress(Meetings2!E34)) -> http://www.tabonline.com.au/2010/12/02/EG02.html | Q35: =IF(Meetings2!F34="","",getAddress(Meetings2!F34)) -> http://www.tabonline.com.au/2010/12/02/EG03.html | R35: =IF(Meetings2!G34="","",getAddress(Meetings2!G34)) -> http://www.tabonline.com.au/2010/12/02/EG04.html | S35: =IF(Meetings2!H34="","",getAddress(Meetings2!H34)) -> http://www.tabonline.com.au/2010/12/02/EG05.html | T35: =IF(Meetings2!I34="","",getAddress(Meetings2!I34)) -> http://www.tabonline.com.au/2010/12/02/EG06.html | U35: =IF(Meetings2!J34="","",getAddress(Meetings2!J34)) -> http://www.tabonline.com.au/2010/12/02/EG07.html | V35: =IF(Meetings2!K34="","",getAddress(Meetings2!K34)) -> http://www.tabonline.com.au/2010/12/02/EG08.html | W35: =IF(Meetings2!L34="","",getAddress(Meetings2!L34)) -> http://www.tabonline.com.au/2010/12/02/EG09.html | X35: =IF(Meetings2!M34="","",getAddress(Meetings2!M34)) -> http://www.tabonline.com.au/2010/12/02/EG10.html | Y35: =IF(Meetings2!N34="","",getAddress(Meetings2!N34)) -> http://www.tabonline.com.au/2010/12/02/EG11.html | AA35: Career: | AV35: 2 | AX35: =IF(Race!N35<>"",Race!C35,"") ->  | AY35: =IF(AX35<>"",Race!N35,"") ->  | AZ35: =IF(AX35<>"",Race!I35,"") -> 
A36: =IF(Meetings1!A36="","",IF(Meetings1!A36="END","END",IF(Meetings1!E36="","",getAddress(Meetings1!E36)))) -> http://formguide.cyberhorse.com.au/index.php/Form/form.html?formdate=2010-12-02&track=Pinjra&raceno=7 | O36: =IF(Meetings2!D35="","",getAddress(Meetings2!D35)) -> http://www.tabonline.com.au/2010/12/02/OG01.html | P36: =IF(Meetings2!E35="","",getAddress(Meetings2!E35)) -> http://www.tabonline.com.au/2010/12/02/OG02.html | Q36: =IF(Meetings2!F35="","",getAddress(Meetings2!F35)) -> http://www.tabonline.com.au/2010/12/02/OG03.html | R36: =IF(Meetings2!G35="","",getAddress(Meetings2!G35)) -> http://www.tabonline.com.au/2010/12/02/OG04.html | S36: =IF(Meetings2!H35="","",getAddress(Meetings2!H35)) -> http://www.tabonline.com.au/2010/12/02/OG05.html | T36: =IF(Meetings2!I35="","",getAddress(Meetings2!I35)) -> http://www.tabonline.com.au/2010/12/02/OG06.html | U36: =IF(Meetings2!J35="","",getAddress(Meetings2!J35)) -> http://www.tabonline.com.au/2010/12/02/OG07.html | V36: =IF(Meetings2!K35="","",getAddress(Meetings2!K35)) -> http://www.tabonline.com.au/2010/12/02/OG08.html | W36: =IF(Meetings2!L35="","",getAddress(Meetings2!L35)) -> http://www.tabonline.com.au/2010/12/02/OG09.html | X36: =IF(Meetings2!M35="","",getAddress(Meetings2!M35)) -> http://www.tabonline.com.au/2010/12/02/OG10.html | Y36: =IF(Meetings2!N35="","",getAddress(Meetings2!N35)) -> http://www.tabonline.com.au/2010/12/02/OG11.html | AA36: 2010-05-05T07:04:00 | AV36: 2 | AX36: =IF(Race!N36<>"",Race!C36,"") ->  | AY36: =IF(AX36<>"",Race!N36,"") ->  | AZ36: =IF(AX36<>"",Race!I36,"") -> 
A37: =IF(Meetings1!A37="","",IF(Meetings1!A37="END","END",IF(Meetings1!E37="","",getAddress(Meetings1!E37)))) -> http://formguide.cyberhorse.com.au/index.php/Form/form.html?formdate=2010-12-02&track=Pinjra&raceno=8 | O37: =IF(Meetings2!D36="","",getAddress(Meetings2!D36)) -> http://www.tabonline.com.au/2010/12/02/ZG01.html | P37: =IF(Meetings2!E36="","",getAddress(Meetings2!E36)) -> http://www.tabonline.com.au/2010/12/02/ZG02.html | Q37: =IF(Meetings2!F36="","",getAddress(Meetings2!F36)) -> http://www.tabonline.com.au/2010/12/02/ZG03.html | R37: =IF(Meetings2!G36="","",getAddress(Meetings2!G36)) -> http://www.tabonline.com.au/2010/12/02/ZG04.html | S37: =IF(Meetings2!H36="","",getAddress(Meetings2!H36)) -> http://www.tabonline.com.au/2010/12/02/ZG05.html | T37: =IF(Meetings2!I36="","",getAddress(Meetings2!I36)) -> http://www.tabonline.com.au/2010/12/02/ZG06.html | U37: =IF(Meetings2!J36="","",getAddress(Meetings2!J36)) -> http://www.tabonline.com.au/2010/12/02/ZG07.html | V37: =IF(Meetings2!K36="","",getAddress(Meetings2!K36)) -> http://www.tabonline.com.au/2010/12/02/ZG08.html | W37: =IF(Meetings2!L36="","",getAddress(Meetings2!L36)) -> http://www.tabonline.com.au/2010/12/02/ZG09.html | X37: =IF(Meetings2!M36="","",getAddress(Meetings2!M36)) -> http://www.tabonline.com.au/2010/12/02/ZG10.html | Y37: =IF(Meetings2!N36="","",getAddress(Meetings2!N36)) -> http://www.tabonline.com.au/2010/12/02/ZG11.html | AA37: Fast: | AV37: 2 | AX37: =IF(Race!N37<>"",Race!C37,"") ->  | AY37: =IF(AX37<>"",Race!N37,"") ->  | AZ37: =IF(AX37<>"",Race!I37,"") -> 
A38: =IF(Meetings1!A38="","",IF(Meetings1!A38="END","END",IF(Meetings1!E38="","",getAddress(Meetings1!E38)))) ->  | O38: =IF(Meetings2!D37="","",getAddress(Meetings2!D37)) -> http://www.tabonline.com.au/2010/12/02/TG01.html | P38: =IF(Meetings2!E37="","",getAddress(Meetings2!E37)) -> http://www.tabonline.com.au/2010/12/02/TG02.html | Q38: =IF(Meetings2!F37="","",getAddress(Meetings2!F37)) -> http://www.tabonline.com.au/2010/12/02/TG03.html | R38: =IF(Meetings2!G37="","",getAddress(Meetings2!G37)) -> http://www.tabonline.com.au/2010/12/02/TG04.html | S38: =IF(Meetings2!H37="","",getAddress(Meetings2!H37)) -> http://www.tabonline.com.au/2010/12/02/TG05.html | T38: =IF(Meetings2!I37="","",getAddress(Meetings2!I37)) -> http://www.tabonline.com.au/2010/12/02/TG06.html | U38: =IF(Meetings2!J37="","",getAddress(Meetings2!J37)) -> http://www.tabonline.com.au/2010/12/02/TG07.html | V38: =IF(Meetings2!K37="","",getAddress(Meetings2!K37)) -> http://www.tabonline.com.au/2010/12/02/TG08.html | W38: =IF(Meetings2!L37="","",getAddress(Meetings2!L37)) -> http://www.tabonline.com.au/2010/12/02/TG09.html | X38: =IF(Meetings2!M37="","",getAddress(Meetings2!M37)) -> http://www.tabonline.com.au/2010/12/02/TG10.html | Y38: =IF(Meetings2!N37="","",getAddress(Meetings2!N37)) ->  | AA38: 0:0-0-0 | AV38: 2 | AX38: =IF(Race!N38<>"",Race!C38,"") ->  | AY38: =IF(AX38<>"",Race!N38,"") ->  | AZ38: =IF(AX38<>"",Race!I38,"") -> 
A39: =IF(Meetings1!A39="","",IF(Meetings1!A39="END","END",IF(Meetings1!E39="","",getAddress(Meetings1!E39)))) -> http://formguide.cyberhorse.com.au/index.php/Form/form.html?formdate=2010-12-02&track=Rocky&raceno=1 | O39: =IF(Meetings2!D38="","",getAddress(Meetings2!D38)) ->  | P39: =IF(Meetings2!E38="","",getAddress(Meetings2!E38)) ->  | Q39: =IF(Meetings2!F38="","",getAddress(Meetings2!F38)) ->  | R39: =IF(Meetings2!G38="","",getAddress(Meetings2!G38)) ->  | S39: =IF(Meetings2!H38="","",getAddress(Meetings2!H38)) ->  | T39: =IF(Meetings2!I38="","",getAddress(Meetings2!I38)) ->  | U39: =IF(Meetings2!J38="","",getAddress(Meetings2!J38)) ->  | V39: =IF(Meetings2!K38="","",getAddress(Meetings2!K38)) ->  | W39: =IF(Meetings2!L38="","",getAddress(Meetings2!L38)) ->  | X39: =IF(Meetings2!M38="","",getAddress(Meetings2!M38)) ->  | Y39: =IF(Meetings2!N38="","",getAddress(Meetings2!N38)) ->  | AA39: 7-8 4.2L | AB39: Rocky | AC39: 2010-11-04 | AD39: 1300m | AE39: Dead | AF39: Race 4 | AG39: Hcp | AH39: Cls 5 | AI39: 12000 | AJ39: 0 | AK39: C Pye | AL39: 1 | AM39: Cd 52.0--2.0 | AN39: -54 | AO39: 1:18.05 | AP39: -35.11 | AQ39: 12/1 | AR39: Settled-- 1200-- 800-- Turn-- | AS39: 1-Martiros 54.5 | AV39: 2 | AX39: =IF(Race!N39<>"",Race!C39,"") ->  | AY39: =IF(AX39<>"",Race!N39,"") ->  | AZ39: =IF(AX39<>"",Race!I39,"") -> 
A40: =IF(Meetings1!A40="","",IF(Meetings1!A40="END","END",IF(Meetings1!E40="","",getAddress(Meetings1!E40)))) -> http://formguide.cyberhorse.com.au/index.php/Form/form.html?formdate=2010-12-02&track=Rocky&raceno=2 | O40: =IF(Meetings2!D39="","",getAddress(Meetings2!D39)) ->  | P40: =IF(Meetings2!E39="","",getAddress(Meetings2!E39)) ->  | Q40: =IF(Meetings2!F39="","",getAddress(Meetings2!F39)) ->  | R40: =IF(Meetings2!G39="","",getAddress(Meetings2!G39)) ->  | S40: =IF(Meetings2!H39="","",getAddress(Meetings2!H39)) ->  | T40: =IF(Meetings2!I39="","",getAddress(Meetings2!I39)) ->  | U40: =IF(Meetings2!J39="","",getAddress(Meetings2!J39)) ->  | V40: =IF(Meetings2!K39="","",getAddress(Meetings2!K39)) ->  | W40: =IF(Meetings2!L39="","",getAddress(Meetings2!L39)) ->  | X40: =IF(Meetings2!M39="","",getAddress(Meetings2!M39)) ->  | Y40: =IF(Meetings2!N39="","",getAddress(Meetings2!N39)) ->  | AA40: 3-7 2.4L | AB40: Mackay | AC40: 2010-10-19 | AD40: 1500m | AE40: Good | AF40: Race 2 | AG40: Plate | AH40: Cls 6 | AI40: 10000 | AJ40: -1000 | AK40: C Pye | AL40: 6 | AM40: Cd 52.5--3.0 | AN40: (SW) | AO40: 1:30.50 | AP40: () | AQ40: 5/1 | AR40: Settled-2 1200-- 800-- Turn-3 | AS40: 1-Polrossa 55.5 | AV40: 1 | AX40: =IF(Race!N40<>"",Race!C40,"") ->  | AY40: =IF(AX40<>"",Race!N40,"") ->  | AZ40: =IF(AX40<>"",Race!I40,"") -> 
A41: =IF(Meetings1!A41="","",IF(Meetings1!A41="END","END",IF(Meetings1!E41="","",getAddress(Meetings1!E41)))) -> http://formguide.cyberhorse.com.au/index.php/Form/form.html?formdate=2010-12-02&track=Rocky&raceno=3 | O41: =IF(Meetings2!D40="","",getAddress(Meetings2!D40)) -> http://www.tabonline.com.au/2010/12/02/mtgraces.html | P41: =IF(Meetings2!E40="","",getAddress(Meetings2!E40)) ->  | Q41: =IF(Meetings2!F40="","",getAddress(Meetings2!F40)) ->  | R41: =IF(Meetings2!G40="","",getAddress(Meetings2!G40)) ->  | S41: =IF(Meetings2!H40="","",getAddress(Meetings2!H40)) ->  | T41: =IF(Meetings2!I40="","",getAddress(Meetings2!I40)) ->  | U41: =IF(Meetings2!J40="","",getAddress(Meetings2!J40)) ->  | V41: =IF(Meetings2!K40="","",getAddress(Meetings2!K40)) ->  | W41: =IF(Meetings2!L40="","",getAddress(Meetings2!L40)) ->  | X41: =IF(Meetings2!M40="","",getAddress(Meetings2!M40)) ->  | Y41: =IF(Meetings2!N40="","",getAddress(Meetings2!N40)) ->  | AA41: 1-6 0.2L | AB41: Mackay | AC41: 2010-10-09 | AD41: 1500m | AE41: Good | AF41: Race 2 | AG41: Hcp | AH41: Cls 4 | AI41: 7500 | AJ41: -4800 | AK41: K Cross | AL41: 6 | AM41: Cd 51.0--3.0 | AN41: -54 | AO41: 1:28.90 | AP41: () | AQ41: 5/2 | AR41: Settled-- 1200-- 800-- Turn-- | AS41: 2-Ellehro 54.0 | AV41: 1 | AX41: =IF(Race!N41<>"",Race!C41,"") ->  | AY41: =IF(AX41<>"",Race!N41,"") ->  | AZ41: =IF(AX41<>"",Race!I41,"") -> 
A42: =IF(Meetings1!A42="","",IF(Meetings1!A42="END","END",IF(Meetings1!E42="","",getAddress(Meetings1!E42)))) -> http://formguide.cyberhorse.com.au/index.php/Form/form.html?formdate=2010-12-02&track=Rocky&raceno=4 | O42: =IF(Meetings2!D41="","",getAddress(Meetings2!D41)) ->  | P42: =IF(Meetings2!E41="","",getAddress(Meetings2!E41)) ->  | Q42: =IF(Meetings2!F41="","",getAddress(Meetings2!F41)) ->  | R42: =IF(Meetings2!G41="","",getAddress(Meetings2!G41)) ->  | S42: =IF(Meetings2!H41="","",getAddress(Meetings2!H41)) ->  | T42: =IF(Meetings2!I41="","",getAddress(Meetings2!I41)) ->  | U42: =IF(Meetings2!J41="","",getAddress(Meetings2!J41)) ->  | V42: =IF(Meetings2!K41="","",getAddress(Meetings2!K41)) ->  | W42: =IF(Meetings2!L41="","",getAddress(Meetings2!L41)) ->  | X42: =IF(Meetings2!M41="","",getAddress(Meetings2!M41)) ->  | Y42: =IF(Meetings2!N41="","",getAddress(Meetings2!N41)) ->  | AA42: 5-9 8.5L | AB42: Mackay | AC42: 2010-09-28 | AD42: 1250m | AE42: Heavy | AF42: Race 6 | AG42: Plate | AH42: Cls 3 | AI42: 10000 | AJ42: 0 | AK42: H O'Hara | AL42: 9 | AM42: Cd 55.5--3.0 | AN42: (SW) | AO42: 1:16.40 | AP42: () | AQ42: 8/1 | AR42: Settled-8 1200-- 800-- Turn-8 | AS42: 1-Achill Island 57.0 | AV42: 1 | AX42: =IF(Race!N40<>"",Race!C40,"") ->  | AY42: =IF(AX43<>"",Race!N41,"") ->  | AZ42: =IF(AX44<>"",Race!I42,"") -> 
A43: =IF(Meetings1!A43="","",IF(Meetings1!A43="END","END",IF(Meetings1!E43="","",getAddress(Meetings1!E43)))) -> http://formguide.cyberhorse.com.au/index.php/Form/form.html?formdate=2010-12-02&track=Rocky&raceno=5 | O43: =IF(Meetings2!D42="","",getAddress(Meetings2!D42)) ->  | P43: =IF(Meetings2!E42="","",getAddress(Meetings2!E42)) ->  | Q43: =IF(Meetings2!F42="","",getAddress(Meetings2!F42)) ->  | R43: =IF(Meetings2!G42="","",getAddress(Meetings2!G42)) ->  | S43: =IF(Meetings2!H42="","",getAddress(Meetings2!H42)) ->  | T43: =IF(Meetings2!I42="","",getAddress(Meetings2!I42)) ->  | U43: =IF(Meetings2!J42="","",getAddress(Meetings2!J42)) ->  | V43: =IF(Meetings2!K42="","",getAddress(Meetings2!K42)) ->  | W43: =IF(Meetings2!L42="","",getAddress(Meetings2!L42)) ->  | X43: =IF(Meetings2!M42="","",getAddress(Meetings2!M42)) ->  | Y43: =IF(Meetings2!N42="","",getAddress(Meetings2!N42)) ->  | AA43: 1-7 3.0L | AB43: S'sure | AC43: 2010-09-18 | AD43: 1400m | AE43: Good | AF43: Race 5 | AG43: Hcp | AH43: Cls 2 | AI43: 5100 | AJ43: -3400 | AK43: H O'Hara | AL43: 6 | AM43: Cd 54.5--2.0 | AN43: -55 | AO43: 1:27.55 | AP43: () | AQ43: 3/1 | AR43: Settled-- 1200-- 800-- Turn-- | AS43: 2-Craiglea Fancy 53.0 | AV43: 1 | AX43: =IF(Race!N41<>"",Race!C41,"") ->  | AY43: =IF(AX44<>"",Race!N42,"") ->  | AZ43: =IF(AX45<>"",Race!I43,"") -> 
A44: =IF(Meetings1!A44="","",IF(Meetings1!A44="END","END",IF(Meetings1!E44="","",getAddress(Meetings1!E44)))) -> http://formguide.cyberhorse.com.au/index.php/Form/form.html?formdate=2010-12-02&track=Rocky&raceno=6 | O44: =IF(Meetings2!D43="","",getAddress(Meetings2!D43)) ->  | P44: =IF(Meetings2!E43="","",getAddress(Meetings2!E43)) ->  | Q44: =IF(Meetings2!F43="","",getAddress(Meetings2!F43)) ->  | R44: =IF(Meetings2!G43="","",getAddress(Meetings2!G43)) ->  | S44: =IF(Meetings2!H43="","",getAddress(Meetings2!H43)) ->  | T44: =IF(Meetings2!I43="","",getAddress(Meetings2!I43)) ->  | U44: =IF(Meetings2!J43="","",getAddress(Meetings2!J43)) ->  | V44: =IF(Meetings2!K43="","",getAddress(Meetings2!K43)) ->  | W44: =IF(Meetings2!L43="","",getAddress(Meetings2!L43)) ->  | X44: =IF(Meetings2!M43="","",getAddress(Meetings2!M43)) ->  | Y44: =IF(Meetings2!N43="","",getAddress(Meetings2!N43)) ->  | AA44: 5-11 5.7L | AB44: Mackay | AC44: 2010-09-07 | AD44: 1250m | AE44: Good | AF44: Race 5 | AG44: Hcp | AH44: Cls 2 | AI44: 10000 | AJ44: 0 | AK44: H O'Hara | AL44: 7 | AM44: Cd 52.0--2.0 | AN44: -54 | AO44: 1:14.00 | AP44: () | AQ44: 20/1 | AR44: Settled-9 1200-- 800-- Turn-8 | AS44: 1-Essington 58.0 | AV44: 1 | AX44: =IF(Race!N42<>"",Race!C42,"") ->  | AY44: =IF(AX45<>"",Race!N43,"") ->  | AZ44: =IF(AX46<>"",Race!I44,"") -> 
A45: =IF(Meetings1!A45="","",IF(Meetings1!A45="END","END",IF(Meetings1!E45="","",getAddress(Meetings1!E45)))) -> END | O45: =IF(Meetings2!D44="","",getAddress(Meetings2!D44)) ->  | P45: =IF(Meetings2!E44="","",getAddress(Meetings2!E44)) ->  | Q45: =IF(Meetings2!F44="","",getAddress(Meetings2!F44)) ->  | R45: =IF(Meetings2!G44="","",getAddress(Meetings2!G44)) ->  | S45: =IF(Meetings2!H44="","",getAddress(Meetings2!H44)) ->  | T45: =IF(Meetings2!I44="","",getAddress(Meetings2!I44)) ->  | U45: =IF(Meetings2!J44="","",getAddress(Meetings2!J44)) ->  | V45: =IF(Meetings2!K44="","",getAddress(Meetings2!K44)) ->  | W45: =IF(Meetings2!L44="","",getAddress(Meetings2!L44)) ->  | X45: =IF(Meetings2!M44="","",getAddress(Meetings2!M44)) ->  | Y45: =IF(Meetings2!N44="","",getAddress(Meetings2!N44)) ->  | AA45: 10-12 7.7L | AB45: Mackay | AC45: 2010-06-17 | AD45: 1500m | AE45: Good | AF45: Race 5 | AG45: Hcp | AH45: Cls 2 | AI45: 10000 | AJ45: 0 | AK45: R Wiggins | AL45: 9 | AM45: Cd 54.0-0.0 | AN45: -54 | AO45: 1:29.75 | AP45: () | AQ45: 12/1 | AR45: Settled-8 1200-- 800-- Turn-11 | AS45: 1-Great Gretzky 56.0 | AW45: 0 | AX45: =IF(Race!N43<>"",Race!C43,"") ->  | AY45: =IF(AX46<>"",Race!N44,"") ->  | AZ45: =IF(AX47<>"",Race!I45,"") -> 
A46: =IF(Meetings1!A46="","",IF(Meetings1!A46="END","END",IF(Meetings1!E46="","",getAddress(Meetings1!E46)))) ->  | AA46: 9-10 8.6L | AB46: Rocky | AC46: 2010-05-22 | AD46: 1600m | AE46: Good | AF46: Race 3 | AG46: Hcp | AH46: Cls 3 | AI46: 6000 | AJ46: 0 | AK46: C McIver | AL46: 2 | AM46: Cd 54.0-0.0 | AN46: -54 | AO46: 1:36.03 | AP46: -37.2 | AQ46: 14/1 | AR46: Settled-- 1200-- 800-- Turn-- | AS46: 1-Timecall 58.0 | AW46: 0 | AX46: =IF(Race!N44<>"",Race!C44,"") ->  | AY46: =IF(AX47<>"",Race!N45,"") ->  | AZ46: =IF(AX48<>"",Race!I46,"") -> 
A47: =IF(Meetings1!A47="","",IF(Meetings1!A47="END","END",IF(Meetings1!E47="","",getAddress(Meetings1!E47)))) ->  | AA47: 4-6 5.5L | AB47: Mackay | AC47: 2010-05-01 | AD47: 1250m | AE47: Good | AF47: Race 1 | AG47: Hcp | AH47: Cls 3 | AI47: 6000 | AJ47: -200 | AK47: D Simmons | AL47: 4 | AM47: Cd 54.0-0.0 | AN47: -54 | AO47: 1:14.13 | AP47: () | AQ47: 5/2 | AR47: Settled-- 1200-- 800-- Turn-- | AS47: 1-Eagledance Kid 54.0 | AW47: 0 | AX47: =IF(Race!N45<>"",Race!C45,"") ->  | AY47: =IF(AX48<>"",Race!N46,"") ->  | AZ47: =IF(AX49<>"",Race!I47,"") -> 
A48: =IF(Meetings1!A48="","",IF(Meetings1!A48="END","END",IF(Meetings1!E48="","",getAddress(Meetings1!E48)))) ->  | AA48: 3-9 1.8L | AB48: Mackay | AC48: 2010-04-13 | AD48: 1050m | AE48: Dead | AF48: Race 7 | AG48: Hcp | AH48: Cls 2 | AI48: 12000 | AJ48: -1200 | AK48: T Bannon | AL48: 1 | AM48: Cd 55.0-0.0 | AN48: -54.5 | AO48: 1:01.58 | AP48: () | AQ48: 12/1 | AR48: Settled-- 1200-- 800-- Turn-- | AS48: 1-God's Window 55.5 | AW48: 0 | AX48: =IF(Race!N46<>"",Race!C46,"") ->  | AY48: =IF(AX49<>"",Race!N47,"") ->  | AZ48: =IF(AX50<>"",Race!I48,"") -> 
A49: =IF(Meetings1!A49="","",IF(Meetings1!A49="END","END",IF(Meetings1!E49="","",getAddress(Meetings1!E49)))) ->  | Z49: Noble Lustre | AA49: 3 Noble Lustre (5) 55.5kg 5yo b/br g | AW49: 0 | AX49: =IF(Race!N47<>"",Race!C47,"") ->  | AY49: =IF(AX50<>"",Race!N48,"") ->  | AZ49: =IF(AX51<>"",Race!I49,"") -> 
A50: =IF(Meetings1!A50="","",IF(Meetings1!A50="END","END",IF(Meetings1!E50="","",getAddress(Meetings1!E50)))) ->  | AA50: Colours: Dark blue | AB50: yellow seams and cap | AW50: 0 | AX50: =IF(Race!N48<>"",Race!C48,"") ->  | AY50: =IF(AX51<>"",Race!N49,"") ->  | AZ50: =IF(AX52<>"",Race!I50,"") -> 
A51: =IF(Meetings1!A51="","",IF(Meetings1!A51="END","END",IF(Meetings1!E51="","",getAddress(Meetings1!E51)))) ->  | AA51: Owners: J Brown | AB51: L L Chang & V Brown | AW51: 0 | AX51: =IF(Race!N49<>"",Race!C49,"") ->  | AY51: =IF(AX52<>"",Race!N50,"") ->  | AZ51: =IF(AX53<>"",Race!I51,"") -> 
A52: =IF(Meetings1!A52="","",IF(Meetings1!A52="END","END",IF(Meetings1!E52="","",getAddress(Meetings1!E52)))) ->  | AA52: Career:
A53: =IF(Meetings1!A53="","",IF(Meetings1!A53="END","END",IF(Meetings1!E53="","",getAddress(Meetings1!E53)))) ->  | AA53: 2010-03-04T03:03:00
A54: =IF(Meetings1!A54="","",IF(Meetings1!A54="END","END",IF(Meetings1!E54="","",getAddress(Meetings1!E54)))) ->  | AA54: Fast:
A55: =IF(Meetings1!A55="","",IF(Meetings1!A55="END","END",IF(Meetings1!E55="","",getAddress(Meetings1!E55)))) ->  | AA55: 0:0-0-0
A56: =IF(Meetings1!A56="","",IF(Meetings1!A56="END","END",IF(Meetings1!E56="","",getAddress(Meetings1!E56)))) ->  | AA56: 8-13 4.5L | AB56: Rocky | AC56: 2010-11-11 | AD56: 1200m | AE56: Good | AF56: Race 7 | AG56: Hcp | AH56: Cls 3 | AI56: 10000 | AJ56: 0 | AK56: B Stewart | AL56: 6 | AM56: Cd 57.0-0.0 | AN56: -54 | AO56: 1:10.07 | AP56: -34.16 | AQ56: 7/1 | AR56: Settled-- 1200-- 800-- Turn-- | AS56: 1-Angel Force 54.0
A57: =IF(Meetings1!A57="","",IF(Meetings1!A57="END","END",IF(Meetings1!E57="","",getAddress(Meetings1!E57)))) ->  | AA57: 1-6 2.0L | AB57: Rocky | AC57: 2010-11-02 | AD57: 1200m | AE57: Good | AF57: Race 4 | AG57: Plate | AH57: Cls 3 | AI57: 6000 | AJ57: -4000 | AK57: K Cross | AL57: 1 | AM57: Cd 54.0--3.0 | AN57: (SW) | AO57: 1:10.31 | AP57: -33.24 | AQ57: 5/2 | AR57: Settled-- 1200-- 800-- Turn-- | AS57: 2-Mountain King 54.0
A58: =IF(Meetings1!A58="","",IF(Meetings1!A58="END","END",IF(Meetings1!E58="","",getAddress(Meetings1!E58)))) ->  | AA58: 9-15 7.2L | AB58: Rocky | AC58: 2010-10-07 | AD58: 1200m | AE58: Good | AF58: Race 7 | AG58: Hcp | AH58: Cls 3 | AI58: 10000 | AJ58: 0 | AK58: B Stewart | AL58: 12 | AM58: Cd 56.0-0.0 | AN58: -54 | AO58: 1:10.26 | AP58: -34.68 | AQ58: 7/1 | AR58: Settled-- 1200-- 800-- Turn-- | AS58: 1-Basheeba 56.0
A59: =IF(Meetings1!A59="","",IF(Meetings1!A59="END","END",IF(Meetings1!E59="","",getAddress(Meetings1!E59)))) ->  | AA59: 8-9 5.4L | AB59: Rocky | AC59: 2010-09-23 | AD59: 970m | AE59: Heavy | AF59: Race 6 | AG59: Hcp | AH59: Cls 3 | AI59: 12000 | AJ59: 0 | AK59: B Stewart | AL59: 2 | AM59: Cd 55.5-0.0 | AN59: -54 | AO59: 0:57.42 | AP59: -34.27 | AQ59: 13/4E | AR59: Settled-- 1200-- 800-- Turn-- | AS59: 1-Dack's Faz 56.5
A60: =IF(Meetings1!A60="","",IF(Meetings1!A60="END","END",IF(Meetings1!E60="","",getAddress(Meetings1!E60)))) ->  | AA60: 5-10 4.0L | AB60: Rocky | AC60: 2010-09-09 | AD60: 970m | AE60: Good | AF60: Race 1 | AG60: Hcp | AH60: Cls 2 | AI60: 10000 | AJ60: 0 | AK60: D Simmons | AL60: 7 | AM60: Cd 58.0-0.0 | AN60: -54 | AO60: 0:55.87 | AP60: -33.16 | AQ60: 3/1E | AR60: Settled-- 1200-- 800-- Turn-- | AS60: 1-Noosa Bay 53.0
A61: =IF(Meetings1!A61="","",IF(Meetings1!A61="END","END",IF(Meetings1!E61="","",getAddress(Meetings1!E61)))) ->  | AA61: 2-5 2.0L | AB61: Ball't | AC61: 2010-03-04 | AD61: 1100m | AE61: Dead | AF61: Race 5 | AG61: Hcp | AH61: RB72 | AI61: 15000 | AJ61: -2700 | AK61: L Nolen | AL61: 2 | AM61: Cd 55.0-0.0 | AN61: -53 | AO61: 1:06.04 | AP61: () | AQ61: 7/4 | AR61: Settled-3 1200-- 800-- Turn-2 | AS61: 1-My Girl Helen 56.5
A62: =IF(Meetings1!A62="","",IF(Meetings1!A62="END","END",IF(Meetings1!E62="","",getAddress(Meetings1!E62)))) ->  | AA62: 6-11 1.8L | AB62: K'more | AC62: 2010-02-14 | AD62: 1200m | AE62: Dead | AF62: Race 6 | AG62: Hcp | AH62: RB68 | AI62: 22500 | AJ62: -200 | AK62: B Rawiller | AL62: 9 | AM62: Cd 57.5-0.0 | AN62: -53 | AO62: 1:11.22 | AP62: () | AQ62: 9/2E | AR62: Settled-2 1200-- 800-- Turn-1 | AS62: 1-De Dion Bouton 57.5
A63: =IF(Meetings1!A63="","",IF(Meetings1!A63="END","END",IF(Meetings1!E63="","",getAddress(Meetings1!E63)))) ->  | AA63: 4-8 2.0L | AB63: Morn. | AC63: 2010-01-29 | AD63: 1223m | AE63: Dead | AF63: Race 5 | AG63: Hcp | AH63: RB68 | AI63: 13000 | AJ63: -500 | AK63: B Rawiller | AL63: 5 | AM63: Cd 57.5-0.0 | AN63: -54 | AO63: 1:13.52 | AP63: () | AQ63: 7/4F | AR63: Settled-2 1200-- 800-- Turn-1 | AS63: 1-Into The Sun 58.0
A64: =IF(Meetings1!A64="","",IF(Meetings1!A64="END","END",IF(Meetings1!E64="","",getAddress(Meetings1!E64)))) ->  | AA64: 2-13 0.5L | AB64: Ball't | AC64: 2010-01-14 | AD64: 1200m | AE64: Good | AF64: Race 8 | AG64: Hcp | AH64: RB68 | AI64: 22500 | AJ64: -4200 | AK64: B Rawiller | AL64: 11 | AM64: Cd 57.0-0.0 | AN64: -53 | AO64: 1:10.18 | AP64: () | AQ64: 12/1 | AR64: Settled-3 1200-- 800-- Turn-2 | AS64: 1-Mikeys Magic 56.0
A65: =IF(Meetings1!A65="","",IF(Meetings1!A65="END","END",IF(Meetings1!E65="","",getAddress(Meetings1!E65)))) ->  | AA65: 3-8 1.1L | AB65: St.Ck | AC65: 2009-12-28 | AD65: 1100m | AE65: Good | AF65: Race 6 | AG65: Hcp | AH65: RB68 | AI65: 12000 | AJ65: -1000 | AK65: J Noonan | AL65: 8 | AM65: Cd 56.0--2.0 | AN65: -53 | AO65: 1:06.52 | AP65: () | AQ65: 13/2 | AR65: Settled-8 1200-- 800-- Turn-7 | AS65: 1-Shaemist Mountain 54.5
A66: =IF(Meetings1!A66="","",IF(Meetings1!A66="END","END",IF(Meetings1!E66="","",getAddress(Meetings1!E66)))) ->  | Z66: Chabal | AA66: 4 Chabal (4) 55.0kg 5yo b g
A67: =IF(Meetings1!A67="","",IF(Meetings1!A67="END","END",IF(Meetings1!E67="","",getAddress(Meetings1!E67)))) ->  | Z67: =IF(AA67="","",IF(ISERROR(MID(AA67,FIND(" ",AA67,1)+1,FIND("(",AA67,1)-FIND(" ",AA67,1)-2)),"",MID(AA67,FIND(" ",AA67,1)+1,FIND("(",AA67,1)-FIND(" ",AA67,1)-2))) ->  | AA67: Colours: Black | AB67: lime green sleeves and cap
A68: =IF(Meetings1!A68="","",IF(Meetings1!A68="END","END",IF(Meetings1!E68="","",getAddress(Meetings1!E68)))) ->  | AA68: Owners: Mrs K E Walsh | AB68: C E Watts & D W Matsen
A69: =IF(Meetings1!A69="","",IF(Meetings1!A69="END","END",IF(Meetings1!E69="","",getAddress(Meetings1!E69)))) ->  | AA69: Career:
A70: =IF(Meetings1!A70="","",IF(Meetings1!A70="END","END",IF(Meetings1!E70="","",getAddress(Meetings1!E70)))) ->  | AA70: 40301.00208
A71: =IF(Meetings1!A71="","",IF(Meetings1!A71="END","END",IF(Meetings1!E71="","",getAddress(Meetings1!E71)))) ->  | AA71: Fast:
A72: =IF(Meetings1!A72="","",IF(Meetings1!A72="END","END",IF(Meetings1!E72="","",getAddress(Meetings1!E72)))) ->  | AA72: 0:0-0-0
A73: =IF(Meetings1!A73="","",IF(Meetings1!A73="END","END",IF(Meetings1!E73="","",getAddress(Meetings1!E73)))) ->  | AA73: 6-13 3.1L | AB73: Rocky | AC73: 2010-11-11 | AD73: 1200m | AE73: Good | AF73: Race 7 | AG73: Hcp | AH73: Cls 3 | AI73: 10000 | AJ73: 0 | AK73: J P Stanley | AL73: 7 | AM73: Cd 56.5-0.0 | AN73: -54 | AO73: 1:10.07 | AP73: -34.16 | AQ73: 25/1 | AR73: Settled-- 1200-- 800-- Turn-- | AS73: 1-Angel Force 54.0
A74: =IF(Meetings1!A74="","",IF(Meetings1!A74="END","END",IF(Meetings1!E74="","",getAddress(Meetings1!E74)))) ->  | AA74: 4-11 2.8L | AB74: Rocky | AC74: 2010-08-26 | AD74: 2243m | AE74: Dead | AF74: Race 4 | AG74: Hcp | AH74: Cls 4 | AI74: 12000 | AJ74: -600 | AK74: Dale Missen | AL74: 8 | AM74: Cd 56.5-0.0 | AN74: -54 | AO74: 2:21.97 | AP74: -36.58 | AQ74: 8/1 | AR74: Settled-- 1200-- 800-- Turn-- | AS74: 1-Sir Echo 55.5
A75: =IF(Meetings1!A75="","",IF(Meetings1!A75="END","END",IF(Meetings1!E75="","",getAddress(Meetings1!E75)))) ->  | AA75: 5-11 2.2L | AB75: T'vill | AC75: 2010-08-21 | AD75: 1630m | AE75: Good | AF75: Race 4 | AG75: Hcp | AH75: Cls 4 | AI75: 15000 | AJ75: 0 | AK75: A Merritt | AL75: 11 | AM75: Cd 54.0-0.0 | AN75: -54 | AO75: 1:39.31 | AP75: -35.6 | AQ75: 8/1 | AR75: Settled-- 1200-- 800-- Turn-- | AS75: 1-Northern Apache 54.0
A76: =IF(Meetings1!A76="","",IF(Meetings1!A76="END","END",IF(Meetings1!E76="","",getAddress(Meetings1!E76)))) ->  | AA76: 1-11 0.1L | AB76: T'vill | AC76: 2010-08-03 | AD76: 1630m | AE76: Good | AF76: Race 5 | AG76: Hcp | AH76: Cls 3 | AI76: 12000 | AJ76: -7800 | AK76: T Bannon | AL76: 2 | AM76: Cd 54.0-0.0 | AN76: -54 | AO76: 1:39.75 | AP76: -35.37 | AQ76: 11/1 | AR76: Settled-- 1200-- 800-- Turn-- | AS76: 2-Hamatym 56.5
A77: =IF(Meetings1!A77="","",IF(Meetings1!A77="END","END",IF(Meetings1!E77="","",getAddress(Meetings1!E77)))) ->  | AA77: 5-11 5.0L | AB77: Rocky | AC77: 2010-07-15 | AD77: 1814m | AE77: Good | AF77: Race 3 | AG77: Hcp | AH77: Cls 2 | AI77: 12000 | AJ77: 0 | AK77: Dale Missen | AL77: 10 | AM77: Cd 57.5-0.0 | AN77: -54 | AO77: 1:54.00 | AP77: -34.39 | AQ77: 13/4 | AR77: Settled-- 1200-- 800-- Turn-- | AS77: 1-Hot Shot Henry 54.0
A78: =IF(Meetings1!A78="","",IF(Meetings1!A78="END","END",IF(Meetings1!E78="","",getAddress(Meetings1!E78)))) ->  | AA78: 3-12 0.3L | AB78: T'vill | AC78: 2010-06-14 | AD78: 1630m | AE78: Good | AF78: Race 2 | AG78: Plate | AH78: Cls 3 | AI78: 10000 | AJ78: -1000 | AK78: Dale Missen | AL78: 6 | AM78: Cd 57.0-0.0 | AN78: (SW) | AO78: 1:39.48 | AP78: -35.81 | AQ78: 5/1 | AR78: Settled-- 1200-- 800-- Turn-- | AS78: 1-Keen On You 58.5
A79: =IF(Meetings1!A79="","",IF(Meetings1!A79="END","END",IF(Meetings1!E79="","",getAddress(Meetings1!E79)))) ->  | AA79: 1-8 5.0L | AB79: Mackay | AC79: 2010-05-29 | AD79: 1800m | AE79: Dead | AF79: Race 4 | AG79: Hcp | AH79: Cls 1 | AI79: 7500 | AJ79: -4800 | AK79: Dale Missen | AL79: 7 | AM79: Cd 58.0-0.0 | AN79: -54 | AO79: 1:50.22 | AP79: () | AQ79: 15/4 | AR79: Settled-- 1200-- 800-- Turn-- | AS79: 2-Sure Of Heart 54.0
A80: =IF(Meetings1!A80="","",IF(Meetings1!A80="END","END",IF(Meetings1!E80="","",getAddress(Meetings1!E80)))) ->  | AA80: 3-6 11.1L | AB80: Mackay | AC80: 2010-05-11 | AD80: 1800m | AE80: Slow | AF80: Race 1 | AG80: Hcp | AH80: Cls 1 | AI80: 10000 | AJ80: -1000 | AK80: Dale Missen | AL80: 1 | AM80: Cd 57.0-0.0 | AN80: -54 | AO80: 1:57.79 | AP80: () | AQ80: 2/1 | AR80: Settled-- 1200-- 800-- Turn-- | AS80: 1-Galaxy Stalker 56.0
A81: =IF(Meetings1!A81="","",IF(Meetings1!A81="END","END",IF(Meetings1!E81="","",getAddress(Meetings1!E81)))) ->  | AA81: 2-8 0.4L | AB81: Mackay | AC81: 2010-05-01 | AD81: 1500m | AE81: Good | AF81: Race 6 | AG81: Hcp | AH81: Cls 1 | AI81: 6000 | AJ81: -1200 | AK81: N Patchett | AL81: 5 | AM81: Cd 54.0-0.0 | AN81: -54 | AO81: 1:31.04 | AP81: () | AQ81: 7/1 | AR81: Settled-- 1200-- 800-- Turn-- | AS81: 1-Prom Knight 54.0
A82: =IF(Meetings1!A82="","",IF(Meetings1!A82="END","END",IF(Meetings1!E82="","",getAddress(Meetings1!E82)))) ->  | AA82: 6-8 4.1L | AB82: T'vill | AC82: 2010-04-22 | AD82: 1400m | AE82: Good | AF82: Race 1 | AG82: Hcp | AH82: Cls 1 | AI82: 10000 | AJ82: 0 | AK82: A Spinks | AL82: 6 | AM82: Cd 54.0-0.0 | AN82: -54 | AO82: 1:23.39 | AP82: -34.6 | AQ82: 7/1 | AR82: Settled-- 1200-- 800-- Turn-- | AS82: 1-Cinque Terre 58.5
A83: =IF(Meetings1!A83="","",IF(Meetings1!A83="END","END",IF(Meetings1!E83="","",getAddress(Meetings1!E83)))) ->  | Z83: Craiglea Tina | AA83: 5 Craiglea Tina (2) 54.0kg 3yo br f
A84: =IF(Meetings1!A84="","",IF(Meetings1!A84="END","END",IF(Meetings1!E84="","",getAddress(Meetings1!E84)))) ->  | AA84: Colours: Blue | AB84: white crossed sashes | AC84: white striped sleeves | AD84: blue cap
A85: =IF(Meetings1!A85="","",IF(Meetings1!A85="END","END",IF(Meetings1!E85="","",getAddress(Meetings1!E85)))) ->  | AA85: Owners: S M Johnston | AB85: Mrs M L Johnston | AC85: W A & J J Johnston & Miss K J E Johnston
A86: =IF(Meetings1!A86="","",IF(Meetings1!A86="END","END",IF(Meetings1!E86="","",getAddress(Meetings1!E86)))) ->  | AA86: Career:
A87: =IF(Meetings1!A87="","",IF(Meetings1!A87="END","END",IF(Meetings1!E87="","",getAddress(Meetings1!E87)))) ->  | AA87: 2010-03-01T17:03:00
A88: =IF(Meetings1!A88="","",IF(Meetings1!A88="END","END",IF(Meetings1!E88="","",getAddress(Meetings1!E88)))) ->  | AA88: Fast:
A89: =IF(Meetings1!A89="","",IF(Meetings1!A89="END","END",IF(Meetings1!E89="","",getAddress(Meetings1!E89)))) ->  | AA89: 0:0-0-0
A90: =IF(Meetings1!A90="","",IF(Meetings1!A90="END","END",IF(Meetings1!E90="","",getAddress(Meetings1!E90)))) ->  | AA90: 1-9 2.0L | AB90: Gympie | AC90: 2010-11-27 | AD90: 1470m | AE90: Good | AF90: Race 3 | AG90: Plate | AH90: Cls 3 | AI90: 6000 | AJ90: -4000 | AK90: K James | AL90: 4 | AM90: Cd 53.0--3.0 | AN90: (SW) | AO90: 1:31.06 | AP90: () | AQ90: 5/2 | AR90: Settled-- 1200-- 800-- Turn-- | AS90: 2-Tic Toc Tiger 56.0
A91: =IF(Meetings1!A91="","",IF(Meetings1!A91="END","END",IF(Meetings1!E91="","",getAddress(Meetings1!E91)))) ->  | AA91: 7-12 6.4L | AB91: Roma | AC91: 2010-11-20 | AD91: 1640m | AE91: Good | AF91: Race 6 | AG91: Plate | AH91: Cls 3 | AI91: 15000 | AJ91: 0 | AK91: K James | AL91: 8 | AM91: Cd 54.0--3.0 | AN91: (SW) | AO91: 1:45.13 | AP91: () | AQ91: 7/1 | AR91: Settled-- 1200-- 800-- Turn-- | AS91: 1-Bruncher 59.0
A92: =IF(Meetings1!A92="","",IF(Meetings1!A92="END","END",IF(Meetings1!E92="","",getAddress(Meetings1!E92)))) ->  | AA92: 3-6 2.2L | AB92: SCstIn | AC92: 2010-11-14 | AD92: 1250m | AE92: Good | AF92: Race 2 | AG92: Hcp | AH92: Cls 2 | AI92: 10000 | AJ92: -1000 | AK92: K Wharton | AL92: 2 | AM92: Cd 54.0-0.0 | AN92: -54 | AO92: 1:16.65 | AP92: -35.16 | AQ92: 5/2 | AR92: Settled-1 1200-- 800-- Turn-2 | AS92: 1-Monashee Matty 51.0
A93: =IF(Meetings1!A93="","",IF(Meetings1!A93="END","END",IF(Meetings1!E93="","",getAddress(Meetings1!E93)))) ->  | AA93: 9-11 6.8L | AB93: Rocky | AC93: 2010-10-21 | AD93: 1300m | AE93: Good | AF93: Race 7 | AG93: Hcp | AH93: Cls 4 | AI93: 10000 | AJ93: 0 | AK93: J Kropp | AL93: 11 | AM93: Cd 52.0--2.0 | AN93: -54 | AO93: 1:17.04 | AP93: -34.86 | AQ93: 12/1 | AR93: Settled-- 1200-- 800-- Turn-- | AS93: 1-Ewey Bay 51.0
A94: =IF(Meetings1!A94="","",IF(Meetings1!A94="END","END",IF(Meetings1!E94="","",getAddress(Meetings1!E94)))) ->  | AA94: 9-14 11.5L | AB94: E.Farm | AC94: 2010-10-02 | AD94: 1400m | AE94: Slow | AF94: Race 5 | AG94: 3yo Hcp | AH94: Open 3 | AI94: 50000 | AJ94: 0 | AK94: J Kropp | AL94: 4 | AM94: Cd 51.5--1.5 | AN94: -53 | AO94: 1:25.45 | AP94: -37.84 | AQ94: 100/1 | AR94: Settled-3 1200-- 800-- Turn-3 | AS94: 1-Random Orbit 53.0
A95: =IF(Meetings1!A95="","",IF(Meetings1!A95="END","END",IF(Meetings1!E95="","",getAddress(Meetings1!E95)))) ->  | AA95: 7-8 2.2L | AB95: Suncst | AC95: 2010-09-19 | AD95: 1600m | AE95: Good | AF95: Race 2 | AG95: 3yo Hcp | AH95: Cls 2 3 | AI95: 10000 | AJ95: 0 | AK95: J Kropp | AL95: 6 | AM95: Cd 53.0--2.0 | AN95: -54 | AO95: 1:37.87 | AP95: -35.19 | AQ95: 14/1 | AR95: Settled-1 1200-- 800-1 Turn-1 | AS95: 1-Satch 57.5
A96: =IF(Meetings1!A96="","",IF(Meetings1!A96="END","END",IF(Meetings1!E96="","",getAddress(Meetings1!E96)))) ->  | AA96: 3-11 1.5L | AB96: Mackay | AC96: 2010-09-07 | AD96: 1250m | AE96: Good | AF96: Race 5 | AG96: Hcp | AH96: Cls 2 | AI96: 10000 | AJ96: -1000 | AK96: K Cross | AL96: 3 | AM96: Cd 51.0--3.0 | AN96: -54 | AO96: 1:14.00 | AP96: () | AQ96: 13/4 | AR96: Settled-2 1200-- 800-- Turn-1 | AS96: 1-Essington 58.0
A97: =IF(Meetings1!A97="","",IF(Meetings1!A97="END","END",IF(Meetings1!E97="","",getAddress(Meetings1!E97)))) ->  | AA97: 4-7 3.8L | AB97: Suncst | AC97: 2010-08-15 | AD97: 1600m | AE97: Slow | AF97: Race 1 | AG97: 3yo Hcp | AH97: Cls 2 3 | AI97: 10000 | AJ97: -500 | AK97: K Wharton | AL97: 4 | AM97: Cd 55.5-0.0 | AN97: -54 | AO97: 1:39.71 | AP97: -37.59 | AQ97: 4/1 | AR97: Settled-3 1200-- 800-5 Turn-4 | AS97: 1-Just About Ready 56.0
A98: =IF(Meetings1!A98="","",IF(Meetings1!A98="END","END",IF(Meetings1!E98="","",getAddress(Meetings1!E98)))) ->  | AA98: 10-15 9.1L | AB98: E.Farm | AC98: 2010-07-24 | AD98: 1500m | AE98: Good | AF98: Race 1 | AG98: 2yo Hcp | AH98: Open 2 | AI98: 50000 | AJ98: 0 | AK98: J Kropp | AL98: 2 | AM98: Cd 51.5--3.0 | AN98: -53 | AO98: 1:30.06 | AP98: -35.91 | AQ98: 60/1 | AR98: Settled-1 1200-- 800-- Turn-1 | AS98: 1-Fillydelphia 56.0
A99: =IF(Meetings1!A99="","",IF(Meetings1!A99="END","END",IF(Meetings1!E99="","",getAddress(Meetings1!E99)))) ->  | AA99: 2-7 5.0L | AB99: Twbc | AC99: 2010-07-17 | AD99: 1300m | AE99: Good | AF99: Race 6 | AG99: 2yo Hcp | AH99: Open 2 | AI99: 10000 | AJ99: -2000 | AK99: K Wharton | AL99: 1 | AM99: Cd 56.0-0.0 | AN99: -54 | AO99: 1:20.16 | AP99: -36.7 | AQ99: 15/4 | AR99: Settled-4 1200-- 800-- Turn-3 | AS99: 1-Hidden Treasure 57.0
A100: =IF(Meetings1!A100="","",IF(Meetings1!A100="END","END",IF(Meetings1!E100="","",getAddress(Meetings1!E100)))) ->  | Z100: Lola Brigida | AA100: 6 Lola Brigida (7) 54.0kg 5yo ch m
A101: =IF(Meetings1!A101="","",IF(Meetings1!A101="END","END",IF(Meetings1!E101="","",getAddress(Meetings1!E101)))) ->  | AA101: Colours: Lime green | AB101: maroon sash | AC101: maroon sleeves
AA102: Owners: D Munns
AA103: Career:
AA104: 2010-04-04T09:03:00
AA105: Fast:
AA106: 0:0-0-0
AA107: 1-11 4.5L | AB107: Emrld | AC107: 2010-11-27 | AD107: 1300m | AE107: Good | AF107: Race 5 | AG107: Plate | AH107: Cls 3 | AI107: 6000 | AJ107: -4000 | AK107: T Bannon | AL107: 10 | AM107: Cd 56.0-0.0 | AN107: (SW) | AO107: 1:17.32 | AP107: () | AQ107: 5/1 | AR107: Settled-- 1200-- 800-- Turn-- | AS107: 2-Senorina 55.5
AA108: 6-11 4.4L | AB108: Rocky | AC108: 2010-11-18 | AD108: 1200m | AE108: Good | AF108: Race 6 | AG108: Hcp | AH108: Cls 4 | AI108: 12000 | AJ108: 0 | AK108: C McIver | AL108: 7 | AM108: Cd 54.0-0.0 | AN108: -54 | AO108: 1:10.05 | AP108: -34.36 | AQ108: 14/1 | AR108: Settled-- 1200-- 800-- Turn-- | AS108: 1-Two Tone 58.5
AA109: 1-9 0.5L | AB109: Rocky | AC109: 2010-11-04 | AD109: 1200m | AE109: Dead | AF109: Race 5 | AG109: Hcp | AH109: Cls 1 | AI109: 10000 | AJ109: -6500 | AK109: Ash Butler | AL109: 9 | AM109: Cd 54.5-0.0 | AN109: -54 | AO109: 1:11.60 | AP109: -35.17 | AQ109: 11/1 | AR109: Settled-- 1200-- 800-- Turn-- | AS109: 2-Kickdahabit 53.5
AA110: 4-6 9.3L | AB110: Glad. | AC110: 2010-10-23 | AD110: 1194m | AE110: Good | AF110: Race 5 | AG110: Hcp | AH110: Cls 2 | AI110: 6000 | AJ110: -200 | AK110: C A Beets | AL110: 3 | AM110: Cd 57.0-0.0 | AN110: -55 | AO110: 1:12.77 | AP110: () | AQ110: 13/8 | AR110: Settled-- 1200-- 800-- Turn-- | AS110: 1-Old Flame 55.0
AA111: 7-12 4.7L | AB111: Rocky | AC111: 2010-10-14 | AD111: 1100m | AE111: Good | AF111: Race 5 | AG111: F&m Hcp | AH111: Cls 1 fm | AI111: 10000 | AJ111: 0 | AK111: T Bannon | AL111: 3 | AM111: Cd 57.5-0.0 | AN111: -54 | AO111: 1:03.96 | AP111: -33.99 | AQ111: 4/1 | AR111: Settled-- 1200-- 800-- Turn-- | AS111: 1-Run Kylie Run 58.5
AA112: 3-14 1.4L | AB112: Rocky | AC112: 2010-09-16 | AD112: 1200m | AE112: Good | AF112: Race 5 | AG112: Hcp | AH112: Cls 2 | AI112: 10000 | AJ112: -1000 | AK112: H O'Hara | AL112: 6 | AM112: Cd 53.0--2.0 | AN112: -54 | AO112: 1:10.21 | AP112: -34.58 | AQ112: 6/1 | AR112: Settled-- 1200-- 800-- Turn-- | AS112: 1-Senorina 52.0
AA113: 3-9 2.8L | AB113: Rocky | AC113: 2010-09-09 | AD113: 1300m | AE113: Good | AF113: Race 3 | AG113: Hcp | AH113: Cls 4 | AI113: 12000 | AJ113: -1200 | AK113: H O'Hara | AL113: 1 | AM113: Cd 53.0--1.0 | AN113: -54 | AO113: 1:16.40 | AP113: -34.9 | AQ113: 9/1 | AR113: Settled-- 1200-- 800-- Turn-- | AS113: 1-Martiros 55.0
AA114: 6-11 1.8L | AB114: Emrld | AC114: 2010-09-04 | AD114: 1200m | AE114: Good | AF114: Race 3 | AG114: Hcp | AH114: Cls 4 | AI114: 6000 | AJ114: 0 | AK114: M Cant | AL114: 6 | AM114: Cd 55.0-0.0 | AN114: -55 | AO114: 1:09.81 | AP114: () | AQ114: 8/1 | AR114: Settled-- 1200-- 800-- Turn-- | AS114: 1-Kalkie Miss 54.5
AA115: 13-13 50.1L | AB115: Rocky | AC115: 2010-08-26 | AD115: 1100m | AE115: Dead | AF115: Race 6 | AG115: Hcp | AH115: Cls 1 | AI115: 10000 | AJ115: 0 | AK115: N Thomas | AL115: 10 | AM115: Cd 54.5-0.0 | AN115: -54 | AO115: 1:04.66 | AP115: -34.91 | AQ115: 10/1 | AR115: Settled-- 1200-- 800-- Turn-- | AS115: 1-Dad's Best Mate 54.0
AA116: 3-10 2.5L | AB116: Rocky | AC116: 2010-08-12 | AD116: 1200m | AE116: Dead | AF116: Race 6 | AG116: Hcp | AH116: Cls 2 | AI116: 10000 | AJ116: -1000 | AK116: N Thomas | AL116: 2 | AM116: Cd 54.0-0.0 | AN116: -54 | AO116: 1:11.28 | AP116: -34.02 | AQ116: 8/1 | AR116: Settled-- 1200-- 800-- Turn-- | AS116: 1-Aladah 56.0
Z117: Zenacity | AA117: 7 Zenacity (1) 54.0kg 7yo b m
AA118: Colours: Pink | AB118: blue hooped sleeves and pink cap
AA119: Owners: D O'Shea & S J Little
AA120: Career:
AA121: 2010-04-04T11:03:00
AA122: Fast:
AA123: 0:0-0-0
AA124: 11-11 7.5L | AB124: Rocky | AC124: 2010-11-18 | AD124: 1200m | AE124: Good | AF124: Race 6 | AG124: Hcp | AH124: Cls 4 | AI124: 12000 | AJ124: 0 | AK124: R Hall | AL124: 10 | AM124: Cd 54.0-0.0 | AN124: -54 | AO124: 1:10.05 | AP124: -34.36 | AQ124: 25/1 | AR124: Settled-- 1200-- 800-- Turn-- | AS124: 1-Two Tone 58.5
AA125: 3-5 3.7L | AB125: Glad. | AC125: 2010-11-02 | AD125: 1000m | AE125: Dead | AF125: Race 2 | AG125: Plate | AH125: Cls 3 | AI125: 6000 | AJ125: -600 | AK125: R Hall | AL125: 2 | AM125: Cd 57.5-0.0 | AN125: (SW) | AO125: 1:00.21 | AP125: () | AQ125: 6/4 | AR125: Settled-- 1200-- 800-- Turn-- | AS125: 1-Mala Mala 54.0
AA126: 9-13 8.4L | AB126: Rocky | AC126: 2010-06-01 | AD126: 1400m | AE126: Good | AF126: Race 7 | AG126: Hcp | AH126: Cls 4 | AI126: 10000 | AJ126: 0 | AK126: C Whiteley | AL126: 1 | AM126: Cd 54.0-0.0 | AN126: -54 | AO126: 1:22.03 | AP126: -34.27 | AQ126: 12/1 | AR126: Settled-- 1200-- 800-- Turn-- | AS126: 1-Writer 54.5
AA127: 8-12 4.2L | AB127: Rocky | AC127: 2010-05-18 | AD127: 1300m | AE127: Good | AF127: Race 8 | AG127: Hcp | AH127: Cls 4 | AI127: 10000 | AJ127: 0 | AK127: M Hellyer | AL127: 5 | AM127: Cd 54.0-0.0 | AN127: -54 | AO127: 1:16.57 | AP127: -35.01 | AQ127: 12/1 | AR127: Settled-- 1200-- 800-- Turn-- | AS127: 1-Allbutmine 54.0
AA128: 3-10 3.1L | AB128: Rocky | AC128: 2010-05-06 | AD128: 1050m | AE128: Good | AF128: Race 7 | AG128: Hcp | AH128: Cls 4 | AI128: 10000 | AJ128: -1000 | AK128: C Whiteley | AL128: 2 | AM128: Cd 54.0-0.0 | AN128: -54 | AO128: 1:00.35 | AP128: -33.75 | AQ128: 25/1 | AR128: Settled-- 1200-- 800-- Turn-- | AS128: 1-Andy Said 55.5
AA129: 8-10 3.3L | AB129: Rocky | AC129: 2010-04-20 | AD129: 970m | AE129: Good | AF129: Race 5 | AG129: Hcp | AH129: Cls 4 | AI129: 10000 | AJ129: 0 | AK129: R Hall | AL129: 6 | AM129: Cd 55.0-0.0 | AN129: -54 | AO129: 0:56.50 | AP129: -33.4 | AQ129: 20/1 | AR129: Settled-- 1200-- 800-- Turn-- | AS129: 1-Falvalea 58.0
AA130: 6-7 8.8L | AB130: Cushio | AC130: 2010-01-22 | AD130: 1600m | AE130: Good | AF130: Race 2 | AG130: Hcp | AH130: Cls 4 | AI130: 10000 | AJ130: 0 | AK130: J Holder | AL130: 7 | AM130: Cd 54.0-0.0 | AN130: -54 | AO130: 1:38.76 | AP130: -36.89 | AQ130: 5/1 | AR130: Settled-6 1200-- 800-5 Turn-4 | AS130: 1-Irishkiwi 56.5
Z131: =IF(AA131="","",IF(ISERROR(MID(AA131,FIND(" ",AA131,1)+1,FIND("(",AA131,1)-FIND(" ",AA131,1)-2)),"",MID(AA131,FIND(" ",AA131,1)+1,FIND("(",AA131,1)-FIND(" ",AA131,1)-2))) ->  | AA131: 7-11 6.0L | AB131: D'Ben | AC131: 2010-01-13 | AD131: 1650m | AE131: Good | AF131: Race 5 | AG131: Hcp | AH131: Cls 4 | AI131: 13000 | AJ131: 0 | AK131: J Wood | AL131: 2 | AM131: Cd 50.0--3.0 | AN131: -53 | AO131: 1:39.23 | AP131: -35.33 | AQ131: 12/1 | AR131: Settled-9 1200-- 800-10 Turn-10 | AS131: 1-Bretonneux 53.5
AA132: 6-13 4.0L | AB132: D'Ben | AC132: 2009-12-26 | AD132: 1350m | AE132: Dead | AF132: Race 2 | AG132: F&m Rst0 | AH132: RS0MW fm | AI132: 45000 | AJ132: 0 | AK132: J Holder | AL132: 5 | AM132: Cd 53.0-0.0 | AN132: -53 | AO132: 1:19.84 | AP132: -35.23 | AQ132: 25/1 | AR132: Settled-10 1200-- 800-- Turn-11 | AS132: 1-Alberton Park 53.0
AA133: 1-12 0.4L | AB133: Cushio | AC133: 2009-12-11 | AD133: 1400m | AE133: Good | AF133: Race 9 | AG133: Hcp | AH133: Cls 2 | AI133: 10000 | AJ133: -6500 | AK133: S Katsidis | AL133: 9 | AM133: Cd 54.0-0.0 | AN133: -54 | AO133: 1:25.80 | AP133: -37.38 | AQ133: 2/1E | AR133: Settled-8 1200-- 800-- Turn-8 | AS133: 2-Qwerty 54.0
Z134: Dandy Kat | AA134: 8 Dandy Kat (6) 54.0kg 6yo b g
AA135: Colours: Blue | AB135: gold horseshoe | AC135: gold armbands and blue and gold qtrd cap
AA136: Owners: A P Pianta & C R Green
AA137: Career:
AA138: 40306.41944
AA139: Fast:
AA140: 0:0-0-0
AA141: 7-8 9.9L | AB141: Twbc | AC141: 2010-11-06 | AD141: 1850m | AE141: Good | AF141: Race 5 | AG141: Plate | AH141: Cls 3 | AI141: 12000 | AJ141: 0 | AK141: P Wolfgram | AL141: 5 | AM141: Cd 58.5-0.0 | AN141: (SW) | AO141: 1:56.75 | AP141: -37.93 | AQ141: 7/2 | AR141: Settled-5 1200-- 800-5 Turn-7 | AS141: 1-Sunday Advice 55.5
AA142: 5-7 6.4L | AB142: Rocky | AC142: 2010-10-21 | AD142: 1500m | AE142: Good | AF142: Race 3 | AG142: Open | AH142: Open | AI142: 10000 | AJ142: 0 | AK142: A Coome | AL142: 7 | AM142: Cd 54.0-0.0 | AN142: -54 | AO142: 1:29.91 | AP142: -34.58 | AQ142: 5/1 | AR142: Settled-- 1200-- 800-- Turn-- | AS142: 1-Tantat Secret 60.0
AA143: 4-10 3.0L | AB143: Rocky | AC143: 2010-10-14 | AD143: 1821m | AE143: Good | AF143: Race 4 | AG143: Hcp | AH143: Cls 3 | AI143: 12000 | AJ143: -600 | AK143: A Coome | AL143: 10 | AM143: Cd 57.0-0.0 | AN143: -54 | AO143: 1:50.68 | AP143: -35.19 | AQ143: 4/1 | AR143: Settled-- 1200-- 800-- Turn-- | AS143: 1-Ewey Bay 52.5
AA144: 11-15 7.7L | AB144: Rocky | AC144: 2010-10-07 | AD144: 1200m | AE144: Good | AF144: Race 7 | AG144: Hcp | AH144: Cls 3 | AI144: 10000 | AJ144: 0 | AK144: C McIver | AL144: 4 | AM144: Cd 56.0-0.0 | AN144: -54 | AO144: 1:10.26 | AP144: -34.68 | AQ144: 25/1 | AR144: Settled-- 1200-- 800-- Turn-- | AS144: 1-Basheeba 56.0
AA145: 6-7 8.7L | AB145: Mackay | AC145: 2010-09-18 | AD145: 1250m | AE145: Good | AF145: Race 2 | AG145: Plate | AH145: Cls 3 | AI145: 7500 | AJ145: 0 | AK145: D Whitmore | AL145: 2 | AM145: Cd 58.5-0.0 | AN145: (SW) | AO145: 1:13.30 | AP145: () | AQ145: 5/1 | AR145: Settled-- 1200-- 800-- Turn-- | AS145: 1-Springbok Lad 58.5
AA146: 9-10 6.3L | AB146: Rocky | AC146: 2010-06-01 | AD146: 1828m | AE146: Good | AF146: Race 6 | AG146: Hcp | AH146: Cls 3 | AI146: 12000 | AJ146: 0 | AK146: A Coome | AL146: 3 | AM146: Cd 58.0-0.0 | AN146: -54 | AO146: 1:50.41 | AP146: -35.43 | AQ146: 5/1 | AR146: Settled-- 1200-- 800-- Turn-- | AS146: 1-A Boy Called Sue 57.0
AA147: 2-8 0.2L | AB147: Rocky | AC147: 2010-05-06 | AD147: 1823m | AE147: Good | AF147: Race 3 | AG147: Hcp | AH147: Cls 3 | AI147: 10000 | AJ147: -2000 | AK147: Dale Missen | AL147: 5 | AM147: Cd 57.5-0.0 | AN147: -54 | AO147: 1:51.02 | AP147: -35.41 | AQ147: 4/1 | AR147: Settled-- 1200-- 800-- Turn-- | AS147: 1-Sir Echo 55.0
AA148: 9-13 8.7L | AB148: Rocky | AC148: 2010-04-28 | AD148: 1500m | AE148: Good | AF148: Race 7 | AG148: Hcp | AH148: Cls 4 | AI148: 10000 | AJ148: 0 | AK148: B Hull | AL148: 10 | AM148: Cd 54.5-0.0 | AN148: -54 | AO148: 1:28.69 | AP148: -35.45 | AQ148: 8/1 | AR148: Settled-- 1200-- 800-- Turn-- | AS148: 1-Tomkins 52.0
AA149: 2-9 1.5L | AB149: Rocky | AC149: 2010-04-09 | AD149: 2203m | AE149: Good | AF149: Race 5 | AG149: Plate | AH149: Cls 3 | AI149: 15000 | AJ149: -3000 | AK149: A Coome | AL149: 2 | AM149: Cd 58.5-0.0 | AN149: (SW) | AO149: 2:14.98 | AP149: () | AQ149: 9/2 | AR149: Settled-- 1200-- 800-- Turn-- | AS149: 1-Craiglea Bella 55.0
AA150: 5-8 3.1L | AB150: Rocky | AC150: 2010-03-25 | AD150: 2200m | AE150: Dead | AF150: Race 2 | AG150: Hcp | AH150: Cls 3 | AI150: 10000 | AJ150: 0 | AK150: A Coome | AL150: 2 | AM150: Cd 57.5-0.0 | AN150: -54 | AO150: 2:24.47 | AP150: () | AQ150: 9/4F | AR150: Settled-- 1200-- 800-- Turn-- | AS150: 1-Gremmo 56.5
Z151: Fu Min Bu | AA151: 9 Fu Min Bu (9) 54.0kg 5yo b/br m
AA152: Colours: Red with purple sash | AB152: purple armbands and white cap
AA153: Owners: Mrs G J Sullivan & B Sullivan
AA154: Career:
AA155: 2010-03-04T13:02:00
AA156: Fast:
AA157: 0:0-0-0
AA158: 6-8 4.0L | AB158: Corowa | AC158: 2010-11-02 | AD158: 1000m | AE158: Dead | AF158: Race 5 | AH158: BM45 | AI158: 4000 | AJ158: 0 | AK158: A Beer | AL158: 4 | AM158: Cd 53.5--2.0 | AN158: -54 | AO158: 0:57.88 | AP158: () | AQ158: 4/1 | AR158: Settled-- 1200-- 800-- Turn-- | AS158: 1-Teshi Tallarah 55.5
AA159: 6-7 4.8L | AB159: Wagga | AC159: 2010-10-02 | AD159: 1200m | AE159: Dead | AF159: Race 4 | AG159: F&m | AH159: BM45 fm | AI159: 4000 | AJ159: 0 | AK159: A Bloomfield | AL159: 3 | AM159: Cd 58.0-0.0 | AN159: -54 | AO159: 1:11.44 | AP159: () | AQ159: 5/2E | AR159: Settled-- 1200-- 800-- Turn-- | AS159: 1-Rustie Bugles 59.5
AA160: 3-12 1.8L | AB160: Grenfl | AC160: 2010-09-25 | AD160: 1200m | AE160: Good | AF160: Race 4 | AH160: BM45 | AI160: 3500 | AJ160: -300 | AK160: A Bloomfield | AL160: 10 | AM160: Cd 56.0-0.0 | AN160: -54 | AO160: 1:13.44 | AP160: () | AQ160: 9/1 | AR160: Settled-- 1200-- 800-- Turn-- | AS160: 1-Cleary's Creek 57.5
AA161: 8-11 7.0L | AB161: G'burn | AC161: 2010-09-07 | AD161: 1300m | AE161: Dead | AF161: Race 7 | AH161: BM50 | AI161: 10000 | AJ161: 0 | AK161: R Bensley | AL161: 4 | AM161: Cd 54.0-0.0 | AN161: -54 | AO161: 1:18.55 | AP161: -37.39 | AQ161: 20/1 | AR161: Settled-8 1200-- 800-- Turn-7 | AS161: 1-Monzero 59.0
AA162: 5-12 1.1L | AB162: Narran | AC162: 2010-08-28 | AD162: 1400m | AE162: Dead | AF162: Race 7 | AG162: F&m | AH162: BM50 fm | AI162: 9000 | AJ162: 0 | AK162: A Bloomfield | AL162: 3 | AM162: Cd 56.0-0.0 | AN162: -54 | AO162: 1:25.77 | AP162: -37.4 | AQ162: 7/1 | AR162: Settled-- 1200-- 800-- Turn-- | AS162: 1-Covers 59.5
AA163: 3-12 2.4L | AB163: Narran | AC163: 2010-08-21 | AD163: 1200m | AE163: Dead | AF163: Race 3 | AH163: BM45 | AI163: 4000 | AJ163: -400 | AK163: W Pearson | AL163: 8 | AM163: Cd 56.5-0.0 | AN163: -54 | AO163: 1:12.68 | AP163: -37.93 | AQ163: 5/1 | AR163: Settled-- 1200-- 800-- Turn-- | AS163: 1-Awesome Feeling 58.5
AA164: 5-8 4.2L | AB164: Leeton | AC164: 2010-08-08 | AD164: 1000m | AE164: Dead | AF164: Race 7 | AH164: BM55 | AI164: 9000 | AJ164: 0 | AK164: J Kissick | AL164: 5 | AM164: Cd 50.0--4.0 | AN164: -54 | AO164: 0:59.40 | AP164: -35.26 | AQ164: 8/1 | AR164: Settled-- 1200-- 800-- Turn-- | AS164: 1-Prime Cognac 59.5
AA165: 4-10 3.0L | AB165: Wagga | AC165: 2010-07-27 | AD165: 1000m | AE165: Slow | AF165: Race 7 | AH165: BM50 | AI165: 9000 | AJ165: 0 | AK165: S G Walsh | AL165: 8 | AM165: Cd 55.0-0.0 | AN165: -54 | AO165: 0:58.91 | AP165: () | AQ165: 20/1 | AR165: Settled-- 1200-- 800-- Turn-- | AS165: 1-Look At The Rose 58.0
AA166: 11-12 9.1L | AB166: Acton | AC166: 2010-07-11 | AD166: 1080m | AE166: Good | AF166: Race 6 | AG166: Hcp | AH166: Cls 2 | AI166: 11000 | AJ166: 0 | AK166: A Bloomfield | AL166: 12 | AM166: Cd 54.0-0.0 | AN166: -54 | AO166: 1:02.68 | AP166: -34.61 | AQ166: 25/1 | AR166: Settled-11 1200-- 800-- Turn-12 | AS166: 1-Plutonic 55.0
AA167: 8-10 3.6L | AB167: Tumut | AC167: 2010-03-13 | AD167: 1200m | AE167: Good | AF167: Race 3 | AG167: Hcp | AH167: BM45 | AI167: 5100 | AJ167: 0 | AK167: T Jeffries | AL167: 1 | AM167: Cd 56.5--2.0 | AN167: -54 | AO167: 1:12.04 | AP167: () | AQ167: 13/4 | AR167: Settled-- 1200-- 800-- Turn-- | AS167: 1-Thatsmyemgee 56.0
Z195: =IF(AA195="","",IF(ISERROR(MID(AA195,FIND(" ",AA195,1)+1,FIND("(",AA195,1)-FIND(" ",AA195,1)-2)),"",MID(AA195,FIND(" ",AA195,1)+1,FIND("(",AA195,1)-FIND(" ",AA195,1)-2))) -> 
